{"text_format":"1","workbook":"xlsx","n_sheets":8,"sheets":["MODELOS","PISO","SUSPENSO","PRÉ PESAGEM","BIG BAG","SUSPENSO 6125","DADOS","COMBINAÇÃO PAINEL"],"not_rendered":{"charts":0,"images":110,"macros":1,"external_links":0,"defined_names":191,"comments":0,"pivot_tables":0},"unopened":[],"bounds":{"document_bytes":16777216,"sheet_cells":100000,"rows_first":2000,"rows_last":500,"rows_between":2000,"halvings":0,"cell_chars":16384,"cell_head_chars":4096},"cells_cut":0,"cells_raw":0,"read":"whole","date_system":"1900"}

{"sheet":"MODELOS","index":0,"n_rows":23,"n_cols":24,"rows_kept":23,"cut":false,"hidden":false,"merged":[[21,23,21,28],[22,23,22,28],[23,8,23,13],[23,16,23,21],[23,1,23,6],[21,16,21,21],[21,1,21,6],[21,8,21,14],[22,1,22,6],[22,16,22,21],[22,8,22,14]]}
[]
[]
[]
[]
[]
[]
[]
[]
[]
[]
[]
[]
[]
[]
[]
[]
[]
[]
[]
[]
[]
[null,"ENSACADOR DE BIG BAG VERSÃO PISO",null,null,null,null,null,null,"ENSACADOR DE BIG BAG PRÉ DOSAGEM",null,null,null,null,null,null,null,"ENSACADOR DE BIG BAG SUSPENSO POR CILINDRO",null,null,null,null,null,null,"ENSACADOR DE BIG BAG SUSPENSO POR MOTOR"]
[null,"Mod.: 6110/11 (aço carbono / inox)",null,null,null,null,null,null,"Mod.: 6122 (aço carbono)",null,null,null,null,null,null,null,"Mod.: 6123/24 (aço carbono / inox)",null,null,null,null,null,null,"Mod.: 6125 (aço carbono)"]

{"sheet":"PISO","index":1,"n_rows":85,"n_cols":54,"rows_kept":85,"cut":false,"hidden":true,"merged":[[82,30,82,53],[77,29,77,54],[83,2,83,25],[68,1,81,3],[49,2,49,9],[56,10,56,14],[58,15,58,19],[59,15,59,19],[56,15,56,19],[49,15,49,19],[51,2,51,9],[52,2,52,9],[53,2,53,9],[54,2,54,9],[51,15,51,19],[52,15,52,19],[53,15,53,19],[54,15,54,19],[50,2,50,9],[82,2,82,25],[83,30,83,53],[66,29,67,54],[68,29,68,54],[69,29,69,54],[3,29,4,54],[2,4,2,25],[2,32,2,53],[38,2,38,9],[39,2,39,9],[44,2,44,9],[15,22,15,25],[10,14,10,15],[27,15,27,19],[28,15,28,19],[20,15,20,19],[4,2,4,5],[4,6,4,13],[4,14,4,15],[4,16,4,18],[4,19,4,20],[19,10,19,14],[18,2,18,9],[13,4,13,25],[14,2,14,3],[14,4,14,13],[27,10,27,14],[28,10,28,14],[20,10,20,14],[21,10,21,14],[22,10,22,14],[23,10,23,14],[24,10,24,14],[35,15,35,19],[36,15,36,19],[34,10,34,14],[35,10,35,14],[36,10,36,14],[33,10,33,14],[33,15,33,19],[32,10,32,14],[32,15,32,19],[34,15,34,19],[6,1,16,1],[7,2,7,25],[8,2,8,3],[8,4,8,25],[9,2,9,3],[11,2,11,3],[11,4,11,22],[11,24,11,25],[12,2,12,3],[12,4,12,13],[12,14,12,15],[12,16,12,22],[12,24,12,25],[9,4,9,13],[9,14,9,15],[9,16,9,25],[10,2,10,3],[10,4,10,13],[10,16,10,25],[16,2,16,25],[15,2,15,3],[15,16,15,19],[15,20,15,21],[13,2,13,3],[14,14,14,15],[14,16,14,25],[18,15,18,19],[19,15,19,19],[18,10,18,14],[15,4,15,13],[15,14,15,15],[19,2,19,9],[4,21,4,25],[17,1,28,1],[64,10,64,14],[64,15,64,19],[64,2,64,9],[57,2,57,9],[56,2,56,9],[53,10,53,14],[54,10,54,14],[50,10,50,14],[51,10,51,14],[52,10,52,14],[50,15,50,19],[58,10,58,14],[59,10,59,14],[57,10,57,14],[29,15,29,19],[21,15,21,19],[25,15,25,19],[26,15,26,19],[27,2,27,9],[22,15,22,19],[23,15,23,19],[24,15,24,19],[32,2,32,9],[20,2,20,9],[21,2,21,9],[25,2,25,9],[26,2,26,9],[22,2,22,9],[23,2,23,9],[24,2,24,9],[46,2,46,9],[34,2,34,9],[35,2,35,9],[36,2,36,9],[37,2,37,9],[43,2,43,9],[29,2,29,9],[33,2,33,9],[28,2,28,9],[45,2,45,9],[25,20,29,26],[60,15,60,19],[60,31,60,53],[29,10,29,14],[25,10,25,14],[26,10,26,14],[72,29,72,54],[73,29,73,54],[70,29,70,54],[61,15,61,19],[71,29,71,54],[66,2,66,13],[43,10,43,14],[43,15,43,19],[65,2,65,4],[46,10,46,14],[46,15,46,19],[57,15,57,19],[55,15,55,19],[55,10,55,14],[55,2,55,9],[61,10,61,14],[60,2,60,9],[60,10,60,14],[74,29,74,54],[39,10,39,14],[44,10,44,14],[45,10,45,14],[49,10,49,14],[66,14,66,19],[68,4,81,26],[37,15,37,19],[38,15,38,19],[39,15,39,19],[78,29,81,32],[79,33,80,53],[44,15,44,19],[45,15,45,19],[37,10,37,14],[38,10,38,14],[40,4,40,14],[58,2,58,9],[59,2,59,9],[75,29,75,54],[76,29,76,54],[62,2,62,19],[63,15,63,19]]}
[]
[null,null,null,null,null,null,null,null,null,null,null,null,null,null,null,null,null,null,null,null,null,null,null,null,null,"PG 1 / 2",null,null,null,null,null,null,null,null,null,null,null,null,null,null,null,null,null,null,null,null,null,null,null,null,null,null,null,"PG 2 / 2"]
[null,null,null,null,"FOLHA DE DADOS: ENSACADOR DE BIG BAG - PISO",null,null,null,null,null,null,null,null,null,null,null,null,null,null,null,null,null,null,null,null,null,null,null,null,null,null,null,"FOLHA DE DADOS: ENSACADOR DE BIG BAG - PISO"]
[null,null,null,null,null,null,null,null,null,null,null,null,null,null,null,null,null,null,null,null,null,null,null,null,null,null,null,null,null,"DIMENSÕES DO BIG BAG E ESTRUTURA"]
[null,null,"Proposta Comercial nº:",null,null,null,null,null,null,null,null,null,null,null,"Revisão:",null,null,null,null,"Data:"]
[]
[]
[null,null,"Informações do CLIENTE"]
[null,null,"Empresa:"]
[null,null,"Unidade:",null,null,null,null,null,null,null,null,null,null,null,"CNPJ:"]
[null,null,"Divisão:",null,null,null,null,null,null,null,null,null,null,null,"Setor"]
[null,null,"Endereço:",null,null,null,null,null,null,null,null,null,null,null,null,null,null,null,null,null,null,null,null,"CEP:"]
[null,null,"Bairro:",null,null,null,null,null,null,null,null,null,null,null,"Cidade:",null,null,null,null,null,null,null,null,"UF:"]
[null,null,"Contato:"]
[null,null,"Setor",null,null,null,null,null,null,null,null,null,null,null,"Cargo:"]
[null,null,"e-mail:",null,null,null,null,null,null,null,null,null,null,null,"Telefone:",null,null,null,null,null,"Celular:"]
[]
[]
[null,null,"PROCESSO",null,null,null,null,null,null,null,"Exemplo",null,null,null,null,"Real"]
[null,null,"Produto",null,null,null,null,null,null,null,"AÇÚCAR"]
[null,null,"Origem do material",null,null,null,null,null,null,null,"SILO"]
[null,null,"Transporte do material para o Ensacador",null,null,null,null,null,null,null,"GRAVIDADE",null,null,null,null,"SELECIONE  ▼"]
[null,null,"Retirada do bag (carro manual/paleteira/outros)",null,null,null,null,null,null,null,"PALETEIRA",null,null,null,null,"SELECIONE  ▼"]
[null,null,"Área de ensacamento (segura/classificada)",null,null,null,null,null,null,null,"SEGURA",null,null,null,null,"SELECIONE  ▼"]
[null,null,"Intertravamento com CLP externo",null,null,null,null,null,null,null,"NÃO",null,null,null,null,"SELECIONE  ▼"]
[null,null,"Temperatura do produto (ºC)",null,null,null,null,null,null,null,30,null,null,null,null,null,null,null,null,null,"Preencher os campos numéricos somente \ncom valores"]
[null,null,"Temperatura ambiente (ºC)",null,null,null,null,null,null,null,25]
[null,null,"Densidade do produto (g/cm3)",null,null,null,null,null,null,null,0.95]
[null,null,"Peso Líquido do Big Bag cheio (kg)",null,null,null,null,null,null,null,2000]
[null,null,"J Distância Piso-Silo (mm)",null,null,null,null,null,null,null,2500]
[]
[]
[null,null,"BIG BAG",null,null,null,null,null,null,null,"Exemplo",null,null,null,null,"Real"]
[null,null,"Tipo de Big Bag",null,null,null,null,null,null,null,"RETANGULAR",null,null,null,null,"SELECIONE  ▼"]
[null,null,"A Diâmetro ou largura big bag (mm)",null,null,null,null,null,null,null,1000]
[null,null,"B Altura do big bag (mm)",null,null,null,null,null,null,null,1000]
[null,null,"C Altura da boca do big bag (mm)",null,null,null,null,null,null,null,400]
[null,null,"D Diâmetro da boca do big bag (mm)",null,null,null,null,null,null,null,400]
[null,null,"E Comprimento da alça (mm)",null,null,null,null,null,null,null,250]
[null,null,"F Distância entre alças (mm)",null,null,null,null,null,null,null,500]
[null,null,null,null,"CASO O PROCESSO TENHA MAIS DE UM TIPO DE BIG BAG"]
[]
[]
[null,null,"PALLET",null,null,null,null,null,null,null,"Exemplo",null,null,null,null,"Real"]
[null,null,"G Comprimento do pallet (mm)",null,null,null,null,null,null,null,1000]
[null,null,"H Largura do pallet (mm)",null,null,null,null,null,null,null,1000]
[null,null,"I Altura do pallet (mm)",null,null,null,null,null,null,null,150]
[]
[]
[null,null,"ENSACADOR DE BIG BAG",null,null,null,null,null,null,null,"Exemplo",null,null,null,null,"Real"]
[null,null,"Ensacador em Aço Carbono ou Inox?",null,null,null,null,null,null,null,"AÇO INOX 304",null,null,null,null,"SELECIONE  ▼"]
[null,null,"Tipo de Válvula de Bloqueio",null,null,null,null,null,null,null,"GUILHOTINA ALIMENTÍCIA",null,null,null,null,"SELECIONE  ▼"]
[null,null,"Diâmetro do duto de aliementação (mm)",null,null,null,null,null,null,null,"6\" (152,4 mm)",null,null,null,null,"SELECIONE  ▼"]
[null,null,"Fixação do bocal do Big Bag",null,null,null,null,null,null,null,"INFLÁVEL",null,null,null,null,"SELECIONE  ▼"]
[null,null,"Plataforma de Pesagem",null,null,null,null,null,null,null,"COM TAMPO LISO",null,null,null,null,"SELECIONE  ▼"]
[null,null,"Fixação da Plataforma",null,null,null,null,null,null,null,"CONTRAMARCO",null,null,null,null,"SELECIONE  ▼"]
[null,null,"Tipo de Automação",null,null,null,null,null,null,null,"PAINEL IHM + TRANSMISSOR",null,null,null,null,"SELECIONE  ▼"]
[null,null,"Tipo de Comunicação (Nota 1)",null,null,null,null,null,null,null,"DeviceNet + 4-20mA",null,null,null,null,"SELECIONE  ▼"]
[null,null,"Fixação do painel",null,null,null,null,null,null,null,"COM PEDESTAL",null,null,null,null,"SELECIONE  ▼"]
[null,null,"Comprimento Cabo Ensacador - Painel IHM (m)",null,null,null,null,null,null,null,"50 m",null,null,null,null,"SELECIONE  ▼"]
[null,null,"Sistema para Pré Insuflamento do Big Bag",null,null,null,null,null,null,null,"SIM",null,null,null,null,"SELECIONE  ▼",null,null,null,null,null,null,null,null,null,null,null,null,null,null,"K=",{"$f":"IF(OR(PISO_MEDIDA_B=\"\",PISO_MEDIDA_E=\"\",PISO_MEDIDA_I=\"\",LEFT(PISO_SELEÇÃO_FIX_PLAT,9)=\"SELECIONE\",PISO_SELEÇÃO_VALVULA=\"\",PISO_SELEÇÃO_PLAT=\"\"),0,\nIF(AND(PISO_SELEÇÃO_PLAT=\"COM TRILHO\",LEFT(PISO_SELEÇÃO_VALVULA,4)=\"GUIL\",PISO_SELEÇÃO_FIX_PLAT=\"COPO POSICIONADOR\"),SUM(PISO_MEDIDA_B+PISO_MEDIDA_E+PISO_MEDIDA_I+PISO_TRIL_COPO_GUIL),\nIF(AND(PISO_SELEÇÃO_PLAT=\"COM TRILHO\",LEFT(PISO_SELEÇÃO_VALVULA,4)=\"BORB\",PISO_SELEÇÃO_FIX_PLAT=\"COPO POSICIONADOR\"),SUM(PISO_MEDIDA_B+PISO_MEDIDA_E+PISO_MEDIDA_I+PISO_TRIL_COPO_BORB),\nIF(AND(PISO_SELEÇÃO_PLAT=\"COM TRILHO\",LEFT(PISO_SELEÇÃO_VALVULA,3)=\"SEM\",PISO_SELEÇÃO_FIX_PLAT=\"COPO POSICIONADOR\"),SUM(PISO_MEDIDA_B+PISO_MEDIDA_E+PISO_MEDIDA_I+PISO_TRIL_COPO_SEM),\nIF(AND(PISO_SELEÇÃO_PLAT=\"COM TRILHO\",LEFT(PISO_SELEÇÃO_VALVULA,4)=\"GUIL\",PISO_SELEÇÃO_FIX_PLAT=\"SOMENTE PÉ FLUTUANTE\"),SUM(PISO_MEDIDA_B+PISO_MEDIDA_E+PISO_MEDIDA_I+PISO_TRIL_COPO_GUIL),\nIF(AND(PISO_SELEÇÃO_PLAT=\"COM TRILHO\",LEFT(PISO_SELEÇÃO_VALVULA,4)=\"BORB\",PISO_SELEÇÃO_FIX_PLAT=\"SOMENTE PÉ FLUTUANTE\"),SUM(PISO_MEDIDA_B+PISO_MEDIDA_E+PISO_MEDIDA_I+PISO_TRIL_COPO_BORB),\nIF(AND(PISO_SELEÇÃO_PLAT=\"COM TRILHO\",LEFT(PISO_SELEÇÃO_VALVULA,3)=\"SEM\",PISO_SELEÇÃO_FIX_PLAT=\"SOMENTE PÉ FLUTUANTE\"),SUM(PISO_MEDIDA_B+PISO_MEDIDA_E+PISO_MEDIDA_I+PISO_TRIL_COPO_SEM),\nIF(AND(PISO_SELEÇÃO_PLAT=\"COM TRILHO\",LEFT(PISO_SELEÇÃO_VALVULA,4)=\"GUIL\",PISO_SELEÇÃO_FIX_PLAT=\"CONTRAMARCO\"),SUM(PISO_MEDIDA_B+PISO_MEDIDA_E+PISO_MEDIDA_I+PISO_TRIL_CONT_GUIL),\nIF(AND(PISO_SELEÇÃO_PLAT=\"COM TRILHO\",LEFT(PISO_SELEÇÃO_VALVULA,4)=\"BORB\",PISO_SELEÇÃO_FIX_PLAT=\"CONTRAMARCO\"),SUM(PISO_MEDIDA_B+PISO_MEDIDA_E+PISO_MEDIDA_I+PISO_TRIL_CONT_BORB),\nIF(AND(PISO_SELEÇÃO_PLAT=\"COM TRILHO\",LEFT(PISO_SELEÇÃO_VALVULA,3)=\"SEM\",PISO_SELEÇÃO_FIX_PLAT=\"CONTRAMARCO\"),SUM(PISO_MEDIDA_B+PISO_MEDIDA_E+PISO_MEDIDA_I+PISO_TRIL_CONT_SEM),\nIF(AND(PISO_SELEÇÃO_PLAT=\"COM TAMPO LISO\",LEFT(PISO_SELEÇÃO_VALVULA,4)=\"GUIL\",PISO_SELEÇÃO_FIX_PLAT=\"COPO POSICIONADOR\"),SUM(PISO_MEDIDA_B+PISO_MEDIDA_E+PISO_MEDIDA_I+PISO_LIS_COPO_GUIL),\nIF(AND(PISO_SELEÇÃO_PLAT=\"COM TAMPO LISO\",LEFT(PISO_SELEÇÃO_VALVULA,4)=\"BORB\",PISO_SELEÇÃO_FIX_PLAT=\"COPO POSICIONADOR\"),SUM(PISO_MEDIDA_B+PISO_MEDIDA_E+PISO_MEDIDA_I+PISO_LIS_COPO_BORB),\nIF(AND(PISO_SELEÇÃO_PLAT=\"COM TAMPO LISO\",LEFT(PISO_SELEÇÃO_VALVULA,3)=\"SEM\",PISO_SELEÇÃO_FIX_PLAT=\"COPO POSICIONADOR\"),SUM(PISO_MEDIDA_B+PISO_MEDIDA_E+PISO_MEDIDA_I+PISO_LIS_COPO_SEM),\nIF(AND(PISO_SELEÇÃO_PLAT=\"COM TAMPO LISO\",LEFT(PISO_SELEÇÃO_VALVULA,4)=\"GUIL\",PISO_SELEÇÃO_FIX_PLAT=\"SOMENTE PÉ FLUTUANTE\"),SUM(PISO_MEDIDA_B+PISO_MEDIDA_E+PISO_MEDIDA_I+PISO_LIS_COPO_GUIL),\nIF(AND(PISO_SELEÇÃO_PLAT=\"COM TAMPO LISO\",LEFT(PISO_SELEÇÃO_VALVULA,4)=\"BORB\",PISO_SELEÇÃO_FIX_PLAT=\"SOMENTE PÉ FLUTUANTE\"),SUM(PISO_MEDIDA_B+PISO_MEDIDA_E+PISO_MEDIDA_I+PISO_LIS_COPO_BORB),\nIF(AND(PISO_SELEÇÃO_PLAT=\"COM TAMPO LISO\",LEFT(PISO_SELEÇÃO_VALVULA,3)=\"SEM\",PISO_SELEÇÃO_FIX_PLAT=\"SOMENTE PÉ FLUTUANTE\"),SUM(PISO_MEDIDA_B+PISO_MEDIDA_E+PISO_MEDIDA_I+PISO_LIS_COPO_SEM),\nIF(AND(PISO_SELEÇÃO_PLAT=\"COM TAMPO LISO\",LEFT(PISO_SELEÇÃO_VALVULA,4)=\"GUIL\",PISO_SELEÇÃO_FIX_PLAT=\"CONTRAMARCO\"),SUM(PISO_MEDIDA_B+PISO_MEDIDA_E+PISO_MEDIDA_I+PISO_LIS_CONT_GUIL),\nIF(AND(PISO_SELEÇÃO_PLAT=\"COM TAMPO LISO\",LEFT(PISO_SELEÇÃO_VALVULA,4)=\"BORB\",PISO_SELEÇÃO_FIX_PLAT=\"CONTRAMARCO\"),SUM(PISO_MEDIDA_B+PISO_MEDIDA_E+PISO_MEDIDA_I+PISO_LIS_CONT_BORB),\nIF(AND(PISO_SELEÇÃO_PLAT=\"COM TAMPO LISO\",LEFT(PISO_SELEÇÃO_VALVULA,3)=\"SEM\",PISO_SELEÇÃO_FIX_PLAT=\"CONTRAMARCO\"),SUM(PISO_MEDIDA_B+PISO_MEDIDA_E+PISO_MEDIDA_I+PISO_LIS_CONT_SEM),\nIF(AND(PISO_SELEÇÃO_PLAT=\"COM MESA DE ROLETES\",LEFT(PISO_SELEÇÃO_VALVULA,4)=\"GUIL\",PISO_SELEÇÃO_FIX_PLAT=\"COPO POSICIONADOR\"),SUM(PISO_MEDIDA_B+PISO_MEDIDA_E+PISO_MEDIDA_I+PISO_ROL_COPO_GUIL),\nIF(AND(PISO_SELEÇÃO_PLAT=\"COM MESA DE ROLETES\",LEFT(PISO_SELEÇÃO_VALVULA,4)=\"BORB\",PISO_SELEÇÃO_FIX_PLAT=\"COPO POSICIONADOR\"),SUM(PISO_MEDIDA_B+PISO_MEDIDA_E+PISO_MEDIDA_I+PISO_ROL_COPO_BORB),\nIF(AND(PISO_SELEÇÃO_PLAT=\"COM MESA DE ROLETES\",LEFT(PISO_SELEÇÃO_VALVULA,3)=\"SEM\",PISO_SELEÇÃO_FIX_PLAT=\"COPO POSICIONADOR\"),SUM(PISO_MEDIDA_B+PISO_MEDIDA_E+PISO_MEDIDA_I+PISO_ROL_COPO_SEM),\nIF(AND(PISO_SELEÇÃO_PLAT=\"COM MESA DE ROLETES\",LEFT(PISO_SELEÇÃO_VALVULA,4)=\"GUIL\",PISO_SELEÇÃO_FIX_PLAT=\"SOMENTE PÉ FLUTUANTE\"),SUM(PISO_MEDIDA_B+PISO_MEDIDA_E+PISO_MEDIDA_I+PISO_ROL_COPO_GUIL),\nIF(AND(PISO_SELEÇÃO_PLAT=\"COM MESA DE ROLETES\",LEFT(PISO_SELEÇÃO_VALVULA,4)=\"BORB\",PISO_SELEÇÃO_FIX_PLAT=\"SOMENTE PÉ FLUTUANTE\"),SUM(PISO_MEDIDA_B+PISO_MEDIDA_E+PISO_MEDIDA_I+PISO_ROL_COPO_BORB),\nIF(AND(PISO_SELEÇÃO_PLAT=\"COM MESA DE ROLETES\",LEFT(PISO_SELEÇÃO_VALVULA,3)=\"SEM\",PISO_SELEÇÃO_FIX_PLAT=\"SOMENTE PÉ FLUTUANTE\"),SUM(PISO_MEDIDA_B+PISO_MEDIDA_E+PISO_MEDIDA_I+PISO_ROL_COPO_SEM),\nIF(AND(PISO_SELEÇÃO_PLAT=\"COM MESA DE ROLETES\",LEFT(PISO_SELEÇÃO_VALVULA,4)=\"GUIL\",PISO_SELEÇÃO_FIX_PLAT=\"CONTRAMARCO\"),SUM(PISO_MEDIDA_B+PISO_MEDIDA_E+PISO_MEDIDA_I+PISO_ROL_CONT_GUIL),\nIF(AND(PISO_SELEÇÃO_PLAT=\"COM MESA DE ROLETES\",LEFT(PISO_SELEÇÃO_VALVULA,4)=\"BORB\",PISO_SELEÇÃO_FIX_PLAT=\"CONTRAMARCO\"),SUM(PISO_MEDIDA_B+PISO_MEDIDA_E+PISO_MEDIDA_I+PISO_ROL_CONT_BORB),\nIF(AND(PISO_SELEÇÃO_PLAT=\"COM MESA DE ROLETES\",LEFT(PISO_SELEÇÃO_VALVULA,3)=\"SEM\",PISO_SELEÇÃO_FIX_PLAT=\"CONTRAMARCO\"),SUM(PISO_MEDIDA_B+PISO_MEDIDA_E+PISO_MEDIDA_I+PISO_ROL_CONT_SEM),\nIF(AND(PISO_SELEÇÃO_PLAT=\"COM MESA VIBRATÓRIA\",LEFT(PISO_SELEÇÃO_VALVULA,4)=\"GUIL\",PISO_SELEÇÃO_FIX_PLAT=\"COPO POSICIONADOR\"),\"CONSULTE A ENGENHARIA DE APLICAÇÃO\",\nIF(AND(PISO_SELEÇÃO_PLAT=\"COM MESA VIBRATÓRIA\",LEFT(PISO_SELEÇÃO_VALVULA,4)=\"BORB\",PISO_SELEÇÃO_FIX_PLAT=\"COPO POSICIONADOR\"),\"CONSULTE A ENGENHARIA DE APLICAÇÃO\",\nIF(AND(PISO_SELEÇÃO_PLAT=\"COM MESA VIBRATÓRIA\",LEFT(PISO_SELEÇÃO_VALVULA,3)=\"SEM\",PISO_SELEÇÃO_FIX_PLAT=\"COPO POSICIONADOR\"),\"CONSULTE A ENGENHARIA DE APLICAÇÃO\",\nIF(AND(PISO_SELEÇÃO_PLAT=\"COM MESA VIBRATÓRIA\",LEFT(PISO_SELEÇÃO_VALVULA,4)=\"GUIL\",PISO_SELEÇÃO_FIX_PLAT=\"SOMENTE PÉ FLUTUANTE\"),\"CONSULTE A ENGENHARIA DE APLICAÇÃO\",\nIF(AND(PISO_SELEÇÃO_PLAT=\"COM MESA VIBRATÓRIA\",LEFT(PISO_SELEÇÃO_VALVULA,4)=\"BORB\",PISO_SELEÇÃO_FIX_PLAT=\"SOMENTE PÉ FLUTUANTE\"),\"CONSULTE A ENGENHARIA DE APLICAÇÃO\",\nIF(AND(PISO_SELEÇÃO_PLAT=\"COM MESA VIBRATÓRIA\",LEFT(PISO_SELEÇÃO_VALVULA,3)=\"SEM\",PISO_SELEÇÃO_FIX_PLAT=\"SOMENTE PÉ FLUTUANTE\"),\"CONSULTE A ENGENHARIA DE APLICAÇÃO\",\nIF(AND(PISO_SELEÇÃO_PLAT=\"COM MESA VIBRATÓRIA\",LEFT(PISO_SELEÇÃO_VALVULA,4)=\"GUIL\",PISO_SELEÇÃO_FIX_PLAT=\"CONTRAMARCO\"),\"CONSULTE A ENGENHARIA DE APLICAÇÃO\",\nIF(AND(PISO_SELEÇÃO_PLAT=\"COM MESA VIBRATÓRIA\",LEFT(PISO_SELEÇÃO_VALVULA,4)=\"BORB\",PISO_SELEÇÃO_FIX_PLAT=\"CONTRAMARCO\"),\"CONSULTE A ENGENHARIA DE APLICAÇÃO\",\nIF(AND(PISO_SELEÇÃO_PLAT=\"COM MESA VIBRATÓRIA\",LEFT(PISO_SELEÇÃO_VALVULA,3)=\"SEM\",PISO_SELEÇÃO_FIX_PLAT=\"CONTRAMARCO\"),\"CONSULTE A ENGENHARIA DE APLICAÇÃO\",\n0)))))))))))))))))))))))))))))))))))))","v":0}]
[null,null,null,null,null,null,null,null,null,null,{"$f":"IF(PISO_SELEÇÃO_AREA=\"CLASSIFICADA\",\"PISO_LISTA_AUT_CLASS\",\nIF(PISO_SELEÇÃO_AREA=\"SEGURA\",\"PISO_LISTA_AUT_SEG\",\"\"))","v":""},null,null,null,null,{"$f":"IF(PISO_SELEÇÃO_AUTOMAÇÃO=\"Indicador Linha 3000\",\"PISO_LISTA_IND\",\nIF(PISO_SELEÇÃO_AUTOMAÇÃO=\"PAINEL IHM + TRANSMISSOR\",\"GERAL_LISTA_COMUNICAÇÃO\",\nIF(PISO_SELEÇÃO_AUTOMAÇÃO=\"CAIXA Exd COM DISPLAY\",\"PISO_LISTA_IND\",\nIF(PISO_SELEÇÃO_AUTOMAÇÃO=\"CAIXA Exd + PAINEL IHM\",\"GERAL_LISTA_COMUNICAÇÃO\",\n\"\"\"\"))))","v":"\""}]
[null,null,"Nota1: O protocolo ModBus TCP via Ethernet é nativo no painel de comando."]
[]
[null,null,"Laudo Técnico NR-10 e NR-12",null,null,null,null,null,null,null,"SIM",null,null,null,null,"SELECIONE  ▼"]
[]
[null,null,"CÓDIGO DE ENCOMENDA",null,null,null,null,null,null,null,null,null,null,null,{"$f":"IFERROR(IF(OR(PISO_SELEÇÃO_MAT_CONST=\"\",PISO_SELEÇÃO_BOCAL=\"\",PISO_SELEÇÃO_PLAT=\"\",PISO_SELEÇÃO_FIX_PAINEL=\"\"),\"\",\n_xlfn.CONCAT(\"ENS\",\n_xlfn.XLOOKUP(PISO_SELEÇÃO_MAT_CONST,PISO_TAB_MATERIAL[DESCRIÇÃO],PISO_TAB_MATERIAL[CÓDIGO]),\n_xlfn.XLOOKUP(PISO_SELEÇÃO_VALVULA,GERAL_TAB_VALV[DESCRIÇÃO],GERAL_TAB_VALV[CÓDIGO]),\n_xlfn.XLOOKUP(PISO_SELEÇÃO_DUTO,GERAL_TAB_DUTO[DESCRIÇÃO],GERAL_TAB_DUTO[CÓDIGO]),\n_xlfn.XLOOKUP(PISO_SELEÇÃO_BOCAL,PISO_TAB_FIXADOR[DESCRIÇÃO],PISO_TAB_FIXADOR[CÓDIGO]),\n_xlfn.XLOOKUP(PISO_SELEÇÃO_PLAT,PISO_TAB_PLAT[DESCRIÇÃO],PISO_TAB_PLAT[CÓDIGO]),\n_xlfn.XLOOKUP(PISO_SELEÇÃO_FIX_PLAT,PISO_TAB_FIX_PLAT[DESCRIÇÃO],PISO_TAB_FIX_PLAT[CÓDIGO]),\n_xlfn.XLOOKUP(_xlfn.CONCAT(PISO_SELEÇÃO_AUTOMAÇÃO,\"+\",PISO_SELEÇÃO_COMUNICAÇÃO,\"+\",PISO_SELEÇÃO_CABO,\"+\",PISO_SELEÇÃO_FIX_PAINEL),TAB_COMBINAÇÕES[COMBINAÇÃO],TAB_COMBINAÇÕES[CÓDIGO]),\n_xlfn.XLOOKUP(PISO_SELEÇÃO_AREA,GERAL_TAB_AREA[DESCRIÇÃO],GERAL_TAB_AREA[CÓDIGO]),\n_xlfn.XLOOKUP(PISO_SELEÇÃO_INSU,GERAL_TAB_INSU[DESCRIÇÃO],GERAL_TAB_INSU[CÓDIGO]),\n_xlfn.XLOOKUP(IF(PISO_SELEÇÃO_LAUDO=\"N/A\",\"NÃO\",PISO_SELEÇÃO_LAUDO),GERAL_TAB_LAUDO[DESCRIÇÃO],GERAL_TAB_LAUDO[CÓDIGO]))),\"PREENCHA TODOS OS CAMPOS\")","v":"PREENCHA TODOS OS CAMPOS"},null,null,null,null,null,null,null,null,null,null,null,null,null,null,"INFORMAÇÕES IMPORTANTES"]
[]
[null,"Comentários:"]
[]
[]
[]
[]
[]
[]
[]
[]
[]
[null,null,null,null,null,null,null,null,null,null,null,null,null,null,null,null,null,null,null,null,null,null,null,null,null,null,null,null,null,"Necessário:"]
[null,null,null,null,null,null,null,null,null,null,null,null,null,null,null,null,null,null,null,null,null,null,null,null,null,null,null,null,null,null,null,null,null,"Ponto de elétrica p/ painel da IHM, tensão 127/220 Vac (cabo de energia do painel: 2 m c/ plug 3 pinos NBR 14136).\nNecessário ponto de ar comprimido para instalação do equipamento com pressão entre 6 e 8 bar."]
[]
[]
[null,null,"Alfa Instrumentos  R. Cel Mário de Azevedo, 138 - São Paulo-SP - Brasil - CEP 02710-020 F: (11) 3952-2299 - SAC: 0800-772-2910 \n"]
[null,null,"vendas@alfainstrumentos.com.br - www.alfainstrumentos.com.br",null,null,null,null,null,null,null,null,null,null,null,null,null,null,null,null,null,null,null,null,null,null,null,null,null,null,null,"vendas@alfainstrumentos.com.br - www.alfainstrumentos.com.br"]
[null,null,null,null,null,null,null,null,null,null,null,null,null,null,null,null,null,null,null,null,null,null,null,null,null,"0026PR04",null,null,null,null,null,null,null,null,null,null,null,null,null,null,null,null,null,null,null,null,null,null,null,null,null,null,null,{"$f":"Z85","v":"0026PR04"}]

{"sheet":"SUSPENSO","index":2,"n_rows":85,"n_cols":54,"rows_kept":85,"cut":false,"hidden":true,"merged":[[61,2,61,19],[77,29,77,54],[66,29,67,54],[69,29,69,54],[70,29,70,54],[72,29,72,54],[73,29,73,54],[74,29,74,54],[75,29,75,54],[76,29,76,54],[68,29,68,54],[71,29,71,54],[68,1,81,3],[68,4,81,26],[64,2,64,4],[78,29,81,32],[79,33,80,53],[65,14,65,19],[65,2,65,13],[63,2,63,9],[63,10,63,14],[63,15,63,19],[25,20,30,26],[58,10,58,14],[58,15,58,19],[26,10,26,14],[26,15,26,19],[27,10,27,14],[27,15,27,19],[28,10,28,14],[28,15,28,19],[51,15,51,19],[52,10,52,14],[52,15,52,19],[53,10,53,14],[53,15,53,19],[56,15,56,19],[56,10,56,14],[46,10,46,14],[40,15,40,19],[28,2,28,9],[29,2,29,9],[29,10,29,14],[29,15,29,19],[30,2,30,9],[52,2,52,9],[53,2,53,9],[54,10,54,14],[54,15,54,19],[36,2,36,9],[36,10,36,14],[41,4,41,14],[36,15,36,19],[44,2,44,9],[44,10,44,14],[44,15,44,19],[45,2,45,9],[45,10,45,14],[45,15,45,19],[39,2,39,9],[39,10,39,14],[39,15,39,19],[40,2,40,9],[40,10,40,14],[55,2,55,9],[55,10,55,14],[55,15,55,19],[50,2,50,9],[50,10,50,14],[46,15,46,19],[47,2,47,9],[56,2,56,9],[47,10,47,14],[47,15,47,19],[51,2,51,9],[51,10,51,14],[54,2,54,9],[50,15,50,19],[46,2,46,9],[25,2,25,9],[26,2,26,9],[27,2,27,9],[25,10,25,14],[25,15,25,19],[24,15,24,19],[24,10,24,14],[23,10,23,14],[23,15,23,19],[15,2,15,3],[15,4,15,13],[15,14,15,15],[15,16,15,19],[15,20,15,21],[15,22,15,25],[22,2,22,9],[23,2,23,9],[24,2,24,9],[10,2,10,3],[10,4,10,13],[82,2,82,25],[82,30,82,53],[83,2,83,25],[83,30,83,53],[33,2,33,9],[33,10,33,14],[33,15,33,19],[34,2,34,9],[34,10,34,14],[34,15,34,19],[37,2,37,9],[37,10,37,14],[37,15,37,19],[38,2,38,9],[38,10,38,14],[38,15,38,19],[35,2,35,9],[35,10,35,14],[35,15,35,19],[57,2,57,9],[57,10,57,14],[57,15,57,19],[2,4,2,25],[2,32,2,53],[3,29,4,54],[4,2,4,5],[4,6,4,13],[4,14,4,15],[4,16,4,18],[4,19,4,20],[4,21,4,25],[59,2,59,9],[58,2,58,9],[59,10,59,14],[59,15,59,19],[60,10,60,14],[12,2,12,3],[12,4,12,13],[12,14,12,15],[12,16,12,22],[60,15,60,19],[13,2,13,3],[13,4,13,25],[14,2,14,3],[14,4,14,13],[14,14,14,15],[20,15,20,19],[21,10,21,14],[21,15,21,19],[22,10,22,14],[22,15,22,19],[19,2,19,9],[20,2,20,9],[21,2,21,9],[16,2,16,25],[6,1,16,1],[7,2,7,25],[8,2,8,3],[8,4,8,25],[9,2,9,3],[9,4,9,13],[9,14,9,15],[30,10,30,14],[30,15,30,19],[17,1,28,1],[18,2,18,9],[18,10,18,14],[18,15,18,19],[19,10,19,14],[19,15,19,19],[20,10,20,14],[14,16,14,25],[10,14,10,15],[10,16,10,25],[11,2,11,3],[11,4,11,22],[11,24,11,25],[12,24,12,25],[9,16,9,25]]}
[]
[null,null,null,null,null,null,null,null,null,null,null,null,null,null,null,null,null,null,null,null,null,null,null,null,null,"PG 1 / 2",null,null,null,null,null,null,null,null,null,null,null,null,null,null,null,null,null,null,null,null,null,null,null,null,null,null,null,"PG 2 / 2"]
[null,null,null,null,"FOLHA DE DADOS: ENSACADOR DE BIG BAG - SUSPENSO",null,null,null,null,null,null,null,null,null,null,null,null,null,null,null,null,null,null,null,null,null,null,null,null,null,null,null,"FOLHA DE DADOS: ENSACADOR DE BIG BAG - SUSPENSO"]
[null,null,null,null,null,null,null,null,null,null,null,null,null,null,null,null,null,null,null,null,null,null,null,null,null,null,null,null,null,"DIMENSÕES DO BIG BAG E ESTRUTURA"]
[null,null,"Proposta Comercial nº:",null,null,null,null,null,null,null,null,null,null,null,"Revisão:",null,null,null,null,"Data:"]
[]
[]
[null,null,"Informações do CLIENTE"]
[null,null,"Empresa:"]
[null,null,"Unidade:",null,null,null,null,null,null,null,null,null,null,null,"CNPJ:"]
[null,null,"Divisão:",null,null,null,null,null,null,null,null,null,null,null,"Setor"]
[null,null,"Endereço:",null,null,null,null,null,null,null,null,null,null,null,null,null,null,null,null,null,null,null,null,"CEP:"]
[null,null,"Bairro:",null,null,null,null,null,null,null,null,null,null,null,"Cidade:",null,null,null,null,null,null,null,null,"UF:"]
[null,null,"Contato:"]
[null,null,"Setor",null,null,null,null,null,null,null,null,null,null,null,"Cargo:"]
[null,null,"e-mail:",null,null,null,null,null,null,null,null,null,null,null,"Telefone:",null,null,null,null,null,"Celular:"]
[]
[]
[null,null,"PROCESSO",null,null,null,null,null,null,null,"Exemplo",null,null,null,null,"Real"]
[null,null,"Produto",null,null,null,null,null,null,null,"AÇÚCAR"]
[null,null,"Origem do material",null,null,null,null,null,null,null,"SILO"]
[null,null,"Transporte do material para o Ensacador",null,null,null,null,null,null,null,"GRAVIDADE",null,null,null,null,"SELECIONE  ▼"]
[null,null,"Retirada do bag (carro manual/paleteira/outros)",null,null,null,null,null,null,null,"PALETEIRA",null,null,null,null,"SELECIONE  ▼"]
[null,null,"Área de ensacamento (segura/classificada)",null,null,null,null,null,null,null,"SEGURA",null,null,null,null,"SELECIONE  ▼"]
[null,null,"Intertravamento com CLP externo",null,null,null,null,null,null,null,"NÃO",null,null,null,null,"SELECIONE  ▼"]
[null,null,"Temperatura do produto (ºC)",null,null,null,null,null,null,null,30,null,null,null,null,null,null,null,null,null,"Preencher os campos numéricos somente \ncom valores"]
[null,null,"Temperatura ambiente (ºC)",null,null,null,null,null,null,null,25]
[null,null,"Densidade do produto (g/cm3)",null,null,null,null,null,null,null,0.95]
[null,null,"Peso Líquido do Big Bag cheio (kg)",null,null,null,null,null,null,null,2000]
[null,null,"Diametro do Duto de Exaustão",null,null,null,null,null,null,null,"10\""]
[null,null,"J Distância Piso-Silo (mm)",null,null,null,null,null,null,null,3000]
[]
[]
[null,null,"BIG BAG",null,null,null,null,null,null,null,"Exemplo",null,null,null,null,"Real"]
[null,null,"Tipo de Big Bag",null,null,null,null,null,null,null,"RETANGULAR",null,null,null,null,"SELECIONE  ▼"]
[null,null,"A Diâmetro ou largura big bag (mm)",null,null,null,null,null,null,null,1000]
[null,null,"B Altura do big bag (mm)",null,null,null,null,null,null,null,1000]
[null,null,"C Altura da boca do big bag (mm)",null,null,null,null,null,null,null,400]
[null,null,"D Diâmetro da boca do big bag (mm)",null,null,null,null,null,null,null,400]
[null,null,"E Comprimento da alça (mm)",null,null,null,null,null,null,null,250]
[null,null,"F Distância entre alças (mm)",null,null,null,null,null,null,null,500]
[null,null,null,null,"CASO O PROCESSO TENHA MAIS DE UM TIPO DE BIG BAG"]
[]
[]
[null,null,"PALLET",null,null,null,null,null,null,null,"Exemplo",null,null,null,null,"Real"]
[null,null,"G Comprimento do pallet (mm)",null,null,null,null,null,null,null,1000]
[null,null,"H Largura do pallet (mm)",null,null,null,null,null,null,null,1000]
[null,null,"I Altura do pallet (mm)",null,null,null,null,null,null,null,150]
[]
[]
[null,null,"ENSACADOR DE BIG BAG",null,null,null,null,null,null,null,"Exemplo",null,null,null,null,"Real"]
[null,null,"Ensacador em Aço Carbono ou Inox?",null,null,null,null,null,null,null,"AÇO INOX 304",null,null,null,null,"SELECIONE  ▼"]
[null,null,"Tipo de Válvula de Bloqueio",null,null,null,null,null,null,null,"GUILHOTINA ALIMENTÍCIA",null,null,null,null,"SELECIONE  ▼"]
[null,null,"Diâmetro do duto de aliementação (mm)",null,null,null,null,null,null,null,"6\" (152,4 mm)",null,null,null,null,"SELECIONE  ▼"]
[null,null,"Tipo de Automação",null,null,null,null,null,null,null,"PAINEL IHM + TRANSMISSOR",null,null,null,null,"SELECIONE  ▼"]
[null,null,"Tipo de Comunicação (Nota 1)",null,null,null,null,null,null,null,"DeviceNet + 4-20mA",null,null,null,null,"SELECIONE  ▼"]
[null,null,"Fixação do painel",null,null,null,null,null,null,null,"COM PEDESTAL",null,null,null,null,"SELECIONE  ▼"]
[null,null,"Comprimento Cabo Ensacador - Painel IHM (m)",null,null,null,null,null,null,null,"50 m",null,null,null,null,"SELECIONE  ▼"]
[null,null,"Sistema para Pré Insuflamento do Big Bag",null,null,null,null,null,null,null,"SIM",null,null,null,null,"SELECIONE  ▼"]
[null,null,"Mesa Vibratória",null,null,null,null,null,null,null,"SIM",null,null,null,null,"SELECIONE  ▼"]
[null,null,null,null,null,null,null,null,null,null,{"$f":"IF(SUSP_SELEÇÃO_AREA=\"CLASSIFICADA\",\"SUSP_LISTA_AUT_CLASS\",\nIF(SUSP_SELEÇÃO_AREA=\"SEGURA\",\"SUSP_LISTA_AUT_SEG\",\"\"))","v":""}]
[null,null,"Nota1: O protocolo ModBus TCP via Ethernet é nativo no painel de comando."]
[]
[null,null,"Laudo Técnico NR-10 e NR-12",null,null,null,null,null,null,null,"SIM",null,null,null,null,"SELECIONE  ▼"]
[]
[null,null,"CÓDIGO DE ENCOMENDA",null,null,null,null,null,null,null,null,null,null,null,{"$f":"IFERROR(IF(SUSP_SELEÇÃO_MATERIAL_CONSTRUÇÃO=\"\",\"\",\n_xlfn.CONCAT(\"ENS\",\n_xlfn.XLOOKUP(SUSP_SELEÇÃO_MATERIAL_CONSTRUÇÃO,SUSP_TAB_MATERIAL[DESCRIÇÃO],SUSP_TAB_MATERIAL[MODELOS]),\n_xlfn.XLOOKUP(SUSP_SELEÇÃO_VALVULA,GERAL_TAB_VALV[DESCRIÇÃO],GERAL_TAB_VALV[MODELOS]),\n_xlfn.XLOOKUP(SUSP_SELEÇÃO_DUTO,SUSP_TAB_DUTO[DESCRIÇÃO],SUSP_TAB_DUTO[MODELOS]),\n_xlfn.XLOOKUP(_xlfn.CONCAT(SUSP_SELEÇÃO_AUTOMAÇÃO,\"+\",SUSP_SELEÇÃO_COMUNICAÇÃO,\"+\",SUSP_SELEÇÃO_CABO,\"+\",SUSP_SELEÇÃO_FIX_PAINEL),TAB_COMBINAÇÕES[COMBINAÇÃO],TAB_COMBINAÇÕES[CÓDIGO]),\n_xlfn.XLOOKUP(SUSP_SELEÇÃO_AREA,GERAL_TAB_AREA[DESCRIÇÃO],GERAL_TAB_AREA[MODELOS]),\n_xlfn.XLOOKUP(SUSP_SELEÇÃO_INSU,GERAL_TAB_INSU[DESCRIÇÃO],GERAL_TAB_INSU[MODELOS]),\n_xlfn.XLOOKUP(SUSP_SELEÇÃO_VIBR,GERAL_TAB_INSU[DESCRIÇÃO],GERAL_TAB_INSU[MODELOS]),\n_xlfn.XLOOKUP(SUSP_SELEÇÃO_LAUDO,GERAL_TAB_LAUDO[DESCRIÇÃO],GERAL_TAB_LAUDO[MODELOS]))),\"PREENCHA TODOS OS CAMPOS\")","v":"PREENCHA TODOS OS CAMPOS"}]
[null,null,null,null,null,null,null,null,null,null,null,null,null,null,null,null,null,null,null,null,null,null,null,null,null,null,null,null,null,"INFORMAÇÕES IMPORTANTES"]
[]
[null,"Comentários:",null,null,null,null,null,null,null,null,null,null,null,null,null,null,null,null,null,null,null,null,null,null,null,null,null,null,null,"- CONSUMO DE AR DO BOCAL INFLÁVEL 6L/CICLO."]
[null,null,null,null,null,null,null,null,null,null,null,null,null,null,null,null,null,null,null,null,null,null,null,null,null,null,null,null,null,"- PARA UTILIZAR O BOCAL INFLÁVEL É NECESSÁRIO QUE O DIÂMETRO DA BOCA DO BIG BAG SEJA MAIOR QUE 400mm."]
[]
[]
[]
[]
[]
[]
[]
[]
[null,null,null,null,null,null,null,null,null,null,null,null,null,null,null,null,null,null,null,null,null,null,null,null,null,null,null,null,null,"Necessário:"]
[null,null,null,null,null,null,null,null,null,null,null,null,null,null,null,null,null,null,null,null,null,null,null,null,null,null,null,null,null,null,null,null,null,"Ponto de elétrica p/ painel da IHM, tensão 127/220 Vac (cabo de energia do painel: 2 m c/ plug 3 pinos NBR 14136).\nNecessário ponto de ar comprimido para instalação do equipamento com pressão entre 6 e 8 bar."]
[]
[]
[null,null,"Alfa Instrumentos  R. Cel Mário de Azevedo, 138 - São Paulo-SP - Brasil - CEP 02710-020 F: (11) 3952-2299 - SAC: 0800-772-2910 \n"]
[null,null,"vendas@alfainstrumentos.com.br - www.alfainstrumentos.com.br",null,null,null,null,null,null,null,null,null,null,null,null,null,null,null,null,null,null,null,null,null,null,null,null,null,null,null,"vendas@alfainstrumentos.com.br - www.alfainstrumentos.com.br"]
[null,null,null,null,null,null,null,null,null,null,null,null,null,null,null,null,null,null,null,null,null,null,null,null,null,{"$f":"PISO!Z85","v":"0026PR04"},null,null,null,null,null,null,null,null,null,null,null,null,null,null,null,null,null,null,null,null,null,null,null,null,null,null,null,{"$f":"Z85","v":"0026PR04"}]

{"sheet":"PRÉ PESAGEM","index":3,"n_rows":83,"n_cols":54,"rows_kept":83,"cut":false,"hidden":true,"merged":[[9,16,9,25],[10,2,10,3],[10,4,10,13],[2,4,2,25],[2,32,2,53],[3,29,4,54],[4,2,4,5],[4,6,4,13],[4,14,4,15],[4,16,4,18],[4,19,4,20],[4,21,4,25],[10,14,10,15],[10,16,10,25],[11,2,11,3],[11,4,11,22],[11,24,11,25],[12,2,12,3],[12,4,12,13],[12,14,12,15],[12,16,12,22],[12,24,12,25],[15,2,15,3],[15,4,15,13],[15,14,15,15],[15,16,15,19],[15,20,15,21],[15,22,15,25],[13,2,13,3],[13,4,13,25],[14,2,14,3],[14,4,14,13],[14,14,14,15],[14,16,14,25],[20,15,20,19],[21,2,21,9],[21,10,21,14],[21,15,21,19],[22,2,22,9],[22,10,22,14],[22,15,22,19],[16,2,16,25],[17,1,28,1],[18,2,18,9],[18,10,18,14],[18,15,18,19],[19,2,19,9],[19,10,19,14],[19,15,19,19],[20,2,20,9],[20,10,20,14],[6,1,16,1],[7,2,7,25],[8,2,8,3],[8,4,8,25],[9,2,9,3],[9,4,9,13],[9,14,9,15],[23,2,23,9],[23,10,23,14],[23,15,23,19],[24,2,24,9],[24,10,24,14],[24,15,24,19],[28,2,28,9],[28,10,28,14],[28,15,28,19],[25,2,25,9],[25,10,25,14],[25,15,25,19],[30,2,30,9],[30,10,30,14],[30,15,30,19],[33,2,33,9],[33,10,33,14],[33,15,33,19],[25,20,30,26],[26,2,26,9],[26,10,26,14],[26,15,26,19],[27,2,27,9],[27,10,27,14],[27,15,27,19],[29,2,29,9],[29,10,29,14],[29,15,29,19],[36,2,36,9],[36,10,36,14],[36,15,36,19],[37,2,37,9],[37,10,37,14],[37,15,37,19],[34,2,34,9],[34,10,34,14],[34,15,34,19],[35,2,35,9],[35,10,35,14],[35,15,35,19],[40,2,40,9],[40,10,40,14],[40,15,40,19],[41,4,41,14],[44,2,44,9],[44,10,44,14],[44,15,44,19],[38,2,38,9],[38,10,38,14],[38,15,38,19],[39,2,39,9],[39,10,39,14],[39,15,39,19],[47,2,47,9],[47,10,47,14],[47,15,47,19],[50,2,50,9],[50,10,50,14],[50,15,50,19],[45,2,45,9],[45,10,45,14],[45,15,45,19],[46,2,46,9],[46,10,46,14],[46,15,46,19],[53,2,53,9],[53,10,53,14],[53,15,53,19],[54,2,54,9],[54,10,54,14],[54,15,54,19],[51,2,51,9],[51,10,51,14],[51,15,51,19],[52,2,52,9],[52,10,52,14],[52,15,52,19],[57,2,57,9],[57,10,57,14],[57,15,57,19],[58,10,58,14],[58,15,58,19],[61,2,61,9],[61,10,61,14],[61,15,61,19],[55,2,55,9],[55,10,55,14],[55,15,55,19],[56,2,56,9],[56,10,56,14],[56,15,56,19],[59,2,59,19],[62,2,62,4],[63,2,63,13],[63,14,63,19],[64,29,65,54],[66,1,79,3],[66,4,79,26],[66,29,66,54],[67,29,67,54],[68,29,68,54],[69,29,69,54],[76,29,79,32],[77,33,78,53],[81,2,81,25],[81,30,81,53],[80,2,80,25],[80,30,80,53],[70,29,70,54],[71,29,71,54],[72,29,72,54],[73,29,73,54],[74,29,74,54],[75,29,75,54]]}
[]
[null,null,null,null,null,null,null,null,null,null,null,null,null,null,null,null,null,null,null,null,null,null,null,null,null,"PG 1 / 2",null,null,null,null,null,null,null,null,null,null,null,null,null,null,null,null,null,null,null,null,null,null,null,null,null,null,null,"PG 2 / 2"]
[null,null,null,null,"FOLHA DE DADOS: ENSACADOR DE BIG BAG - PRÉ DOSAGEM",null,null,null,null,null,null,null,null,null,null,null,null,null,null,null,null,null,null,null,null,null,null,null,null,null,null,null,"FOLHA DE DADOS: ENSACADOR DE BIG BAG - PRÉ DOSAGEM"]
[null,null,null,null,null,null,null,null,null,null,null,null,null,null,null,null,null,null,null,null,null,null,null,null,null,null,null,null,null,"DIMENSÕES DO BIG BAG E ESTRUTURA"]
[null,null,"Proposta Comercial nº:",null,null,null,null,null,null,null,null,null,null,null,"Revisão:",null,null,null,null,"Data:"]
[]
[]
[null,null,"Informações do CLIENTE"]
[null,null,"Empresa:"]
[null,null,"Unidade:",null,null,null,null,null,null,null,null,null,null,null,"CNPJ:"]
[null,null,"Divisão:",null,null,null,null,null,null,null,null,null,null,null,"Setor"]
[null,null,"Endereço:",null,null,null,null,null,null,null,null,null,null,null,null,null,null,null,null,null,null,null,null,"CEP:"]
[null,null,"Bairro:",null,null,null,null,null,null,null,null,null,null,null,"Cidade:",null,null,null,null,null,null,null,null,"UF:"]
[null,null,"Contato:"]
[null,null,"Setor",null,null,null,null,null,null,null,null,null,null,null,"Cargo:"]
[null,null,"e-mail:",null,null,null,null,null,null,null,null,null,null,null,"Telefone:",null,null,null,null,null,"Celular:"]
[]
[]
[null,null,"PROCESSO",null,null,null,null,null,null,null,"Exemplo",null,null,null,null,"Real"]
[null,null,"Produto",null,null,null,null,null,null,null,"AÇÚCAR"]
[null,null,"Origem do material",null,null,null,null,null,null,null,"SILO"]
[null,null,"Transporte do material para o Ensacador",null,null,null,null,null,null,null,"GRAVIDADE",null,null,null,null,"SELECIONE  ▼"]
[null,null,"Retirada do bag (carro manual/paleteira/outros)",null,null,null,null,null,null,null,"PALETEIRA",null,null,null,null,"SELECIONE  ▼"]
[null,null,"Área de ensacamento (segura/classificada)",null,null,null,null,null,null,null,"SEGURA",null,null,null,null,"SELECIONE  ▼"]
[null,null,"Intertravamento com CLP externo",null,null,null,null,null,null,null,"NÃO",null,null,null,null,"SELECIONE  ▼"]
[null,null,"Temperatura do produto (ºC)",null,null,null,null,null,null,null,30,null,null,null,null,null,null,null,null,null,"Preencher os campos numéricos somente \ncom valores"]
[null,null,"Temperatura ambiente (ºC)",null,null,null,null,null,null,null,25]
[null,null,"Densidade do produto (g/cm3)",null,null,null,null,null,null,null,0.95]
[null,null,"Peso Líquido do Big Bag cheio (kg)",null,null,null,null,null,null,null,2000]
[null,null,"Diametro do Duto de Exaustão",null,null,null,null,null,null,null,"10\""]
[null,null,"J Distância Piso-Silo (mm)",null,null,null,null,null,null,null,3000]
[]
[]
[null,null,"BIG BAG",null,null,null,null,null,null,null,"Exemplo",null,null,null,null,"Real"]
[null,null,"Tipo de Big Bag",null,null,null,null,null,null,null,"RETANGULAR",null,null,null,null,"SELECIONE  ▼"]
[null,null,"A Diâmetro ou largura big bag (mm)",null,null,null,null,null,null,null,1000]
[null,null,"B Altura do big bag (mm)",null,null,null,null,null,null,null,1000]
[null,null,"C Altura da boca do big bag (mm)",null,null,null,null,null,null,null,400]
[null,null,"D Diâmetro da boca do big bag (mm)",null,null,null,null,null,null,null,400]
[null,null,"E Comprimento da alça (mm)",null,null,null,null,null,null,null,250]
[null,null,"F Distância entre alças (mm)",null,null,null,null,null,null,null,500]
[null,null,null,null,"CASO O PROCESSO TENHA MAIS DE UM TIPO DE BIG BAG"]
[]
[]
[null,null,"PALLET",null,null,null,null,null,null,null,"Exemplo",null,null,null,null,"Real"]
[null,null,"G Comprimento do pallet (mm)",null,null,null,null,null,null,null,1000]
[null,null,"H Largura do pallet (mm)",null,null,null,null,null,null,null,1000]
[null,null,"I Altura do pallet (mm)",null,null,null,null,null,null,null,150]
[]
[]
[null,null,"ENSACADOR DE BIG BAG",null,null,null,null,null,null,null,"Exemplo",null,null,null,null,"Real"]
[null,null,"Diâmetro do duto de aliementação (mm)",null,null,null,null,null,null,null,"6\" (152,4 mm)",null,null,null,null,"SELECIONE  ▼"]
[null,null,"Tipo de Automação",null,null,null,null,null,null,null,"PAINEL IHM + TRANSMISSOR",null,null,null,null,"SELECIONE  ▼"]
[null,null,"Tipo de Comunicação (Nota 1)",null,null,null,null,null,null,null,"DeviceNet + 4-20mA",null,null,null,null,"SELECIONE  ▼"]
[null,null,"Fixação do painel",null,null,null,null,null,null,null,"COM PEDESTAL",null,null,null,null,"SELECIONE  ▼"]
[null,null,"Comprimento Cabo Ensacador - Painel IHM (m)",null,null,null,null,null,null,null,"50 m",null,null,null,null,"SELECIONE  ▼"]
[null,null,"Sistema para Pré Insuflamento do Big Bag",null,null,null,null,null,null,null,"SIM",null,null,null,null,"SELECIONE  ▼"]
[null,null,"Mesa Vibratória",null,null,null,null,null,null,null,"SIM",null,null,null,null,"SELECIONE  ▼"]
[null,null,null,null,null,null,null,null,null,null,{"$f":"IF(PRE_SELEÇÃO_AREA=\"CLASSIFICADA\",\"GERAL_LISTA_CLASSIFICADA\",\nIF(PRE_SELEÇÃO_AREA=\"SEGURA\",\"GERAL_LISTA_SEGURA\",\"\"))","v":""},null,null,null,null,{"$f":"IF(PRE_SELEÇÃO_AUTOMAÇÃO=\"Indicador Linha 3000\",\"GERAL_INDICADOR\",\nIF(PRE_SELEÇÃO_AUTOMAÇÃO=\"PAINEL IHM + TRANSMISSOR\",\"TAB_FIELDBUS[DESCRIÇÃO]\",\nIF(PRE_SELEÇÃO_AUTOMAÇÃO=\"CAIXA Exd COM DISPLAY\",\"GERAL_INDICADOR\",\nIF(PRE_SELEÇÃO_AUTOMAÇÃO=\"CAIXA Exd + PAINEL IHM\",\"TAB_FIELDBUS[DESCRIÇÃO]\",\n\"\"\"\"))))","v":"\""}]
[null,null,"Nota1: O protocolo ModBus TCP via Ethernet é nativo no painel de comando."]
[]
[null,null,"Laudo Técnico NR-10 e NR-12",null,null,null,null,null,null,null,"SIM",null,null,null,null,"SELECIONE  ▼"]
[]
[null,null,"CÓDIGO DE ENCOMENDA",null,null,null,null,null,null,null,null,null,null,null,{"$f":"IFERROR(\n_xlfn.CONCAT(\"ENS2\",\n_xlfn.XLOOKUP(PRE_SELEÇÃO_DUTO,SUSP_TAB_DUTO[DESCRIÇÃO],SUSP_TAB_DUTO[MODELOS]),\n_xlfn.XLOOKUP(_xlfn.CONCAT(PRE_SELEÇÃO_AUTOMAÇÃO,\"+\",PRE_SELEÇÃO_COMUNICAÇÃO,\"+\",PRE_SELEÇÃO_CABO,\"+\",PRE_SELEÇÃO_FIX_PAINEL),TAB_COMBINAÇÕES[COMBINAÇÃO],TAB_COMBINAÇÕES[CÓDIGO]),\n_xlfn.XLOOKUP(PRE_SELEÇÃO_AREA,GERAL_TAB_AREA[DESCRIÇÃO],GERAL_TAB_AREA[CÓDIGO]),\n_xlfn.XLOOKUP(PRE_SELEÇÃO_INSU,GERAL_TAB_INSU[DESCRIÇÃO],GERAL_TAB_INSU[CÓDIGO]),\n_xlfn.XLOOKUP(PRE_SELEÇÃO_VIBR,GERAL_TAB_INSU[DESCRIÇÃO],GERAL_TAB_INSU[CÓDIGO]),\n_xlfn.XLOOKUP(PRE_SELEÇÃO_LAUDO,GERAL_TAB_LAUDO[DESCRIÇÃO],GERAL_TAB_LAUDO[CÓDIGO])),\"PREENCHA TODOS OS CAMPOS\")","v":"PREENCHA TODOS OS CAMPOS"}]
[null,null,null,null,null,null,null,null,null,null,null,null,null,null,null,null,null,null,null,null,null,null,null,null,null,null,null,null,null,"INFORMAÇÕES IMPORTANTES"]
[]
[null,"Comentários:",null,null,null,null,null,null,null,null,null,null,null,null,null,null,null,null,null,null,null,null,null,null,null,null,null,null,null,"- CONSUMO DE AR DO BOCAL INFLÁVEL 6L/CICLO."]
[null,null,null,null,null,null,null,null,null,null,null,null,null,null,null,null,null,null,null,null,null,null,null,null,null,null,null,null,null,"- PARA UTILIZAR O BOCAL INFLÁVEL É NECESSÁRIO QUE O DIÂMETRO DA BOCA DO BIG BAG SEJA MAIOR QUE 400mm."]
[]
[null,null,null,null,null,null,null,null,null,null,null,null,null,null,null,null,null,null,null,null,null,null,null,null,null,null,null,null,null,"Preencha nos comentários qual a Zona, Grupo e Temperatura da Área Classificada. Em caso de dúvida, consultar nossa EAP M"]
[]
[]
[]
[]
[]
[]
[null,null,null,null,null,null,null,null,null,null,null,null,null,null,null,null,null,null,null,null,null,null,null,null,null,null,null,null,null,"Necessário:"]
[null,null,null,null,null,null,null,null,null,null,null,null,null,null,null,null,null,null,null,null,null,null,null,null,null,null,null,null,null,null,null,null,null,"Ponto de elétrica p/ painel da IHM, tensão 127/220 Vac (cabo de energia do painel: 2 m c/ plug 3 pinos NBR 14136).\nNecessário ponto de ar comprimido para instalação do equipamento com pressão entre 6 e 8 bar."]
[]
[]
[null,null,"Alfa Instrumentos  R. Cel Mário de Azevedo, 138 - São Paulo-SP - Brasil - CEP 02710-020 F: (11) 3952-2299 - SAC: 0800-772-2910 \n"]
[null,null,"vendas@alfainstrumentos.com.br - www.alfainstrumentos.com.br"]
[null,null,null,null,null,null,null,null,null,null,null,null,null,null,null,null,null,null,null,null,null,null,null,null,null,{"$f":"PISO!Z85","v":"0026PR04"},null,null,null,null,null,null,null,null,null,null,null,null,null,null,null,null,null,null,null,null,null,null,null,null,null,null,null,{"$f":"Z83","v":"0026PR04"}]

{"sheet":"BIG BAG","index":4,"n_rows":36,"n_cols":24,"rows_kept":36,"cut":false,"hidden":true,"merged":[[11,2,11,3],[8,2,8,3],[35,5,35,12],[35,13,35,17],[35,18,35,22],[34,5,34,12],[34,13,34,17],[34,18,34,22],[33,5,33,12],[33,13,33,17],[33,18,33,22],[26,13,26,17],[26,18,26,22],[23,5,23,12],[23,13,23,17],[23,18,23,22],[7,2,7,3],[6,2,6,3],[16,14,16,22],[12,14,12,15],[12,4,12,13],[7,16,7,25],[7,14,7,15],[7,4,7,13],[13,16,13,19],[13,20,13,21],[13,22,13,25],[14,2,14,25],[9,24,9,25],[9,2,9,3],[10,2,10,3],[12,2,12,3],[5,2,5,25],[4,1,14,1],[8,4,8,13],[8,14,8,15],[8,16,8,25],[9,4,9,22],[10,4,10,13],[10,14,10,15],[10,16,10,22],[10,24,10,25],[11,4,11,25],[12,16,12,25],[13,2,13,3],[13,4,13,13],[13,14,13,15],[6,4,6,25],[24,5,24,12],[24,13,24,17],[24,18,24,22],[21,5,21,12],[21,13,21,17],[21,18,21,22],[22,5,22,12],[22,13,22,17],[22,18,22,22],[28,5,28,12],[20,5,20,12],[20,13,20,17],[20,18,20,22],[16,5,16,13],[19,5,19,12],[19,13,19,17],[19,18,19,22],[25,5,25,12],[25,13,25,17],[25,18,25,22],[27,5,27,22],[28,13,28,17],[28,18,28,22],[26,5,26,12],[18,5,18,22],[31,5,31,12],[31,13,31,17],[31,18,31,22],[32,5,32,12],[32,13,32,17],[32,18,32,22],[29,5,29,12],[29,13,29,17],[29,18,29,22],[30,5,30,12],[30,13,30,17],[30,18,30,22]]}
[]
[]
[]
[]
[]
[null,null,"Informações do CLIENTE"]
[null,null,"Empresa:"]
[null,null,"Unidade:",null,null,null,null,null,null,null,null,null,null,null,"CNPJ:"]
[null,null,"Divisão:",null,null,null,null,null,null,null,null,null,null,null,"Setor"]
[null,null,"Endereço:",null,null,null,null,null,null,null,null,null,null,null,null,null,null,null,null,null,null,null,null,"CEP:"]
[null,null,"Bairro:",null,null,null,null,null,null,null,null,null,null,null,"Cidade:",null,null,null,null,null,null,null,null,"UF:"]
[null,null,"Contato:"]
[null,null,"Setor",null,null,null,null,null,null,null,null,null,null,null,"Cargo:"]
[null,null,"e-mail:",null,null,null,null,null,null,null,null,null,null,null,"Telefone:",null,null,null,null,null,"Celular:"]
[]
[]
[null,null,null,null,null,"Quantos tipos de Big Bag são usados no processo?",null,null,null,null,null,null,null,null,1]
[]
[null,null,null,null,null,"."]
[null,null,null,null,null,"BIG BAG",null,null,null,null,null,null,null,"Exemplo",null,null,null,null,"Real"]
[null,null,null,null,null,"Tipo de Big Bag",null,null,null,null,null,null,null,"RETANGULAR",null,null,null,null,"SELECIONE  ▼"]
[null,null,null,null,null,"A Diâmetro ou largura big bag (mm)",null,null,null,null,null,null,null,1000]
[null,null,null,null,null,"B Altura do big bag (mm)",null,null,null,null,null,null,null,1000]
[null,null,null,null,null,"C Altura da boca do big bag (mm)",null,null,null,null,null,null,null,400]
[null,null,null,null,null,"D Diâmetro da boca do big bag (mm)",null,null,null,null,null,null,null,350]
[null,null,null,null,null,"E Comprimento da alça (mm)",null,null,null,null,null,null,null,250]
[null,null,null,null,null,"F Distância entre alças (mm)",null,null,null,null,null,null,null,500]
[null,null,null,null,null,"."]
[null,null,null,null,null,"BIG BAG 1",null,null,null,null,null,null,null,"Exemplo",null,null,null,null,"Real"]
[null,null,null,null,null,"Tipo de Big Bag",null,null,null,null,null,null,null,"RETANGULAR"]
[null,null,null,null,null,"A Diâmetro ou largura big bag (mm)",null,null,null,null,null,null,null,1000]
[null,null,null,null,null,"B Altura do big bag (mm)",null,null,null,null,null,null,null,1000]
[null,null,null,null,null,"C Altura da boca do big bag (mm)",null,null,null,null,null,null,null,400]
[null,null,null,null,null,"D Diâmetro da boca do big bag (mm)",null,null,null,null,null,null,null,350]
[null,null,null,null,null,"E Comprimento da alça (mm)",null,null,null,null,null,null,null,250]
[null,null,null,null,null,"F Distância entre alças (mm)",null,null,null,null,null,null,null,500]

{"sheet":"SUSPENSO 6125","index":5,"n_rows":84,"n_cols":54,"rows_kept":84,"cut":false,"hidden":true,"merged":[[81,2,81,25],[81,30,81,53],[82,2,82,25],[82,30,82,53],[71,29,71,54],[72,29,72,54],[73,29,73,54],[74,29,74,54],[75,29,75,54],[76,29,76,54],[63,2,63,4],[64,2,64,13],[64,14,64,19],[65,29,66,54],[67,1,80,3],[67,4,80,26],[67,29,67,54],[68,29,68,54],[69,29,69,54],[70,29,70,54],[77,29,80,32],[78,33,79,53],[58,2,58,9],[58,10,58,14],[58,15,58,19],[59,10,59,14],[59,15,59,19],[62,2,62,9],[62,10,62,14],[62,15,62,19],[56,2,56,9],[56,10,56,14],[56,15,56,19],[57,2,57,9],[57,10,57,14],[57,15,57,19],[60,2,60,19],[54,2,54,9],[54,10,54,14],[54,15,54,19],[55,2,55,9],[55,10,55,14],[55,15,55,19],[52,2,52,9],[52,10,52,14],[52,15,52,19],[53,2,53,9],[53,10,53,14],[53,15,53,19],[51,2,51,9],[51,10,51,14],[51,15,51,19],[47,2,47,9],[47,10,47,14],[47,15,47,19],[50,2,50,9],[50,10,50,14],[50,15,50,19],[45,2,45,9],[45,10,45,14],[45,15,45,19],[46,2,46,9],[46,10,46,14],[46,15,46,19],[40,2,40,9],[40,10,40,14],[40,15,40,19],[44,2,44,9],[44,10,44,14],[44,15,44,19],[41,4,41,14],[38,2,38,9],[38,10,38,14],[38,15,38,19],[39,2,39,9],[39,10,39,14],[39,15,39,19],[36,2,36,9],[36,10,36,14],[36,15,36,19],[37,2,37,9],[37,10,37,14],[37,15,37,19],[34,2,34,9],[34,10,34,14],[34,15,34,19],[35,2,35,9],[35,10,35,14],[35,15,35,19],[30,2,30,9],[30,10,30,14],[30,15,30,19],[33,2,33,9],[33,10,33,14],[33,15,33,19],[25,20,30,26],[26,2,26,9],[26,10,26,14],[26,15,26,19],[27,2,27,9],[27,10,27,14],[27,15,27,19],[23,2,23,9],[23,10,23,14],[23,15,23,19],[24,2,24,9],[24,10,24,14],[24,15,24,19],[28,2,28,9],[28,10,28,14],[28,15,28,19],[29,2,29,9],[29,10,29,14],[29,15,29,19],[25,2,25,9],[25,10,25,14],[25,15,25,19],[20,15,20,19],[21,2,21,9],[21,10,21,14],[21,15,21,19],[22,2,22,9],[22,10,22,14],[22,15,22,19],[16,2,16,25],[17,1,28,1],[18,2,18,9],[18,10,18,14],[18,15,18,19],[19,2,19,9],[19,10,19,14],[19,15,19,19],[20,2,20,9],[20,10,20,14],[6,1,16,1],[7,2,7,25],[8,2,8,3],[8,4,8,25],[9,2,9,3],[9,4,9,13],[9,14,9,15],[11,2,11,3],[11,4,11,22],[11,24,11,25],[12,2,12,3],[12,4,12,13],[12,14,12,15],[12,16,12,22],[12,24,12,25],[15,2,15,3],[15,4,15,13],[15,14,15,15],[15,16,15,19],[15,20,15,21],[15,22,15,25],[13,2,13,3],[13,4,13,25],[14,2,14,3],[14,4,14,13],[14,14,14,15],[14,16,14,25],[9,16,9,25],[10,2,10,3],[10,4,10,13],[2,4,2,25],[2,32,2,53],[3,29,4,54],[4,2,4,5],[4,6,4,13],[4,14,4,15],[4,16,4,18],[4,19,4,20],[4,21,4,25],[10,14,10,15],[10,16,10,25]]}
[]
[null,null,null,null,null,null,null,null,null,null,null,null,null,null,null,null,null,null,null,null,null,null,null,null,null,"PG 1 / 2",null,null,null,null,null,null,null,null,null,null,null,null,null,null,null,null,null,null,null,null,null,null,null,null,null,null,null,"PG 2 / 2"]
[null,null,null,null,"FOLHA DE DADOS: ENSACADOR DE BIG BAG - SUSPENSO 6125",null,null,null,null,null,null,null,null,null,null,null,null,null,null,null,null,null,null,null,null,null,null,null,null,null,null,null,"FOLHA DE DADOS: ENSACADOR DE BIG BAG - SUSPENSO 6125"]
[null,null,null,null,null,null,null,null,null,null,null,null,null,null,null,null,null,null,null,null,null,null,null,null,null,null,null,null,null,"DIMENSÕES DO BIG BAG E ESTRUTURA"]
[null,null,"Proposta Comercial nº:",null,null,null,null,null,null,null,null,null,null,null,"Revisão:",null,null,null,null,"Data:"]
[]
[]
[null,null,"Informações do CLIENTE"]
[null,null,"Empresa:"]
[null,null,"Unidade:",null,null,null,null,null,null,null,null,null,null,null,"CNPJ:"]
[null,null,"Divisão:",null,null,null,null,null,null,null,null,null,null,null,"Setor"]
[null,null,"Endereço:",null,null,null,null,null,null,null,null,null,null,null,null,null,null,null,null,null,null,null,null,"CEP:"]
[null,null,"Bairro:",null,null,null,null,null,null,null,null,null,null,null,"Cidade:",null,null,null,null,null,null,null,null,"UF:"]
[null,null,"Contato:"]
[null,null,"Setor",null,null,null,null,null,null,null,null,null,null,null,"Cargo:"]
[null,null,"e-mail:",null,null,null,null,null,null,null,null,null,null,null,"Telefone:",null,null,null,null,null,"Celular:"]
[]
[]
[null,null,"PROCESSO",null,null,null,null,null,null,null,"Exemplo",null,null,null,null,"Real"]
[null,null,"Produto",null,null,null,null,null,null,null,"AÇÚCAR"]
[null,null,"Origem do material",null,null,null,null,null,null,null,"SILO"]
[null,null,"Transporte do material para o Ensacador",null,null,null,null,null,null,null,"GRAVIDADE",null,null,null,null,"SELECIONE  ▼"]
[null,null,"Retirada do bag (carro manual/paleteira/outros)",null,null,null,null,null,null,null,"PALETEIRA",null,null,null,null,"SELECIONE  ▼"]
[null,null,"Área de ensacamento (segura/classificada)",null,null,null,null,null,null,null,"SEGURA",null,null,null,null,"SELECIONE  ▼"]
[null,null,"Intertravamento com CLP externo",null,null,null,null,null,null,null,"NÃO",null,null,null,null,"SELECIONE  ▼"]
[null,null,"Temperatura do produto (ºC)",null,null,null,null,null,null,null,30,null,null,null,null,null,null,null,null,null,"Preencher os campos numéricos somente \ncom valores"]
[null,null,"Temperatura ambiente (ºC)",null,null,null,null,null,null,null,25]
[null,null,"Densidade do produto (g/cm3)",null,null,null,null,null,null,null,0.95]
[null,null,"Peso Líquido do Big Bag cheio (kg)",null,null,null,null,null,null,null,2000]
[null,null,"Diametro do Duto de Exaustão",null,null,null,null,null,null,null,"10\""]
[null,null,"J Distância Piso-Silo (mm)",null,null,null,null,null,null,null,3000]
[]
[]
[null,null,"BIG BAG",null,null,null,null,null,null,null,"Exemplo",null,null,null,null,"Real"]
[null,null,"Tipo de Big Bag",null,null,null,null,null,null,null,"RETANGULAR",null,null,null,null,"SELECIONE  ▼"]
[null,null,"A Diâmetro ou largura big bag (mm)",null,null,null,null,null,null,null,1000]
[null,null,"B Altura do big bag (mm)",null,null,null,null,null,null,null,1000]
[null,null,"C Altura da boca do big bag (mm)",null,null,null,null,null,null,null,400]
[null,null,"D Diâmetro da boca do big bag (mm)",null,null,null,null,null,null,null,400]
[null,null,"E Comprimento da alça (mm)",null,null,null,null,null,null,null,250]
[null,null,"F Distância entre alças (mm)",null,null,null,null,null,null,null,500]
[null,null,null,null,"CASO O PROCESSO TENHA MAIS DE UM TIPO DE BIG BAG"]
[]
[]
[null,null,"PALLET",null,null,null,null,null,null,null,"Exemplo",null,null,null,null,"Real"]
[null,null,"G Comprimento do pallet (mm)",null,null,null,null,null,null,null,1000]
[null,null,"H Largura do pallet (mm)",null,null,null,null,null,null,null,1000]
[null,null,"I Altura do pallet (mm)",null,null,null,null,null,null,null,150]
[]
[]
[null,null,"ENSACADOR DE BIG BAG",null,null,null,null,null,null,null,"Exemplo",null,null,null,null,"Real"]
[null,null,"Tipo de Válvula de Bloqueio",null,null,null,null,null,null,null,"GUILHOTINA ALIMENTÍCIA",null,null,null,null,"SELECIONE  ▼"]
[null,null,"Diâmetro do duto de aliementação (mm)",null,null,null,null,null,null,null,"6\" (152,4 mm)",null,null,null,null,"SELECIONE  ▼"]
[null,null,"Tipo de Automação",null,null,null,null,null,null,null,"PAINEL IHM + TRANSMISSOR",null,null,null,null,"SELECIONE  ▼"]
[null,null,"Tipo de Comunicação (Nota 1)",null,null,null,null,null,null,null,"DeviceNet + 4-20mA",null,null,null,null,"SELECIONE  ▼"]
[null,null,"Fixação do painel",null,null,null,null,null,null,null,"COM PEDESTAL",null,null,null,null,"SELECIONE  ▼"]
[null,null,"Comprimento Cabo Ensacador - Painel IHM (m)",null,null,null,null,null,null,null,"50 m",null,null,null,null,"SELECIONE  ▼"]
[null,null,"Sistema para Pré Insuflamento do Big Bag",null,null,null,null,null,null,null,"SIM",null,null,null,null,"SELECIONE  ▼"]
[null,null,"Mesa Vibratória",null,null,null,null,null,null,null,"SIM",null,null,null,null,"SELECIONE  ▼"]
[null,null,null,null,null,null,null,null,null,null,{"$f":"IF(SUSP_6125_SELEÇÃO_AREA=\"CLASSIFICADA\",\"SUSP_6125_LISTA_AUT_CLASS\",\nIF(SUSP_6125_SELEÇÃO_AREA=\"SEGURA\",\"SUSP_6125_LISTA_AUT_SEG\",\"\"))","v":""}]
[null,null,"Nota1: O protocolo ModBus TCP via Ethernet é nativo no painel de comando."]
[]
[null,null,"Laudo Técnico NR-10 e NR-12",null,null,null,null,null,null,null,"SIM",null,null,null,null,"SELECIONE  ▼"]
[]
[null,null,"CÓDIGO DE ENCOMENDA",null,null,null,null,null,null,null,null,null,null,null,{"$f":"IFERROR(IF(SUSP_6125_SELEÇÃO_MATERIAL_CONSTRUÇÃO=\"\",\"\",\n_xlfn.CONCAT(\"ENS5\",\n_xlfn.XLOOKUP(SUSP_6125_SELEÇÃO_VALVULA,GERAL_TAB_VALV[DESCRIÇÃO],GERAL_TAB_VALV[MODELOS]),\n_xlfn.XLOOKUP(SUSP_6125_SELEÇÃO_DUTO,SUSP_TAB_DUTO[DESCRIÇÃO],SUSP_TAB_DUTO[MODELOS]),\n_xlfn.XLOOKUP(_xlfn.CONCAT(SUSP_6125_SELEÇÃO_AUTOMAÇÃO,\"+\",SUSP_6125_SELEÇÃO_COMUNICAÇÃO,\"+\",SUSP_6125_SELEÇÃO_CABO,\"+\",SUSP_6125_SELEÇÃO_FIX_PAINEL),TAB_COMBINAÇÕES[COMBINAÇÃO],TAB_COMBINAÇÕES[CÓDIGO]),\n_xlfn.XLOOKUP(SUSP_6125_SELEÇÃO_AREA,GERAL_TAB_AREA[DESCRIÇÃO],GERAL_TAB_AREA[MODELOS]),\n_xlfn.XLOOKUP(SUSP_6125_SELEÇÃO_INSU,GERAL_TAB_INSU[DESCRIÇÃO],GERAL_TAB_INSU[MODELOS]),\n_xlfn.XLOOKUP(SUSP_6125_SELEÇÃO_VIBR,GERAL_TAB_INSU[DESCRIÇÃO],GERAL_TAB_INSU[MODELOS]),\n_xlfn.XLOOKUP(SUSP_6125_SELEÇÃO_LAUDO,GERAL_TAB_LAUDO[DESCRIÇÃO],GERAL_TAB_LAUDO[MODELOS]))),\"PREENCHA TODOS OS CAMPOS\")","v":"PREENCHA TODOS OS CAMPOS"}]
[null,null,null,null,null,null,null,null,null,null,null,null,null,null,null,null,null,null,null,null,null,null,null,null,null,null,null,null,null,"INFORMAÇÕES IMPORTANTES"]
[]
[null,"Comentários:",null,null,null,null,null,null,null,null,null,null,null,null,null,null,null,null,null,null,null,null,null,null,null,null,null,null,null,"- CONSUMO DE AR DO BOCAL INFLÁVEL 6L/CICLO."]
[null,null,null,null,null,null,null,null,null,null,null,null,null,null,null,null,null,null,null,null,null,null,null,null,null,null,null,null,null,"- PARA UTILIZAR O BOCAL INFLÁVEL É NECESSÁRIO QUE O DIÂMETRO DA BOCA DO BIG BAG SEJA MAIOR QUE 400mm."]
[]
[]
[]
[]
[]
[]
[]
[]
[null,null,null,null,null,null,null,null,null,null,null,null,null,null,null,null,null,null,null,null,null,null,null,null,null,null,null,null,null,"Necessário:"]
[null,null,null,null,null,null,null,null,null,null,null,null,null,null,null,null,null,null,null,null,null,null,null,null,null,null,null,null,null,null,null,null,null,"Ponto de elétrica p/ painel da IHM, tensão 127/220 Vac (cabo de energia do painel: 2 m c/ plug 3 pinos NBR 14136).\nNecessário ponto de ar comprimido para instalação do equipamento com pressão entre 6 e 8 bar."]
[]
[]
[null,null,"Alfa Instrumentos  R. Cel Mário de Azevedo, 138 - São Paulo-SP - Brasil - CEP 02710-020 F: (11) 3952-2299 - SAC: 0800-772-2910 \n"]
[null,null,"vendas@alfainstrumentos.com.br - www.alfainstrumentos.com.br",null,null,null,null,null,null,null,null,null,null,null,null,null,null,null,null,null,null,null,null,null,null,null,null,null,null,null,"vendas@alfainstrumentos.com.br - www.alfainstrumentos.com.br"]
[null,null,null,null,null,null,null,null,null,null,null,null,null,null,null,null,null,null,null,null,null,null,null,null,null,{"$f":"PISO!Z85","v":"0026PR04"},null,null,null,null,null,null,null,null,null,null,null,null,null,null,null,null,null,null,null,null,null,null,null,null,null,null,null,{"$f":"Z84","v":"0026PR04"}]

{"sheet":"DADOS","index":6,"n_rows":323,"n_cols":16,"rows_kept":323,"cut":false,"hidden":true,"merged":[[169,12,169,14],[170,12,170,14],[198,2,198,7],[241,2,241,7],[284,2,284,7],[164,12,164,14],[165,12,165,14],[166,12,166,14],[167,12,167,14],[168,12,168,14],[159,12,159,14],[160,12,160,14],[161,12,161,14],[162,12,162,14],[163,12,163,14],[154,12,154,14],[155,12,155,14],[156,12,156,14],[157,12,157,14],[158,12,158,14],[2,2,2,7],[117,2,117,7],[153,2,153,3],[148,12,148,14],[149,12,149,14],[151,12,151,14],[152,12,152,14],[153,12,153,14]]}
[]
[]
[null,null,"GERAL"]
[]
[null,null,"QUANTIDADE DE CABO"]
[null,null,"DESCRIÇÃO","MODELOS","CÓDIGO","DESC. SIMP","DESC. COMP","CUSTO"]
[null,null,"SEM CABO","000",0]
[null,null,"10 m","010",1]
[null,null,"20 m","020",2]
[null,null,"50 m","050",3]
[null,null,"100 m","100",4]
[null,null,"200 m","200",5]
[null,null,"300 m","300",6]
[null,null,"----"]
[]
[null,null,"FIXAÇÃO DO PAINEL"]
[null,null,"DESCRIÇÃO","MODELOS","CÓDIGO","DESC. SIMP","DESC. COMP","CUSTO"]
[null,null,"COM PEDESTAL","C/PD","C"]
[null,null,"SEM PEDESTAL","S/PD","S"]
[null,null,"----"]
[]
[null,null,"TIPO DE BIG BAG"]
[null,null,"DESCRIÇÃO","MODELOS","CÓDIGO","DESC. SIMP","DESC. COMP","CUSTO"]
[null,null,"CILINDRICO"]
[null,null,"RETANGULAR"]
[null,null,"----"]
[]
[null,null,"ESPECIFICAÇÃO DA VÁLVULA"]
[null,null,"DESCRIÇÃO","MODELOS","CÓDIGO","DESC. SIMP","DESC. COMP","CUSTO"]
[null,null,"BORBOLETA ALIMENTÍCIA","BO",1]
[null,null,"BORBOLETA USO GERAL","BG",2]
[null,null,"GUILHOTINA ALIMENTÍCIA","GO",3]
[null,null,"GUILHOTINA USO GERAL","GG",4]
[null,null,"SEM VÁLVULA","SV",0]
[null,null,"----"]
[]
[null,null,"ÁREA DE ENSACAMENTO"]
[null,null,"DESCRIÇÃO","MODELOS","CÓDIGO","DESC. SIMP","DESC. COMP","CUSTO"]
[null,null,"SEGURA",null,"S"]
[null,null,"CLASSIFICADA",null,"C"]
[]
[null,null,"SISTEMA DE PRÉ INSUFLAMENTO"]
[null,null,"DESCRIÇÃO","MODELOS","CÓDIGO","DESC. SIMP","DESC. COMP","CUSTO"]
[null,null,"SIM",null,"S"]
[null,null,"NÃO",null,"N"]
[null,null,"----"]
[]
[null,null,"MESA VIBRATÓRIA"]
[null,null,"DESCRIÇÃO","MODELOS","CÓDIGO","DESC. SIMP","DESC. COMP","CUSTO"]
[null,null,"SIM",null,"S"]
[null,null,"NÃO",null,"N"]
[null,null,"----"]
[]
[null,null,"LAUDO TÉCNICO"]
[null,null,"DESCRIÇÃO","MODELOS","CÓDIGO","DESC. SIMP","DESC. COMP","CUSTO"]
[null,null,"SIM",null,"S"]
[null,null,"NÃO",null,"N"]
[null,null,"----"]
[]
[null,null,"RESPOSTA"]
[null,null,"DESCRIÇÃO","MODELOS","CÓDIGO","DESC. SIMP","DESC. COMP","CUSTO"]
[null,null,"SIM",null,"S"]
[null,null,"NÃO",null,"N"]
[null,null,"----"]
[]
[null,null,"TRANSPORTE DO MATERIAL"]
[null,null,"DESCRIÇÃO","MODELOS","CÓDIGO","DESC. SIMP","DESC. COMP","CUSTO"]
[null,null,"GRAVIDADE"]
[null,null,"ROSCA TRANSPORTADORA"]
[null,null,"OUTROS"]
[null,null,"----"]
[]
[null,null,"RETIRADA DO RECIPIENTE"]
[null,null,"DESCRIÇÃO","MODELOS","CÓDIGO","DESC. SIMP","DESC. COMP","CUSTO"]
[null,null,"EMPILHADEIRA"]
[null,null,"OUTROS"]
[null,null,"PALETEIRA"]
[null,null,"TRANSP ROLO LIVRE"]
[null,null,"TRANSP TRACIONADO"]
[null,null,"----","----","----","----","----"]
[]
[null,null,"DIÂMETRO DUTO DE ALIMENTAÇÃO"]
[null,null,"DESCRIÇÃO","MODELOS","CÓDIGO","DESC. SIMP","DESC. COMP","CUSTO"]
[null,null,"6\" (152,4 mm)","06",1,"06"]
[null,null,"8\" (203,2 mm)","08",2,"08"]
[null,null,"10\" (254 mm)","10",3,"10"]
[null,null,"12\" (304,8 mm)","12",4,"12"]
[null,null,"SEM DUTO","SD",5,"SD"]
[null,null,"----"]
[]
[null,null,"TIPO DE COMUNICAÇÃO"]
[null,null,"DESCRIÇÃO","MODELOS","CÓDIGO","DESC. SIMP","DESC. COMP","CUSTO"]
[null,null,"DeviceNet",null,0]
[null,null,"DeviceNet + 4-20mA",null,1]
[null,null,"Ethernet TCP/IP",null,2]
[null,null,"Ethernet TCP/IP + 4-20mA",null,3]
[null,null,"EtherNet/IP",null,4]
[null,null,"EtherNet/IP + 4-20mA",null,5]
[null,null,"ModBus RTU",null,6]
[null,null,"ModBus RTU + 4-20mA",null,7]
[null,null,"ModBus TCP/IP",null,8]
[null,null,"ModBus TCP/IP + 4-20mA",null,9]
[null,null,"Profibus",null,"A"]
[null,null,"Profibus + 4-20mA",null,"B"]
[null,null,"Profinet",null,"C"]
[null,null,"Profinet + 4-20mA",null,"D"]
[null,null,"Sem comunicação",null,"E"]
[null,null,"Somente 4-20mA",null,"F"]
[null,null,"----"]
[]
[null,null,"DESCRIÇÃO","MODELOS","CÓDIGO","DESC. SIMP","DESC. COMP","CUSTO"]
[null,null,"INOX"]
[null,null,"SINTERIZADO"]
[null,null,"----"]
[]
[]
[]
[null,null,"PISO"]
[]
[null,null,"MODELOS"]
[null,null,"DESCRIÇÃO","MODELOS","CÓDIGO","DESC. SIMP","DESC. COMP","CUSTO"]
[null,null,6110,6110,0,6110]
[null,null,6111,6111,1,6111]
[]
[null,null,"MATERIAL DE CONSTRUÇÃO"]
[null,null,"DESCRIÇÃO","MODELOS","CÓDIGO","DESC. SIMP","DESC. COMP","CUSTO"]
[null,null,"AÇO CARBONO",6110,0,6110]
[null,null,"AÇO INOX 304",6111,1,6111]
[null,null,"----"]
[]
[null,null,"FIXAÇÃO DO BOCAL"]
[null,null,"DESCRIÇÃO","MODELOS","CÓDIGO","DESC. SIMP","DESC. COMP","CUSTO"]
[null,null,"GRAMPO MECÂNICO",null,"M","GM"]
[null,null,"INFLÁVEL",null,"I","IN"]
[null,null,"SEM FIXADOR",null,"O","SF"]
[null,null,"----"]
[]
[null,null,"FIXAÇÃO DA PLATAFORMA"]
[null,null,"DESCRIÇÃO","MODELOS","CÓDIGO","DESC. SIMP","DESC. COMP","CUSTO"]
[null,null,"CONTRAMARCO",null,"C","C"]
[null,null,"COPO POSICIONADOR",null,"K","K"]
[null,null,"SOMENTE PÉ FLUTUANTE",null,"P","P"]
[null,null,"----"]
[]
[null,null,"PLATAFORMA DE PESAGEM"]
[null,null,"DESCRIÇÃO","MODELOS","CÓDIGO","DESC. SIMP","DESC. COMP","CUSTO"]
[null,null,"COM MESA DE ROLETES",null,"R","R"]
[null,null,"COM TAMPO LISO",null,"L","L"]
[null,null,"COM TRILHO",null,"T","T",null,null,null,null,null,null,"DISTÂNCIA EIXO LIBERADOR ATÉ TOPO DO DUTO",null,null,482]
[null,null,"----",null,null,null,null,null,null,null,null,null,"ADAPTADOR DE MANGOTE",null,null,142]
[]
[null,null,"COM MESA VIBRATÓRIA",null,"V","V",null,null,null,null,null,null,"ROL+CONT+GUIL",null,null,{"$f":"SUM(\n_xlfn.XLOOKUP(\"COM MESA DE ROLETES\",PISO_TAB_MEDIDA_K[DESCRIÇÃO],PISO_TAB_MEDIDA_K[CÓDIGO]),\n_xlfn.XLOOKUP(\"CONTRAMARCO\",PISO_TAB_MEDIDA_K[DESCRIÇÃO],PISO_TAB_MEDIDA_K[CÓDIGO]),\n_xlfn.XLOOKUP(\"GUIL\",PISO_TAB_MEDIDA_K[DESCRIÇÃO],PISO_TAB_MEDIDA_K[CÓDIGO]),$P$149,$P$150)","v":827}]
[null,null,null,null,null,null,null,null,null,null,null,null,"ROL+CONT+BORB",null,null,{"$f":"SUM(\n_xlfn.XLOOKUP(\"COM MESA DE ROLETES\",PISO_TAB_MEDIDA_K[DESCRIÇÃO],PISO_TAB_MEDIDA_K[CÓDIGO]),\n_xlfn.XLOOKUP(\"CONTRAMARCO\",PISO_TAB_MEDIDA_K[DESCRIÇÃO],PISO_TAB_MEDIDA_K[CÓDIGO]),\n_xlfn.XLOOKUP(\"BORB\",PISO_TAB_MEDIDA_K[DESCRIÇÃO],PISO_TAB_MEDIDA_K[CÓDIGO]),$P$149,$P$150)","v":796}]
[null,null,"VALORES PARA CALCULAR MEDIDA K",null,null,null,null,null,null,null,null,null,"ROL+CONT+SEM",null,null,{"$f":"SUM(\n_xlfn.XLOOKUP(\"COM MESA DE ROLETES\",PISO_TAB_MEDIDA_K[DESCRIÇÃO],PISO_TAB_MEDIDA_K[CÓDIGO]),\n_xlfn.XLOOKUP(\"CONTRAMARCO\",PISO_TAB_MEDIDA_K[DESCRIÇÃO],PISO_TAB_MEDIDA_K[CÓDIGO]),\n_xlfn.XLOOKUP(\"SEM\",PISO_TAB_MEDIDA_K[DESCRIÇÃO],PISO_TAB_MEDIDA_K[CÓDIGO]),$P$149,$P$150)","v":709}]
[null,null,"DESCRIÇÃO","MODELOS","CÓDIGO","DESC. SIMP","DESC. COMP","CUSTO",null,null,null,null,"ROL+COPO+GUIL",null,null,{"$f":"SUM(\n_xlfn.XLOOKUP(\"COM MESA DE ROLETES\",PISO_TAB_MEDIDA_K[DESCRIÇÃO],PISO_TAB_MEDIDA_K[CÓDIGO]),\n_xlfn.XLOOKUP(\"COPO POSICIONADOR\",PISO_TAB_MEDIDA_K[DESCRIÇÃO],PISO_TAB_MEDIDA_K[CÓDIGO]),\n_xlfn.XLOOKUP(\"GUIL\",PISO_TAB_MEDIDA_K[DESCRIÇÃO],PISO_TAB_MEDIDA_K[CÓDIGO]),$P$149,$P$150)","v":944}]
[null,null,"COM MESA DE ROLETES",null,85,null,null,null,null,null,null,null,"ROL+COPO+BORB",null,null,{"$f":"SUM(\n_xlfn.XLOOKUP(\"COM MESA DE ROLETES\",PISO_TAB_MEDIDA_K[DESCRIÇÃO],PISO_TAB_MEDIDA_K[CÓDIGO]),\n_xlfn.XLOOKUP(\"COPO POSICIONADOR\",PISO_TAB_MEDIDA_K[DESCRIÇÃO],PISO_TAB_MEDIDA_K[CÓDIGO]),\n_xlfn.XLOOKUP(\"BORB\",PISO_TAB_MEDIDA_K[DESCRIÇÃO],PISO_TAB_MEDIDA_K[CÓDIGO]),$P$149,$P$150)","v":913}]
[null,null,"COM TAMPO LISO",null,0,null,null,null,null,null,null,null,"ROL+COPO+SEM",null,null,{"$f":"SUM(\n_xlfn.XLOOKUP(\"COM MESA DE ROLETES\",PISO_TAB_MEDIDA_K[DESCRIÇÃO],PISO_TAB_MEDIDA_K[CÓDIGO]),\n_xlfn.XLOOKUP(\"COPO POSICIONADOR\",PISO_TAB_MEDIDA_K[DESCRIÇÃO],PISO_TAB_MEDIDA_K[CÓDIGO]),\n_xlfn.XLOOKUP(\"SEM\",PISO_TAB_MEDIDA_K[DESCRIÇÃO],PISO_TAB_MEDIDA_K[CÓDIGO]),$P$149,$P$150)","v":826}]
[null,null,"COM TRILHO",null,156]
[null,null,"CONTRAMARCO",null,0,null,null,null,null,null,null,null,"LIS+CONT+GUIL",null,null,{"$f":"SUM(\n_xlfn.XLOOKUP(\"COM TAMPO LISO\",PISO_TAB_MEDIDA_K[DESCRIÇÃO],PISO_TAB_MEDIDA_K[CÓDIGO]),\n_xlfn.XLOOKUP(\"CONTRAMARCO\",PISO_TAB_MEDIDA_K[DESCRIÇÃO],PISO_TAB_MEDIDA_K[CÓDIGO]),\n_xlfn.XLOOKUP(\"GUIL\",PISO_TAB_MEDIDA_K[DESCRIÇÃO],PISO_TAB_MEDIDA_K[CÓDIGO]),$P$149,$P$150)","v":742}]
[null,null,"COPO POSICIONADOR",null,117,null,null,null,null,null,null,null,"LIS+CONT+BORB",null,null,{"$f":"SUM(\n_xlfn.XLOOKUP(\"COM TAMPO LISO\",PISO_TAB_MEDIDA_K[DESCRIÇÃO],PISO_TAB_MEDIDA_K[CÓDIGO]),\n_xlfn.XLOOKUP(\"CONTRAMARCO\",PISO_TAB_MEDIDA_K[DESCRIÇÃO],PISO_TAB_MEDIDA_K[CÓDIGO]),\n_xlfn.XLOOKUP(\"BORB\",PISO_TAB_MEDIDA_K[DESCRIÇÃO],PISO_TAB_MEDIDA_K[CÓDIGO]),$P$149,$P$150)","v":711}]
[null,null,"GUIL",null,118,null,null,null,null,null,null,null,"LIS+CONT+SEM",null,null,{"$f":"SUM(\n_xlfn.XLOOKUP(\"COM TAMPO LISO\",PISO_TAB_MEDIDA_K[DESCRIÇÃO],PISO_TAB_MEDIDA_K[CÓDIGO]),\n_xlfn.XLOOKUP(\"CONTRAMARCO\",PISO_TAB_MEDIDA_K[DESCRIÇÃO],PISO_TAB_MEDIDA_K[CÓDIGO]),\n_xlfn.XLOOKUP(\"SEM\",PISO_TAB_MEDIDA_K[DESCRIÇÃO],PISO_TAB_MEDIDA_K[CÓDIGO]),$P$149,$P$150)","v":624}]
[null,null,"BORB",null,87,null,null,null,null,null,null,null,"LIS+COPO+GUIL",null,null,{"$f":"SUM(\n_xlfn.XLOOKUP(\"COM TAMPO LISO\",PISO_TAB_MEDIDA_K[DESCRIÇÃO],PISO_TAB_MEDIDA_K[CÓDIGO]),\n_xlfn.XLOOKUP(\"COPO POSICIONADOR\",PISO_TAB_MEDIDA_K[DESCRIÇÃO],PISO_TAB_MEDIDA_K[CÓDIGO]),\n_xlfn.XLOOKUP(\"GUIL\",PISO_TAB_MEDIDA_K[DESCRIÇÃO],PISO_TAB_MEDIDA_K[CÓDIGO]),$P$149,$P$150)","v":859}]
[null,null,"SEM",null,0,null,null,null,null,null,null,null,"LIS+COPO+BORB",null,null,{"$f":"SUM(\n_xlfn.XLOOKUP(\"COM TAMPO LISO\",PISO_TAB_MEDIDA_K[DESCRIÇÃO],PISO_TAB_MEDIDA_K[CÓDIGO]),\n_xlfn.XLOOKUP(\"COPO POSICIONADOR\",PISO_TAB_MEDIDA_K[DESCRIÇÃO],PISO_TAB_MEDIDA_K[CÓDIGO]),\n_xlfn.XLOOKUP(\"BORB\",PISO_TAB_MEDIDA_K[DESCRIÇÃO],PISO_TAB_MEDIDA_K[CÓDIGO]),$P$149,$P$150)","v":828}]
[null,null,"----",null,null,null,null,null,null,null,null,null,"LIS+COPO+SEM",null,null,{"$f":"SUM(\n_xlfn.XLOOKUP(\"COM TAMPO LISO\",PISO_TAB_MEDIDA_K[DESCRIÇÃO],PISO_TAB_MEDIDA_K[CÓDIGO]),\n_xlfn.XLOOKUP(\"COPO POSICIONADOR\",PISO_TAB_MEDIDA_K[DESCRIÇÃO],PISO_TAB_MEDIDA_K[CÓDIGO]),\n_xlfn.XLOOKUP(\"SEM\",PISO_TAB_MEDIDA_K[DESCRIÇÃO],PISO_TAB_MEDIDA_K[CÓDIGO]),$P$149,$P$150)","v":741}]
[]
[null,null,"TIPO DE AUTOMAÇÃO SEGURA",null,null,null,null,null,null,null,null,null,"TRIL+CONT+GUIL",null,null,{"$f":"SUM(\n_xlfn.XLOOKUP(\"COM TRILHO\",PISO_TAB_MEDIDA_K[DESCRIÇÃO],PISO_TAB_MEDIDA_K[CÓDIGO]),\n_xlfn.XLOOKUP(\"CONTRAMARCO\",PISO_TAB_MEDIDA_K[DESCRIÇÃO],PISO_TAB_MEDIDA_K[CÓDIGO]),\n_xlfn.XLOOKUP(\"GUIL\",PISO_TAB_MEDIDA_K[DESCRIÇÃO],PISO_TAB_MEDIDA_K[CÓDIGO]),$P$149,$P$150)","v":898}]
[null,null,"DESCRIÇÃO","MODELOS","CÓDIGO","DESC. SIMP","DESC. COMP","CUSTO",null,null,null,null,"TRIL+CONT+BORB",null,null,{"$f":"SUM(\n_xlfn.XLOOKUP(\"COM TRILHO\",PISO_TAB_MEDIDA_K[DESCRIÇÃO],PISO_TAB_MEDIDA_K[CÓDIGO]),\n_xlfn.XLOOKUP(\"CONTRAMARCO\",PISO_TAB_MEDIDA_K[DESCRIÇÃO],PISO_TAB_MEDIDA_K[CÓDIGO]),\n_xlfn.XLOOKUP(\"BORB\",PISO_TAB_MEDIDA_K[DESCRIÇÃO],PISO_TAB_MEDIDA_K[CÓDIGO]),$P$149,$P$150)","v":867}]
[null,null,"PAINEL IHM + TRANSMISSOR",null,3,null,null,null,null,null,null,null,"TRIL+CONT+SEM",null,null,{"$f":"SUM(\n_xlfn.XLOOKUP(\"COM TRILHO\",PISO_TAB_MEDIDA_K[DESCRIÇÃO],PISO_TAB_MEDIDA_K[CÓDIGO]),\n_xlfn.XLOOKUP(\"CONTRAMARCO\",PISO_TAB_MEDIDA_K[DESCRIÇÃO],PISO_TAB_MEDIDA_K[CÓDIGO]),\n_xlfn.XLOOKUP(\"SEM\",PISO_TAB_MEDIDA_K[DESCRIÇÃO],PISO_TAB_MEDIDA_K[CÓDIGO]),$P$149,$P$150)","v":780}]
[null,null,"INDICADOR LINHA 3000",null,4,null,null,null,null,null,null,null,"TRIL+COPO+GUIL",null,null,{"$f":"SUM(\n_xlfn.XLOOKUP(\"COM TRILHO\",PISO_TAB_MEDIDA_K[DESCRIÇÃO],PISO_TAB_MEDIDA_K[CÓDIGO]),\n_xlfn.XLOOKUP(\"COPO POSICIONADOR\",PISO_TAB_MEDIDA_K[DESCRIÇÃO],PISO_TAB_MEDIDA_K[CÓDIGO]),\n_xlfn.XLOOKUP(\"GUIL\",PISO_TAB_MEDIDA_K[DESCRIÇÃO],PISO_TAB_MEDIDA_K[CÓDIGO]),$P$149,$P$150)","v":1015}]
[null,null,"----",null,null,null,null,null,null,null,null,null,"TRIL+COPO+BORB",null,null,{"$f":"SUM(\n_xlfn.XLOOKUP(\"COM TRILHO\",PISO_TAB_MEDIDA_K[DESCRIÇÃO],PISO_TAB_MEDIDA_K[CÓDIGO]),\n_xlfn.XLOOKUP(\"COPO POSICIONADOR\",PISO_TAB_MEDIDA_K[DESCRIÇÃO],PISO_TAB_MEDIDA_K[CÓDIGO]),\n_xlfn.XLOOKUP(\"BORB\",PISO_TAB_MEDIDA_K[DESCRIÇÃO],PISO_TAB_MEDIDA_K[CÓDIGO]),$P$149,$P$150)","v":984}]
[null,null,null,null,null,null,null,null,null,null,null,null,"TRIL+COPO+SEM",null,null,{"$f":"SUM(\n_xlfn.XLOOKUP(\"COM TRILHO\",PISO_TAB_MEDIDA_K[DESCRIÇÃO],PISO_TAB_MEDIDA_K[CÓDIGO]),\n_xlfn.XLOOKUP(\"COPO POSICIONADOR\",PISO_TAB_MEDIDA_K[DESCRIÇÃO],PISO_TAB_MEDIDA_K[CÓDIGO]),\n_xlfn.XLOOKUP(\"SEM\",PISO_TAB_MEDIDA_K[DESCRIÇÃO],PISO_TAB_MEDIDA_K[CÓDIGO]),$P$149,$P$150)","v":897}]
[null,null,"TIPO DE AUTOMAÇÃO CLASSIFICADA"]
[null,null,"DESCRIÇÃO","MODELOS","CÓDIGO","DESC. SIMP","DESC. COMP","CUSTO"]
[null,null,"CAIXA Exd COM DISPLAY",null,1]
[null,null,"CAIXA Exd + PAINEL IHM",null,2]
[]
[null,null,"TIPOS DE INDICADORES"]
[null,null,"DESCRIÇÃO","MODELOS","CÓDIGO","DESC. SIMP","DESC. COMP","CUSTO"]
[null,null,"INDICADOR 3102C"]
[null,null,"INDICADOR 3104C"]
[null,null,"INDICADOR 3107C"]
[null,null,"INDICADOR 3102CS"]
[null,null,"INDICADOR 3104CS"]
[null,null,"INDICADOR 3107CS"]
[]
[null,null,"SÓ INDICADOR"]
[null,null,"ModBus RTU"]
[null,null,"ModBus TCP/IP"]
[null,null,"Profibus"]
[null,null,"DeviceNet"]
[null,null,"EtherNet IP"]
[null,null,"EtherNet TCP/IP"]
[null,null,"Profinet"]
[null,null,"SEM PROTOCOLO"]
[null,null,"----"]
[]
[]
[]
[null,null,"PRÉ PESAGEM"]
[]
[null,null,"MODELOS"]
[null,null,"DESCRIÇÃO","MODELOS","CÓDIGO","DESC. SIMP","DESC. COMP","CUSTO"]
[null,null,6122,6122,2,6122]
[]
[]
[null,null,"MATERIAL DE CONSTRUÇÃO"]
[null,null,"DESCRIÇÃO","MODELOS","CÓDIGO","DESC. SIMP","DESC. COMP","CUSTO"]
[null,null,"AÇO CARBONO",6122,2,6122]
[null,null,"AÇO INOX 304"]
[null,null,"----"]
[]
[null,null,"DIAMETRO DO DUTO DE EXAUSTÃO"]
[null,null,"DESCRIÇÃO","MODELOS","CÓDIGO","DESC. SIMP","DESC. COMP","CUSTO"]
[null,null,"1/2\" (12,7 mm)"]
[null,null,"2\" (50,8 mm)"]
[null,null,"2 1/2\" (63,5 mm)"]
[null,null,"3\" (76,2 mm)"]
[null,null,"4\" (101,6 mm)"]
[null,null,"----"]
[]
[null,null,"DIÂMETRO DUTO DE ALIEMENTAÇÃO"]
[null,null,"DESCRIÇÃO","MODELOS","CÓDIGO","DESC. SIMP","DESC. COMP","CUSTO"]
[null,null,"6\" (152,4 mm)","06",1,"06"]
[null,null,"8\" (203,2 mm)","08",2,"08"]
[null,null,"10\" (254 mm)","10",3,"10"]
[null,null,"12\" (304,8 mm)","12",4,"12"]
[null,null,"----"]
[null,null,"TIPO DE AUTOMAÇÃO SEGURA"]
[null,null,"DESCRIÇÃO","MODELOS","CÓDIGO","DESC. SIMP","DESC. COMP","CUSTO"]
[null,null,"PAINEL IHM + TRANSMISSOR",null,3]
[null,null,"----"]
[]
[]
[null,null,"TIPO DE AUTOMAÇÃO CLASSIFICADA"]
[null,null,"DESCRIÇÃO","MODELOS","CÓDIGO","DESC. SIMP","DESC. COMP","CUSTO"]
[null,null,"CAIXA Exd + PAINEL IHM",null,2]
[null,null,"PAINEL IHM + TRANSMISSOR",null,3]
[null,null,"----"]
[]
[]
[]
[null,null,"SUSPENSO"]
[]
[null,null,"MODELOS"]
[null,null,"DESCRIÇÃO","MODELOS","CÓDIGO","DESC. SIMP","DESC. COMP","CUSTO"]
[null,null,6123,6123,3,6123]
[null,null,6124,6124,4,6124]
[]
[null,null,"MATERIAL DE CONSTRUÇÃO"]
[null,null,"DESCRIÇÃO","MODELOS","CÓDIGO","DESC. SIMP","DESC. COMP","CUSTO"]
[null,null,"AÇO CARBONO",6123,3,6123]
[null,null,"AÇO INOX 304",6124,4,6124]
[null,null,"----"]
[]
[null,null,"DIAMETRO DO DUTO DE EXAUSTÃO"]
[null,null,"DESCRIÇÃO","MODELOS","CÓDIGO","DESC. SIMP","DESC. COMP","CUSTO"]
[null,null,"1/2\" (12,7 mm)"]
[null,null,"2\" (50,8 mm)"]
[null,null,"2 1/2\" (63,5 mm)"]
[null,null,"3\" (76,2 mm)"]
[null,null,"4\" (101,6 mm)"]
[null,null,"----"]
[]
[null,null,"DIÂMETRO DUTO DE ALIEMENTAÇÃO"]
[null,null,"DESCRIÇÃO","MODELOS","CÓDIGO","DESC. SIMP","DESC. COMP","CUSTO"]
[null,null,"6\" (152,4 mm)","06",1,"06"]
[null,null,"8\" (203,2 mm)","08",2,"08"]
[null,null,"10\" (254 mm)","10",3,"10"]
[null,null,"12\" (304,8 mm)","12",4,"12"]
[null,null,"----"]
[]
[null,null,"TIPO DE AUTOMAÇÃO SEGURA"]
[null,null,"DESCRIÇÃO","MODELOS","CÓDIGO","DESC. SIMP","DESC. COMP","CUSTO"]
[null,null,"PAINEL IHM + TRANSMISSOR",null,3]
[null,null,"----"]
[]
[null,null,"TIPO DE AUTOMAÇÃO CLASSIFICADA"]
[null,null,"DESCRIÇÃO","MODELOS","CÓDIGO","DESC. SIMP","DESC. COMP","CUSTO"]
[null,null,"CAIXA Exd + PAINEL IHM",null,2]
[null,null,"PAINEL IHM + TRANSMISSOR",null,3]
[null,null,"----"]
[]
[]
[]
[null,null,"SUSPENSO 6125"]
[]
[null,null,"MODELOS"]
[null,null,"DESCRIÇÃO","MODELOS","CÓDIGO","DESC. SIMP","DESC. COMP","CUSTO"]
[null,null,6125,6125,5,6125]
[]
[]
[null,null,"MATERIAL DE CONSTRUÇÃO"]
[null,null,"DESCRIÇÃO","MODELOS","CÓDIGO","DESC. SIMP","DESC. COMP","CUSTO"]
[null,null,"AÇO CARBONO",6125,5,6125]
[null,null,"----"]
[]
[null,null,"DIAMETRO DO DUTO DE EXAUSTÃO"]
[null,null,"DESCRIÇÃO","MODELOS","CÓDIGO","DESC. SIMP","DESC. COMP","CUSTO"]
[null,null,"1/2\" (12,7 mm)"]
[null,null,"2\" (50,8 mm)"]
[null,null,"2 1/2\" (63,5 mm)"]
[null,null,"3\" (76,2 mm)"]
[null,null,"4\" (101,6 mm)"]
[null,null,"----"]
[]
[null,null,"DIÂMETRO DUTO DE ALIEMENTAÇÃO"]
[null,null,"DESCRIÇÃO","MODELOS","CÓDIGO","DESC. SIMP","DESC. COMP","CUSTO"]
[null,null,"6\" (152,4 mm)","06",1,"06"]
[null,null,"8\" (203,2 mm)","08",2,"08"]
[null,null,"10\" (254 mm)","10",3,"10"]
[null,null,"12\" (304,8 mm)","12",4,"12"]
[null,null,"----"]
[]
[null,null,"TIPO DE AUTOMAÇÃO SEGURA"]
[null,null,"DESCRIÇÃO","MODELOS","CÓDIGO","DESC. SIMP","DESC. COMP","CUSTO"]
[null,null,"PAINEL IHM + TRANSMISSOR",null,3]
[null,null,"----"]
[]
[null,null,"TIPO DE AUTOMAÇÃO CLASSIFICADA"]
[null,null,"DESCRIÇÃO","MODELOS","CÓDIGO","DESC. SIMP","DESC. COMP","CUSTO"]
[null,null,"CAIXA Exd + PAINEL IHM",null,2]
[null,null,"PAINEL IHM + TRANSMISSOR",null,3]
[null,null,"----"]

{"sheet":"COMBINAÇÃO PAINEL","index":7,"n_rows":633,"n_cols":9,"rows_kept":633,"cut":false,"hidden":true,"merged":[]}
[]
[]
[null,"AUTOMAÇÃO","COMUNICAÇÃO","CABO","FIXAÇÃO","COMBINAÇÃO","CÓDIGO"]
[null,"CAIXA Exd + PAINEL IHM","DeviceNet","SEM CABO","COM PEDESTAL",{"$f":"_xlfn.CONCAT(TAB_COMBINAÇÕES[[#This Row],[AUTOMAÇÃO]],\"+\",TAB_COMBINAÇÕES[[#This Row],[COMUNICAÇÃO]],\"+\",TAB_COMBINAÇÕES[[#This Row],[CABO]],\"+\",TAB_COMBINAÇÕES[[#This Row],[FIXAÇÃO]])","v":"CAIXA Exd + PAINEL IHM+DeviceNet+SEM CABO+COM PEDESTAL"},"00"]
[null,"CAIXA Exd + PAINEL IHM","DeviceNet","10 m","COM PEDESTAL",{"$f":"_xlfn.CONCAT(TAB_COMBINAÇÕES[[#This Row],[AUTOMAÇÃO]],\"+\",TAB_COMBINAÇÕES[[#This Row],[COMUNICAÇÃO]],\"+\",TAB_COMBINAÇÕES[[#This Row],[CABO]],\"+\",TAB_COMBINAÇÕES[[#This Row],[FIXAÇÃO]])","v":"CAIXA Exd + PAINEL IHM+DeviceNet+10 m+COM PEDESTAL"},"01"]
[null,"CAIXA Exd + PAINEL IHM","DeviceNet","20 m","COM PEDESTAL",{"$f":"_xlfn.CONCAT(TAB_COMBINAÇÕES[[#This Row],[AUTOMAÇÃO]],\"+\",TAB_COMBINAÇÕES[[#This Row],[COMUNICAÇÃO]],\"+\",TAB_COMBINAÇÕES[[#This Row],[CABO]],\"+\",TAB_COMBINAÇÕES[[#This Row],[FIXAÇÃO]])","v":"CAIXA Exd + PAINEL IHM+DeviceNet+20 m+COM PEDESTAL"},"02"]
[null,"CAIXA Exd + PAINEL IHM","DeviceNet","50 m","COM PEDESTAL",{"$f":"_xlfn.CONCAT(TAB_COMBINAÇÕES[[#This Row],[AUTOMAÇÃO]],\"+\",TAB_COMBINAÇÕES[[#This Row],[COMUNICAÇÃO]],\"+\",TAB_COMBINAÇÕES[[#This Row],[CABO]],\"+\",TAB_COMBINAÇÕES[[#This Row],[FIXAÇÃO]])","v":"CAIXA Exd + PAINEL IHM+DeviceNet+50 m+COM PEDESTAL"},"03"]
[null,"CAIXA Exd + PAINEL IHM","DeviceNet","100 m","COM PEDESTAL",{"$f":"_xlfn.CONCAT(TAB_COMBINAÇÕES[[#This Row],[AUTOMAÇÃO]],\"+\",TAB_COMBINAÇÕES[[#This Row],[COMUNICAÇÃO]],\"+\",TAB_COMBINAÇÕES[[#This Row],[CABO]],\"+\",TAB_COMBINAÇÕES[[#This Row],[FIXAÇÃO]])","v":"CAIXA Exd + PAINEL IHM+DeviceNet+100 m+COM PEDESTAL"},"04"]
[null,"CAIXA Exd + PAINEL IHM","DeviceNet","200 m","COM PEDESTAL",{"$f":"_xlfn.CONCAT(TAB_COMBINAÇÕES[[#This Row],[AUTOMAÇÃO]],\"+\",TAB_COMBINAÇÕES[[#This Row],[COMUNICAÇÃO]],\"+\",TAB_COMBINAÇÕES[[#This Row],[CABO]],\"+\",TAB_COMBINAÇÕES[[#This Row],[FIXAÇÃO]])","v":"CAIXA Exd + PAINEL IHM+DeviceNet+200 m+COM PEDESTAL"},"05"]
[null,"CAIXA Exd + PAINEL IHM","DeviceNet","300 m","COM PEDESTAL",{"$f":"_xlfn.CONCAT(TAB_COMBINAÇÕES[[#This Row],[AUTOMAÇÃO]],\"+\",TAB_COMBINAÇÕES[[#This Row],[COMUNICAÇÃO]],\"+\",TAB_COMBINAÇÕES[[#This Row],[CABO]],\"+\",TAB_COMBINAÇÕES[[#This Row],[FIXAÇÃO]])","v":"CAIXA Exd + PAINEL IHM+DeviceNet+300 m+COM PEDESTAL"},"06"]
[null,"CAIXA Exd + PAINEL IHM","DeviceNet + 4-20mA","SEM CABO","COM PEDESTAL",{"$f":"_xlfn.CONCAT(TAB_COMBINAÇÕES[[#This Row],[AUTOMAÇÃO]],\"+\",TAB_COMBINAÇÕES[[#This Row],[COMUNICAÇÃO]],\"+\",TAB_COMBINAÇÕES[[#This Row],[CABO]],\"+\",TAB_COMBINAÇÕES[[#This Row],[FIXAÇÃO]])","v":"CAIXA Exd + PAINEL IHM+DeviceNet + 4-20mA+SEM CABO+COM PEDESTAL"},"07"]
[null,"CAIXA Exd + PAINEL IHM","DeviceNet + 4-20mA","10 m","COM PEDESTAL",{"$f":"_xlfn.CONCAT(TAB_COMBINAÇÕES[[#This Row],[AUTOMAÇÃO]],\"+\",TAB_COMBINAÇÕES[[#This Row],[COMUNICAÇÃO]],\"+\",TAB_COMBINAÇÕES[[#This Row],[CABO]],\"+\",TAB_COMBINAÇÕES[[#This Row],[FIXAÇÃO]])","v":"CAIXA Exd + PAINEL IHM+DeviceNet + 4-20mA+10 m+COM PEDESTAL"},"08"]
[null,"CAIXA Exd + PAINEL IHM","DeviceNet + 4-20mA","20 m","COM PEDESTAL",{"$f":"_xlfn.CONCAT(TAB_COMBINAÇÕES[[#This Row],[AUTOMAÇÃO]],\"+\",TAB_COMBINAÇÕES[[#This Row],[COMUNICAÇÃO]],\"+\",TAB_COMBINAÇÕES[[#This Row],[CABO]],\"+\",TAB_COMBINAÇÕES[[#This Row],[FIXAÇÃO]])","v":"CAIXA Exd + PAINEL IHM+DeviceNet + 4-20mA+20 m+COM PEDESTAL"},"09"]
[null,"CAIXA Exd + PAINEL IHM","DeviceNet + 4-20mA","50 m","COM PEDESTAL",{"$f":"_xlfn.CONCAT(TAB_COMBINAÇÕES[[#This Row],[AUTOMAÇÃO]],\"+\",TAB_COMBINAÇÕES[[#This Row],[COMUNICAÇÃO]],\"+\",TAB_COMBINAÇÕES[[#This Row],[CABO]],\"+\",TAB_COMBINAÇÕES[[#This Row],[FIXAÇÃO]])","v":"CAIXA Exd + PAINEL IHM+DeviceNet + 4-20mA+50 m+COM PEDESTAL"},"10"]
[null,"CAIXA Exd + PAINEL IHM","DeviceNet + 4-20mA","100 m","COM PEDESTAL",{"$f":"_xlfn.CONCAT(TAB_COMBINAÇÕES[[#This Row],[AUTOMAÇÃO]],\"+\",TAB_COMBINAÇÕES[[#This Row],[COMUNICAÇÃO]],\"+\",TAB_COMBINAÇÕES[[#This Row],[CABO]],\"+\",TAB_COMBINAÇÕES[[#This Row],[FIXAÇÃO]])","v":"CAIXA Exd + PAINEL IHM+DeviceNet + 4-20mA+100 m+COM PEDESTAL"},"11"]
[null,"CAIXA Exd + PAINEL IHM","DeviceNet + 4-20mA","200 m","COM PEDESTAL",{"$f":"_xlfn.CONCAT(TAB_COMBINAÇÕES[[#This Row],[AUTOMAÇÃO]],\"+\",TAB_COMBINAÇÕES[[#This Row],[COMUNICAÇÃO]],\"+\",TAB_COMBINAÇÕES[[#This Row],[CABO]],\"+\",TAB_COMBINAÇÕES[[#This Row],[FIXAÇÃO]])","v":"CAIXA Exd + PAINEL IHM+DeviceNet + 4-20mA+200 m+COM PEDESTAL"},"12"]
[null,"CAIXA Exd + PAINEL IHM","DeviceNet + 4-20mA","300 m","COM PEDESTAL",{"$f":"_xlfn.CONCAT(TAB_COMBINAÇÕES[[#This Row],[AUTOMAÇÃO]],\"+\",TAB_COMBINAÇÕES[[#This Row],[COMUNICAÇÃO]],\"+\",TAB_COMBINAÇÕES[[#This Row],[CABO]],\"+\",TAB_COMBINAÇÕES[[#This Row],[FIXAÇÃO]])","v":"CAIXA Exd + PAINEL IHM+DeviceNet + 4-20mA+300 m+COM PEDESTAL"},"13"]
[null,"CAIXA Exd + PAINEL IHM","Ethernet TCP/IP","SEM CABO","COM PEDESTAL",{"$f":"_xlfn.CONCAT(TAB_COMBINAÇÕES[[#This Row],[AUTOMAÇÃO]],\"+\",TAB_COMBINAÇÕES[[#This Row],[COMUNICAÇÃO]],\"+\",TAB_COMBINAÇÕES[[#This Row],[CABO]],\"+\",TAB_COMBINAÇÕES[[#This Row],[FIXAÇÃO]])","v":"CAIXA Exd + PAINEL IHM+Ethernet TCP/IP+SEM CABO+COM PEDESTAL"},"14"]
[null,"CAIXA Exd + PAINEL IHM","Ethernet TCP/IP","10 m","COM PEDESTAL",{"$f":"_xlfn.CONCAT(TAB_COMBINAÇÕES[[#This Row],[AUTOMAÇÃO]],\"+\",TAB_COMBINAÇÕES[[#This Row],[COMUNICAÇÃO]],\"+\",TAB_COMBINAÇÕES[[#This Row],[CABO]],\"+\",TAB_COMBINAÇÕES[[#This Row],[FIXAÇÃO]])","v":"CAIXA Exd + PAINEL IHM+Ethernet TCP/IP+10 m+COM PEDESTAL"},"15"]
[null,"CAIXA Exd + PAINEL IHM","Ethernet TCP/IP","20 m","COM PEDESTAL",{"$f":"_xlfn.CONCAT(TAB_COMBINAÇÕES[[#This Row],[AUTOMAÇÃO]],\"+\",TAB_COMBINAÇÕES[[#This Row],[COMUNICAÇÃO]],\"+\",TAB_COMBINAÇÕES[[#This Row],[CABO]],\"+\",TAB_COMBINAÇÕES[[#This Row],[FIXAÇÃO]])","v":"CAIXA Exd + PAINEL IHM+Ethernet TCP/IP+20 m+COM PEDESTAL"},"16"]
[null,"CAIXA Exd + PAINEL IHM","Ethernet TCP/IP","50 m","COM PEDESTAL",{"$f":"_xlfn.CONCAT(TAB_COMBINAÇÕES[[#This Row],[AUTOMAÇÃO]],\"+\",TAB_COMBINAÇÕES[[#This Row],[COMUNICAÇÃO]],\"+\",TAB_COMBINAÇÕES[[#This Row],[CABO]],\"+\",TAB_COMBINAÇÕES[[#This Row],[FIXAÇÃO]])","v":"CAIXA Exd + PAINEL IHM+Ethernet TCP/IP+50 m+COM PEDESTAL"},"17"]
[null,"CAIXA Exd + PAINEL IHM","Ethernet TCP/IP","100 m","COM PEDESTAL",{"$f":"_xlfn.CONCAT(TAB_COMBINAÇÕES[[#This Row],[AUTOMAÇÃO]],\"+\",TAB_COMBINAÇÕES[[#This Row],[COMUNICAÇÃO]],\"+\",TAB_COMBINAÇÕES[[#This Row],[CABO]],\"+\",TAB_COMBINAÇÕES[[#This Row],[FIXAÇÃO]])","v":"CAIXA Exd + PAINEL IHM+Ethernet TCP/IP+100 m+COM PEDESTAL"},"18"]
[null,"CAIXA Exd + PAINEL IHM","Ethernet TCP/IP","200 m","COM PEDESTAL",{"$f":"_xlfn.CONCAT(TAB_COMBINAÇÕES[[#This Row],[AUTOMAÇÃO]],\"+\",TAB_COMBINAÇÕES[[#This Row],[COMUNICAÇÃO]],\"+\",TAB_COMBINAÇÕES[[#This Row],[CABO]],\"+\",TAB_COMBINAÇÕES[[#This Row],[FIXAÇÃO]])","v":"CAIXA Exd + PAINEL IHM+Ethernet TCP/IP+200 m+COM PEDESTAL"},"19"]
[null,"CAIXA Exd + PAINEL IHM","Ethernet TCP/IP","300 m","COM PEDESTAL",{"$f":"_xlfn.CONCAT(TAB_COMBINAÇÕES[[#This Row],[AUTOMAÇÃO]],\"+\",TAB_COMBINAÇÕES[[#This Row],[COMUNICAÇÃO]],\"+\",TAB_COMBINAÇÕES[[#This Row],[CABO]],\"+\",TAB_COMBINAÇÕES[[#This Row],[FIXAÇÃO]])","v":"CAIXA Exd + PAINEL IHM+Ethernet TCP/IP+300 m+COM PEDESTAL"},"20"]
[null,"CAIXA Exd + PAINEL IHM","Ethernet TCP/IP + 4-20mA","SEM CABO","COM PEDESTAL",{"$f":"_xlfn.CONCAT(TAB_COMBINAÇÕES[[#This Row],[AUTOMAÇÃO]],\"+\",TAB_COMBINAÇÕES[[#This Row],[COMUNICAÇÃO]],\"+\",TAB_COMBINAÇÕES[[#This Row],[CABO]],\"+\",TAB_COMBINAÇÕES[[#This Row],[FIXAÇÃO]])","v":"CAIXA Exd + PAINEL IHM+Ethernet TCP/IP + 4-20mA+SEM CABO+COM PEDESTAL"},"21"]
[null,"CAIXA Exd + PAINEL IHM","Ethernet TCP/IP + 4-20mA","10 m","COM PEDESTAL",{"$f":"_xlfn.CONCAT(TAB_COMBINAÇÕES[[#This Row],[AUTOMAÇÃO]],\"+\",TAB_COMBINAÇÕES[[#This Row],[COMUNICAÇÃO]],\"+\",TAB_COMBINAÇÕES[[#This Row],[CABO]],\"+\",TAB_COMBINAÇÕES[[#This Row],[FIXAÇÃO]])","v":"CAIXA Exd + PAINEL IHM+Ethernet TCP/IP + 4-20mA+10 m+COM PEDESTAL"},"22"]
[null,"CAIXA Exd + PAINEL IHM","Ethernet TCP/IP + 4-20mA","20 m","COM PEDESTAL",{"$f":"_xlfn.CONCAT(TAB_COMBINAÇÕES[[#This Row],[AUTOMAÇÃO]],\"+\",TAB_COMBINAÇÕES[[#This Row],[COMUNICAÇÃO]],\"+\",TAB_COMBINAÇÕES[[#This Row],[CABO]],\"+\",TAB_COMBINAÇÕES[[#This Row],[FIXAÇÃO]])","v":"CAIXA Exd + PAINEL IHM+Ethernet TCP/IP + 4-20mA+20 m+COM PEDESTAL"},"23"]
[null,"CAIXA Exd + PAINEL IHM","Ethernet TCP/IP + 4-20mA","50 m","COM PEDESTAL",{"$f":"_xlfn.CONCAT(TAB_COMBINAÇÕES[[#This Row],[AUTOMAÇÃO]],\"+\",TAB_COMBINAÇÕES[[#This Row],[COMUNICAÇÃO]],\"+\",TAB_COMBINAÇÕES[[#This Row],[CABO]],\"+\",TAB_COMBINAÇÕES[[#This Row],[FIXAÇÃO]])","v":"CAIXA Exd + PAINEL IHM+Ethernet TCP/IP + 4-20mA+50 m+COM PEDESTAL"},"24"]
[null,"CAIXA Exd + PAINEL IHM","Ethernet TCP/IP + 4-20mA","100 m","COM PEDESTAL",{"$f":"_xlfn.CONCAT(TAB_COMBINAÇÕES[[#This Row],[AUTOMAÇÃO]],\"+\",TAB_COMBINAÇÕES[[#This Row],[COMUNICAÇÃO]],\"+\",TAB_COMBINAÇÕES[[#This Row],[CABO]],\"+\",TAB_COMBINAÇÕES[[#This Row],[FIXAÇÃO]])","v":"CAIXA Exd + PAINEL IHM+Ethernet TCP/IP + 4-20mA+100 m+COM PEDESTAL"},"25"]
[null,"CAIXA Exd + PAINEL IHM","Ethernet TCP/IP + 4-20mA","200 m","COM PEDESTAL",{"$f":"_xlfn.CONCAT(TAB_COMBINAÇÕES[[#This Row],[AUTOMAÇÃO]],\"+\",TAB_COMBINAÇÕES[[#This Row],[COMUNICAÇÃO]],\"+\",TAB_COMBINAÇÕES[[#This Row],[CABO]],\"+\",TAB_COMBINAÇÕES[[#This Row],[FIXAÇÃO]])","v":"CAIXA Exd + PAINEL IHM+Ethernet TCP/IP + 4-20mA+200 m+COM PEDESTAL"},"26"]
[null,"CAIXA Exd + PAINEL IHM","Ethernet TCP/IP + 4-20mA","300 m","COM PEDESTAL",{"$f":"_xlfn.CONCAT(TAB_COMBINAÇÕES[[#This Row],[AUTOMAÇÃO]],\"+\",TAB_COMBINAÇÕES[[#This Row],[COMUNICAÇÃO]],\"+\",TAB_COMBINAÇÕES[[#This Row],[CABO]],\"+\",TAB_COMBINAÇÕES[[#This Row],[FIXAÇÃO]])","v":"CAIXA Exd + PAINEL IHM+Ethernet TCP/IP + 4-20mA+300 m+COM PEDESTAL"},"27"]
[null,"CAIXA Exd + PAINEL IHM","EtherNet/IP","SEM CABO","COM PEDESTAL",{"$f":"_xlfn.CONCAT(TAB_COMBINAÇÕES[[#This Row],[AUTOMAÇÃO]],\"+\",TAB_COMBINAÇÕES[[#This Row],[COMUNICAÇÃO]],\"+\",TAB_COMBINAÇÕES[[#This Row],[CABO]],\"+\",TAB_COMBINAÇÕES[[#This Row],[FIXAÇÃO]])","v":"CAIXA Exd + PAINEL IHM+EtherNet/IP+SEM CABO+COM PEDESTAL"},"28"]
[null,"CAIXA Exd + PAINEL IHM","EtherNet/IP","10 m","COM PEDESTAL",{"$f":"_xlfn.CONCAT(TAB_COMBINAÇÕES[[#This Row],[AUTOMAÇÃO]],\"+\",TAB_COMBINAÇÕES[[#This Row],[COMUNICAÇÃO]],\"+\",TAB_COMBINAÇÕES[[#This Row],[CABO]],\"+\",TAB_COMBINAÇÕES[[#This Row],[FIXAÇÃO]])","v":"CAIXA Exd + PAINEL IHM+EtherNet/IP+10 m+COM PEDESTAL"},"29"]
[null,"CAIXA Exd + PAINEL IHM","EtherNet/IP","20 m","COM PEDESTAL",{"$f":"_xlfn.CONCAT(TAB_COMBINAÇÕES[[#This Row],[AUTOMAÇÃO]],\"+\",TAB_COMBINAÇÕES[[#This Row],[COMUNICAÇÃO]],\"+\",TAB_COMBINAÇÕES[[#This Row],[CABO]],\"+\",TAB_COMBINAÇÕES[[#This Row],[FIXAÇÃO]])","v":"CAIXA Exd + PAINEL IHM+EtherNet/IP+20 m+COM PEDESTAL"},"30"]
[null,"CAIXA Exd + PAINEL IHM","EtherNet/IP","50 m","COM PEDESTAL",{"$f":"_xlfn.CONCAT(TAB_COMBINAÇÕES[[#This Row],[AUTOMAÇÃO]],\"+\",TAB_COMBINAÇÕES[[#This Row],[COMUNICAÇÃO]],\"+\",TAB_COMBINAÇÕES[[#This Row],[CABO]],\"+\",TAB_COMBINAÇÕES[[#This Row],[FIXAÇÃO]])","v":"CAIXA Exd + PAINEL IHM+EtherNet/IP+50 m+COM PEDESTAL"},"31"]
[null,"CAIXA Exd + PAINEL IHM","EtherNet/IP","100 m","COM PEDESTAL",{"$f":"_xlfn.CONCAT(TAB_COMBINAÇÕES[[#This Row],[AUTOMAÇÃO]],\"+\",TAB_COMBINAÇÕES[[#This Row],[COMUNICAÇÃO]],\"+\",TAB_COMBINAÇÕES[[#This Row],[CABO]],\"+\",TAB_COMBINAÇÕES[[#This Row],[FIXAÇÃO]])","v":"CAIXA Exd + PAINEL IHM+EtherNet/IP+100 m+COM PEDESTAL"},"32"]
[null,"CAIXA Exd + PAINEL IHM","EtherNet/IP","200 m","COM PEDESTAL",{"$f":"_xlfn.CONCAT(TAB_COMBINAÇÕES[[#This Row],[AUTOMAÇÃO]],\"+\",TAB_COMBINAÇÕES[[#This Row],[COMUNICAÇÃO]],\"+\",TAB_COMBINAÇÕES[[#This Row],[CABO]],\"+\",TAB_COMBINAÇÕES[[#This Row],[FIXAÇÃO]])","v":"CAIXA Exd + PAINEL IHM+EtherNet/IP+200 m+COM PEDESTAL"},"33"]
[null,"CAIXA Exd + PAINEL IHM","EtherNet/IP","300 m","COM PEDESTAL",{"$f":"_xlfn.CONCAT(TAB_COMBINAÇÕES[[#This Row],[AUTOMAÇÃO]],\"+\",TAB_COMBINAÇÕES[[#This Row],[COMUNICAÇÃO]],\"+\",TAB_COMBINAÇÕES[[#This Row],[CABO]],\"+\",TAB_COMBINAÇÕES[[#This Row],[FIXAÇÃO]])","v":"CAIXA Exd + PAINEL IHM+EtherNet/IP+300 m+COM PEDESTAL"},"34"]
[null,"CAIXA Exd + PAINEL IHM","EtherNet/IP + 4-20mA","SEM CABO","COM PEDESTAL",{"$f":"_xlfn.CONCAT(TAB_COMBINAÇÕES[[#This Row],[AUTOMAÇÃO]],\"+\",TAB_COMBINAÇÕES[[#This Row],[COMUNICAÇÃO]],\"+\",TAB_COMBINAÇÕES[[#This Row],[CABO]],\"+\",TAB_COMBINAÇÕES[[#This Row],[FIXAÇÃO]])","v":"CAIXA Exd + PAINEL IHM+EtherNet/IP + 4-20mA+SEM CABO+COM PEDESTAL"},"35"]
[null,"CAIXA Exd + PAINEL IHM","EtherNet/IP + 4-20mA","10 m","COM PEDESTAL",{"$f":"_xlfn.CONCAT(TAB_COMBINAÇÕES[[#This Row],[AUTOMAÇÃO]],\"+\",TAB_COMBINAÇÕES[[#This Row],[COMUNICAÇÃO]],\"+\",TAB_COMBINAÇÕES[[#This Row],[CABO]],\"+\",TAB_COMBINAÇÕES[[#This Row],[FIXAÇÃO]])","v":"CAIXA Exd + PAINEL IHM+EtherNet/IP + 4-20mA+10 m+COM PEDESTAL"},"36"]
[null,"CAIXA Exd + PAINEL IHM","EtherNet/IP + 4-20mA","20 m","COM PEDESTAL",{"$f":"_xlfn.CONCAT(TAB_COMBINAÇÕES[[#This Row],[AUTOMAÇÃO]],\"+\",TAB_COMBINAÇÕES[[#This Row],[COMUNICAÇÃO]],\"+\",TAB_COMBINAÇÕES[[#This Row],[CABO]],\"+\",TAB_COMBINAÇÕES[[#This Row],[FIXAÇÃO]])","v":"CAIXA Exd + PAINEL IHM+EtherNet/IP + 4-20mA+20 m+COM PEDESTAL"},"37"]
[null,"CAIXA Exd + PAINEL IHM","EtherNet/IP + 4-20mA","50 m","COM PEDESTAL",{"$f":"_xlfn.CONCAT(TAB_COMBINAÇÕES[[#This Row],[AUTOMAÇÃO]],\"+\",TAB_COMBINAÇÕES[[#This Row],[COMUNICAÇÃO]],\"+\",TAB_COMBINAÇÕES[[#This Row],[CABO]],\"+\",TAB_COMBINAÇÕES[[#This Row],[FIXAÇÃO]])","v":"CAIXA Exd + PAINEL IHM+EtherNet/IP + 4-20mA+50 m+COM PEDESTAL"},"38"]
[null,"CAIXA Exd + PAINEL IHM","EtherNet/IP + 4-20mA","100 m","COM PEDESTAL",{"$f":"_xlfn.CONCAT(TAB_COMBINAÇÕES[[#This Row],[AUTOMAÇÃO]],\"+\",TAB_COMBINAÇÕES[[#This Row],[COMUNICAÇÃO]],\"+\",TAB_COMBINAÇÕES[[#This Row],[CABO]],\"+\",TAB_COMBINAÇÕES[[#This Row],[FIXAÇÃO]])","v":"CAIXA Exd + PAINEL IHM+EtherNet/IP + 4-20mA+100 m+COM PEDESTAL"},"39"]
[null,"CAIXA Exd + PAINEL IHM","EtherNet/IP + 4-20mA","200 m","COM PEDESTAL",{"$f":"_xlfn.CONCAT(TAB_COMBINAÇÕES[[#This Row],[AUTOMAÇÃO]],\"+\",TAB_COMBINAÇÕES[[#This Row],[COMUNICAÇÃO]],\"+\",TAB_COMBINAÇÕES[[#This Row],[CABO]],\"+\",TAB_COMBINAÇÕES[[#This Row],[FIXAÇÃO]])","v":"CAIXA Exd + PAINEL IHM+EtherNet/IP + 4-20mA+200 m+COM PEDESTAL"},"40"]
[null,"CAIXA Exd + PAINEL IHM","EtherNet/IP + 4-20mA","300 m","COM PEDESTAL",{"$f":"_xlfn.CONCAT(TAB_COMBINAÇÕES[[#This Row],[AUTOMAÇÃO]],\"+\",TAB_COMBINAÇÕES[[#This Row],[COMUNICAÇÃO]],\"+\",TAB_COMBINAÇÕES[[#This Row],[CABO]],\"+\",TAB_COMBINAÇÕES[[#This Row],[FIXAÇÃO]])","v":"CAIXA Exd + PAINEL IHM+EtherNet/IP + 4-20mA+300 m+COM PEDESTAL"},"41"]
[null,"CAIXA Exd + PAINEL IHM","ModBus RTU","SEM CABO","COM PEDESTAL",{"$f":"_xlfn.CONCAT(TAB_COMBINAÇÕES[[#This Row],[AUTOMAÇÃO]],\"+\",TAB_COMBINAÇÕES[[#This Row],[COMUNICAÇÃO]],\"+\",TAB_COMBINAÇÕES[[#This Row],[CABO]],\"+\",TAB_COMBINAÇÕES[[#This Row],[FIXAÇÃO]])","v":"CAIXA Exd + PAINEL IHM+ModBus RTU+SEM CABO+COM PEDESTAL"},"42"]
[null,"CAIXA Exd + PAINEL IHM","ModBus RTU","10 m","COM PEDESTAL",{"$f":"_xlfn.CONCAT(TAB_COMBINAÇÕES[[#This Row],[AUTOMAÇÃO]],\"+\",TAB_COMBINAÇÕES[[#This Row],[COMUNICAÇÃO]],\"+\",TAB_COMBINAÇÕES[[#This Row],[CABO]],\"+\",TAB_COMBINAÇÕES[[#This Row],[FIXAÇÃO]])","v":"CAIXA Exd + PAINEL IHM+ModBus RTU+10 m+COM PEDESTAL"},"43"]
[null,"CAIXA Exd + PAINEL IHM","ModBus RTU","20 m","COM PEDESTAL",{"$f":"_xlfn.CONCAT(TAB_COMBINAÇÕES[[#This Row],[AUTOMAÇÃO]],\"+\",TAB_COMBINAÇÕES[[#This Row],[COMUNICAÇÃO]],\"+\",TAB_COMBINAÇÕES[[#This Row],[CABO]],\"+\",TAB_COMBINAÇÕES[[#This Row],[FIXAÇÃO]])","v":"CAIXA Exd + PAINEL IHM+ModBus RTU+20 m+COM PEDESTAL"},"44"]
[null,"CAIXA Exd + PAINEL IHM","ModBus RTU","50 m","COM PEDESTAL",{"$f":"_xlfn.CONCAT(TAB_COMBINAÇÕES[[#This Row],[AUTOMAÇÃO]],\"+\",TAB_COMBINAÇÕES[[#This Row],[COMUNICAÇÃO]],\"+\",TAB_COMBINAÇÕES[[#This Row],[CABO]],\"+\",TAB_COMBINAÇÕES[[#This Row],[FIXAÇÃO]])","v":"CAIXA Exd + PAINEL IHM+ModBus RTU+50 m+COM PEDESTAL"},"45"]
[null,"CAIXA Exd + PAINEL IHM","ModBus RTU","100 m","COM PEDESTAL",{"$f":"_xlfn.CONCAT(TAB_COMBINAÇÕES[[#This Row],[AUTOMAÇÃO]],\"+\",TAB_COMBINAÇÕES[[#This Row],[COMUNICAÇÃO]],\"+\",TAB_COMBINAÇÕES[[#This Row],[CABO]],\"+\",TAB_COMBINAÇÕES[[#This Row],[FIXAÇÃO]])","v":"CAIXA Exd + PAINEL IHM+ModBus RTU+100 m+COM PEDESTAL"},"46"]
[null,"CAIXA Exd + PAINEL IHM","ModBus RTU","200 m","COM PEDESTAL",{"$f":"_xlfn.CONCAT(TAB_COMBINAÇÕES[[#This Row],[AUTOMAÇÃO]],\"+\",TAB_COMBINAÇÕES[[#This Row],[COMUNICAÇÃO]],\"+\",TAB_COMBINAÇÕES[[#This Row],[CABO]],\"+\",TAB_COMBINAÇÕES[[#This Row],[FIXAÇÃO]])","v":"CAIXA Exd + PAINEL IHM+ModBus RTU+200 m+COM PEDESTAL"},"47"]
[null,"CAIXA Exd + PAINEL IHM","ModBus RTU","300 m","COM PEDESTAL",{"$f":"_xlfn.CONCAT(TAB_COMBINAÇÕES[[#This Row],[AUTOMAÇÃO]],\"+\",TAB_COMBINAÇÕES[[#This Row],[COMUNICAÇÃO]],\"+\",TAB_COMBINAÇÕES[[#This Row],[CABO]],\"+\",TAB_COMBINAÇÕES[[#This Row],[FIXAÇÃO]])","v":"CAIXA Exd + PAINEL IHM+ModBus RTU+300 m+COM PEDESTAL"},"48"]
[null,"CAIXA Exd + PAINEL IHM","ModBus RTU + 4-20mA","SEM CABO","COM PEDESTAL",{"$f":"_xlfn.CONCAT(TAB_COMBINAÇÕES[[#This Row],[AUTOMAÇÃO]],\"+\",TAB_COMBINAÇÕES[[#This Row],[COMUNICAÇÃO]],\"+\",TAB_COMBINAÇÕES[[#This Row],[CABO]],\"+\",TAB_COMBINAÇÕES[[#This Row],[FIXAÇÃO]])","v":"CAIXA Exd + PAINEL IHM+ModBus RTU + 4-20mA+SEM CABO+COM PEDESTAL"},"49"]
[null,"CAIXA Exd + PAINEL IHM","ModBus RTU + 4-20mA","10 m","COM PEDESTAL",{"$f":"_xlfn.CONCAT(TAB_COMBINAÇÕES[[#This Row],[AUTOMAÇÃO]],\"+\",TAB_COMBINAÇÕES[[#This Row],[COMUNICAÇÃO]],\"+\",TAB_COMBINAÇÕES[[#This Row],[CABO]],\"+\",TAB_COMBINAÇÕES[[#This Row],[FIXAÇÃO]])","v":"CAIXA Exd + PAINEL IHM+ModBus RTU + 4-20mA+10 m+COM PEDESTAL"},"50"]
[null,"CAIXA Exd + PAINEL IHM","ModBus RTU + 4-20mA","20 m","COM PEDESTAL",{"$f":"_xlfn.CONCAT(TAB_COMBINAÇÕES[[#This Row],[AUTOMAÇÃO]],\"+\",TAB_COMBINAÇÕES[[#This Row],[COMUNICAÇÃO]],\"+\",TAB_COMBINAÇÕES[[#This Row],[CABO]],\"+\",TAB_COMBINAÇÕES[[#This Row],[FIXAÇÃO]])","v":"CAIXA Exd + PAINEL IHM+ModBus RTU + 4-20mA+20 m+COM PEDESTAL"},"51"]
[null,"CAIXA Exd + PAINEL IHM","ModBus RTU + 4-20mA","50 m","COM PEDESTAL",{"$f":"_xlfn.CONCAT(TAB_COMBINAÇÕES[[#This Row],[AUTOMAÇÃO]],\"+\",TAB_COMBINAÇÕES[[#This Row],[COMUNICAÇÃO]],\"+\",TAB_COMBINAÇÕES[[#This Row],[CABO]],\"+\",TAB_COMBINAÇÕES[[#This Row],[FIXAÇÃO]])","v":"CAIXA Exd + PAINEL IHM+ModBus RTU + 4-20mA+50 m+COM PEDESTAL"},"52"]
[null,"CAIXA Exd + PAINEL IHM","ModBus RTU + 4-20mA","100 m","COM PEDESTAL",{"$f":"_xlfn.CONCAT(TAB_COMBINAÇÕES[[#This Row],[AUTOMAÇÃO]],\"+\",TAB_COMBINAÇÕES[[#This Row],[COMUNICAÇÃO]],\"+\",TAB_COMBINAÇÕES[[#This Row],[CABO]],\"+\",TAB_COMBINAÇÕES[[#This Row],[FIXAÇÃO]])","v":"CAIXA Exd + PAINEL IHM+ModBus RTU + 4-20mA+100 m+COM PEDESTAL"},"53"]
[null,"CAIXA Exd + PAINEL IHM","ModBus RTU + 4-20mA","200 m","COM PEDESTAL",{"$f":"_xlfn.CONCAT(TAB_COMBINAÇÕES[[#This Row],[AUTOMAÇÃO]],\"+\",TAB_COMBINAÇÕES[[#This Row],[COMUNICAÇÃO]],\"+\",TAB_COMBINAÇÕES[[#This Row],[CABO]],\"+\",TAB_COMBINAÇÕES[[#This Row],[FIXAÇÃO]])","v":"CAIXA Exd + PAINEL IHM+ModBus RTU + 4-20mA+200 m+COM PEDESTAL"},"54"]
[null,"CAIXA Exd + PAINEL IHM","ModBus RTU + 4-20mA","300 m","COM PEDESTAL",{"$f":"_xlfn.CONCAT(TAB_COMBINAÇÕES[[#This Row],[AUTOMAÇÃO]],\"+\",TAB_COMBINAÇÕES[[#This Row],[COMUNICAÇÃO]],\"+\",TAB_COMBINAÇÕES[[#This Row],[CABO]],\"+\",TAB_COMBINAÇÕES[[#This Row],[FIXAÇÃO]])","v":"CAIXA Exd + PAINEL IHM+ModBus RTU + 4-20mA+300 m+COM PEDESTAL"},"55"]
[null,"CAIXA Exd + PAINEL IHM","ModBus TCP/IP","SEM CABO","COM PEDESTAL",{"$f":"_xlfn.CONCAT(TAB_COMBINAÇÕES[[#This Row],[AUTOMAÇÃO]],\"+\",TAB_COMBINAÇÕES[[#This Row],[COMUNICAÇÃO]],\"+\",TAB_COMBINAÇÕES[[#This Row],[CABO]],\"+\",TAB_COMBINAÇÕES[[#This Row],[FIXAÇÃO]])","v":"CAIXA Exd + PAINEL IHM+ModBus TCP/IP+SEM CABO+COM PEDESTAL"},"56"]
[null,"CAIXA Exd + PAINEL IHM","ModBus TCP/IP","10 m","COM PEDESTAL",{"$f":"_xlfn.CONCAT(TAB_COMBINAÇÕES[[#This Row],[AUTOMAÇÃO]],\"+\",TAB_COMBINAÇÕES[[#This Row],[COMUNICAÇÃO]],\"+\",TAB_COMBINAÇÕES[[#This Row],[CABO]],\"+\",TAB_COMBINAÇÕES[[#This Row],[FIXAÇÃO]])","v":"CAIXA Exd + PAINEL IHM+ModBus TCP/IP+10 m+COM PEDESTAL"},"57"]
[null,"CAIXA Exd + PAINEL IHM","ModBus TCP/IP","20 m","COM PEDESTAL",{"$f":"_xlfn.CONCAT(TAB_COMBINAÇÕES[[#This Row],[AUTOMAÇÃO]],\"+\",TAB_COMBINAÇÕES[[#This Row],[COMUNICAÇÃO]],\"+\",TAB_COMBINAÇÕES[[#This Row],[CABO]],\"+\",TAB_COMBINAÇÕES[[#This Row],[FIXAÇÃO]])","v":"CAIXA Exd + PAINEL IHM+ModBus TCP/IP+20 m+COM PEDESTAL"},"58"]
[null,"CAIXA Exd + PAINEL IHM","ModBus TCP/IP","50 m","COM PEDESTAL",{"$f":"_xlfn.CONCAT(TAB_COMBINAÇÕES[[#This Row],[AUTOMAÇÃO]],\"+\",TAB_COMBINAÇÕES[[#This Row],[COMUNICAÇÃO]],\"+\",TAB_COMBINAÇÕES[[#This Row],[CABO]],\"+\",TAB_COMBINAÇÕES[[#This Row],[FIXAÇÃO]])","v":"CAIXA Exd + PAINEL IHM+ModBus TCP/IP+50 m+COM PEDESTAL"},"59"]
[null,"CAIXA Exd + PAINEL IHM","ModBus TCP/IP","100 m","COM PEDESTAL",{"$f":"_xlfn.CONCAT(TAB_COMBINAÇÕES[[#This Row],[AUTOMAÇÃO]],\"+\",TAB_COMBINAÇÕES[[#This Row],[COMUNICAÇÃO]],\"+\",TAB_COMBINAÇÕES[[#This Row],[CABO]],\"+\",TAB_COMBINAÇÕES[[#This Row],[FIXAÇÃO]])","v":"CAIXA Exd + PAINEL IHM+ModBus TCP/IP+100 m+COM PEDESTAL"},"60"]
[null,"CAIXA Exd + PAINEL IHM","ModBus TCP/IP","200 m","COM PEDESTAL",{"$f":"_xlfn.CONCAT(TAB_COMBINAÇÕES[[#This Row],[AUTOMAÇÃO]],\"+\",TAB_COMBINAÇÕES[[#This Row],[COMUNICAÇÃO]],\"+\",TAB_COMBINAÇÕES[[#This Row],[CABO]],\"+\",TAB_COMBINAÇÕES[[#This Row],[FIXAÇÃO]])","v":"CAIXA Exd + PAINEL IHM+ModBus TCP/IP+200 m+COM PEDESTAL"},"61"]
[null,"CAIXA Exd + PAINEL IHM","ModBus TCP/IP","300 m","COM PEDESTAL",{"$f":"_xlfn.CONCAT(TAB_COMBINAÇÕES[[#This Row],[AUTOMAÇÃO]],\"+\",TAB_COMBINAÇÕES[[#This Row],[COMUNICAÇÃO]],\"+\",TAB_COMBINAÇÕES[[#This Row],[CABO]],\"+\",TAB_COMBINAÇÕES[[#This Row],[FIXAÇÃO]])","v":"CAIXA Exd + PAINEL IHM+ModBus TCP/IP+300 m+COM PEDESTAL"},"62"]
[null,"CAIXA Exd + PAINEL IHM","ModBus TCP/IP + 4-20mA","SEM CABO","COM PEDESTAL",{"$f":"_xlfn.CONCAT(TAB_COMBINAÇÕES[[#This Row],[AUTOMAÇÃO]],\"+\",TAB_COMBINAÇÕES[[#This Row],[COMUNICAÇÃO]],\"+\",TAB_COMBINAÇÕES[[#This Row],[CABO]],\"+\",TAB_COMBINAÇÕES[[#This Row],[FIXAÇÃO]])","v":"CAIXA Exd + PAINEL IHM+ModBus TCP/IP + 4-20mA+SEM CABO+COM PEDESTAL"},"63"]
[null,"CAIXA Exd + PAINEL IHM","ModBus TCP/IP + 4-20mA","10 m","COM PEDESTAL",{"$f":"_xlfn.CONCAT(TAB_COMBINAÇÕES[[#This Row],[AUTOMAÇÃO]],\"+\",TAB_COMBINAÇÕES[[#This Row],[COMUNICAÇÃO]],\"+\",TAB_COMBINAÇÕES[[#This Row],[CABO]],\"+\",TAB_COMBINAÇÕES[[#This Row],[FIXAÇÃO]])","v":"CAIXA Exd + PAINEL IHM+ModBus TCP/IP + 4-20mA+10 m+COM PEDESTAL"},"64"]
[null,"CAIXA Exd + PAINEL IHM","ModBus TCP/IP + 4-20mA","20 m","COM PEDESTAL",{"$f":"_xlfn.CONCAT(TAB_COMBINAÇÕES[[#This Row],[AUTOMAÇÃO]],\"+\",TAB_COMBINAÇÕES[[#This Row],[COMUNICAÇÃO]],\"+\",TAB_COMBINAÇÕES[[#This Row],[CABO]],\"+\",TAB_COMBINAÇÕES[[#This Row],[FIXAÇÃO]])","v":"CAIXA Exd + PAINEL IHM+ModBus TCP/IP + 4-20mA+20 m+COM PEDESTAL"},"65"]
[null,"CAIXA Exd + PAINEL IHM","ModBus TCP/IP + 4-20mA","50 m","COM PEDESTAL",{"$f":"_xlfn.CONCAT(TAB_COMBINAÇÕES[[#This Row],[AUTOMAÇÃO]],\"+\",TAB_COMBINAÇÕES[[#This Row],[COMUNICAÇÃO]],\"+\",TAB_COMBINAÇÕES[[#This Row],[CABO]],\"+\",TAB_COMBINAÇÕES[[#This Row],[FIXAÇÃO]])","v":"CAIXA Exd + PAINEL IHM+ModBus TCP/IP + 4-20mA+50 m+COM PEDESTAL"},"66"]
[null,"CAIXA Exd + PAINEL IHM","ModBus TCP/IP + 4-20mA","100 m","COM PEDESTAL",{"$f":"_xlfn.CONCAT(TAB_COMBINAÇÕES[[#This Row],[AUTOMAÇÃO]],\"+\",TAB_COMBINAÇÕES[[#This Row],[COMUNICAÇÃO]],\"+\",TAB_COMBINAÇÕES[[#This Row],[CABO]],\"+\",TAB_COMBINAÇÕES[[#This Row],[FIXAÇÃO]])","v":"CAIXA Exd + PAINEL IHM+ModBus TCP/IP + 4-20mA+100 m+COM PEDESTAL"},"67"]
[null,"CAIXA Exd + PAINEL IHM","ModBus TCP/IP + 4-20mA","200 m","COM PEDESTAL",{"$f":"_xlfn.CONCAT(TAB_COMBINAÇÕES[[#This Row],[AUTOMAÇÃO]],\"+\",TAB_COMBINAÇÕES[[#This Row],[COMUNICAÇÃO]],\"+\",TAB_COMBINAÇÕES[[#This Row],[CABO]],\"+\",TAB_COMBINAÇÕES[[#This Row],[FIXAÇÃO]])","v":"CAIXA Exd + PAINEL IHM+ModBus TCP/IP + 4-20mA+200 m+COM PEDESTAL"},"68"]
[null,"CAIXA Exd + PAINEL IHM","ModBus TCP/IP + 4-20mA","300 m","COM PEDESTAL",{"$f":"_xlfn.CONCAT(TAB_COMBINAÇÕES[[#This Row],[AUTOMAÇÃO]],\"+\",TAB_COMBINAÇÕES[[#This Row],[COMUNICAÇÃO]],\"+\",TAB_COMBINAÇÕES[[#This Row],[CABO]],\"+\",TAB_COMBINAÇÕES[[#This Row],[FIXAÇÃO]])","v":"CAIXA Exd + PAINEL IHM+ModBus TCP/IP + 4-20mA+300 m+COM PEDESTAL"},"69"]
[null,"CAIXA Exd + PAINEL IHM","Profibus","SEM CABO","COM PEDESTAL",{"$f":"_xlfn.CONCAT(TAB_COMBINAÇÕES[[#This Row],[AUTOMAÇÃO]],\"+\",TAB_COMBINAÇÕES[[#This Row],[COMUNICAÇÃO]],\"+\",TAB_COMBINAÇÕES[[#This Row],[CABO]],\"+\",TAB_COMBINAÇÕES[[#This Row],[FIXAÇÃO]])","v":"CAIXA Exd + PAINEL IHM+Profibus+SEM CABO+COM PEDESTAL"},"70"]
[null,"CAIXA Exd + PAINEL IHM","Profibus","10 m","COM PEDESTAL",{"$f":"_xlfn.CONCAT(TAB_COMBINAÇÕES[[#This Row],[AUTOMAÇÃO]],\"+\",TAB_COMBINAÇÕES[[#This Row],[COMUNICAÇÃO]],\"+\",TAB_COMBINAÇÕES[[#This Row],[CABO]],\"+\",TAB_COMBINAÇÕES[[#This Row],[FIXAÇÃO]])","v":"CAIXA Exd + PAINEL IHM+Profibus+10 m+COM PEDESTAL"},"71"]
[null,"CAIXA Exd + PAINEL IHM","Profibus","20 m","COM PEDESTAL",{"$f":"_xlfn.CONCAT(TAB_COMBINAÇÕES[[#This Row],[AUTOMAÇÃO]],\"+\",TAB_COMBINAÇÕES[[#This Row],[COMUNICAÇÃO]],\"+\",TAB_COMBINAÇÕES[[#This Row],[CABO]],\"+\",TAB_COMBINAÇÕES[[#This Row],[FIXAÇÃO]])","v":"CAIXA Exd + PAINEL IHM+Profibus+20 m+COM PEDESTAL"},"72"]
[null,"CAIXA Exd + PAINEL IHM","Profibus","50 m","COM PEDESTAL",{"$f":"_xlfn.CONCAT(TAB_COMBINAÇÕES[[#This Row],[AUTOMAÇÃO]],\"+\",TAB_COMBINAÇÕES[[#This Row],[COMUNICAÇÃO]],\"+\",TAB_COMBINAÇÕES[[#This Row],[CABO]],\"+\",TAB_COMBINAÇÕES[[#This Row],[FIXAÇÃO]])","v":"CAIXA Exd + PAINEL IHM+Profibus+50 m+COM PEDESTAL"},"73"]
[null,"CAIXA Exd + PAINEL IHM","Profibus","100 m","COM PEDESTAL",{"$f":"_xlfn.CONCAT(TAB_COMBINAÇÕES[[#This Row],[AUTOMAÇÃO]],\"+\",TAB_COMBINAÇÕES[[#This Row],[COMUNICAÇÃO]],\"+\",TAB_COMBINAÇÕES[[#This Row],[CABO]],\"+\",TAB_COMBINAÇÕES[[#This Row],[FIXAÇÃO]])","v":"CAIXA Exd + PAINEL IHM+Profibus+100 m+COM PEDESTAL"},"74"]
[null,"CAIXA Exd + PAINEL IHM","Profibus","200 m","COM PEDESTAL",{"$f":"_xlfn.CONCAT(TAB_COMBINAÇÕES[[#This Row],[AUTOMAÇÃO]],\"+\",TAB_COMBINAÇÕES[[#This Row],[COMUNICAÇÃO]],\"+\",TAB_COMBINAÇÕES[[#This Row],[CABO]],\"+\",TAB_COMBINAÇÕES[[#This Row],[FIXAÇÃO]])","v":"CAIXA Exd + PAINEL IHM+Profibus+200 m+COM PEDESTAL"},"75"]
[null,"CAIXA Exd + PAINEL IHM","Profibus","300 m","COM PEDESTAL",{"$f":"_xlfn.CONCAT(TAB_COMBINAÇÕES[[#This Row],[AUTOMAÇÃO]],\"+\",TAB_COMBINAÇÕES[[#This Row],[COMUNICAÇÃO]],\"+\",TAB_COMBINAÇÕES[[#This Row],[CABO]],\"+\",TAB_COMBINAÇÕES[[#This Row],[FIXAÇÃO]])","v":"CAIXA Exd + PAINEL IHM+Profibus+300 m+COM PEDESTAL"},"76"]
[null,"CAIXA Exd + PAINEL IHM","Profibus + 4-20mA","SEM CABO","COM PEDESTAL",{"$f":"_xlfn.CONCAT(TAB_COMBINAÇÕES[[#This Row],[AUTOMAÇÃO]],\"+\",TAB_COMBINAÇÕES[[#This Row],[COMUNICAÇÃO]],\"+\",TAB_COMBINAÇÕES[[#This Row],[CABO]],\"+\",TAB_COMBINAÇÕES[[#This Row],[FIXAÇÃO]])","v":"CAIXA Exd + PAINEL IHM+Profibus + 4-20mA+SEM CABO+COM PEDESTAL"},"77"]
[null,"CAIXA Exd + PAINEL IHM","Profibus + 4-20mA","10 m","COM PEDESTAL",{"$f":"_xlfn.CONCAT(TAB_COMBINAÇÕES[[#This Row],[AUTOMAÇÃO]],\"+\",TAB_COMBINAÇÕES[[#This Row],[COMUNICAÇÃO]],\"+\",TAB_COMBINAÇÕES[[#This Row],[CABO]],\"+\",TAB_COMBINAÇÕES[[#This Row],[FIXAÇÃO]])","v":"CAIXA Exd + PAINEL IHM+Profibus + 4-20mA+10 m+COM PEDESTAL"},"78"]
[null,"CAIXA Exd + PAINEL IHM","Profibus + 4-20mA","20 m","COM PEDESTAL",{"$f":"_xlfn.CONCAT(TAB_COMBINAÇÕES[[#This Row],[AUTOMAÇÃO]],\"+\",TAB_COMBINAÇÕES[[#This Row],[COMUNICAÇÃO]],\"+\",TAB_COMBINAÇÕES[[#This Row],[CABO]],\"+\",TAB_COMBINAÇÕES[[#This Row],[FIXAÇÃO]])","v":"CAIXA Exd + PAINEL IHM+Profibus + 4-20mA+20 m+COM PEDESTAL"},"79"]
[null,"CAIXA Exd + PAINEL IHM","Profibus + 4-20mA","50 m","COM PEDESTAL",{"$f":"_xlfn.CONCAT(TAB_COMBINAÇÕES[[#This Row],[AUTOMAÇÃO]],\"+\",TAB_COMBINAÇÕES[[#This Row],[COMUNICAÇÃO]],\"+\",TAB_COMBINAÇÕES[[#This Row],[CABO]],\"+\",TAB_COMBINAÇÕES[[#This Row],[FIXAÇÃO]])","v":"CAIXA Exd + PAINEL IHM+Profibus + 4-20mA+50 m+COM PEDESTAL"},"80"]
[null,"CAIXA Exd + PAINEL IHM","Profibus + 4-20mA","100 m","COM PEDESTAL",{"$f":"_xlfn.CONCAT(TAB_COMBINAÇÕES[[#This Row],[AUTOMAÇÃO]],\"+\",TAB_COMBINAÇÕES[[#This Row],[COMUNICAÇÃO]],\"+\",TAB_COMBINAÇÕES[[#This Row],[CABO]],\"+\",TAB_COMBINAÇÕES[[#This Row],[FIXAÇÃO]])","v":"CAIXA Exd + PAINEL IHM+Profibus + 4-20mA+100 m+COM PEDESTAL"},"81"]
[null,"CAIXA Exd + PAINEL IHM","Profibus + 4-20mA","200 m","COM PEDESTAL",{"$f":"_xlfn.CONCAT(TAB_COMBINAÇÕES[[#This Row],[AUTOMAÇÃO]],\"+\",TAB_COMBINAÇÕES[[#This Row],[COMUNICAÇÃO]],\"+\",TAB_COMBINAÇÕES[[#This Row],[CABO]],\"+\",TAB_COMBINAÇÕES[[#This Row],[FIXAÇÃO]])","v":"CAIXA Exd + PAINEL IHM+Profibus + 4-20mA+200 m+COM PEDESTAL"},"82"]
[null,"CAIXA Exd + PAINEL IHM","Profibus + 4-20mA","300 m","COM PEDESTAL",{"$f":"_xlfn.CONCAT(TAB_COMBINAÇÕES[[#This Row],[AUTOMAÇÃO]],\"+\",TAB_COMBINAÇÕES[[#This Row],[COMUNICAÇÃO]],\"+\",TAB_COMBINAÇÕES[[#This Row],[CABO]],\"+\",TAB_COMBINAÇÕES[[#This Row],[FIXAÇÃO]])","v":"CAIXA Exd + PAINEL IHM+Profibus + 4-20mA+300 m+COM PEDESTAL"},"83"]
[null,"CAIXA Exd + PAINEL IHM","Profinet","SEM CABO","COM PEDESTAL",{"$f":"_xlfn.CONCAT(TAB_COMBINAÇÕES[[#This Row],[AUTOMAÇÃO]],\"+\",TAB_COMBINAÇÕES[[#This Row],[COMUNICAÇÃO]],\"+\",TAB_COMBINAÇÕES[[#This Row],[CABO]],\"+\",TAB_COMBINAÇÕES[[#This Row],[FIXAÇÃO]])","v":"CAIXA Exd + PAINEL IHM+Profinet+SEM CABO+COM PEDESTAL"},"84"]
[null,"CAIXA Exd + PAINEL IHM","Profinet","10 m","COM PEDESTAL",{"$f":"_xlfn.CONCAT(TAB_COMBINAÇÕES[[#This Row],[AUTOMAÇÃO]],\"+\",TAB_COMBINAÇÕES[[#This Row],[COMUNICAÇÃO]],\"+\",TAB_COMBINAÇÕES[[#This Row],[CABO]],\"+\",TAB_COMBINAÇÕES[[#This Row],[FIXAÇÃO]])","v":"CAIXA Exd + PAINEL IHM+Profinet+10 m+COM PEDESTAL"},"85"]
[null,"CAIXA Exd + PAINEL IHM","Profinet","20 m","COM PEDESTAL",{"$f":"_xlfn.CONCAT(TAB_COMBINAÇÕES[[#This Row],[AUTOMAÇÃO]],\"+\",TAB_COMBINAÇÕES[[#This Row],[COMUNICAÇÃO]],\"+\",TAB_COMBINAÇÕES[[#This Row],[CABO]],\"+\",TAB_COMBINAÇÕES[[#This Row],[FIXAÇÃO]])","v":"CAIXA Exd + PAINEL IHM+Profinet+20 m+COM PEDESTAL"},"86"]
[null,"CAIXA Exd + PAINEL IHM","Profinet","50 m","COM PEDESTAL",{"$f":"_xlfn.CONCAT(TAB_COMBINAÇÕES[[#This Row],[AUTOMAÇÃO]],\"+\",TAB_COMBINAÇÕES[[#This Row],[COMUNICAÇÃO]],\"+\",TAB_COMBINAÇÕES[[#This Row],[CABO]],\"+\",TAB_COMBINAÇÕES[[#This Row],[FIXAÇÃO]])","v":"CAIXA Exd + PAINEL IHM+Profinet+50 m+COM PEDESTAL"},"87"]
[null,"CAIXA Exd + PAINEL IHM","Profinet","100 m","COM PEDESTAL",{"$f":"_xlfn.CONCAT(TAB_COMBINAÇÕES[[#This Row],[AUTOMAÇÃO]],\"+\",TAB_COMBINAÇÕES[[#This Row],[COMUNICAÇÃO]],\"+\",TAB_COMBINAÇÕES[[#This Row],[CABO]],\"+\",TAB_COMBINAÇÕES[[#This Row],[FIXAÇÃO]])","v":"CAIXA Exd + PAINEL IHM+Profinet+100 m+COM PEDESTAL"},"88"]
[null,"CAIXA Exd + PAINEL IHM","Profinet","200 m","COM PEDESTAL",{"$f":"_xlfn.CONCAT(TAB_COMBINAÇÕES[[#This Row],[AUTOMAÇÃO]],\"+\",TAB_COMBINAÇÕES[[#This Row],[COMUNICAÇÃO]],\"+\",TAB_COMBINAÇÕES[[#This Row],[CABO]],\"+\",TAB_COMBINAÇÕES[[#This Row],[FIXAÇÃO]])","v":"CAIXA Exd + PAINEL IHM+Profinet+200 m+COM PEDESTAL"},"89"]
[null,"CAIXA Exd + PAINEL IHM","Profinet","300 m","COM PEDESTAL",{"$f":"_xlfn.CONCAT(TAB_COMBINAÇÕES[[#This Row],[AUTOMAÇÃO]],\"+\",TAB_COMBINAÇÕES[[#This Row],[COMUNICAÇÃO]],\"+\",TAB_COMBINAÇÕES[[#This Row],[CABO]],\"+\",TAB_COMBINAÇÕES[[#This Row],[FIXAÇÃO]])","v":"CAIXA Exd + PAINEL IHM+Profinet+300 m+COM PEDESTAL"},"90"]
[null,"CAIXA Exd + PAINEL IHM","Profinet + 4-20mA","SEM CABO","COM PEDESTAL",{"$f":"_xlfn.CONCAT(TAB_COMBINAÇÕES[[#This Row],[AUTOMAÇÃO]],\"+\",TAB_COMBINAÇÕES[[#This Row],[COMUNICAÇÃO]],\"+\",TAB_COMBINAÇÕES[[#This Row],[CABO]],\"+\",TAB_COMBINAÇÕES[[#This Row],[FIXAÇÃO]])","v":"CAIXA Exd + PAINEL IHM+Profinet + 4-20mA+SEM CABO+COM PEDESTAL"},"91"]
[null,"CAIXA Exd + PAINEL IHM","Profinet + 4-20mA","10 m","COM PEDESTAL",{"$f":"_xlfn.CONCAT(TAB_COMBINAÇÕES[[#This Row],[AUTOMAÇÃO]],\"+\",TAB_COMBINAÇÕES[[#This Row],[COMUNICAÇÃO]],\"+\",TAB_COMBINAÇÕES[[#This Row],[CABO]],\"+\",TAB_COMBINAÇÕES[[#This Row],[FIXAÇÃO]])","v":"CAIXA Exd + PAINEL IHM+Profinet + 4-20mA+10 m+COM PEDESTAL"},"92"]
[null,"CAIXA Exd + PAINEL IHM","Profinet + 4-20mA","20 m","COM PEDESTAL",{"$f":"_xlfn.CONCAT(TAB_COMBINAÇÕES[[#This Row],[AUTOMAÇÃO]],\"+\",TAB_COMBINAÇÕES[[#This Row],[COMUNICAÇÃO]],\"+\",TAB_COMBINAÇÕES[[#This Row],[CABO]],\"+\",TAB_COMBINAÇÕES[[#This Row],[FIXAÇÃO]])","v":"CAIXA Exd + PAINEL IHM+Profinet + 4-20mA+20 m+COM PEDESTAL"},"93"]
[null,"CAIXA Exd + PAINEL IHM","Profinet + 4-20mA","50 m","COM PEDESTAL",{"$f":"_xlfn.CONCAT(TAB_COMBINAÇÕES[[#This Row],[AUTOMAÇÃO]],\"+\",TAB_COMBINAÇÕES[[#This Row],[COMUNICAÇÃO]],\"+\",TAB_COMBINAÇÕES[[#This Row],[CABO]],\"+\",TAB_COMBINAÇÕES[[#This Row],[FIXAÇÃO]])","v":"CAIXA Exd + PAINEL IHM+Profinet + 4-20mA+50 m+COM PEDESTAL"},"94"]
[null,"CAIXA Exd + PAINEL IHM","Profinet + 4-20mA","100 m","COM PEDESTAL",{"$f":"_xlfn.CONCAT(TAB_COMBINAÇÕES[[#This Row],[AUTOMAÇÃO]],\"+\",TAB_COMBINAÇÕES[[#This Row],[COMUNICAÇÃO]],\"+\",TAB_COMBINAÇÕES[[#This Row],[CABO]],\"+\",TAB_COMBINAÇÕES[[#This Row],[FIXAÇÃO]])","v":"CAIXA Exd + PAINEL IHM+Profinet + 4-20mA+100 m+COM PEDESTAL"},"95"]
[null,"CAIXA Exd + PAINEL IHM","Profinet + 4-20mA","200 m","COM PEDESTAL",{"$f":"_xlfn.CONCAT(TAB_COMBINAÇÕES[[#This Row],[AUTOMAÇÃO]],\"+\",TAB_COMBINAÇÕES[[#This Row],[COMUNICAÇÃO]],\"+\",TAB_COMBINAÇÕES[[#This Row],[CABO]],\"+\",TAB_COMBINAÇÕES[[#This Row],[FIXAÇÃO]])","v":"CAIXA Exd + PAINEL IHM+Profinet + 4-20mA+200 m+COM PEDESTAL"},"96"]
[null,"CAIXA Exd + PAINEL IHM","Profinet + 4-20mA","300 m","COM PEDESTAL",{"$f":"_xlfn.CONCAT(TAB_COMBINAÇÕES[[#This Row],[AUTOMAÇÃO]],\"+\",TAB_COMBINAÇÕES[[#This Row],[COMUNICAÇÃO]],\"+\",TAB_COMBINAÇÕES[[#This Row],[CABO]],\"+\",TAB_COMBINAÇÕES[[#This Row],[FIXAÇÃO]])","v":"CAIXA Exd + PAINEL IHM+Profinet + 4-20mA+300 m+COM PEDESTAL"},"97"]
[null,"CAIXA Exd + PAINEL IHM","Sem comunicação","SEM CABO","COM PEDESTAL",{"$f":"_xlfn.CONCAT(TAB_COMBINAÇÕES[[#This Row],[AUTOMAÇÃO]],\"+\",TAB_COMBINAÇÕES[[#This Row],[COMUNICAÇÃO]],\"+\",TAB_COMBINAÇÕES[[#This Row],[CABO]],\"+\",TAB_COMBINAÇÕES[[#This Row],[FIXAÇÃO]])","v":"CAIXA Exd + PAINEL IHM+Sem comunicação+SEM CABO+COM PEDESTAL"},"98"]
[null,"CAIXA Exd + PAINEL IHM","Sem comunicação","10 m","COM PEDESTAL",{"$f":"_xlfn.CONCAT(TAB_COMBINAÇÕES[[#This Row],[AUTOMAÇÃO]],\"+\",TAB_COMBINAÇÕES[[#This Row],[COMUNICAÇÃO]],\"+\",TAB_COMBINAÇÕES[[#This Row],[CABO]],\"+\",TAB_COMBINAÇÕES[[#This Row],[FIXAÇÃO]])","v":"CAIXA Exd + PAINEL IHM+Sem comunicação+10 m+COM PEDESTAL"},"99"]
[null,"CAIXA Exd + PAINEL IHM","Sem comunicação","20 m","COM PEDESTAL",{"$f":"_xlfn.CONCAT(TAB_COMBINAÇÕES[[#This Row],[AUTOMAÇÃO]],\"+\",TAB_COMBINAÇÕES[[#This Row],[COMUNICAÇÃO]],\"+\",TAB_COMBINAÇÕES[[#This Row],[CABO]],\"+\",TAB_COMBINAÇÕES[[#This Row],[FIXAÇÃO]])","v":"CAIXA Exd + PAINEL IHM+Sem comunicação+20 m+COM PEDESTAL"},"A1"]
[null,"CAIXA Exd + PAINEL IHM","Sem comunicação","50 m","COM PEDESTAL",{"$f":"_xlfn.CONCAT(TAB_COMBINAÇÕES[[#This Row],[AUTOMAÇÃO]],\"+\",TAB_COMBINAÇÕES[[#This Row],[COMUNICAÇÃO]],\"+\",TAB_COMBINAÇÕES[[#This Row],[CABO]],\"+\",TAB_COMBINAÇÕES[[#This Row],[FIXAÇÃO]])","v":"CAIXA Exd + PAINEL IHM+Sem comunicação+50 m+COM PEDESTAL"},"A2"]
[null,"CAIXA Exd + PAINEL IHM","Sem comunicação","100 m","COM PEDESTAL",{"$f":"_xlfn.CONCAT(TAB_COMBINAÇÕES[[#This Row],[AUTOMAÇÃO]],\"+\",TAB_COMBINAÇÕES[[#This Row],[COMUNICAÇÃO]],\"+\",TAB_COMBINAÇÕES[[#This Row],[CABO]],\"+\",TAB_COMBINAÇÕES[[#This Row],[FIXAÇÃO]])","v":"CAIXA Exd + PAINEL IHM+Sem comunicação+100 m+COM PEDESTAL"},"A3"]
[null,"CAIXA Exd + PAINEL IHM","Sem comunicação","200 m","COM PEDESTAL",{"$f":"_xlfn.CONCAT(TAB_COMBINAÇÕES[[#This Row],[AUTOMAÇÃO]],\"+\",TAB_COMBINAÇÕES[[#This Row],[COMUNICAÇÃO]],\"+\",TAB_COMBINAÇÕES[[#This Row],[CABO]],\"+\",TAB_COMBINAÇÕES[[#This Row],[FIXAÇÃO]])","v":"CAIXA Exd + PAINEL IHM+Sem comunicação+200 m+COM PEDESTAL"},"A4"]
[null,"CAIXA Exd + PAINEL IHM","Sem comunicação","300 m","COM PEDESTAL",{"$f":"_xlfn.CONCAT(TAB_COMBINAÇÕES[[#This Row],[AUTOMAÇÃO]],\"+\",TAB_COMBINAÇÕES[[#This Row],[COMUNICAÇÃO]],\"+\",TAB_COMBINAÇÕES[[#This Row],[CABO]],\"+\",TAB_COMBINAÇÕES[[#This Row],[FIXAÇÃO]])","v":"CAIXA Exd + PAINEL IHM+Sem comunicação+300 m+COM PEDESTAL"},"A5"]
[null,"CAIXA Exd + PAINEL IHM","Somente 4-20mA","SEM CABO","COM PEDESTAL",{"$f":"_xlfn.CONCAT(TAB_COMBINAÇÕES[[#This Row],[AUTOMAÇÃO]],\"+\",TAB_COMBINAÇÕES[[#This Row],[COMUNICAÇÃO]],\"+\",TAB_COMBINAÇÕES[[#This Row],[CABO]],\"+\",TAB_COMBINAÇÕES[[#This Row],[FIXAÇÃO]])","v":"CAIXA Exd + PAINEL IHM+Somente 4-20mA+SEM CABO+COM PEDESTAL"},"A6"]
[null,"CAIXA Exd + PAINEL IHM","Somente 4-20mA","10 m","COM PEDESTAL",{"$f":"_xlfn.CONCAT(TAB_COMBINAÇÕES[[#This Row],[AUTOMAÇÃO]],\"+\",TAB_COMBINAÇÕES[[#This Row],[COMUNICAÇÃO]],\"+\",TAB_COMBINAÇÕES[[#This Row],[CABO]],\"+\",TAB_COMBINAÇÕES[[#This Row],[FIXAÇÃO]])","v":"CAIXA Exd + PAINEL IHM+Somente 4-20mA+10 m+COM PEDESTAL"},"A7"]
[null,"CAIXA Exd + PAINEL IHM","Somente 4-20mA","20 m","COM PEDESTAL",{"$f":"_xlfn.CONCAT(TAB_COMBINAÇÕES[[#This Row],[AUTOMAÇÃO]],\"+\",TAB_COMBINAÇÕES[[#This Row],[COMUNICAÇÃO]],\"+\",TAB_COMBINAÇÕES[[#This Row],[CABO]],\"+\",TAB_COMBINAÇÕES[[#This Row],[FIXAÇÃO]])","v":"CAIXA Exd + PAINEL IHM+Somente 4-20mA+20 m+COM PEDESTAL"},"A8"]
[null,"CAIXA Exd + PAINEL IHM","Somente 4-20mA","50 m","COM PEDESTAL",{"$f":"_xlfn.CONCAT(TAB_COMBINAÇÕES[[#This Row],[AUTOMAÇÃO]],\"+\",TAB_COMBINAÇÕES[[#This Row],[COMUNICAÇÃO]],\"+\",TAB_COMBINAÇÕES[[#This Row],[CABO]],\"+\",TAB_COMBINAÇÕES[[#This Row],[FIXAÇÃO]])","v":"CAIXA Exd + PAINEL IHM+Somente 4-20mA+50 m+COM PEDESTAL"},"A9"]
[null,"CAIXA Exd + PAINEL IHM","Somente 4-20mA","100 m","COM PEDESTAL",{"$f":"_xlfn.CONCAT(TAB_COMBINAÇÕES[[#This Row],[AUTOMAÇÃO]],\"+\",TAB_COMBINAÇÕES[[#This Row],[COMUNICAÇÃO]],\"+\",TAB_COMBINAÇÕES[[#This Row],[CABO]],\"+\",TAB_COMBINAÇÕES[[#This Row],[FIXAÇÃO]])","v":"CAIXA Exd + PAINEL IHM+Somente 4-20mA+100 m+COM PEDESTAL"},"B1"]
[null,"CAIXA Exd + PAINEL IHM","Somente 4-20mA","200 m","COM PEDESTAL",{"$f":"_xlfn.CONCAT(TAB_COMBINAÇÕES[[#This Row],[AUTOMAÇÃO]],\"+\",TAB_COMBINAÇÕES[[#This Row],[COMUNICAÇÃO]],\"+\",TAB_COMBINAÇÕES[[#This Row],[CABO]],\"+\",TAB_COMBINAÇÕES[[#This Row],[FIXAÇÃO]])","v":"CAIXA Exd + PAINEL IHM+Somente 4-20mA+200 m+COM PEDESTAL"},"B2"]
[null,"CAIXA Exd + PAINEL IHM","Somente 4-20mA","300 m","COM PEDESTAL",{"$f":"_xlfn.CONCAT(TAB_COMBINAÇÕES[[#This Row],[AUTOMAÇÃO]],\"+\",TAB_COMBINAÇÕES[[#This Row],[COMUNICAÇÃO]],\"+\",TAB_COMBINAÇÕES[[#This Row],[CABO]],\"+\",TAB_COMBINAÇÕES[[#This Row],[FIXAÇÃO]])","v":"CAIXA Exd + PAINEL IHM+Somente 4-20mA+300 m+COM PEDESTAL"},"B3"]
[null,"CAIXA Exd + PAINEL IHM","DeviceNet","SEM CABO","SEM PEDESTAL",{"$f":"_xlfn.CONCAT(TAB_COMBINAÇÕES[[#This Row],[AUTOMAÇÃO]],\"+\",TAB_COMBINAÇÕES[[#This Row],[COMUNICAÇÃO]],\"+\",TAB_COMBINAÇÕES[[#This Row],[CABO]],\"+\",TAB_COMBINAÇÕES[[#This Row],[FIXAÇÃO]])","v":"CAIXA Exd + PAINEL IHM+DeviceNet+SEM CABO+SEM PEDESTAL"},"B4"]
[null,"CAIXA Exd + PAINEL IHM","DeviceNet","10 m","SEM PEDESTAL",{"$f":"_xlfn.CONCAT(TAB_COMBINAÇÕES[[#This Row],[AUTOMAÇÃO]],\"+\",TAB_COMBINAÇÕES[[#This Row],[COMUNICAÇÃO]],\"+\",TAB_COMBINAÇÕES[[#This Row],[CABO]],\"+\",TAB_COMBINAÇÕES[[#This Row],[FIXAÇÃO]])","v":"CAIXA Exd + PAINEL IHM+DeviceNet+10 m+SEM PEDESTAL"},"B5"]
[null,"CAIXA Exd + PAINEL IHM","DeviceNet","20 m","SEM PEDESTAL",{"$f":"_xlfn.CONCAT(TAB_COMBINAÇÕES[[#This Row],[AUTOMAÇÃO]],\"+\",TAB_COMBINAÇÕES[[#This Row],[COMUNICAÇÃO]],\"+\",TAB_COMBINAÇÕES[[#This Row],[CABO]],\"+\",TAB_COMBINAÇÕES[[#This Row],[FIXAÇÃO]])","v":"CAIXA Exd + PAINEL IHM+DeviceNet+20 m+SEM PEDESTAL"},"B6"]
[null,"CAIXA Exd + PAINEL IHM","DeviceNet","50 m","SEM PEDESTAL",{"$f":"_xlfn.CONCAT(TAB_COMBINAÇÕES[[#This Row],[AUTOMAÇÃO]],\"+\",TAB_COMBINAÇÕES[[#This Row],[COMUNICAÇÃO]],\"+\",TAB_COMBINAÇÕES[[#This Row],[CABO]],\"+\",TAB_COMBINAÇÕES[[#This Row],[FIXAÇÃO]])","v":"CAIXA Exd + PAINEL IHM+DeviceNet+50 m+SEM PEDESTAL"},"B7"]
[null,"CAIXA Exd + PAINEL IHM","DeviceNet","100 m","SEM PEDESTAL",{"$f":"_xlfn.CONCAT(TAB_COMBINAÇÕES[[#This Row],[AUTOMAÇÃO]],\"+\",TAB_COMBINAÇÕES[[#This Row],[COMUNICAÇÃO]],\"+\",TAB_COMBINAÇÕES[[#This Row],[CABO]],\"+\",TAB_COMBINAÇÕES[[#This Row],[FIXAÇÃO]])","v":"CAIXA Exd + PAINEL IHM+DeviceNet+100 m+SEM PEDESTAL"},"B8"]
[null,"CAIXA Exd + PAINEL IHM","DeviceNet","200 m","SEM PEDESTAL",{"$f":"_xlfn.CONCAT(TAB_COMBINAÇÕES[[#This Row],[AUTOMAÇÃO]],\"+\",TAB_COMBINAÇÕES[[#This Row],[COMUNICAÇÃO]],\"+\",TAB_COMBINAÇÕES[[#This Row],[CABO]],\"+\",TAB_COMBINAÇÕES[[#This Row],[FIXAÇÃO]])","v":"CAIXA Exd + PAINEL IHM+DeviceNet+200 m+SEM PEDESTAL"},"B9"]
[null,"CAIXA Exd + PAINEL IHM","DeviceNet","300 m","SEM PEDESTAL",{"$f":"_xlfn.CONCAT(TAB_COMBINAÇÕES[[#This Row],[AUTOMAÇÃO]],\"+\",TAB_COMBINAÇÕES[[#This Row],[COMUNICAÇÃO]],\"+\",TAB_COMBINAÇÕES[[#This Row],[CABO]],\"+\",TAB_COMBINAÇÕES[[#This Row],[FIXAÇÃO]])","v":"CAIXA Exd + PAINEL IHM+DeviceNet+300 m+SEM PEDESTAL"},"C1"]
[null,"CAIXA Exd + PAINEL IHM","DeviceNet + 4-20mA","SEM CABO","SEM PEDESTAL",{"$f":"_xlfn.CONCAT(TAB_COMBINAÇÕES[[#This Row],[AUTOMAÇÃO]],\"+\",TAB_COMBINAÇÕES[[#This Row],[COMUNICAÇÃO]],\"+\",TAB_COMBINAÇÕES[[#This Row],[CABO]],\"+\",TAB_COMBINAÇÕES[[#This Row],[FIXAÇÃO]])","v":"CAIXA Exd + PAINEL IHM+DeviceNet + 4-20mA+SEM CABO+SEM PEDESTAL"},"C2"]
[null,"CAIXA Exd + PAINEL IHM","DeviceNet + 4-20mA","10 m","SEM PEDESTAL",{"$f":"_xlfn.CONCAT(TAB_COMBINAÇÕES[[#This Row],[AUTOMAÇÃO]],\"+\",TAB_COMBINAÇÕES[[#This Row],[COMUNICAÇÃO]],\"+\",TAB_COMBINAÇÕES[[#This Row],[CABO]],\"+\",TAB_COMBINAÇÕES[[#This Row],[FIXAÇÃO]])","v":"CAIXA Exd + PAINEL IHM+DeviceNet + 4-20mA+10 m+SEM PEDESTAL"},"C3"]
[null,"CAIXA Exd + PAINEL IHM","DeviceNet + 4-20mA","20 m","SEM PEDESTAL",{"$f":"_xlfn.CONCAT(TAB_COMBINAÇÕES[[#This Row],[AUTOMAÇÃO]],\"+\",TAB_COMBINAÇÕES[[#This Row],[COMUNICAÇÃO]],\"+\",TAB_COMBINAÇÕES[[#This Row],[CABO]],\"+\",TAB_COMBINAÇÕES[[#This Row],[FIXAÇÃO]])","v":"CAIXA Exd + PAINEL IHM+DeviceNet + 4-20mA+20 m+SEM PEDESTAL"},"C4"]
[null,"CAIXA Exd + PAINEL IHM","DeviceNet + 4-20mA","50 m","SEM PEDESTAL",{"$f":"_xlfn.CONCAT(TAB_COMBINAÇÕES[[#This Row],[AUTOMAÇÃO]],\"+\",TAB_COMBINAÇÕES[[#This Row],[COMUNICAÇÃO]],\"+\",TAB_COMBINAÇÕES[[#This Row],[CABO]],\"+\",TAB_COMBINAÇÕES[[#This Row],[FIXAÇÃO]])","v":"CAIXA Exd + PAINEL IHM+DeviceNet + 4-20mA+50 m+SEM PEDESTAL"},"C5"]
[null,"CAIXA Exd + PAINEL IHM","DeviceNet + 4-20mA","100 m","SEM PEDESTAL",{"$f":"_xlfn.CONCAT(TAB_COMBINAÇÕES[[#This Row],[AUTOMAÇÃO]],\"+\",TAB_COMBINAÇÕES[[#This Row],[COMUNICAÇÃO]],\"+\",TAB_COMBINAÇÕES[[#This Row],[CABO]],\"+\",TAB_COMBINAÇÕES[[#This Row],[FIXAÇÃO]])","v":"CAIXA Exd + PAINEL IHM+DeviceNet + 4-20mA+100 m+SEM PEDESTAL"},"C6"]
[null,"CAIXA Exd + PAINEL IHM","DeviceNet + 4-20mA","200 m","SEM PEDESTAL",{"$f":"_xlfn.CONCAT(TAB_COMBINAÇÕES[[#This Row],[AUTOMAÇÃO]],\"+\",TAB_COMBINAÇÕES[[#This Row],[COMUNICAÇÃO]],\"+\",TAB_COMBINAÇÕES[[#This Row],[CABO]],\"+\",TAB_COMBINAÇÕES[[#This Row],[FIXAÇÃO]])","v":"CAIXA Exd + PAINEL IHM+DeviceNet + 4-20mA+200 m+SEM PEDESTAL"},"C7"]
[null,"CAIXA Exd + PAINEL IHM","DeviceNet + 4-20mA","300 m","SEM PEDESTAL",{"$f":"_xlfn.CONCAT(TAB_COMBINAÇÕES[[#This Row],[AUTOMAÇÃO]],\"+\",TAB_COMBINAÇÕES[[#This Row],[COMUNICAÇÃO]],\"+\",TAB_COMBINAÇÕES[[#This Row],[CABO]],\"+\",TAB_COMBINAÇÕES[[#This Row],[FIXAÇÃO]])","v":"CAIXA Exd + PAINEL IHM+DeviceNet + 4-20mA+300 m+SEM PEDESTAL"},"C8"]
[null,"CAIXA Exd + PAINEL IHM","Ethernet TCP/IP","SEM CABO","SEM PEDESTAL",{"$f":"_xlfn.CONCAT(TAB_COMBINAÇÕES[[#This Row],[AUTOMAÇÃO]],\"+\",TAB_COMBINAÇÕES[[#This Row],[COMUNICAÇÃO]],\"+\",TAB_COMBINAÇÕES[[#This Row],[CABO]],\"+\",TAB_COMBINAÇÕES[[#This Row],[FIXAÇÃO]])","v":"CAIXA Exd + PAINEL IHM+Ethernet TCP/IP+SEM CABO+SEM PEDESTAL"},"C9"]
[null,"CAIXA Exd + PAINEL IHM","Ethernet TCP/IP","10 m","SEM PEDESTAL",{"$f":"_xlfn.CONCAT(TAB_COMBINAÇÕES[[#This Row],[AUTOMAÇÃO]],\"+\",TAB_COMBINAÇÕES[[#This Row],[COMUNICAÇÃO]],\"+\",TAB_COMBINAÇÕES[[#This Row],[CABO]],\"+\",TAB_COMBINAÇÕES[[#This Row],[FIXAÇÃO]])","v":"CAIXA Exd + PAINEL IHM+Ethernet TCP/IP+10 m+SEM PEDESTAL"},"D1"]
[null,"CAIXA Exd + PAINEL IHM","Ethernet TCP/IP","20 m","SEM PEDESTAL",{"$f":"_xlfn.CONCAT(TAB_COMBINAÇÕES[[#This Row],[AUTOMAÇÃO]],\"+\",TAB_COMBINAÇÕES[[#This Row],[COMUNICAÇÃO]],\"+\",TAB_COMBINAÇÕES[[#This Row],[CABO]],\"+\",TAB_COMBINAÇÕES[[#This Row],[FIXAÇÃO]])","v":"CAIXA Exd + PAINEL IHM+Ethernet TCP/IP+20 m+SEM PEDESTAL"},"D2"]
[null,"CAIXA Exd + PAINEL IHM","Ethernet TCP/IP","50 m","SEM PEDESTAL",{"$f":"_xlfn.CONCAT(TAB_COMBINAÇÕES[[#This Row],[AUTOMAÇÃO]],\"+\",TAB_COMBINAÇÕES[[#This Row],[COMUNICAÇÃO]],\"+\",TAB_COMBINAÇÕES[[#This Row],[CABO]],\"+\",TAB_COMBINAÇÕES[[#This Row],[FIXAÇÃO]])","v":"CAIXA Exd + PAINEL IHM+Ethernet TCP/IP+50 m+SEM PEDESTAL"},"D3"]
[null,"CAIXA Exd + PAINEL IHM","Ethernet TCP/IP","100 m","SEM PEDESTAL",{"$f":"_xlfn.CONCAT(TAB_COMBINAÇÕES[[#This Row],[AUTOMAÇÃO]],\"+\",TAB_COMBINAÇÕES[[#This Row],[COMUNICAÇÃO]],\"+\",TAB_COMBINAÇÕES[[#This Row],[CABO]],\"+\",TAB_COMBINAÇÕES[[#This Row],[FIXAÇÃO]])","v":"CAIXA Exd + PAINEL IHM+Ethernet TCP/IP+100 m+SEM PEDESTAL"},"D4"]
[null,"CAIXA Exd + PAINEL IHM","Ethernet TCP/IP","200 m","SEM PEDESTAL",{"$f":"_xlfn.CONCAT(TAB_COMBINAÇÕES[[#This Row],[AUTOMAÇÃO]],\"+\",TAB_COMBINAÇÕES[[#This Row],[COMUNICAÇÃO]],\"+\",TAB_COMBINAÇÕES[[#This Row],[CABO]],\"+\",TAB_COMBINAÇÕES[[#This Row],[FIXAÇÃO]])","v":"CAIXA Exd + PAINEL IHM+Ethernet TCP/IP+200 m+SEM PEDESTAL"},"D5"]
[null,"CAIXA Exd + PAINEL IHM","Ethernet TCP/IP","300 m","SEM PEDESTAL",{"$f":"_xlfn.CONCAT(TAB_COMBINAÇÕES[[#This Row],[AUTOMAÇÃO]],\"+\",TAB_COMBINAÇÕES[[#This Row],[COMUNICAÇÃO]],\"+\",TAB_COMBINAÇÕES[[#This Row],[CABO]],\"+\",TAB_COMBINAÇÕES[[#This Row],[FIXAÇÃO]])","v":"CAIXA Exd + PAINEL IHM+Ethernet TCP/IP+300 m+SEM PEDESTAL"},"D6"]
[null,"CAIXA Exd + PAINEL IHM","Ethernet TCP/IP + 4-20mA","SEM CABO","SEM PEDESTAL",{"$f":"_xlfn.CONCAT(TAB_COMBINAÇÕES[[#This Row],[AUTOMAÇÃO]],\"+\",TAB_COMBINAÇÕES[[#This Row],[COMUNICAÇÃO]],\"+\",TAB_COMBINAÇÕES[[#This Row],[CABO]],\"+\",TAB_COMBINAÇÕES[[#This Row],[FIXAÇÃO]])","v":"CAIXA Exd + PAINEL IHM+Ethernet TCP/IP + 4-20mA+SEM CABO+SEM PEDESTAL"},"D7"]
[null,"CAIXA Exd + PAINEL IHM","Ethernet TCP/IP + 4-20mA","10 m","SEM PEDESTAL",{"$f":"_xlfn.CONCAT(TAB_COMBINAÇÕES[[#This Row],[AUTOMAÇÃO]],\"+\",TAB_COMBINAÇÕES[[#This Row],[COMUNICAÇÃO]],\"+\",TAB_COMBINAÇÕES[[#This Row],[CABO]],\"+\",TAB_COMBINAÇÕES[[#This Row],[FIXAÇÃO]])","v":"CAIXA Exd + PAINEL IHM+Ethernet TCP/IP + 4-20mA+10 m+SEM PEDESTAL"},"D8"]
[null,"CAIXA Exd + PAINEL IHM","Ethernet TCP/IP + 4-20mA","20 m","SEM PEDESTAL",{"$f":"_xlfn.CONCAT(TAB_COMBINAÇÕES[[#This Row],[AUTOMAÇÃO]],\"+\",TAB_COMBINAÇÕES[[#This Row],[COMUNICAÇÃO]],\"+\",TAB_COMBINAÇÕES[[#This Row],[CABO]],\"+\",TAB_COMBINAÇÕES[[#This Row],[FIXAÇÃO]])","v":"CAIXA Exd + PAINEL IHM+Ethernet TCP/IP + 4-20mA+20 m+SEM PEDESTAL"},"D9"]
[null,"CAIXA Exd + PAINEL IHM","Ethernet TCP/IP + 4-20mA","50 m","SEM PEDESTAL",{"$f":"_xlfn.CONCAT(TAB_COMBINAÇÕES[[#This Row],[AUTOMAÇÃO]],\"+\",TAB_COMBINAÇÕES[[#This Row],[COMUNICAÇÃO]],\"+\",TAB_COMBINAÇÕES[[#This Row],[CABO]],\"+\",TAB_COMBINAÇÕES[[#This Row],[FIXAÇÃO]])","v":"CAIXA Exd + PAINEL IHM+Ethernet TCP/IP + 4-20mA+50 m+SEM PEDESTAL"},"E1"]
[null,"CAIXA Exd + PAINEL IHM","Ethernet TCP/IP + 4-20mA","100 m","SEM PEDESTAL",{"$f":"_xlfn.CONCAT(TAB_COMBINAÇÕES[[#This Row],[AUTOMAÇÃO]],\"+\",TAB_COMBINAÇÕES[[#This Row],[COMUNICAÇÃO]],\"+\",TAB_COMBINAÇÕES[[#This Row],[CABO]],\"+\",TAB_COMBINAÇÕES[[#This Row],[FIXAÇÃO]])","v":"CAIXA Exd + PAINEL IHM+Ethernet TCP/IP + 4-20mA+100 m+SEM PEDESTAL"},"E2"]
[null,"CAIXA Exd + PAINEL IHM","Ethernet TCP/IP + 4-20mA","200 m","SEM PEDESTAL",{"$f":"_xlfn.CONCAT(TAB_COMBINAÇÕES[[#This Row],[AUTOMAÇÃO]],\"+\",TAB_COMBINAÇÕES[[#This Row],[COMUNICAÇÃO]],\"+\",TAB_COMBINAÇÕES[[#This Row],[CABO]],\"+\",TAB_COMBINAÇÕES[[#This Row],[FIXAÇÃO]])","v":"CAIXA Exd + PAINEL IHM+Ethernet TCP/IP + 4-20mA+200 m+SEM PEDESTAL"},"E3"]
[null,"CAIXA Exd + PAINEL IHM","Ethernet TCP/IP + 4-20mA","300 m","SEM PEDESTAL",{"$f":"_xlfn.CONCAT(TAB_COMBINAÇÕES[[#This Row],[AUTOMAÇÃO]],\"+\",TAB_COMBINAÇÕES[[#This Row],[COMUNICAÇÃO]],\"+\",TAB_COMBINAÇÕES[[#This Row],[CABO]],\"+\",TAB_COMBINAÇÕES[[#This Row],[FIXAÇÃO]])","v":"CAIXA Exd + PAINEL IHM+Ethernet TCP/IP + 4-20mA+300 m+SEM PEDESTAL"},"E4"]
[null,"CAIXA Exd + PAINEL IHM","EtherNet/IP","SEM CABO","SEM PEDESTAL",{"$f":"_xlfn.CONCAT(TAB_COMBINAÇÕES[[#This Row],[AUTOMAÇÃO]],\"+\",TAB_COMBINAÇÕES[[#This Row],[COMUNICAÇÃO]],\"+\",TAB_COMBINAÇÕES[[#This Row],[CABO]],\"+\",TAB_COMBINAÇÕES[[#This Row],[FIXAÇÃO]])","v":"CAIXA Exd + PAINEL IHM+EtherNet/IP+SEM CABO+SEM PEDESTAL"},"E5"]
[null,"CAIXA Exd + PAINEL IHM","EtherNet/IP","10 m","SEM PEDESTAL",{"$f":"_xlfn.CONCAT(TAB_COMBINAÇÕES[[#This Row],[AUTOMAÇÃO]],\"+\",TAB_COMBINAÇÕES[[#This Row],[COMUNICAÇÃO]],\"+\",TAB_COMBINAÇÕES[[#This Row],[CABO]],\"+\",TAB_COMBINAÇÕES[[#This Row],[FIXAÇÃO]])","v":"CAIXA Exd + PAINEL IHM+EtherNet/IP+10 m+SEM PEDESTAL"},"E6"]
[null,"CAIXA Exd + PAINEL IHM","EtherNet/IP","20 m","SEM PEDESTAL",{"$f":"_xlfn.CONCAT(TAB_COMBINAÇÕES[[#This Row],[AUTOMAÇÃO]],\"+\",TAB_COMBINAÇÕES[[#This Row],[COMUNICAÇÃO]],\"+\",TAB_COMBINAÇÕES[[#This Row],[CABO]],\"+\",TAB_COMBINAÇÕES[[#This Row],[FIXAÇÃO]])","v":"CAIXA Exd + PAINEL IHM+EtherNet/IP+20 m+SEM PEDESTAL"},"E7"]
[null,"CAIXA Exd + PAINEL IHM","EtherNet/IP","50 m","SEM PEDESTAL",{"$f":"_xlfn.CONCAT(TAB_COMBINAÇÕES[[#This Row],[AUTOMAÇÃO]],\"+\",TAB_COMBINAÇÕES[[#This Row],[COMUNICAÇÃO]],\"+\",TAB_COMBINAÇÕES[[#This Row],[CABO]],\"+\",TAB_COMBINAÇÕES[[#This Row],[FIXAÇÃO]])","v":"CAIXA Exd + PAINEL IHM+EtherNet/IP+50 m+SEM PEDESTAL"},"E8"]
[null,"CAIXA Exd + PAINEL IHM","EtherNet/IP","100 m","SEM PEDESTAL",{"$f":"_xlfn.CONCAT(TAB_COMBINAÇÕES[[#This Row],[AUTOMAÇÃO]],\"+\",TAB_COMBINAÇÕES[[#This Row],[COMUNICAÇÃO]],\"+\",TAB_COMBINAÇÕES[[#This Row],[CABO]],\"+\",TAB_COMBINAÇÕES[[#This Row],[FIXAÇÃO]])","v":"CAIXA Exd + PAINEL IHM+EtherNet/IP+100 m+SEM PEDESTAL"},"E9"]
[null,"CAIXA Exd + PAINEL IHM","EtherNet/IP","200 m","SEM PEDESTAL",{"$f":"_xlfn.CONCAT(TAB_COMBINAÇÕES[[#This Row],[AUTOMAÇÃO]],\"+\",TAB_COMBINAÇÕES[[#This Row],[COMUNICAÇÃO]],\"+\",TAB_COMBINAÇÕES[[#This Row],[CABO]],\"+\",TAB_COMBINAÇÕES[[#This Row],[FIXAÇÃO]])","v":"CAIXA Exd + PAINEL IHM+EtherNet/IP+200 m+SEM PEDESTAL"},"F1"]
[null,"CAIXA Exd + PAINEL IHM","EtherNet/IP","300 m","SEM PEDESTAL",{"$f":"_xlfn.CONCAT(TAB_COMBINAÇÕES[[#This Row],[AUTOMAÇÃO]],\"+\",TAB_COMBINAÇÕES[[#This Row],[COMUNICAÇÃO]],\"+\",TAB_COMBINAÇÕES[[#This Row],[CABO]],\"+\",TAB_COMBINAÇÕES[[#This Row],[FIXAÇÃO]])","v":"CAIXA Exd + PAINEL IHM+EtherNet/IP+300 m+SEM PEDESTAL"},"F2"]
[null,"CAIXA Exd + PAINEL IHM","EtherNet/IP + 4-20mA","SEM CABO","SEM PEDESTAL",{"$f":"_xlfn.CONCAT(TAB_COMBINAÇÕES[[#This Row],[AUTOMAÇÃO]],\"+\",TAB_COMBINAÇÕES[[#This Row],[COMUNICAÇÃO]],\"+\",TAB_COMBINAÇÕES[[#This Row],[CABO]],\"+\",TAB_COMBINAÇÕES[[#This Row],[FIXAÇÃO]])","v":"CAIXA Exd + PAINEL IHM+EtherNet/IP + 4-20mA+SEM CABO+SEM PEDESTAL"},"F3"]
[null,"CAIXA Exd + PAINEL IHM","EtherNet/IP + 4-20mA","10 m","SEM PEDESTAL",{"$f":"_xlfn.CONCAT(TAB_COMBINAÇÕES[[#This Row],[AUTOMAÇÃO]],\"+\",TAB_COMBINAÇÕES[[#This Row],[COMUNICAÇÃO]],\"+\",TAB_COMBINAÇÕES[[#This Row],[CABO]],\"+\",TAB_COMBINAÇÕES[[#This Row],[FIXAÇÃO]])","v":"CAIXA Exd + PAINEL IHM+EtherNet/IP + 4-20mA+10 m+SEM PEDESTAL"},"F4"]
[null,"CAIXA Exd + PAINEL IHM","EtherNet/IP + 4-20mA","20 m","SEM PEDESTAL",{"$f":"_xlfn.CONCAT(TAB_COMBINAÇÕES[[#This Row],[AUTOMAÇÃO]],\"+\",TAB_COMBINAÇÕES[[#This Row],[COMUNICAÇÃO]],\"+\",TAB_COMBINAÇÕES[[#This Row],[CABO]],\"+\",TAB_COMBINAÇÕES[[#This Row],[FIXAÇÃO]])","v":"CAIXA Exd + PAINEL IHM+EtherNet/IP + 4-20mA+20 m+SEM PEDESTAL"},"F5"]
[null,"CAIXA Exd + PAINEL IHM","EtherNet/IP + 4-20mA","50 m","SEM PEDESTAL",{"$f":"_xlfn.CONCAT(TAB_COMBINAÇÕES[[#This Row],[AUTOMAÇÃO]],\"+\",TAB_COMBINAÇÕES[[#This Row],[COMUNICAÇÃO]],\"+\",TAB_COMBINAÇÕES[[#This Row],[CABO]],\"+\",TAB_COMBINAÇÕES[[#This Row],[FIXAÇÃO]])","v":"CAIXA Exd + PAINEL IHM+EtherNet/IP + 4-20mA+50 m+SEM PEDESTAL"},"F6"]
[null,"CAIXA Exd + PAINEL IHM","EtherNet/IP + 4-20mA","100 m","SEM PEDESTAL",{"$f":"_xlfn.CONCAT(TAB_COMBINAÇÕES[[#This Row],[AUTOMAÇÃO]],\"+\",TAB_COMBINAÇÕES[[#This Row],[COMUNICAÇÃO]],\"+\",TAB_COMBINAÇÕES[[#This Row],[CABO]],\"+\",TAB_COMBINAÇÕES[[#This Row],[FIXAÇÃO]])","v":"CAIXA Exd + PAINEL IHM+EtherNet/IP + 4-20mA+100 m+SEM PEDESTAL"},"F7"]
[null,"CAIXA Exd + PAINEL IHM","EtherNet/IP + 4-20mA","200 m","SEM PEDESTAL",{"$f":"_xlfn.CONCAT(TAB_COMBINAÇÕES[[#This Row],[AUTOMAÇÃO]],\"+\",TAB_COMBINAÇÕES[[#This Row],[COMUNICAÇÃO]],\"+\",TAB_COMBINAÇÕES[[#This Row],[CABO]],\"+\",TAB_COMBINAÇÕES[[#This Row],[FIXAÇÃO]])","v":"CAIXA Exd + PAINEL IHM+EtherNet/IP + 4-20mA+200 m+SEM PEDESTAL"},"F8"]
[null,"CAIXA Exd + PAINEL IHM","EtherNet/IP + 4-20mA","300 m","SEM PEDESTAL",{"$f":"_xlfn.CONCAT(TAB_COMBINAÇÕES[[#This Row],[AUTOMAÇÃO]],\"+\",TAB_COMBINAÇÕES[[#This Row],[COMUNICAÇÃO]],\"+\",TAB_COMBINAÇÕES[[#This Row],[CABO]],\"+\",TAB_COMBINAÇÕES[[#This Row],[FIXAÇÃO]])","v":"CAIXA Exd + PAINEL IHM+EtherNet/IP + 4-20mA+300 m+SEM PEDESTAL"},"F9"]
[null,"CAIXA Exd + PAINEL IHM","ModBus RTU","SEM CABO","SEM PEDESTAL",{"$f":"_xlfn.CONCAT(TAB_COMBINAÇÕES[[#This Row],[AUTOMAÇÃO]],\"+\",TAB_COMBINAÇÕES[[#This Row],[COMUNICAÇÃO]],\"+\",TAB_COMBINAÇÕES[[#This Row],[CABO]],\"+\",TAB_COMBINAÇÕES[[#This Row],[FIXAÇÃO]])","v":"CAIXA Exd + PAINEL IHM+ModBus RTU+SEM CABO+SEM PEDESTAL"},"G1"]
[null,"CAIXA Exd + PAINEL IHM","ModBus RTU","10 m","SEM PEDESTAL",{"$f":"_xlfn.CONCAT(TAB_COMBINAÇÕES[[#This Row],[AUTOMAÇÃO]],\"+\",TAB_COMBINAÇÕES[[#This Row],[COMUNICAÇÃO]],\"+\",TAB_COMBINAÇÕES[[#This Row],[CABO]],\"+\",TAB_COMBINAÇÕES[[#This Row],[FIXAÇÃO]])","v":"CAIXA Exd + PAINEL IHM+ModBus RTU+10 m+SEM PEDESTAL"},"G2"]
[null,"CAIXA Exd + PAINEL IHM","ModBus RTU","20 m","SEM PEDESTAL",{"$f":"_xlfn.CONCAT(TAB_COMBINAÇÕES[[#This Row],[AUTOMAÇÃO]],\"+\",TAB_COMBINAÇÕES[[#This Row],[COMUNICAÇÃO]],\"+\",TAB_COMBINAÇÕES[[#This Row],[CABO]],\"+\",TAB_COMBINAÇÕES[[#This Row],[FIXAÇÃO]])","v":"CAIXA Exd + PAINEL IHM+ModBus RTU+20 m+SEM PEDESTAL"},"G3"]
[null,"CAIXA Exd + PAINEL IHM","ModBus RTU","50 m","SEM PEDESTAL",{"$f":"_xlfn.CONCAT(TAB_COMBINAÇÕES[[#This Row],[AUTOMAÇÃO]],\"+\",TAB_COMBINAÇÕES[[#This Row],[COMUNICAÇÃO]],\"+\",TAB_COMBINAÇÕES[[#This Row],[CABO]],\"+\",TAB_COMBINAÇÕES[[#This Row],[FIXAÇÃO]])","v":"CAIXA Exd + PAINEL IHM+ModBus RTU+50 m+SEM PEDESTAL"},"G4"]
[null,"CAIXA Exd + PAINEL IHM","ModBus RTU","100 m","SEM PEDESTAL",{"$f":"_xlfn.CONCAT(TAB_COMBINAÇÕES[[#This Row],[AUTOMAÇÃO]],\"+\",TAB_COMBINAÇÕES[[#This Row],[COMUNICAÇÃO]],\"+\",TAB_COMBINAÇÕES[[#This Row],[CABO]],\"+\",TAB_COMBINAÇÕES[[#This Row],[FIXAÇÃO]])","v":"CAIXA Exd + PAINEL IHM+ModBus RTU+100 m+SEM PEDESTAL"},"G5"]
[null,"CAIXA Exd + PAINEL IHM","ModBus RTU","200 m","SEM PEDESTAL",{"$f":"_xlfn.CONCAT(TAB_COMBINAÇÕES[[#This Row],[AUTOMAÇÃO]],\"+\",TAB_COMBINAÇÕES[[#This Row],[COMUNICAÇÃO]],\"+\",TAB_COMBINAÇÕES[[#This Row],[CABO]],\"+\",TAB_COMBINAÇÕES[[#This Row],[FIXAÇÃO]])","v":"CAIXA Exd + PAINEL IHM+ModBus RTU+200 m+SEM PEDESTAL"},"G6"]
[null,"CAIXA Exd + PAINEL IHM","ModBus RTU","300 m","SEM PEDESTAL",{"$f":"_xlfn.CONCAT(TAB_COMBINAÇÕES[[#This Row],[AUTOMAÇÃO]],\"+\",TAB_COMBINAÇÕES[[#This Row],[COMUNICAÇÃO]],\"+\",TAB_COMBINAÇÕES[[#This Row],[CABO]],\"+\",TAB_COMBINAÇÕES[[#This Row],[FIXAÇÃO]])","v":"CAIXA Exd + PAINEL IHM+ModBus RTU+300 m+SEM PEDESTAL"},"G7"]
[null,"CAIXA Exd + PAINEL IHM","ModBus RTU + 4-20mA","SEM CABO","SEM PEDESTAL",{"$f":"_xlfn.CONCAT(TAB_COMBINAÇÕES[[#This Row],[AUTOMAÇÃO]],\"+\",TAB_COMBINAÇÕES[[#This Row],[COMUNICAÇÃO]],\"+\",TAB_COMBINAÇÕES[[#This Row],[CABO]],\"+\",TAB_COMBINAÇÕES[[#This Row],[FIXAÇÃO]])","v":"CAIXA Exd + PAINEL IHM+ModBus RTU + 4-20mA+SEM CABO+SEM PEDESTAL"},"G8"]
[null,"CAIXA Exd + PAINEL IHM","ModBus RTU + 4-20mA","10 m","SEM PEDESTAL",{"$f":"_xlfn.CONCAT(TAB_COMBINAÇÕES[[#This Row],[AUTOMAÇÃO]],\"+\",TAB_COMBINAÇÕES[[#This Row],[COMUNICAÇÃO]],\"+\",TAB_COMBINAÇÕES[[#This Row],[CABO]],\"+\",TAB_COMBINAÇÕES[[#This Row],[FIXAÇÃO]])","v":"CAIXA Exd + PAINEL IHM+ModBus RTU + 4-20mA+10 m+SEM PEDESTAL"},"G9"]
[null,"CAIXA Exd + PAINEL IHM","ModBus RTU + 4-20mA","20 m","SEM PEDESTAL",{"$f":"_xlfn.CONCAT(TAB_COMBINAÇÕES[[#This Row],[AUTOMAÇÃO]],\"+\",TAB_COMBINAÇÕES[[#This Row],[COMUNICAÇÃO]],\"+\",TAB_COMBINAÇÕES[[#This Row],[CABO]],\"+\",TAB_COMBINAÇÕES[[#This Row],[FIXAÇÃO]])","v":"CAIXA Exd + PAINEL IHM+ModBus RTU + 4-20mA+20 m+SEM PEDESTAL"},"H1"]
[null,"CAIXA Exd + PAINEL IHM","ModBus RTU + 4-20mA","50 m","SEM PEDESTAL",{"$f":"_xlfn.CONCAT(TAB_COMBINAÇÕES[[#This Row],[AUTOMAÇÃO]],\"+\",TAB_COMBINAÇÕES[[#This Row],[COMUNICAÇÃO]],\"+\",TAB_COMBINAÇÕES[[#This Row],[CABO]],\"+\",TAB_COMBINAÇÕES[[#This Row],[FIXAÇÃO]])","v":"CAIXA Exd + PAINEL IHM+ModBus RTU + 4-20mA+50 m+SEM PEDESTAL"},"H2"]
[null,"CAIXA Exd + PAINEL IHM","ModBus RTU + 4-20mA","100 m","SEM PEDESTAL",{"$f":"_xlfn.CONCAT(TAB_COMBINAÇÕES[[#This Row],[AUTOMAÇÃO]],\"+\",TAB_COMBINAÇÕES[[#This Row],[COMUNICAÇÃO]],\"+\",TAB_COMBINAÇÕES[[#This Row],[CABO]],\"+\",TAB_COMBINAÇÕES[[#This Row],[FIXAÇÃO]])","v":"CAIXA Exd + PAINEL IHM+ModBus RTU + 4-20mA+100 m+SEM PEDESTAL"},"H3"]
[null,"CAIXA Exd + PAINEL IHM","ModBus RTU + 4-20mA","200 m","SEM PEDESTAL",{"$f":"_xlfn.CONCAT(TAB_COMBINAÇÕES[[#This Row],[AUTOMAÇÃO]],\"+\",TAB_COMBINAÇÕES[[#This Row],[COMUNICAÇÃO]],\"+\",TAB_COMBINAÇÕES[[#This Row],[CABO]],\"+\",TAB_COMBINAÇÕES[[#This Row],[FIXAÇÃO]])","v":"CAIXA Exd + PAINEL IHM+ModBus RTU + 4-20mA+200 m+SEM PEDESTAL"},"H4"]
[null,"CAIXA Exd + PAINEL IHM","ModBus RTU + 4-20mA","300 m","SEM PEDESTAL",{"$f":"_xlfn.CONCAT(TAB_COMBINAÇÕES[[#This Row],[AUTOMAÇÃO]],\"+\",TAB_COMBINAÇÕES[[#This Row],[COMUNICAÇÃO]],\"+\",TAB_COMBINAÇÕES[[#This Row],[CABO]],\"+\",TAB_COMBINAÇÕES[[#This Row],[FIXAÇÃO]])","v":"CAIXA Exd + PAINEL IHM+ModBus RTU + 4-20mA+300 m+SEM PEDESTAL"},"H5"]
[null,"CAIXA Exd + PAINEL IHM","ModBus TCP/IP","SEM CABO","SEM PEDESTAL",{"$f":"_xlfn.CONCAT(TAB_COMBINAÇÕES[[#This Row],[AUTOMAÇÃO]],\"+\",TAB_COMBINAÇÕES[[#This Row],[COMUNICAÇÃO]],\"+\",TAB_COMBINAÇÕES[[#This Row],[CABO]],\"+\",TAB_COMBINAÇÕES[[#This Row],[FIXAÇÃO]])","v":"CAIXA Exd + PAINEL IHM+ModBus TCP/IP+SEM CABO+SEM PEDESTAL"},"H6"]
[null,"CAIXA Exd + PAINEL IHM","ModBus TCP/IP","10 m","SEM PEDESTAL",{"$f":"_xlfn.CONCAT(TAB_COMBINAÇÕES[[#This Row],[AUTOMAÇÃO]],\"+\",TAB_COMBINAÇÕES[[#This Row],[COMUNICAÇÃO]],\"+\",TAB_COMBINAÇÕES[[#This Row],[CABO]],\"+\",TAB_COMBINAÇÕES[[#This Row],[FIXAÇÃO]])","v":"CAIXA Exd + PAINEL IHM+ModBus TCP/IP+10 m+SEM PEDESTAL"},"H7"]
[null,"CAIXA Exd + PAINEL IHM","ModBus TCP/IP","20 m","SEM PEDESTAL",{"$f":"_xlfn.CONCAT(TAB_COMBINAÇÕES[[#This Row],[AUTOMAÇÃO]],\"+\",TAB_COMBINAÇÕES[[#This Row],[COMUNICAÇÃO]],\"+\",TAB_COMBINAÇÕES[[#This Row],[CABO]],\"+\",TAB_COMBINAÇÕES[[#This Row],[FIXAÇÃO]])","v":"CAIXA Exd + PAINEL IHM+ModBus TCP/IP+20 m+SEM PEDESTAL"},"H8"]
[null,"CAIXA Exd + PAINEL IHM","ModBus TCP/IP","50 m","SEM PEDESTAL",{"$f":"_xlfn.CONCAT(TAB_COMBINAÇÕES[[#This Row],[AUTOMAÇÃO]],\"+\",TAB_COMBINAÇÕES[[#This Row],[COMUNICAÇÃO]],\"+\",TAB_COMBINAÇÕES[[#This Row],[CABO]],\"+\",TAB_COMBINAÇÕES[[#This Row],[FIXAÇÃO]])","v":"CAIXA Exd + PAINEL IHM+ModBus TCP/IP+50 m+SEM PEDESTAL"},"H9"]
[null,"CAIXA Exd + PAINEL IHM","ModBus TCP/IP","100 m","SEM PEDESTAL",{"$f":"_xlfn.CONCAT(TAB_COMBINAÇÕES[[#This Row],[AUTOMAÇÃO]],\"+\",TAB_COMBINAÇÕES[[#This Row],[COMUNICAÇÃO]],\"+\",TAB_COMBINAÇÕES[[#This Row],[CABO]],\"+\",TAB_COMBINAÇÕES[[#This Row],[FIXAÇÃO]])","v":"CAIXA Exd + PAINEL IHM+ModBus TCP/IP+100 m+SEM PEDESTAL"},"I1"]
[null,"CAIXA Exd + PAINEL IHM","ModBus TCP/IP","200 m","SEM PEDESTAL",{"$f":"_xlfn.CONCAT(TAB_COMBINAÇÕES[[#This Row],[AUTOMAÇÃO]],\"+\",TAB_COMBINAÇÕES[[#This Row],[COMUNICAÇÃO]],\"+\",TAB_COMBINAÇÕES[[#This Row],[CABO]],\"+\",TAB_COMBINAÇÕES[[#This Row],[FIXAÇÃO]])","v":"CAIXA Exd + PAINEL IHM+ModBus TCP/IP+200 m+SEM PEDESTAL"},"I2"]
[null,"CAIXA Exd + PAINEL IHM","ModBus TCP/IP","300 m","SEM PEDESTAL",{"$f":"_xlfn.CONCAT(TAB_COMBINAÇÕES[[#This Row],[AUTOMAÇÃO]],\"+\",TAB_COMBINAÇÕES[[#This Row],[COMUNICAÇÃO]],\"+\",TAB_COMBINAÇÕES[[#This Row],[CABO]],\"+\",TAB_COMBINAÇÕES[[#This Row],[FIXAÇÃO]])","v":"CAIXA Exd + PAINEL IHM+ModBus TCP/IP+300 m+SEM PEDESTAL"},"I3"]
[null,"CAIXA Exd + PAINEL IHM","ModBus TCP/IP + 4-20mA","SEM CABO","SEM PEDESTAL",{"$f":"_xlfn.CONCAT(TAB_COMBINAÇÕES[[#This Row],[AUTOMAÇÃO]],\"+\",TAB_COMBINAÇÕES[[#This Row],[COMUNICAÇÃO]],\"+\",TAB_COMBINAÇÕES[[#This Row],[CABO]],\"+\",TAB_COMBINAÇÕES[[#This Row],[FIXAÇÃO]])","v":"CAIXA Exd + PAINEL IHM+ModBus TCP/IP + 4-20mA+SEM CABO+SEM PEDESTAL"},"I4"]
[null,"CAIXA Exd + PAINEL IHM","ModBus TCP/IP + 4-20mA","10 m","SEM PEDESTAL",{"$f":"_xlfn.CONCAT(TAB_COMBINAÇÕES[[#This Row],[AUTOMAÇÃO]],\"+\",TAB_COMBINAÇÕES[[#This Row],[COMUNICAÇÃO]],\"+\",TAB_COMBINAÇÕES[[#This Row],[CABO]],\"+\",TAB_COMBINAÇÕES[[#This Row],[FIXAÇÃO]])","v":"CAIXA Exd + PAINEL IHM+ModBus TCP/IP + 4-20mA+10 m+SEM PEDESTAL"},"I5"]
[null,"CAIXA Exd + PAINEL IHM","ModBus TCP/IP + 4-20mA","20 m","SEM PEDESTAL",{"$f":"_xlfn.CONCAT(TAB_COMBINAÇÕES[[#This Row],[AUTOMAÇÃO]],\"+\",TAB_COMBINAÇÕES[[#This Row],[COMUNICAÇÃO]],\"+\",TAB_COMBINAÇÕES[[#This Row],[CABO]],\"+\",TAB_COMBINAÇÕES[[#This Row],[FIXAÇÃO]])","v":"CAIXA Exd + PAINEL IHM+ModBus TCP/IP + 4-20mA+20 m+SEM PEDESTAL"},"I6"]
[null,"CAIXA Exd + PAINEL IHM","ModBus TCP/IP + 4-20mA","50 m","SEM PEDESTAL",{"$f":"_xlfn.CONCAT(TAB_COMBINAÇÕES[[#This Row],[AUTOMAÇÃO]],\"+\",TAB_COMBINAÇÕES[[#This Row],[COMUNICAÇÃO]],\"+\",TAB_COMBINAÇÕES[[#This Row],[CABO]],\"+\",TAB_COMBINAÇÕES[[#This Row],[FIXAÇÃO]])","v":"CAIXA Exd + PAINEL IHM+ModBus TCP/IP + 4-20mA+50 m+SEM PEDESTAL"},"I7"]
[null,"CAIXA Exd + PAINEL IHM","ModBus TCP/IP + 4-20mA","100 m","SEM PEDESTAL",{"$f":"_xlfn.CONCAT(TAB_COMBINAÇÕES[[#This Row],[AUTOMAÇÃO]],\"+\",TAB_COMBINAÇÕES[[#This Row],[COMUNICAÇÃO]],\"+\",TAB_COMBINAÇÕES[[#This Row],[CABO]],\"+\",TAB_COMBINAÇÕES[[#This Row],[FIXAÇÃO]])","v":"CAIXA Exd + PAINEL IHM+ModBus TCP/IP + 4-20mA+100 m+SEM PEDESTAL"},"I8"]
[null,"CAIXA Exd + PAINEL IHM","ModBus TCP/IP + 4-20mA","200 m","SEM PEDESTAL",{"$f":"_xlfn.CONCAT(TAB_COMBINAÇÕES[[#This Row],[AUTOMAÇÃO]],\"+\",TAB_COMBINAÇÕES[[#This Row],[COMUNICAÇÃO]],\"+\",TAB_COMBINAÇÕES[[#This Row],[CABO]],\"+\",TAB_COMBINAÇÕES[[#This Row],[FIXAÇÃO]])","v":"CAIXA Exd + PAINEL IHM+ModBus TCP/IP + 4-20mA+200 m+SEM PEDESTAL"},"I9"]
[null,"CAIXA Exd + PAINEL IHM","ModBus TCP/IP + 4-20mA","300 m","SEM PEDESTAL",{"$f":"_xlfn.CONCAT(TAB_COMBINAÇÕES[[#This Row],[AUTOMAÇÃO]],\"+\",TAB_COMBINAÇÕES[[#This Row],[COMUNICAÇÃO]],\"+\",TAB_COMBINAÇÕES[[#This Row],[CABO]],\"+\",TAB_COMBINAÇÕES[[#This Row],[FIXAÇÃO]])","v":"CAIXA Exd + PAINEL IHM+ModBus TCP/IP + 4-20mA+300 m+SEM PEDESTAL"},"J1"]
[null,"CAIXA Exd + PAINEL IHM","Profibus","SEM CABO","SEM PEDESTAL",{"$f":"_xlfn.CONCAT(TAB_COMBINAÇÕES[[#This Row],[AUTOMAÇÃO]],\"+\",TAB_COMBINAÇÕES[[#This Row],[COMUNICAÇÃO]],\"+\",TAB_COMBINAÇÕES[[#This Row],[CABO]],\"+\",TAB_COMBINAÇÕES[[#This Row],[FIXAÇÃO]])","v":"CAIXA Exd + PAINEL IHM+Profibus+SEM CABO+SEM PEDESTAL"},"J2"]
[null,"CAIXA Exd + PAINEL IHM","Profibus","10 m","SEM PEDESTAL",{"$f":"_xlfn.CONCAT(TAB_COMBINAÇÕES[[#This Row],[AUTOMAÇÃO]],\"+\",TAB_COMBINAÇÕES[[#This Row],[COMUNICAÇÃO]],\"+\",TAB_COMBINAÇÕES[[#This Row],[CABO]],\"+\",TAB_COMBINAÇÕES[[#This Row],[FIXAÇÃO]])","v":"CAIXA Exd + PAINEL IHM+Profibus+10 m+SEM PEDESTAL"},"J3"]
[null,"CAIXA Exd + PAINEL IHM","Profibus","20 m","SEM PEDESTAL",{"$f":"_xlfn.CONCAT(TAB_COMBINAÇÕES[[#This Row],[AUTOMAÇÃO]],\"+\",TAB_COMBINAÇÕES[[#This Row],[COMUNICAÇÃO]],\"+\",TAB_COMBINAÇÕES[[#This Row],[CABO]],\"+\",TAB_COMBINAÇÕES[[#This Row],[FIXAÇÃO]])","v":"CAIXA Exd + PAINEL IHM+Profibus+20 m+SEM PEDESTAL"},"J4"]
[null,"CAIXA Exd + PAINEL IHM","Profibus","50 m","SEM PEDESTAL",{"$f":"_xlfn.CONCAT(TAB_COMBINAÇÕES[[#This Row],[AUTOMAÇÃO]],\"+\",TAB_COMBINAÇÕES[[#This Row],[COMUNICAÇÃO]],\"+\",TAB_COMBINAÇÕES[[#This Row],[CABO]],\"+\",TAB_COMBINAÇÕES[[#This Row],[FIXAÇÃO]])","v":"CAIXA Exd + PAINEL IHM+Profibus+50 m+SEM PEDESTAL"},"J5"]
[null,"CAIXA Exd + PAINEL IHM","Profibus","100 m","SEM PEDESTAL",{"$f":"_xlfn.CONCAT(TAB_COMBINAÇÕES[[#This Row],[AUTOMAÇÃO]],\"+\",TAB_COMBINAÇÕES[[#This Row],[COMUNICAÇÃO]],\"+\",TAB_COMBINAÇÕES[[#This Row],[CABO]],\"+\",TAB_COMBINAÇÕES[[#This Row],[FIXAÇÃO]])","v":"CAIXA Exd + PAINEL IHM+Profibus+100 m+SEM PEDESTAL"},"J6"]
[null,"CAIXA Exd + PAINEL IHM","Profibus","200 m","SEM PEDESTAL",{"$f":"_xlfn.CONCAT(TAB_COMBINAÇÕES[[#This Row],[AUTOMAÇÃO]],\"+\",TAB_COMBINAÇÕES[[#This Row],[COMUNICAÇÃO]],\"+\",TAB_COMBINAÇÕES[[#This Row],[CABO]],\"+\",TAB_COMBINAÇÕES[[#This Row],[FIXAÇÃO]])","v":"CAIXA Exd + PAINEL IHM+Profibus+200 m+SEM PEDESTAL"},"J7"]
[null,"CAIXA Exd + PAINEL IHM","Profibus","300 m","SEM PEDESTAL",{"$f":"_xlfn.CONCAT(TAB_COMBINAÇÕES[[#This Row],[AUTOMAÇÃO]],\"+\",TAB_COMBINAÇÕES[[#This Row],[COMUNICAÇÃO]],\"+\",TAB_COMBINAÇÕES[[#This Row],[CABO]],\"+\",TAB_COMBINAÇÕES[[#This Row],[FIXAÇÃO]])","v":"CAIXA Exd + PAINEL IHM+Profibus+300 m+SEM PEDESTAL"},"J8"]
[null,"CAIXA Exd + PAINEL IHM","Profibus + 4-20mA","SEM CABO","SEM PEDESTAL",{"$f":"_xlfn.CONCAT(TAB_COMBINAÇÕES[[#This Row],[AUTOMAÇÃO]],\"+\",TAB_COMBINAÇÕES[[#This Row],[COMUNICAÇÃO]],\"+\",TAB_COMBINAÇÕES[[#This Row],[CABO]],\"+\",TAB_COMBINAÇÕES[[#This Row],[FIXAÇÃO]])","v":"CAIXA Exd + PAINEL IHM+Profibus + 4-20mA+SEM CABO+SEM PEDESTAL"},"J9"]
[null,"CAIXA Exd + PAINEL IHM","Profibus + 4-20mA","10 m","SEM PEDESTAL",{"$f":"_xlfn.CONCAT(TAB_COMBINAÇÕES[[#This Row],[AUTOMAÇÃO]],\"+\",TAB_COMBINAÇÕES[[#This Row],[COMUNICAÇÃO]],\"+\",TAB_COMBINAÇÕES[[#This Row],[CABO]],\"+\",TAB_COMBINAÇÕES[[#This Row],[FIXAÇÃO]])","v":"CAIXA Exd + PAINEL IHM+Profibus + 4-20mA+10 m+SEM PEDESTAL"},"K1"]
[null,"CAIXA Exd + PAINEL IHM","Profibus + 4-20mA","20 m","SEM PEDESTAL",{"$f":"_xlfn.CONCAT(TAB_COMBINAÇÕES[[#This Row],[AUTOMAÇÃO]],\"+\",TAB_COMBINAÇÕES[[#This Row],[COMUNICAÇÃO]],\"+\",TAB_COMBINAÇÕES[[#This Row],[CABO]],\"+\",TAB_COMBINAÇÕES[[#This Row],[FIXAÇÃO]])","v":"CAIXA Exd + PAINEL IHM+Profibus + 4-20mA+20 m+SEM PEDESTAL"},"K2"]
[null,"CAIXA Exd + PAINEL IHM","Profibus + 4-20mA","50 m","SEM PEDESTAL",{"$f":"_xlfn.CONCAT(TAB_COMBINAÇÕES[[#This Row],[AUTOMAÇÃO]],\"+\",TAB_COMBINAÇÕES[[#This Row],[COMUNICAÇÃO]],\"+\",TAB_COMBINAÇÕES[[#This Row],[CABO]],\"+\",TAB_COMBINAÇÕES[[#This Row],[FIXAÇÃO]])","v":"CAIXA Exd + PAINEL IHM+Profibus + 4-20mA+50 m+SEM PEDESTAL"},"K3"]
[null,"CAIXA Exd + PAINEL IHM","Profibus + 4-20mA","100 m","SEM PEDESTAL",{"$f":"_xlfn.CONCAT(TAB_COMBINAÇÕES[[#This Row],[AUTOMAÇÃO]],\"+\",TAB_COMBINAÇÕES[[#This Row],[COMUNICAÇÃO]],\"+\",TAB_COMBINAÇÕES[[#This Row],[CABO]],\"+\",TAB_COMBINAÇÕES[[#This Row],[FIXAÇÃO]])","v":"CAIXA Exd + PAINEL IHM+Profibus + 4-20mA+100 m+SEM PEDESTAL"},"K4"]
[null,"CAIXA Exd + PAINEL IHM","Profibus + 4-20mA","200 m","SEM PEDESTAL",{"$f":"_xlfn.CONCAT(TAB_COMBINAÇÕES[[#This Row],[AUTOMAÇÃO]],\"+\",TAB_COMBINAÇÕES[[#This Row],[COMUNICAÇÃO]],\"+\",TAB_COMBINAÇÕES[[#This Row],[CABO]],\"+\",TAB_COMBINAÇÕES[[#This Row],[FIXAÇÃO]])","v":"CAIXA Exd + PAINEL IHM+Profibus + 4-20mA+200 m+SEM PEDESTAL"},"K5"]
[null,"CAIXA Exd + PAINEL IHM","Profibus + 4-20mA","300 m","SEM PEDESTAL",{"$f":"_xlfn.CONCAT(TAB_COMBINAÇÕES[[#This Row],[AUTOMAÇÃO]],\"+\",TAB_COMBINAÇÕES[[#This Row],[COMUNICAÇÃO]],\"+\",TAB_COMBINAÇÕES[[#This Row],[CABO]],\"+\",TAB_COMBINAÇÕES[[#This Row],[FIXAÇÃO]])","v":"CAIXA Exd + PAINEL IHM+Profibus + 4-20mA+300 m+SEM PEDESTAL"},"K6"]
[null,"CAIXA Exd + PAINEL IHM","Profinet","SEM CABO","SEM PEDESTAL",{"$f":"_xlfn.CONCAT(TAB_COMBINAÇÕES[[#This Row],[AUTOMAÇÃO]],\"+\",TAB_COMBINAÇÕES[[#This Row],[COMUNICAÇÃO]],\"+\",TAB_COMBINAÇÕES[[#This Row],[CABO]],\"+\",TAB_COMBINAÇÕES[[#This Row],[FIXAÇÃO]])","v":"CAIXA Exd + PAINEL IHM+Profinet+SEM CABO+SEM PEDESTAL"},"K7"]
[null,"CAIXA Exd + PAINEL IHM","Profinet","10 m","SEM PEDESTAL",{"$f":"_xlfn.CONCAT(TAB_COMBINAÇÕES[[#This Row],[AUTOMAÇÃO]],\"+\",TAB_COMBINAÇÕES[[#This Row],[COMUNICAÇÃO]],\"+\",TAB_COMBINAÇÕES[[#This Row],[CABO]],\"+\",TAB_COMBINAÇÕES[[#This Row],[FIXAÇÃO]])","v":"CAIXA Exd + PAINEL IHM+Profinet+10 m+SEM PEDESTAL"},"K8"]
[null,"CAIXA Exd + PAINEL IHM","Profinet","20 m","SEM PEDESTAL",{"$f":"_xlfn.CONCAT(TAB_COMBINAÇÕES[[#This Row],[AUTOMAÇÃO]],\"+\",TAB_COMBINAÇÕES[[#This Row],[COMUNICAÇÃO]],\"+\",TAB_COMBINAÇÕES[[#This Row],[CABO]],\"+\",TAB_COMBINAÇÕES[[#This Row],[FIXAÇÃO]])","v":"CAIXA Exd + PAINEL IHM+Profinet+20 m+SEM PEDESTAL"},"K9"]
[null,"CAIXA Exd + PAINEL IHM","Profinet","50 m","SEM PEDESTAL",{"$f":"_xlfn.CONCAT(TAB_COMBINAÇÕES[[#This Row],[AUTOMAÇÃO]],\"+\",TAB_COMBINAÇÕES[[#This Row],[COMUNICAÇÃO]],\"+\",TAB_COMBINAÇÕES[[#This Row],[CABO]],\"+\",TAB_COMBINAÇÕES[[#This Row],[FIXAÇÃO]])","v":"CAIXA Exd + PAINEL IHM+Profinet+50 m+SEM PEDESTAL"},"L1"]
[null,"CAIXA Exd + PAINEL IHM","Profinet","100 m","SEM PEDESTAL",{"$f":"_xlfn.CONCAT(TAB_COMBINAÇÕES[[#This Row],[AUTOMAÇÃO]],\"+\",TAB_COMBINAÇÕES[[#This Row],[COMUNICAÇÃO]],\"+\",TAB_COMBINAÇÕES[[#This Row],[CABO]],\"+\",TAB_COMBINAÇÕES[[#This Row],[FIXAÇÃO]])","v":"CAIXA Exd + PAINEL IHM+Profinet+100 m+SEM PEDESTAL"},"L2"]
[null,"CAIXA Exd + PAINEL IHM","Profinet","200 m","SEM PEDESTAL",{"$f":"_xlfn.CONCAT(TAB_COMBINAÇÕES[[#This Row],[AUTOMAÇÃO]],\"+\",TAB_COMBINAÇÕES[[#This Row],[COMUNICAÇÃO]],\"+\",TAB_COMBINAÇÕES[[#This Row],[CABO]],\"+\",TAB_COMBINAÇÕES[[#This Row],[FIXAÇÃO]])","v":"CAIXA Exd + PAINEL IHM+Profinet+200 m+SEM PEDESTAL"},"L3"]
[null,"CAIXA Exd + PAINEL IHM","Profinet","300 m","SEM PEDESTAL",{"$f":"_xlfn.CONCAT(TAB_COMBINAÇÕES[[#This Row],[AUTOMAÇÃO]],\"+\",TAB_COMBINAÇÕES[[#This Row],[COMUNICAÇÃO]],\"+\",TAB_COMBINAÇÕES[[#This Row],[CABO]],\"+\",TAB_COMBINAÇÕES[[#This Row],[FIXAÇÃO]])","v":"CAIXA Exd + PAINEL IHM+Profinet+300 m+SEM PEDESTAL"},"L4"]
[null,"CAIXA Exd + PAINEL IHM","Profinet + 4-20mA","SEM CABO","SEM PEDESTAL",{"$f":"_xlfn.CONCAT(TAB_COMBINAÇÕES[[#This Row],[AUTOMAÇÃO]],\"+\",TAB_COMBINAÇÕES[[#This Row],[COMUNICAÇÃO]],\"+\",TAB_COMBINAÇÕES[[#This Row],[CABO]],\"+\",TAB_COMBINAÇÕES[[#This Row],[FIXAÇÃO]])","v":"CAIXA Exd + PAINEL IHM+Profinet + 4-20mA+SEM CABO+SEM PEDESTAL"},"L5"]
[null,"CAIXA Exd + PAINEL IHM","Profinet + 4-20mA","10 m","SEM PEDESTAL",{"$f":"_xlfn.CONCAT(TAB_COMBINAÇÕES[[#This Row],[AUTOMAÇÃO]],\"+\",TAB_COMBINAÇÕES[[#This Row],[COMUNICAÇÃO]],\"+\",TAB_COMBINAÇÕES[[#This Row],[CABO]],\"+\",TAB_COMBINAÇÕES[[#This Row],[FIXAÇÃO]])","v":"CAIXA Exd + PAINEL IHM+Profinet + 4-20mA+10 m+SEM PEDESTAL"},"L6"]
[null,"CAIXA Exd + PAINEL IHM","Profinet + 4-20mA","20 m","SEM PEDESTAL",{"$f":"_xlfn.CONCAT(TAB_COMBINAÇÕES[[#This Row],[AUTOMAÇÃO]],\"+\",TAB_COMBINAÇÕES[[#This Row],[COMUNICAÇÃO]],\"+\",TAB_COMBINAÇÕES[[#This Row],[CABO]],\"+\",TAB_COMBINAÇÕES[[#This Row],[FIXAÇÃO]])","v":"CAIXA Exd + PAINEL IHM+Profinet + 4-20mA+20 m+SEM PEDESTAL"},"L7"]
[null,"CAIXA Exd + PAINEL IHM","Profinet + 4-20mA","50 m","SEM PEDESTAL",{"$f":"_xlfn.CONCAT(TAB_COMBINAÇÕES[[#This Row],[AUTOMAÇÃO]],\"+\",TAB_COMBINAÇÕES[[#This Row],[COMUNICAÇÃO]],\"+\",TAB_COMBINAÇÕES[[#This Row],[CABO]],\"+\",TAB_COMBINAÇÕES[[#This Row],[FIXAÇÃO]])","v":"CAIXA Exd + PAINEL IHM+Profinet + 4-20mA+50 m+SEM PEDESTAL"},"L8"]
[null,"CAIXA Exd + PAINEL IHM","Profinet + 4-20mA","100 m","SEM PEDESTAL",{"$f":"_xlfn.CONCAT(TAB_COMBINAÇÕES[[#This Row],[AUTOMAÇÃO]],\"+\",TAB_COMBINAÇÕES[[#This Row],[COMUNICAÇÃO]],\"+\",TAB_COMBINAÇÕES[[#This Row],[CABO]],\"+\",TAB_COMBINAÇÕES[[#This Row],[FIXAÇÃO]])","v":"CAIXA Exd + PAINEL IHM+Profinet + 4-20mA+100 m+SEM PEDESTAL"},"L9"]
[null,"CAIXA Exd + PAINEL IHM","Profinet + 4-20mA","200 m","SEM PEDESTAL",{"$f":"_xlfn.CONCAT(TAB_COMBINAÇÕES[[#This Row],[AUTOMAÇÃO]],\"+\",TAB_COMBINAÇÕES[[#This Row],[COMUNICAÇÃO]],\"+\",TAB_COMBINAÇÕES[[#This Row],[CABO]],\"+\",TAB_COMBINAÇÕES[[#This Row],[FIXAÇÃO]])","v":"CAIXA Exd + PAINEL IHM+Profinet + 4-20mA+200 m+SEM PEDESTAL"},"M1"]
[null,"CAIXA Exd + PAINEL IHM","Profinet + 4-20mA","300 m","SEM PEDESTAL",{"$f":"_xlfn.CONCAT(TAB_COMBINAÇÕES[[#This Row],[AUTOMAÇÃO]],\"+\",TAB_COMBINAÇÕES[[#This Row],[COMUNICAÇÃO]],\"+\",TAB_COMBINAÇÕES[[#This Row],[CABO]],\"+\",TAB_COMBINAÇÕES[[#This Row],[FIXAÇÃO]])","v":"CAIXA Exd + PAINEL IHM+Profinet + 4-20mA+300 m+SEM PEDESTAL"},"M2"]
[null,"CAIXA Exd + PAINEL IHM","Sem comunicação","SEM CABO","SEM PEDESTAL",{"$f":"_xlfn.CONCAT(TAB_COMBINAÇÕES[[#This Row],[AUTOMAÇÃO]],\"+\",TAB_COMBINAÇÕES[[#This Row],[COMUNICAÇÃO]],\"+\",TAB_COMBINAÇÕES[[#This Row],[CABO]],\"+\",TAB_COMBINAÇÕES[[#This Row],[FIXAÇÃO]])","v":"CAIXA Exd + PAINEL IHM+Sem comunicação+SEM CABO+SEM PEDESTAL"},"M3"]
[null,"CAIXA Exd + PAINEL IHM","Sem comunicação","10 m","SEM PEDESTAL",{"$f":"_xlfn.CONCAT(TAB_COMBINAÇÕES[[#This Row],[AUTOMAÇÃO]],\"+\",TAB_COMBINAÇÕES[[#This Row],[COMUNICAÇÃO]],\"+\",TAB_COMBINAÇÕES[[#This Row],[CABO]],\"+\",TAB_COMBINAÇÕES[[#This Row],[FIXAÇÃO]])","v":"CAIXA Exd + PAINEL IHM+Sem comunicação+10 m+SEM PEDESTAL"},"M4"]
[null,"CAIXA Exd + PAINEL IHM","Sem comunicação","20 m","SEM PEDESTAL",{"$f":"_xlfn.CONCAT(TAB_COMBINAÇÕES[[#This Row],[AUTOMAÇÃO]],\"+\",TAB_COMBINAÇÕES[[#This Row],[COMUNICAÇÃO]],\"+\",TAB_COMBINAÇÕES[[#This Row],[CABO]],\"+\",TAB_COMBINAÇÕES[[#This Row],[FIXAÇÃO]])","v":"CAIXA Exd + PAINEL IHM+Sem comunicação+20 m+SEM PEDESTAL"},"M5"]
[null,"CAIXA Exd + PAINEL IHM","Sem comunicação","50 m","SEM PEDESTAL",{"$f":"_xlfn.CONCAT(TAB_COMBINAÇÕES[[#This Row],[AUTOMAÇÃO]],\"+\",TAB_COMBINAÇÕES[[#This Row],[COMUNICAÇÃO]],\"+\",TAB_COMBINAÇÕES[[#This Row],[CABO]],\"+\",TAB_COMBINAÇÕES[[#This Row],[FIXAÇÃO]])","v":"CAIXA Exd + PAINEL IHM+Sem comunicação+50 m+SEM PEDESTAL"},"M6"]
[null,"CAIXA Exd + PAINEL IHM","Sem comunicação","100 m","SEM PEDESTAL",{"$f":"_xlfn.CONCAT(TAB_COMBINAÇÕES[[#This Row],[AUTOMAÇÃO]],\"+\",TAB_COMBINAÇÕES[[#This Row],[COMUNICAÇÃO]],\"+\",TAB_COMBINAÇÕES[[#This Row],[CABO]],\"+\",TAB_COMBINAÇÕES[[#This Row],[FIXAÇÃO]])","v":"CAIXA Exd + PAINEL IHM+Sem comunicação+100 m+SEM PEDESTAL"},"M7"]
[null,"CAIXA Exd + PAINEL IHM","Sem comunicação","200 m","SEM PEDESTAL",{"$f":"_xlfn.CONCAT(TAB_COMBINAÇÕES[[#This Row],[AUTOMAÇÃO]],\"+\",TAB_COMBINAÇÕES[[#This Row],[COMUNICAÇÃO]],\"+\",TAB_COMBINAÇÕES[[#This Row],[CABO]],\"+\",TAB_COMBINAÇÕES[[#This Row],[FIXAÇÃO]])","v":"CAIXA Exd + PAINEL IHM+Sem comunicação+200 m+SEM PEDESTAL"},"M8"]
[null,"CAIXA Exd + PAINEL IHM","Sem comunicação","300 m","SEM PEDESTAL",{"$f":"_xlfn.CONCAT(TAB_COMBINAÇÕES[[#This Row],[AUTOMAÇÃO]],\"+\",TAB_COMBINAÇÕES[[#This Row],[COMUNICAÇÃO]],\"+\",TAB_COMBINAÇÕES[[#This Row],[CABO]],\"+\",TAB_COMBINAÇÕES[[#This Row],[FIXAÇÃO]])","v":"CAIXA Exd + PAINEL IHM+Sem comunicação+300 m+SEM PEDESTAL"},"M9"]
[null,"CAIXA Exd + PAINEL IHM","Somente 4-20mA","SEM CABO","SEM PEDESTAL",{"$f":"_xlfn.CONCAT(TAB_COMBINAÇÕES[[#This Row],[AUTOMAÇÃO]],\"+\",TAB_COMBINAÇÕES[[#This Row],[COMUNICAÇÃO]],\"+\",TAB_COMBINAÇÕES[[#This Row],[CABO]],\"+\",TAB_COMBINAÇÕES[[#This Row],[FIXAÇÃO]])","v":"CAIXA Exd + PAINEL IHM+Somente 4-20mA+SEM CABO+SEM PEDESTAL"},"N1"]
[null,"CAIXA Exd + PAINEL IHM","Somente 4-20mA","10 m","SEM PEDESTAL",{"$f":"_xlfn.CONCAT(TAB_COMBINAÇÕES[[#This Row],[AUTOMAÇÃO]],\"+\",TAB_COMBINAÇÕES[[#This Row],[COMUNICAÇÃO]],\"+\",TAB_COMBINAÇÕES[[#This Row],[CABO]],\"+\",TAB_COMBINAÇÕES[[#This Row],[FIXAÇÃO]])","v":"CAIXA Exd + PAINEL IHM+Somente 4-20mA+10 m+SEM PEDESTAL"},"N2"]
[null,"CAIXA Exd + PAINEL IHM","Somente 4-20mA","20 m","SEM PEDESTAL",{"$f":"_xlfn.CONCAT(TAB_COMBINAÇÕES[[#This Row],[AUTOMAÇÃO]],\"+\",TAB_COMBINAÇÕES[[#This Row],[COMUNICAÇÃO]],\"+\",TAB_COMBINAÇÕES[[#This Row],[CABO]],\"+\",TAB_COMBINAÇÕES[[#This Row],[FIXAÇÃO]])","v":"CAIXA Exd + PAINEL IHM+Somente 4-20mA+20 m+SEM PEDESTAL"},"N3"]
[null,"CAIXA Exd + PAINEL IHM","Somente 4-20mA","50 m","SEM PEDESTAL",{"$f":"_xlfn.CONCAT(TAB_COMBINAÇÕES[[#This Row],[AUTOMAÇÃO]],\"+\",TAB_COMBINAÇÕES[[#This Row],[COMUNICAÇÃO]],\"+\",TAB_COMBINAÇÕES[[#This Row],[CABO]],\"+\",TAB_COMBINAÇÕES[[#This Row],[FIXAÇÃO]])","v":"CAIXA Exd + PAINEL IHM+Somente 4-20mA+50 m+SEM PEDESTAL"},"N4"]
[null,"CAIXA Exd + PAINEL IHM","Somente 4-20mA","100 m","SEM PEDESTAL",{"$f":"_xlfn.CONCAT(TAB_COMBINAÇÕES[[#This Row],[AUTOMAÇÃO]],\"+\",TAB_COMBINAÇÕES[[#This Row],[COMUNICAÇÃO]],\"+\",TAB_COMBINAÇÕES[[#This Row],[CABO]],\"+\",TAB_COMBINAÇÕES[[#This Row],[FIXAÇÃO]])","v":"CAIXA Exd + PAINEL IHM+Somente 4-20mA+100 m+SEM PEDESTAL"},"N5"]
[null,"CAIXA Exd + PAINEL IHM","Somente 4-20mA","200 m","SEM PEDESTAL",{"$f":"_xlfn.CONCAT(TAB_COMBINAÇÕES[[#This Row],[AUTOMAÇÃO]],\"+\",TAB_COMBINAÇÕES[[#This Row],[COMUNICAÇÃO]],\"+\",TAB_COMBINAÇÕES[[#This Row],[CABO]],\"+\",TAB_COMBINAÇÕES[[#This Row],[FIXAÇÃO]])","v":"CAIXA Exd + PAINEL IHM+Somente 4-20mA+200 m+SEM PEDESTAL"},"N6"]
[null,"CAIXA Exd + PAINEL IHM","Somente 4-20mA","300 m","SEM PEDESTAL",{"$f":"_xlfn.CONCAT(TAB_COMBINAÇÕES[[#This Row],[AUTOMAÇÃO]],\"+\",TAB_COMBINAÇÕES[[#This Row],[COMUNICAÇÃO]],\"+\",TAB_COMBINAÇÕES[[#This Row],[CABO]],\"+\",TAB_COMBINAÇÕES[[#This Row],[FIXAÇÃO]])","v":"CAIXA Exd + PAINEL IHM+Somente 4-20mA+300 m+SEM PEDESTAL"},"N7"]
[null,"PAINEL IHM + TRANSMISSOR","DeviceNet","SEM CABO","COM PEDESTAL",{"$f":"_xlfn.CONCAT(TAB_COMBINAÇÕES[[#This Row],[AUTOMAÇÃO]],\"+\",TAB_COMBINAÇÕES[[#This Row],[COMUNICAÇÃO]],\"+\",TAB_COMBINAÇÕES[[#This Row],[CABO]],\"+\",TAB_COMBINAÇÕES[[#This Row],[FIXAÇÃO]])","v":"PAINEL IHM + TRANSMISSOR+DeviceNet+SEM CABO+COM PEDESTAL"},"N8"]
[null,"PAINEL IHM + TRANSMISSOR","DeviceNet","10 m","COM PEDESTAL",{"$f":"_xlfn.CONCAT(TAB_COMBINAÇÕES[[#This Row],[AUTOMAÇÃO]],\"+\",TAB_COMBINAÇÕES[[#This Row],[COMUNICAÇÃO]],\"+\",TAB_COMBINAÇÕES[[#This Row],[CABO]],\"+\",TAB_COMBINAÇÕES[[#This Row],[FIXAÇÃO]])","v":"PAINEL IHM + TRANSMISSOR+DeviceNet+10 m+COM PEDESTAL"},"N9"]
[null,"PAINEL IHM + TRANSMISSOR","DeviceNet","20 m","COM PEDESTAL",{"$f":"_xlfn.CONCAT(TAB_COMBINAÇÕES[[#This Row],[AUTOMAÇÃO]],\"+\",TAB_COMBINAÇÕES[[#This Row],[COMUNICAÇÃO]],\"+\",TAB_COMBINAÇÕES[[#This Row],[CABO]],\"+\",TAB_COMBINAÇÕES[[#This Row],[FIXAÇÃO]])","v":"PAINEL IHM + TRANSMISSOR+DeviceNet+20 m+COM PEDESTAL"},"O1"]
[null,"PAINEL IHM + TRANSMISSOR","DeviceNet","50 m","COM PEDESTAL",{"$f":"_xlfn.CONCAT(TAB_COMBINAÇÕES[[#This Row],[AUTOMAÇÃO]],\"+\",TAB_COMBINAÇÕES[[#This Row],[COMUNICAÇÃO]],\"+\",TAB_COMBINAÇÕES[[#This Row],[CABO]],\"+\",TAB_COMBINAÇÕES[[#This Row],[FIXAÇÃO]])","v":"PAINEL IHM + TRANSMISSOR+DeviceNet+50 m+COM PEDESTAL"},"O2"]
[null,"PAINEL IHM + TRANSMISSOR","DeviceNet","100 m","COM PEDESTAL",{"$f":"_xlfn.CONCAT(TAB_COMBINAÇÕES[[#This Row],[AUTOMAÇÃO]],\"+\",TAB_COMBINAÇÕES[[#This Row],[COMUNICAÇÃO]],\"+\",TAB_COMBINAÇÕES[[#This Row],[CABO]],\"+\",TAB_COMBINAÇÕES[[#This Row],[FIXAÇÃO]])","v":"PAINEL IHM + TRANSMISSOR+DeviceNet+100 m+COM PEDESTAL"},"O3"]
[null,"PAINEL IHM + TRANSMISSOR","DeviceNet","200 m","COM PEDESTAL",{"$f":"_xlfn.CONCAT(TAB_COMBINAÇÕES[[#This Row],[AUTOMAÇÃO]],\"+\",TAB_COMBINAÇÕES[[#This Row],[COMUNICAÇÃO]],\"+\",TAB_COMBINAÇÕES[[#This Row],[CABO]],\"+\",TAB_COMBINAÇÕES[[#This Row],[FIXAÇÃO]])","v":"PAINEL IHM + TRANSMISSOR+DeviceNet+200 m+COM PEDESTAL"},"O4"]
[null,"PAINEL IHM + TRANSMISSOR","DeviceNet","300 m","COM PEDESTAL",{"$f":"_xlfn.CONCAT(TAB_COMBINAÇÕES[[#This Row],[AUTOMAÇÃO]],\"+\",TAB_COMBINAÇÕES[[#This Row],[COMUNICAÇÃO]],\"+\",TAB_COMBINAÇÕES[[#This Row],[CABO]],\"+\",TAB_COMBINAÇÕES[[#This Row],[FIXAÇÃO]])","v":"PAINEL IHM + TRANSMISSOR+DeviceNet+300 m+COM PEDESTAL"},"O5"]
[null,"PAINEL IHM + TRANSMISSOR","DeviceNet + 4-20mA","SEM CABO","COM PEDESTAL",{"$f":"_xlfn.CONCAT(TAB_COMBINAÇÕES[[#This Row],[AUTOMAÇÃO]],\"+\",TAB_COMBINAÇÕES[[#This Row],[COMUNICAÇÃO]],\"+\",TAB_COMBINAÇÕES[[#This Row],[CABO]],\"+\",TAB_COMBINAÇÕES[[#This Row],[FIXAÇÃO]])","v":"PAINEL IHM + TRANSMISSOR+DeviceNet + 4-20mA+SEM CABO+COM PEDESTAL"},"O6"]
[null,"PAINEL IHM + TRANSMISSOR","DeviceNet + 4-20mA","10 m","COM PEDESTAL",{"$f":"_xlfn.CONCAT(TAB_COMBINAÇÕES[[#This Row],[AUTOMAÇÃO]],\"+\",TAB_COMBINAÇÕES[[#This Row],[COMUNICAÇÃO]],\"+\",TAB_COMBINAÇÕES[[#This Row],[CABO]],\"+\",TAB_COMBINAÇÕES[[#This Row],[FIXAÇÃO]])","v":"PAINEL IHM + TRANSMISSOR+DeviceNet + 4-20mA+10 m+COM PEDESTAL"},"O7"]
[null,"PAINEL IHM + TRANSMISSOR","DeviceNet + 4-20mA","20 m","COM PEDESTAL",{"$f":"_xlfn.CONCAT(TAB_COMBINAÇÕES[[#This Row],[AUTOMAÇÃO]],\"+\",TAB_COMBINAÇÕES[[#This Row],[COMUNICAÇÃO]],\"+\",TAB_COMBINAÇÕES[[#This Row],[CABO]],\"+\",TAB_COMBINAÇÕES[[#This Row],[FIXAÇÃO]])","v":"PAINEL IHM + TRANSMISSOR+DeviceNet + 4-20mA+20 m+COM PEDESTAL"},"O8"]
[null,"PAINEL IHM + TRANSMISSOR","DeviceNet + 4-20mA","50 m","COM PEDESTAL",{"$f":"_xlfn.CONCAT(TAB_COMBINAÇÕES[[#This Row],[AUTOMAÇÃO]],\"+\",TAB_COMBINAÇÕES[[#This Row],[COMUNICAÇÃO]],\"+\",TAB_COMBINAÇÕES[[#This Row],[CABO]],\"+\",TAB_COMBINAÇÕES[[#This Row],[FIXAÇÃO]])","v":"PAINEL IHM + TRANSMISSOR+DeviceNet + 4-20mA+50 m+COM PEDESTAL"},"O9"]
[null,"PAINEL IHM + TRANSMISSOR","DeviceNet + 4-20mA","100 m","COM PEDESTAL",{"$f":"_xlfn.CONCAT(TAB_COMBINAÇÕES[[#This Row],[AUTOMAÇÃO]],\"+\",TAB_COMBINAÇÕES[[#This Row],[COMUNICAÇÃO]],\"+\",TAB_COMBINAÇÕES[[#This Row],[CABO]],\"+\",TAB_COMBINAÇÕES[[#This Row],[FIXAÇÃO]])","v":"PAINEL IHM + TRANSMISSOR+DeviceNet + 4-20mA+100 m+COM PEDESTAL"},"P1"]
[null,"PAINEL IHM + TRANSMISSOR","DeviceNet + 4-20mA","200 m","COM PEDESTAL",{"$f":"_xlfn.CONCAT(TAB_COMBINAÇÕES[[#This Row],[AUTOMAÇÃO]],\"+\",TAB_COMBINAÇÕES[[#This Row],[COMUNICAÇÃO]],\"+\",TAB_COMBINAÇÕES[[#This Row],[CABO]],\"+\",TAB_COMBINAÇÕES[[#This Row],[FIXAÇÃO]])","v":"PAINEL IHM + TRANSMISSOR+DeviceNet + 4-20mA+200 m+COM PEDESTAL"},"P2"]
[null,"PAINEL IHM + TRANSMISSOR","DeviceNet + 4-20mA","300 m","COM PEDESTAL",{"$f":"_xlfn.CONCAT(TAB_COMBINAÇÕES[[#This Row],[AUTOMAÇÃO]],\"+\",TAB_COMBINAÇÕES[[#This Row],[COMUNICAÇÃO]],\"+\",TAB_COMBINAÇÕES[[#This Row],[CABO]],\"+\",TAB_COMBINAÇÕES[[#This Row],[FIXAÇÃO]])","v":"PAINEL IHM + TRANSMISSOR+DeviceNet + 4-20mA+300 m+COM PEDESTAL"},"P3"]
[null,"PAINEL IHM + TRANSMISSOR","Ethernet TCP/IP","SEM CABO","COM PEDESTAL",{"$f":"_xlfn.CONCAT(TAB_COMBINAÇÕES[[#This Row],[AUTOMAÇÃO]],\"+\",TAB_COMBINAÇÕES[[#This Row],[COMUNICAÇÃO]],\"+\",TAB_COMBINAÇÕES[[#This Row],[CABO]],\"+\",TAB_COMBINAÇÕES[[#This Row],[FIXAÇÃO]])","v":"PAINEL IHM + TRANSMISSOR+Ethernet TCP/IP+SEM CABO+COM PEDESTAL"},"P4"]
[null,"PAINEL IHM + TRANSMISSOR","Ethernet TCP/IP","10 m","COM PEDESTAL",{"$f":"_xlfn.CONCAT(TAB_COMBINAÇÕES[[#This Row],[AUTOMAÇÃO]],\"+\",TAB_COMBINAÇÕES[[#This Row],[COMUNICAÇÃO]],\"+\",TAB_COMBINAÇÕES[[#This Row],[CABO]],\"+\",TAB_COMBINAÇÕES[[#This Row],[FIXAÇÃO]])","v":"PAINEL IHM + TRANSMISSOR+Ethernet TCP/IP+10 m+COM PEDESTAL"},"P5"]
[null,"PAINEL IHM + TRANSMISSOR","Ethernet TCP/IP","20 m","COM PEDESTAL",{"$f":"_xlfn.CONCAT(TAB_COMBINAÇÕES[[#This Row],[AUTOMAÇÃO]],\"+\",TAB_COMBINAÇÕES[[#This Row],[COMUNICAÇÃO]],\"+\",TAB_COMBINAÇÕES[[#This Row],[CABO]],\"+\",TAB_COMBINAÇÕES[[#This Row],[FIXAÇÃO]])","v":"PAINEL IHM + TRANSMISSOR+Ethernet TCP/IP+20 m+COM PEDESTAL"},"P6"]
[null,"PAINEL IHM + TRANSMISSOR","Ethernet TCP/IP","50 m","COM PEDESTAL",{"$f":"_xlfn.CONCAT(TAB_COMBINAÇÕES[[#This Row],[AUTOMAÇÃO]],\"+\",TAB_COMBINAÇÕES[[#This Row],[COMUNICAÇÃO]],\"+\",TAB_COMBINAÇÕES[[#This Row],[CABO]],\"+\",TAB_COMBINAÇÕES[[#This Row],[FIXAÇÃO]])","v":"PAINEL IHM + TRANSMISSOR+Ethernet TCP/IP+50 m+COM PEDESTAL"},"P7"]
[null,"PAINEL IHM + TRANSMISSOR","Ethernet TCP/IP","100 m","COM PEDESTAL",{"$f":"_xlfn.CONCAT(TAB_COMBINAÇÕES[[#This Row],[AUTOMAÇÃO]],\"+\",TAB_COMBINAÇÕES[[#This Row],[COMUNICAÇÃO]],\"+\",TAB_COMBINAÇÕES[[#This Row],[CABO]],\"+\",TAB_COMBINAÇÕES[[#This Row],[FIXAÇÃO]])","v":"PAINEL IHM + TRANSMISSOR+Ethernet TCP/IP+100 m+COM PEDESTAL"},"P8"]
[null,"PAINEL IHM + TRANSMISSOR","Ethernet TCP/IP","200 m","COM PEDESTAL",{"$f":"_xlfn.CONCAT(TAB_COMBINAÇÕES[[#This Row],[AUTOMAÇÃO]],\"+\",TAB_COMBINAÇÕES[[#This Row],[COMUNICAÇÃO]],\"+\",TAB_COMBINAÇÕES[[#This Row],[CABO]],\"+\",TAB_COMBINAÇÕES[[#This Row],[FIXAÇÃO]])","v":"PAINEL IHM + TRANSMISSOR+Ethernet TCP/IP+200 m+COM PEDESTAL"},"P9"]
[null,"PAINEL IHM + TRANSMISSOR","Ethernet TCP/IP","300 m","COM PEDESTAL",{"$f":"_xlfn.CONCAT(TAB_COMBINAÇÕES[[#This Row],[AUTOMAÇÃO]],\"+\",TAB_COMBINAÇÕES[[#This Row],[COMUNICAÇÃO]],\"+\",TAB_COMBINAÇÕES[[#This Row],[CABO]],\"+\",TAB_COMBINAÇÕES[[#This Row],[FIXAÇÃO]])","v":"PAINEL IHM + TRANSMISSOR+Ethernet TCP/IP+300 m+COM PEDESTAL"},"Q1"]
[null,"PAINEL IHM + TRANSMISSOR","Ethernet TCP/IP + 4-20mA","SEM CABO","COM PEDESTAL",{"$f":"_xlfn.CONCAT(TAB_COMBINAÇÕES[[#This Row],[AUTOMAÇÃO]],\"+\",TAB_COMBINAÇÕES[[#This Row],[COMUNICAÇÃO]],\"+\",TAB_COMBINAÇÕES[[#This Row],[CABO]],\"+\",TAB_COMBINAÇÕES[[#This Row],[FIXAÇÃO]])","v":"PAINEL IHM + TRANSMISSOR+Ethernet TCP/IP + 4-20mA+SEM CABO+COM PEDESTAL"},"Q2"]
[null,"PAINEL IHM + TRANSMISSOR","Ethernet TCP/IP + 4-20mA","10 m","COM PEDESTAL",{"$f":"_xlfn.CONCAT(TAB_COMBINAÇÕES[[#This Row],[AUTOMAÇÃO]],\"+\",TAB_COMBINAÇÕES[[#This Row],[COMUNICAÇÃO]],\"+\",TAB_COMBINAÇÕES[[#This Row],[CABO]],\"+\",TAB_COMBINAÇÕES[[#This Row],[FIXAÇÃO]])","v":"PAINEL IHM + TRANSMISSOR+Ethernet TCP/IP + 4-20mA+10 m+COM PEDESTAL"},"Q3"]
[null,"PAINEL IHM + TRANSMISSOR","Ethernet TCP/IP + 4-20mA","20 m","COM PEDESTAL",{"$f":"_xlfn.CONCAT(TAB_COMBINAÇÕES[[#This Row],[AUTOMAÇÃO]],\"+\",TAB_COMBINAÇÕES[[#This Row],[COMUNICAÇÃO]],\"+\",TAB_COMBINAÇÕES[[#This Row],[CABO]],\"+\",TAB_COMBINAÇÕES[[#This Row],[FIXAÇÃO]])","v":"PAINEL IHM + TRANSMISSOR+Ethernet TCP/IP + 4-20mA+20 m+COM PEDESTAL"},"Q4"]
[null,"PAINEL IHM + TRANSMISSOR","Ethernet TCP/IP + 4-20mA","50 m","COM PEDESTAL",{"$f":"_xlfn.CONCAT(TAB_COMBINAÇÕES[[#This Row],[AUTOMAÇÃO]],\"+\",TAB_COMBINAÇÕES[[#This Row],[COMUNICAÇÃO]],\"+\",TAB_COMBINAÇÕES[[#This Row],[CABO]],\"+\",TAB_COMBINAÇÕES[[#This Row],[FIXAÇÃO]])","v":"PAINEL IHM + TRANSMISSOR+Ethernet TCP/IP + 4-20mA+50 m+COM PEDESTAL"},"Q5"]
[null,"PAINEL IHM + TRANSMISSOR","Ethernet TCP/IP + 4-20mA","100 m","COM PEDESTAL",{"$f":"_xlfn.CONCAT(TAB_COMBINAÇÕES[[#This Row],[AUTOMAÇÃO]],\"+\",TAB_COMBINAÇÕES[[#This Row],[COMUNICAÇÃO]],\"+\",TAB_COMBINAÇÕES[[#This Row],[CABO]],\"+\",TAB_COMBINAÇÕES[[#This Row],[FIXAÇÃO]])","v":"PAINEL IHM + TRANSMISSOR+Ethernet TCP/IP + 4-20mA+100 m+COM PEDESTAL"},"Q6"]
[null,"PAINEL IHM + TRANSMISSOR","Ethernet TCP/IP + 4-20mA","200 m","COM PEDESTAL",{"$f":"_xlfn.CONCAT(TAB_COMBINAÇÕES[[#This Row],[AUTOMAÇÃO]],\"+\",TAB_COMBINAÇÕES[[#This Row],[COMUNICAÇÃO]],\"+\",TAB_COMBINAÇÕES[[#This Row],[CABO]],\"+\",TAB_COMBINAÇÕES[[#This Row],[FIXAÇÃO]])","v":"PAINEL IHM + TRANSMISSOR+Ethernet TCP/IP + 4-20mA+200 m+COM PEDESTAL"},"Q7"]
[null,"PAINEL IHM + TRANSMISSOR","Ethernet TCP/IP + 4-20mA","300 m","COM PEDESTAL",{"$f":"_xlfn.CONCAT(TAB_COMBINAÇÕES[[#This Row],[AUTOMAÇÃO]],\"+\",TAB_COMBINAÇÕES[[#This Row],[COMUNICAÇÃO]],\"+\",TAB_COMBINAÇÕES[[#This Row],[CABO]],\"+\",TAB_COMBINAÇÕES[[#This Row],[FIXAÇÃO]])","v":"PAINEL IHM + TRANSMISSOR+Ethernet TCP/IP + 4-20mA+300 m+COM PEDESTAL"},"Q8"]
[null,"PAINEL IHM + TRANSMISSOR","EtherNet/IP","SEM CABO","COM PEDESTAL",{"$f":"_xlfn.CONCAT(TAB_COMBINAÇÕES[[#This Row],[AUTOMAÇÃO]],\"+\",TAB_COMBINAÇÕES[[#This Row],[COMUNICAÇÃO]],\"+\",TAB_COMBINAÇÕES[[#This Row],[CABO]],\"+\",TAB_COMBINAÇÕES[[#This Row],[FIXAÇÃO]])","v":"PAINEL IHM + TRANSMISSOR+EtherNet/IP+SEM CABO+COM PEDESTAL"},"Q9"]
[null,"PAINEL IHM + TRANSMISSOR","EtherNet/IP","10 m","COM PEDESTAL",{"$f":"_xlfn.CONCAT(TAB_COMBINAÇÕES[[#This Row],[AUTOMAÇÃO]],\"+\",TAB_COMBINAÇÕES[[#This Row],[COMUNICAÇÃO]],\"+\",TAB_COMBINAÇÕES[[#This Row],[CABO]],\"+\",TAB_COMBINAÇÕES[[#This Row],[FIXAÇÃO]])","v":"PAINEL IHM + TRANSMISSOR+EtherNet/IP+10 m+COM PEDESTAL"},"R1"]
[null,"PAINEL IHM + TRANSMISSOR","EtherNet/IP","20 m","COM PEDESTAL",{"$f":"_xlfn.CONCAT(TAB_COMBINAÇÕES[[#This Row],[AUTOMAÇÃO]],\"+\",TAB_COMBINAÇÕES[[#This Row],[COMUNICAÇÃO]],\"+\",TAB_COMBINAÇÕES[[#This Row],[CABO]],\"+\",TAB_COMBINAÇÕES[[#This Row],[FIXAÇÃO]])","v":"PAINEL IHM + TRANSMISSOR+EtherNet/IP+20 m+COM PEDESTAL"},"R2"]
[null,"PAINEL IHM + TRANSMISSOR","EtherNet/IP","50 m","COM PEDESTAL",{"$f":"_xlfn.CONCAT(TAB_COMBINAÇÕES[[#This Row],[AUTOMAÇÃO]],\"+\",TAB_COMBINAÇÕES[[#This Row],[COMUNICAÇÃO]],\"+\",TAB_COMBINAÇÕES[[#This Row],[CABO]],\"+\",TAB_COMBINAÇÕES[[#This Row],[FIXAÇÃO]])","v":"PAINEL IHM + TRANSMISSOR+EtherNet/IP+50 m+COM PEDESTAL"},"R3"]
[null,"PAINEL IHM + TRANSMISSOR","EtherNet/IP","100 m","COM PEDESTAL",{"$f":"_xlfn.CONCAT(TAB_COMBINAÇÕES[[#This Row],[AUTOMAÇÃO]],\"+\",TAB_COMBINAÇÕES[[#This Row],[COMUNICAÇÃO]],\"+\",TAB_COMBINAÇÕES[[#This Row],[CABO]],\"+\",TAB_COMBINAÇÕES[[#This Row],[FIXAÇÃO]])","v":"PAINEL IHM + TRANSMISSOR+EtherNet/IP+100 m+COM PEDESTAL"},"R4"]
[null,"PAINEL IHM + TRANSMISSOR","EtherNet/IP","200 m","COM PEDESTAL",{"$f":"_xlfn.CONCAT(TAB_COMBINAÇÕES[[#This Row],[AUTOMAÇÃO]],\"+\",TAB_COMBINAÇÕES[[#This Row],[COMUNICAÇÃO]],\"+\",TAB_COMBINAÇÕES[[#This Row],[CABO]],\"+\",TAB_COMBINAÇÕES[[#This Row],[FIXAÇÃO]])","v":"PAINEL IHM + TRANSMISSOR+EtherNet/IP+200 m+COM PEDESTAL"},"R5"]
[null,"PAINEL IHM + TRANSMISSOR","EtherNet/IP","300 m","COM PEDESTAL",{"$f":"_xlfn.CONCAT(TAB_COMBINAÇÕES[[#This Row],[AUTOMAÇÃO]],\"+\",TAB_COMBINAÇÕES[[#This Row],[COMUNICAÇÃO]],\"+\",TAB_COMBINAÇÕES[[#This Row],[CABO]],\"+\",TAB_COMBINAÇÕES[[#This Row],[FIXAÇÃO]])","v":"PAINEL IHM + TRANSMISSOR+EtherNet/IP+300 m+COM PEDESTAL"},"R6"]
[null,"PAINEL IHM + TRANSMISSOR","EtherNet/IP + 4-20mA","SEM CABO","COM PEDESTAL",{"$f":"_xlfn.CONCAT(TAB_COMBINAÇÕES[[#This Row],[AUTOMAÇÃO]],\"+\",TAB_COMBINAÇÕES[[#This Row],[COMUNICAÇÃO]],\"+\",TAB_COMBINAÇÕES[[#This Row],[CABO]],\"+\",TAB_COMBINAÇÕES[[#This Row],[FIXAÇÃO]])","v":"PAINEL IHM + TRANSMISSOR+EtherNet/IP + 4-20mA+SEM CABO+COM PEDESTAL"},"R7"]
[null,"PAINEL IHM + TRANSMISSOR","EtherNet/IP + 4-20mA","10 m","COM PEDESTAL",{"$f":"_xlfn.CONCAT(TAB_COMBINAÇÕES[[#This Row],[AUTOMAÇÃO]],\"+\",TAB_COMBINAÇÕES[[#This Row],[COMUNICAÇÃO]],\"+\",TAB_COMBINAÇÕES[[#This Row],[CABO]],\"+\",TAB_COMBINAÇÕES[[#This Row],[FIXAÇÃO]])","v":"PAINEL IHM + TRANSMISSOR+EtherNet/IP + 4-20mA+10 m+COM PEDESTAL"},"R8"]
[null,"PAINEL IHM + TRANSMISSOR","EtherNet/IP + 4-20mA","20 m","COM PEDESTAL",{"$f":"_xlfn.CONCAT(TAB_COMBINAÇÕES[[#This Row],[AUTOMAÇÃO]],\"+\",TAB_COMBINAÇÕES[[#This Row],[COMUNICAÇÃO]],\"+\",TAB_COMBINAÇÕES[[#This Row],[CABO]],\"+\",TAB_COMBINAÇÕES[[#This Row],[FIXAÇÃO]])","v":"PAINEL IHM + TRANSMISSOR+EtherNet/IP + 4-20mA+20 m+COM PEDESTAL"},"R9"]
[null,"PAINEL IHM + TRANSMISSOR","EtherNet/IP + 4-20mA","50 m","COM PEDESTAL",{"$f":"_xlfn.CONCAT(TAB_COMBINAÇÕES[[#This Row],[AUTOMAÇÃO]],\"+\",TAB_COMBINAÇÕES[[#This Row],[COMUNICAÇÃO]],\"+\",TAB_COMBINAÇÕES[[#This Row],[CABO]],\"+\",TAB_COMBINAÇÕES[[#This Row],[FIXAÇÃO]])","v":"PAINEL IHM + TRANSMISSOR+EtherNet/IP + 4-20mA+50 m+COM PEDESTAL"},"S1"]
[null,"PAINEL IHM + TRANSMISSOR","EtherNet/IP + 4-20mA","100 m","COM PEDESTAL",{"$f":"_xlfn.CONCAT(TAB_COMBINAÇÕES[[#This Row],[AUTOMAÇÃO]],\"+\",TAB_COMBINAÇÕES[[#This Row],[COMUNICAÇÃO]],\"+\",TAB_COMBINAÇÕES[[#This Row],[CABO]],\"+\",TAB_COMBINAÇÕES[[#This Row],[FIXAÇÃO]])","v":"PAINEL IHM + TRANSMISSOR+EtherNet/IP + 4-20mA+100 m+COM PEDESTAL"},"S2"]
[null,"PAINEL IHM + TRANSMISSOR","EtherNet/IP + 4-20mA","200 m","COM PEDESTAL",{"$f":"_xlfn.CONCAT(TAB_COMBINAÇÕES[[#This Row],[AUTOMAÇÃO]],\"+\",TAB_COMBINAÇÕES[[#This Row],[COMUNICAÇÃO]],\"+\",TAB_COMBINAÇÕES[[#This Row],[CABO]],\"+\",TAB_COMBINAÇÕES[[#This Row],[FIXAÇÃO]])","v":"PAINEL IHM + TRANSMISSOR+EtherNet/IP + 4-20mA+200 m+COM PEDESTAL"},"S3"]
[null,"PAINEL IHM + TRANSMISSOR","EtherNet/IP + 4-20mA","300 m","COM PEDESTAL",{"$f":"_xlfn.CONCAT(TAB_COMBINAÇÕES[[#This Row],[AUTOMAÇÃO]],\"+\",TAB_COMBINAÇÕES[[#This Row],[COMUNICAÇÃO]],\"+\",TAB_COMBINAÇÕES[[#This Row],[CABO]],\"+\",TAB_COMBINAÇÕES[[#This Row],[FIXAÇÃO]])","v":"PAINEL IHM + TRANSMISSOR+EtherNet/IP + 4-20mA+300 m+COM PEDESTAL"},"S4"]
[null,"PAINEL IHM + TRANSMISSOR","ModBus RTU","SEM CABO","COM PEDESTAL",{"$f":"_xlfn.CONCAT(TAB_COMBINAÇÕES[[#This Row],[AUTOMAÇÃO]],\"+\",TAB_COMBINAÇÕES[[#This Row],[COMUNICAÇÃO]],\"+\",TAB_COMBINAÇÕES[[#This Row],[CABO]],\"+\",TAB_COMBINAÇÕES[[#This Row],[FIXAÇÃO]])","v":"PAINEL IHM + TRANSMISSOR+ModBus RTU+SEM CABO+COM PEDESTAL"},"S5"]
[null,"PAINEL IHM + TRANSMISSOR","ModBus RTU","10 m","COM PEDESTAL",{"$f":"_xlfn.CONCAT(TAB_COMBINAÇÕES[[#This Row],[AUTOMAÇÃO]],\"+\",TAB_COMBINAÇÕES[[#This Row],[COMUNICAÇÃO]],\"+\",TAB_COMBINAÇÕES[[#This Row],[CABO]],\"+\",TAB_COMBINAÇÕES[[#This Row],[FIXAÇÃO]])","v":"PAINEL IHM + TRANSMISSOR+ModBus RTU+10 m+COM PEDESTAL"},"S6"]
[null,"PAINEL IHM + TRANSMISSOR","ModBus RTU","20 m","COM PEDESTAL",{"$f":"_xlfn.CONCAT(TAB_COMBINAÇÕES[[#This Row],[AUTOMAÇÃO]],\"+\",TAB_COMBINAÇÕES[[#This Row],[COMUNICAÇÃO]],\"+\",TAB_COMBINAÇÕES[[#This Row],[CABO]],\"+\",TAB_COMBINAÇÕES[[#This Row],[FIXAÇÃO]])","v":"PAINEL IHM + TRANSMISSOR+ModBus RTU+20 m+COM PEDESTAL"},"S7"]
[null,"PAINEL IHM + TRANSMISSOR","ModBus RTU","50 m","COM PEDESTAL",{"$f":"_xlfn.CONCAT(TAB_COMBINAÇÕES[[#This Row],[AUTOMAÇÃO]],\"+\",TAB_COMBINAÇÕES[[#This Row],[COMUNICAÇÃO]],\"+\",TAB_COMBINAÇÕES[[#This Row],[CABO]],\"+\",TAB_COMBINAÇÕES[[#This Row],[FIXAÇÃO]])","v":"PAINEL IHM + TRANSMISSOR+ModBus RTU+50 m+COM PEDESTAL"},"S8"]
[null,"PAINEL IHM + TRANSMISSOR","ModBus RTU","100 m","COM PEDESTAL",{"$f":"_xlfn.CONCAT(TAB_COMBINAÇÕES[[#This Row],[AUTOMAÇÃO]],\"+\",TAB_COMBINAÇÕES[[#This Row],[COMUNICAÇÃO]],\"+\",TAB_COMBINAÇÕES[[#This Row],[CABO]],\"+\",TAB_COMBINAÇÕES[[#This Row],[FIXAÇÃO]])","v":"PAINEL IHM + TRANSMISSOR+ModBus RTU+100 m+COM PEDESTAL"},"S9"]
[null,"PAINEL IHM + TRANSMISSOR","ModBus RTU","200 m","COM PEDESTAL",{"$f":"_xlfn.CONCAT(TAB_COMBINAÇÕES[[#This Row],[AUTOMAÇÃO]],\"+\",TAB_COMBINAÇÕES[[#This Row],[COMUNICAÇÃO]],\"+\",TAB_COMBINAÇÕES[[#This Row],[CABO]],\"+\",TAB_COMBINAÇÕES[[#This Row],[FIXAÇÃO]])","v":"PAINEL IHM + TRANSMISSOR+ModBus RTU+200 m+COM PEDESTAL"},"T1"]
[null,"PAINEL IHM + TRANSMISSOR","ModBus RTU","300 m","COM PEDESTAL",{"$f":"_xlfn.CONCAT(TAB_COMBINAÇÕES[[#This Row],[AUTOMAÇÃO]],\"+\",TAB_COMBINAÇÕES[[#This Row],[COMUNICAÇÃO]],\"+\",TAB_COMBINAÇÕES[[#This Row],[CABO]],\"+\",TAB_COMBINAÇÕES[[#This Row],[FIXAÇÃO]])","v":"PAINEL IHM + TRANSMISSOR+ModBus RTU+300 m+COM PEDESTAL"},"T2"]
[null,"PAINEL IHM + TRANSMISSOR","ModBus RTU + 4-20mA","SEM CABO","COM PEDESTAL",{"$f":"_xlfn.CONCAT(TAB_COMBINAÇÕES[[#This Row],[AUTOMAÇÃO]],\"+\",TAB_COMBINAÇÕES[[#This Row],[COMUNICAÇÃO]],\"+\",TAB_COMBINAÇÕES[[#This Row],[CABO]],\"+\",TAB_COMBINAÇÕES[[#This Row],[FIXAÇÃO]])","v":"PAINEL IHM + TRANSMISSOR+ModBus RTU + 4-20mA+SEM CABO+COM PEDESTAL"},"T3"]
[null,"PAINEL IHM + TRANSMISSOR","ModBus RTU + 4-20mA","10 m","COM PEDESTAL",{"$f":"_xlfn.CONCAT(TAB_COMBINAÇÕES[[#This Row],[AUTOMAÇÃO]],\"+\",TAB_COMBINAÇÕES[[#This Row],[COMUNICAÇÃO]],\"+\",TAB_COMBINAÇÕES[[#This Row],[CABO]],\"+\",TAB_COMBINAÇÕES[[#This Row],[FIXAÇÃO]])","v":"PAINEL IHM + TRANSMISSOR+ModBus RTU + 4-20mA+10 m+COM PEDESTAL"},"T4"]
[null,"PAINEL IHM + TRANSMISSOR","ModBus RTU + 4-20mA","20 m","COM PEDESTAL",{"$f":"_xlfn.CONCAT(TAB_COMBINAÇÕES[[#This Row],[AUTOMAÇÃO]],\"+\",TAB_COMBINAÇÕES[[#This Row],[COMUNICAÇÃO]],\"+\",TAB_COMBINAÇÕES[[#This Row],[CABO]],\"+\",TAB_COMBINAÇÕES[[#This Row],[FIXAÇÃO]])","v":"PAINEL IHM + TRANSMISSOR+ModBus RTU + 4-20mA+20 m+COM PEDESTAL"},"T5"]
[null,"PAINEL IHM + TRANSMISSOR","ModBus RTU + 4-20mA","50 m","COM PEDESTAL",{"$f":"_xlfn.CONCAT(TAB_COMBINAÇÕES[[#This Row],[AUTOMAÇÃO]],\"+\",TAB_COMBINAÇÕES[[#This Row],[COMUNICAÇÃO]],\"+\",TAB_COMBINAÇÕES[[#This Row],[CABO]],\"+\",TAB_COMBINAÇÕES[[#This Row],[FIXAÇÃO]])","v":"PAINEL IHM + TRANSMISSOR+ModBus RTU + 4-20mA+50 m+COM PEDESTAL"},"T6"]
[null,"PAINEL IHM + TRANSMISSOR","ModBus RTU + 4-20mA","100 m","COM PEDESTAL",{"$f":"_xlfn.CONCAT(TAB_COMBINAÇÕES[[#This Row],[AUTOMAÇÃO]],\"+\",TAB_COMBINAÇÕES[[#This Row],[COMUNICAÇÃO]],\"+\",TAB_COMBINAÇÕES[[#This Row],[CABO]],\"+\",TAB_COMBINAÇÕES[[#This Row],[FIXAÇÃO]])","v":"PAINEL IHM + TRANSMISSOR+ModBus RTU + 4-20mA+100 m+COM PEDESTAL"},"T7"]
[null,"PAINEL IHM + TRANSMISSOR","ModBus RTU + 4-20mA","200 m","COM PEDESTAL",{"$f":"_xlfn.CONCAT(TAB_COMBINAÇÕES[[#This Row],[AUTOMAÇÃO]],\"+\",TAB_COMBINAÇÕES[[#This Row],[COMUNICAÇÃO]],\"+\",TAB_COMBINAÇÕES[[#This Row],[CABO]],\"+\",TAB_COMBINAÇÕES[[#This Row],[FIXAÇÃO]])","v":"PAINEL IHM + TRANSMISSOR+ModBus RTU + 4-20mA+200 m+COM PEDESTAL"},"T8"]
[null,"PAINEL IHM + TRANSMISSOR","ModBus RTU + 4-20mA","300 m","COM PEDESTAL",{"$f":"_xlfn.CONCAT(TAB_COMBINAÇÕES[[#This Row],[AUTOMAÇÃO]],\"+\",TAB_COMBINAÇÕES[[#This Row],[COMUNICAÇÃO]],\"+\",TAB_COMBINAÇÕES[[#This Row],[CABO]],\"+\",TAB_COMBINAÇÕES[[#This Row],[FIXAÇÃO]])","v":"PAINEL IHM + TRANSMISSOR+ModBus RTU + 4-20mA+300 m+COM PEDESTAL"},"T9"]
[null,"PAINEL IHM + TRANSMISSOR","ModBus TCP/IP","SEM CABO","COM PEDESTAL",{"$f":"_xlfn.CONCAT(TAB_COMBINAÇÕES[[#This Row],[AUTOMAÇÃO]],\"+\",TAB_COMBINAÇÕES[[#This Row],[COMUNICAÇÃO]],\"+\",TAB_COMBINAÇÕES[[#This Row],[CABO]],\"+\",TAB_COMBINAÇÕES[[#This Row],[FIXAÇÃO]])","v":"PAINEL IHM + TRANSMISSOR+ModBus TCP/IP+SEM CABO+COM PEDESTAL"},"U1"]
[null,"PAINEL IHM + TRANSMISSOR","ModBus TCP/IP","10 m","COM PEDESTAL",{"$f":"_xlfn.CONCAT(TAB_COMBINAÇÕES[[#This Row],[AUTOMAÇÃO]],\"+\",TAB_COMBINAÇÕES[[#This Row],[COMUNICAÇÃO]],\"+\",TAB_COMBINAÇÕES[[#This Row],[CABO]],\"+\",TAB_COMBINAÇÕES[[#This Row],[FIXAÇÃO]])","v":"PAINEL IHM + TRANSMISSOR+ModBus TCP/IP+10 m+COM PEDESTAL"},"U2"]
[null,"PAINEL IHM + TRANSMISSOR","ModBus TCP/IP","20 m","COM PEDESTAL",{"$f":"_xlfn.CONCAT(TAB_COMBINAÇÕES[[#This Row],[AUTOMAÇÃO]],\"+\",TAB_COMBINAÇÕES[[#This Row],[COMUNICAÇÃO]],\"+\",TAB_COMBINAÇÕES[[#This Row],[CABO]],\"+\",TAB_COMBINAÇÕES[[#This Row],[FIXAÇÃO]])","v":"PAINEL IHM + TRANSMISSOR+ModBus TCP/IP+20 m+COM PEDESTAL"},"U3"]
[null,"PAINEL IHM + TRANSMISSOR","ModBus TCP/IP","50 m","COM PEDESTAL",{"$f":"_xlfn.CONCAT(TAB_COMBINAÇÕES[[#This Row],[AUTOMAÇÃO]],\"+\",TAB_COMBINAÇÕES[[#This Row],[COMUNICAÇÃO]],\"+\",TAB_COMBINAÇÕES[[#This Row],[CABO]],\"+\",TAB_COMBINAÇÕES[[#This Row],[FIXAÇÃO]])","v":"PAINEL IHM + TRANSMISSOR+ModBus TCP/IP+50 m+COM PEDESTAL"},"U4"]
[null,"PAINEL IHM + TRANSMISSOR","ModBus TCP/IP","100 m","COM PEDESTAL",{"$f":"_xlfn.CONCAT(TAB_COMBINAÇÕES[[#This Row],[AUTOMAÇÃO]],\"+\",TAB_COMBINAÇÕES[[#This Row],[COMUNICAÇÃO]],\"+\",TAB_COMBINAÇÕES[[#This Row],[CABO]],\"+\",TAB_COMBINAÇÕES[[#This Row],[FIXAÇÃO]])","v":"PAINEL IHM + TRANSMISSOR+ModBus TCP/IP+100 m+COM PEDESTAL"},"U5"]
[null,"PAINEL IHM + TRANSMISSOR","ModBus TCP/IP","200 m","COM PEDESTAL",{"$f":"_xlfn.CONCAT(TAB_COMBINAÇÕES[[#This Row],[AUTOMAÇÃO]],\"+\",TAB_COMBINAÇÕES[[#This Row],[COMUNICAÇÃO]],\"+\",TAB_COMBINAÇÕES[[#This Row],[CABO]],\"+\",TAB_COMBINAÇÕES[[#This Row],[FIXAÇÃO]])","v":"PAINEL IHM + TRANSMISSOR+ModBus TCP/IP+200 m+COM PEDESTAL"},"U6"]
[null,"PAINEL IHM + TRANSMISSOR","ModBus TCP/IP","300 m","COM PEDESTAL",{"$f":"_xlfn.CONCAT(TAB_COMBINAÇÕES[[#This Row],[AUTOMAÇÃO]],\"+\",TAB_COMBINAÇÕES[[#This Row],[COMUNICAÇÃO]],\"+\",TAB_COMBINAÇÕES[[#This Row],[CABO]],\"+\",TAB_COMBINAÇÕES[[#This Row],[FIXAÇÃO]])","v":"PAINEL IHM + TRANSMISSOR+ModBus TCP/IP+300 m+COM PEDESTAL"},"U7"]
[null,"PAINEL IHM + TRANSMISSOR","ModBus TCP/IP + 4-20mA","SEM CABO","COM PEDESTAL",{"$f":"_xlfn.CONCAT(TAB_COMBINAÇÕES[[#This Row],[AUTOMAÇÃO]],\"+\",TAB_COMBINAÇÕES[[#This Row],[COMUNICAÇÃO]],\"+\",TAB_COMBINAÇÕES[[#This Row],[CABO]],\"+\",TAB_COMBINAÇÕES[[#This Row],[FIXAÇÃO]])","v":"PAINEL IHM + TRANSMISSOR+ModBus TCP/IP + 4-20mA+SEM CABO+COM PEDESTAL"},"U8"]
[null,"PAINEL IHM + TRANSMISSOR","ModBus TCP/IP + 4-20mA","10 m","COM PEDESTAL",{"$f":"_xlfn.CONCAT(TAB_COMBINAÇÕES[[#This Row],[AUTOMAÇÃO]],\"+\",TAB_COMBINAÇÕES[[#This Row],[COMUNICAÇÃO]],\"+\",TAB_COMBINAÇÕES[[#This Row],[CABO]],\"+\",TAB_COMBINAÇÕES[[#This Row],[FIXAÇÃO]])","v":"PAINEL IHM + TRANSMISSOR+ModBus TCP/IP + 4-20mA+10 m+COM PEDESTAL"},"U9"]
[null,"PAINEL IHM + TRANSMISSOR","ModBus TCP/IP + 4-20mA","20 m","COM PEDESTAL",{"$f":"_xlfn.CONCAT(TAB_COMBINAÇÕES[[#This Row],[AUTOMAÇÃO]],\"+\",TAB_COMBINAÇÕES[[#This Row],[COMUNICAÇÃO]],\"+\",TAB_COMBINAÇÕES[[#This Row],[CABO]],\"+\",TAB_COMBINAÇÕES[[#This Row],[FIXAÇÃO]])","v":"PAINEL IHM + TRANSMISSOR+ModBus TCP/IP + 4-20mA+20 m+COM PEDESTAL"},"V1"]
[null,"PAINEL IHM + TRANSMISSOR","ModBus TCP/IP + 4-20mA","50 m","COM PEDESTAL",{"$f":"_xlfn.CONCAT(TAB_COMBINAÇÕES[[#This Row],[AUTOMAÇÃO]],\"+\",TAB_COMBINAÇÕES[[#This Row],[COMUNICAÇÃO]],\"+\",TAB_COMBINAÇÕES[[#This Row],[CABO]],\"+\",TAB_COMBINAÇÕES[[#This Row],[FIXAÇÃO]])","v":"PAINEL IHM + TRANSMISSOR+ModBus TCP/IP + 4-20mA+50 m+COM PEDESTAL"},"V2"]
[null,"PAINEL IHM + TRANSMISSOR","ModBus TCP/IP + 4-20mA","100 m","COM PEDESTAL",{"$f":"_xlfn.CONCAT(TAB_COMBINAÇÕES[[#This Row],[AUTOMAÇÃO]],\"+\",TAB_COMBINAÇÕES[[#This Row],[COMUNICAÇÃO]],\"+\",TAB_COMBINAÇÕES[[#This Row],[CABO]],\"+\",TAB_COMBINAÇÕES[[#This Row],[FIXAÇÃO]])","v":"PAINEL IHM + TRANSMISSOR+ModBus TCP/IP + 4-20mA+100 m+COM PEDESTAL"},"V3"]
[null,"PAINEL IHM + TRANSMISSOR","ModBus TCP/IP + 4-20mA","200 m","COM PEDESTAL",{"$f":"_xlfn.CONCAT(TAB_COMBINAÇÕES[[#This Row],[AUTOMAÇÃO]],\"+\",TAB_COMBINAÇÕES[[#This Row],[COMUNICAÇÃO]],\"+\",TAB_COMBINAÇÕES[[#This Row],[CABO]],\"+\",TAB_COMBINAÇÕES[[#This Row],[FIXAÇÃO]])","v":"PAINEL IHM + TRANSMISSOR+ModBus TCP/IP + 4-20mA+200 m+COM PEDESTAL"},"V4"]
[null,"PAINEL IHM + TRANSMISSOR","ModBus TCP/IP + 4-20mA","300 m","COM PEDESTAL",{"$f":"_xlfn.CONCAT(TAB_COMBINAÇÕES[[#This Row],[AUTOMAÇÃO]],\"+\",TAB_COMBINAÇÕES[[#This Row],[COMUNICAÇÃO]],\"+\",TAB_COMBINAÇÕES[[#This Row],[CABO]],\"+\",TAB_COMBINAÇÕES[[#This Row],[FIXAÇÃO]])","v":"PAINEL IHM + TRANSMISSOR+ModBus TCP/IP + 4-20mA+300 m+COM PEDESTAL"},"V5"]
[null,"PAINEL IHM + TRANSMISSOR","Profibus","SEM CABO","COM PEDESTAL",{"$f":"_xlfn.CONCAT(TAB_COMBINAÇÕES[[#This Row],[AUTOMAÇÃO]],\"+\",TAB_COMBINAÇÕES[[#This Row],[COMUNICAÇÃO]],\"+\",TAB_COMBINAÇÕES[[#This Row],[CABO]],\"+\",TAB_COMBINAÇÕES[[#This Row],[FIXAÇÃO]])","v":"PAINEL IHM + TRANSMISSOR+Profibus+SEM CABO+COM PEDESTAL"},"V6"]
[null,"PAINEL IHM + TRANSMISSOR","Profibus","10 m","COM PEDESTAL",{"$f":"_xlfn.CONCAT(TAB_COMBINAÇÕES[[#This Row],[AUTOMAÇÃO]],\"+\",TAB_COMBINAÇÕES[[#This Row],[COMUNICAÇÃO]],\"+\",TAB_COMBINAÇÕES[[#This Row],[CABO]],\"+\",TAB_COMBINAÇÕES[[#This Row],[FIXAÇÃO]])","v":"PAINEL IHM + TRANSMISSOR+Profibus+10 m+COM PEDESTAL"},"V7"]
[null,"PAINEL IHM + TRANSMISSOR","Profibus","20 m","COM PEDESTAL",{"$f":"_xlfn.CONCAT(TAB_COMBINAÇÕES[[#This Row],[AUTOMAÇÃO]],\"+\",TAB_COMBINAÇÕES[[#This Row],[COMUNICAÇÃO]],\"+\",TAB_COMBINAÇÕES[[#This Row],[CABO]],\"+\",TAB_COMBINAÇÕES[[#This Row],[FIXAÇÃO]])","v":"PAINEL IHM + TRANSMISSOR+Profibus+20 m+COM PEDESTAL"},"V8"]
[null,"PAINEL IHM + TRANSMISSOR","Profibus","50 m","COM PEDESTAL",{"$f":"_xlfn.CONCAT(TAB_COMBINAÇÕES[[#This Row],[AUTOMAÇÃO]],\"+\",TAB_COMBINAÇÕES[[#This Row],[COMUNICAÇÃO]],\"+\",TAB_COMBINAÇÕES[[#This Row],[CABO]],\"+\",TAB_COMBINAÇÕES[[#This Row],[FIXAÇÃO]])","v":"PAINEL IHM + TRANSMISSOR+Profibus+50 m+COM PEDESTAL"},"V9"]
[null,"PAINEL IHM + TRANSMISSOR","Profibus","100 m","COM PEDESTAL",{"$f":"_xlfn.CONCAT(TAB_COMBINAÇÕES[[#This Row],[AUTOMAÇÃO]],\"+\",TAB_COMBINAÇÕES[[#This Row],[COMUNICAÇÃO]],\"+\",TAB_COMBINAÇÕES[[#This Row],[CABO]],\"+\",TAB_COMBINAÇÕES[[#This Row],[FIXAÇÃO]])","v":"PAINEL IHM + TRANSMISSOR+Profibus+100 m+COM PEDESTAL"},"X1"]
[null,"PAINEL IHM + TRANSMISSOR","Profibus","200 m","COM PEDESTAL",{"$f":"_xlfn.CONCAT(TAB_COMBINAÇÕES[[#This Row],[AUTOMAÇÃO]],\"+\",TAB_COMBINAÇÕES[[#This Row],[COMUNICAÇÃO]],\"+\",TAB_COMBINAÇÕES[[#This Row],[CABO]],\"+\",TAB_COMBINAÇÕES[[#This Row],[FIXAÇÃO]])","v":"PAINEL IHM + TRANSMISSOR+Profibus+200 m+COM PEDESTAL"},"X2"]
[null,"PAINEL IHM + TRANSMISSOR","Profibus","300 m","COM PEDESTAL",{"$f":"_xlfn.CONCAT(TAB_COMBINAÇÕES[[#This Row],[AUTOMAÇÃO]],\"+\",TAB_COMBINAÇÕES[[#This Row],[COMUNICAÇÃO]],\"+\",TAB_COMBINAÇÕES[[#This Row],[CABO]],\"+\",TAB_COMBINAÇÕES[[#This Row],[FIXAÇÃO]])","v":"PAINEL IHM + TRANSMISSOR+Profibus+300 m+COM PEDESTAL"},"X3"]
[null,"PAINEL IHM + TRANSMISSOR","Profibus + 4-20mA","SEM CABO","COM PEDESTAL",{"$f":"_xlfn.CONCAT(TAB_COMBINAÇÕES[[#This Row],[AUTOMAÇÃO]],\"+\",TAB_COMBINAÇÕES[[#This Row],[COMUNICAÇÃO]],\"+\",TAB_COMBINAÇÕES[[#This Row],[CABO]],\"+\",TAB_COMBINAÇÕES[[#This Row],[FIXAÇÃO]])","v":"PAINEL IHM + TRANSMISSOR+Profibus + 4-20mA+SEM CABO+COM PEDESTAL"},"X4"]
[null,"PAINEL IHM + TRANSMISSOR","Profibus + 4-20mA","10 m","COM PEDESTAL",{"$f":"_xlfn.CONCAT(TAB_COMBINAÇÕES[[#This Row],[AUTOMAÇÃO]],\"+\",TAB_COMBINAÇÕES[[#This Row],[COMUNICAÇÃO]],\"+\",TAB_COMBINAÇÕES[[#This Row],[CABO]],\"+\",TAB_COMBINAÇÕES[[#This Row],[FIXAÇÃO]])","v":"PAINEL IHM + TRANSMISSOR+Profibus + 4-20mA+10 m+COM PEDESTAL"},"X5"]
[null,"PAINEL IHM + TRANSMISSOR","Profibus + 4-20mA","20 m","COM PEDESTAL",{"$f":"_xlfn.CONCAT(TAB_COMBINAÇÕES[[#This Row],[AUTOMAÇÃO]],\"+\",TAB_COMBINAÇÕES[[#This Row],[COMUNICAÇÃO]],\"+\",TAB_COMBINAÇÕES[[#This Row],[CABO]],\"+\",TAB_COMBINAÇÕES[[#This Row],[FIXAÇÃO]])","v":"PAINEL IHM + TRANSMISSOR+Profibus + 4-20mA+20 m+COM PEDESTAL"},"X6"]
[null,"PAINEL IHM + TRANSMISSOR","Profibus + 4-20mA","50 m","COM PEDESTAL",{"$f":"_xlfn.CONCAT(TAB_COMBINAÇÕES[[#This Row],[AUTOMAÇÃO]],\"+\",TAB_COMBINAÇÕES[[#This Row],[COMUNICAÇÃO]],\"+\",TAB_COMBINAÇÕES[[#This Row],[CABO]],\"+\",TAB_COMBINAÇÕES[[#This Row],[FIXAÇÃO]])","v":"PAINEL IHM + TRANSMISSOR+Profibus + 4-20mA+50 m+COM PEDESTAL"},"X7"]
[null,"PAINEL IHM + TRANSMISSOR","Profibus + 4-20mA","100 m","COM PEDESTAL",{"$f":"_xlfn.CONCAT(TAB_COMBINAÇÕES[[#This Row],[AUTOMAÇÃO]],\"+\",TAB_COMBINAÇÕES[[#This Row],[COMUNICAÇÃO]],\"+\",TAB_COMBINAÇÕES[[#This Row],[CABO]],\"+\",TAB_COMBINAÇÕES[[#This Row],[FIXAÇÃO]])","v":"PAINEL IHM + TRANSMISSOR+Profibus + 4-20mA+100 m+COM PEDESTAL"},"X8"]
[null,"PAINEL IHM + TRANSMISSOR","Profibus + 4-20mA","200 m","COM PEDESTAL",{"$f":"_xlfn.CONCAT(TAB_COMBINAÇÕES[[#This Row],[AUTOMAÇÃO]],\"+\",TAB_COMBINAÇÕES[[#This Row],[COMUNICAÇÃO]],\"+\",TAB_COMBINAÇÕES[[#This Row],[CABO]],\"+\",TAB_COMBINAÇÕES[[#This Row],[FIXAÇÃO]])","v":"PAINEL IHM + TRANSMISSOR+Profibus + 4-20mA+200 m+COM PEDESTAL"},"X9"]
[null,"PAINEL IHM + TRANSMISSOR","Profibus + 4-20mA","300 m","COM PEDESTAL",{"$f":"_xlfn.CONCAT(TAB_COMBINAÇÕES[[#This Row],[AUTOMAÇÃO]],\"+\",TAB_COMBINAÇÕES[[#This Row],[COMUNICAÇÃO]],\"+\",TAB_COMBINAÇÕES[[#This Row],[CABO]],\"+\",TAB_COMBINAÇÕES[[#This Row],[FIXAÇÃO]])","v":"PAINEL IHM + TRANSMISSOR+Profibus + 4-20mA+300 m+COM PEDESTAL"},"Y1"]
[null,"PAINEL IHM + TRANSMISSOR","Profinet","SEM CABO","COM PEDESTAL",{"$f":"_xlfn.CONCAT(TAB_COMBINAÇÕES[[#This Row],[AUTOMAÇÃO]],\"+\",TAB_COMBINAÇÕES[[#This Row],[COMUNICAÇÃO]],\"+\",TAB_COMBINAÇÕES[[#This Row],[CABO]],\"+\",TAB_COMBINAÇÕES[[#This Row],[FIXAÇÃO]])","v":"PAINEL IHM + TRANSMISSOR+Profinet+SEM CABO+COM PEDESTAL"},"Y2"]
[null,"PAINEL IHM + TRANSMISSOR","Profinet","10 m","COM PEDESTAL",{"$f":"_xlfn.CONCAT(TAB_COMBINAÇÕES[[#This Row],[AUTOMAÇÃO]],\"+\",TAB_COMBINAÇÕES[[#This Row],[COMUNICAÇÃO]],\"+\",TAB_COMBINAÇÕES[[#This Row],[CABO]],\"+\",TAB_COMBINAÇÕES[[#This Row],[FIXAÇÃO]])","v":"PAINEL IHM + TRANSMISSOR+Profinet+10 m+COM PEDESTAL"},"Y3"]
[null,"PAINEL IHM + TRANSMISSOR","Profinet","20 m","COM PEDESTAL",{"$f":"_xlfn.CONCAT(TAB_COMBINAÇÕES[[#This Row],[AUTOMAÇÃO]],\"+\",TAB_COMBINAÇÕES[[#This Row],[COMUNICAÇÃO]],\"+\",TAB_COMBINAÇÕES[[#This Row],[CABO]],\"+\",TAB_COMBINAÇÕES[[#This Row],[FIXAÇÃO]])","v":"PAINEL IHM + TRANSMISSOR+Profinet+20 m+COM PEDESTAL"},"Y4"]
[null,"PAINEL IHM + TRANSMISSOR","Profinet","50 m","COM PEDESTAL",{"$f":"_xlfn.CONCAT(TAB_COMBINAÇÕES[[#This Row],[AUTOMAÇÃO]],\"+\",TAB_COMBINAÇÕES[[#This Row],[COMUNICAÇÃO]],\"+\",TAB_COMBINAÇÕES[[#This Row],[CABO]],\"+\",TAB_COMBINAÇÕES[[#This Row],[FIXAÇÃO]])","v":"PAINEL IHM + TRANSMISSOR+Profinet+50 m+COM PEDESTAL"},"Y5"]
[null,"PAINEL IHM + TRANSMISSOR","Profinet","100 m","COM PEDESTAL",{"$f":"_xlfn.CONCAT(TAB_COMBINAÇÕES[[#This Row],[AUTOMAÇÃO]],\"+\",TAB_COMBINAÇÕES[[#This Row],[COMUNICAÇÃO]],\"+\",TAB_COMBINAÇÕES[[#This Row],[CABO]],\"+\",TAB_COMBINAÇÕES[[#This Row],[FIXAÇÃO]])","v":"PAINEL IHM + TRANSMISSOR+Profinet+100 m+COM PEDESTAL"},"Y6"]
[null,"PAINEL IHM + TRANSMISSOR","Profinet","200 m","COM PEDESTAL",{"$f":"_xlfn.CONCAT(TAB_COMBINAÇÕES[[#This Row],[AUTOMAÇÃO]],\"+\",TAB_COMBINAÇÕES[[#This Row],[COMUNICAÇÃO]],\"+\",TAB_COMBINAÇÕES[[#This Row],[CABO]],\"+\",TAB_COMBINAÇÕES[[#This Row],[FIXAÇÃO]])","v":"PAINEL IHM + TRANSMISSOR+Profinet+200 m+COM PEDESTAL"},"Y7"]
[null,"PAINEL IHM + TRANSMISSOR","Profinet","300 m","COM PEDESTAL",{"$f":"_xlfn.CONCAT(TAB_COMBINAÇÕES[[#This Row],[AUTOMAÇÃO]],\"+\",TAB_COMBINAÇÕES[[#This Row],[COMUNICAÇÃO]],\"+\",TAB_COMBINAÇÕES[[#This Row],[CABO]],\"+\",TAB_COMBINAÇÕES[[#This Row],[FIXAÇÃO]])","v":"PAINEL IHM + TRANSMISSOR+Profinet+300 m+COM PEDESTAL"},"Y8"]
[null,"PAINEL IHM + TRANSMISSOR","Profinet + 4-20mA","SEM CABO","COM PEDESTAL",{"$f":"_xlfn.CONCAT(TAB_COMBINAÇÕES[[#This Row],[AUTOMAÇÃO]],\"+\",TAB_COMBINAÇÕES[[#This Row],[COMUNICAÇÃO]],\"+\",TAB_COMBINAÇÕES[[#This Row],[CABO]],\"+\",TAB_COMBINAÇÕES[[#This Row],[FIXAÇÃO]])","v":"PAINEL IHM + TRANSMISSOR+Profinet + 4-20mA+SEM CABO+COM PEDESTAL"},"Y9"]
[null,"PAINEL IHM + TRANSMISSOR","Profinet + 4-20mA","10 m","COM PEDESTAL",{"$f":"_xlfn.CONCAT(TAB_COMBINAÇÕES[[#This Row],[AUTOMAÇÃO]],\"+\",TAB_COMBINAÇÕES[[#This Row],[COMUNICAÇÃO]],\"+\",TAB_COMBINAÇÕES[[#This Row],[CABO]],\"+\",TAB_COMBINAÇÕES[[#This Row],[FIXAÇÃO]])","v":"PAINEL IHM + TRANSMISSOR+Profinet + 4-20mA+10 m+COM PEDESTAL"},"W1"]
[null,"PAINEL IHM + TRANSMISSOR","Profinet + 4-20mA","20 m","COM PEDESTAL",{"$f":"_xlfn.CONCAT(TAB_COMBINAÇÕES[[#This Row],[AUTOMAÇÃO]],\"+\",TAB_COMBINAÇÕES[[#This Row],[COMUNICAÇÃO]],\"+\",TAB_COMBINAÇÕES[[#This Row],[CABO]],\"+\",TAB_COMBINAÇÕES[[#This Row],[FIXAÇÃO]])","v":"PAINEL IHM + TRANSMISSOR+Profinet + 4-20mA+20 m+COM PEDESTAL"},"W2"]
[null,"PAINEL IHM + TRANSMISSOR","Profinet + 4-20mA","50 m","COM PEDESTAL",{"$f":"_xlfn.CONCAT(TAB_COMBINAÇÕES[[#This Row],[AUTOMAÇÃO]],\"+\",TAB_COMBINAÇÕES[[#This Row],[COMUNICAÇÃO]],\"+\",TAB_COMBINAÇÕES[[#This Row],[CABO]],\"+\",TAB_COMBINAÇÕES[[#This Row],[FIXAÇÃO]])","v":"PAINEL IHM + TRANSMISSOR+Profinet + 4-20mA+50 m+COM PEDESTAL"},"W3"]
[null,"PAINEL IHM + TRANSMISSOR","Profinet + 4-20mA","100 m","COM PEDESTAL",{"$f":"_xlfn.CONCAT(TAB_COMBINAÇÕES[[#This Row],[AUTOMAÇÃO]],\"+\",TAB_COMBINAÇÕES[[#This Row],[COMUNICAÇÃO]],\"+\",TAB_COMBINAÇÕES[[#This Row],[CABO]],\"+\",TAB_COMBINAÇÕES[[#This Row],[FIXAÇÃO]])","v":"PAINEL IHM + TRANSMISSOR+Profinet + 4-20mA+100 m+COM PEDESTAL"},"W4"]
[null,"PAINEL IHM + TRANSMISSOR","Profinet + 4-20mA","200 m","COM PEDESTAL",{"$f":"_xlfn.CONCAT(TAB_COMBINAÇÕES[[#This Row],[AUTOMAÇÃO]],\"+\",TAB_COMBINAÇÕES[[#This Row],[COMUNICAÇÃO]],\"+\",TAB_COMBINAÇÕES[[#This Row],[CABO]],\"+\",TAB_COMBINAÇÕES[[#This Row],[FIXAÇÃO]])","v":"PAINEL IHM + TRANSMISSOR+Profinet + 4-20mA+200 m+COM PEDESTAL"},"W5"]
[null,"PAINEL IHM + TRANSMISSOR","Profinet + 4-20mA","300 m","COM PEDESTAL",{"$f":"_xlfn.CONCAT(TAB_COMBINAÇÕES[[#This Row],[AUTOMAÇÃO]],\"+\",TAB_COMBINAÇÕES[[#This Row],[COMUNICAÇÃO]],\"+\",TAB_COMBINAÇÕES[[#This Row],[CABO]],\"+\",TAB_COMBINAÇÕES[[#This Row],[FIXAÇÃO]])","v":"PAINEL IHM + TRANSMISSOR+Profinet + 4-20mA+300 m+COM PEDESTAL"},"W6"]
[null,"PAINEL IHM + TRANSMISSOR","Sem comunicação","SEM CABO","COM PEDESTAL",{"$f":"_xlfn.CONCAT(TAB_COMBINAÇÕES[[#This Row],[AUTOMAÇÃO]],\"+\",TAB_COMBINAÇÕES[[#This Row],[COMUNICAÇÃO]],\"+\",TAB_COMBINAÇÕES[[#This Row],[CABO]],\"+\",TAB_COMBINAÇÕES[[#This Row],[FIXAÇÃO]])","v":"PAINEL IHM + TRANSMISSOR+Sem comunicação+SEM CABO+COM PEDESTAL"},"W7"]
[null,"PAINEL IHM + TRANSMISSOR","Sem comunicação","10 m","COM PEDESTAL",{"$f":"_xlfn.CONCAT(TAB_COMBINAÇÕES[[#This Row],[AUTOMAÇÃO]],\"+\",TAB_COMBINAÇÕES[[#This Row],[COMUNICAÇÃO]],\"+\",TAB_COMBINAÇÕES[[#This Row],[CABO]],\"+\",TAB_COMBINAÇÕES[[#This Row],[FIXAÇÃO]])","v":"PAINEL IHM + TRANSMISSOR+Sem comunicação+10 m+COM PEDESTAL"},"W8"]
[null,"PAINEL IHM + TRANSMISSOR","Sem comunicação","20 m","COM PEDESTAL",{"$f":"_xlfn.CONCAT(TAB_COMBINAÇÕES[[#This Row],[AUTOMAÇÃO]],\"+\",TAB_COMBINAÇÕES[[#This Row],[COMUNICAÇÃO]],\"+\",TAB_COMBINAÇÕES[[#This Row],[CABO]],\"+\",TAB_COMBINAÇÕES[[#This Row],[FIXAÇÃO]])","v":"PAINEL IHM + TRANSMISSOR+Sem comunicação+20 m+COM PEDESTAL"},"W9"]
[null,"PAINEL IHM + TRANSMISSOR","Sem comunicação","50 m","COM PEDESTAL",{"$f":"_xlfn.CONCAT(TAB_COMBINAÇÕES[[#This Row],[AUTOMAÇÃO]],\"+\",TAB_COMBINAÇÕES[[#This Row],[COMUNICAÇÃO]],\"+\",TAB_COMBINAÇÕES[[#This Row],[CABO]],\"+\",TAB_COMBINAÇÕES[[#This Row],[FIXAÇÃO]])","v":"PAINEL IHM + TRANSMISSOR+Sem comunicação+50 m+COM PEDESTAL"},"Z1"]
[null,"PAINEL IHM + TRANSMISSOR","Sem comunicação","100 m","COM PEDESTAL",{"$f":"_xlfn.CONCAT(TAB_COMBINAÇÕES[[#This Row],[AUTOMAÇÃO]],\"+\",TAB_COMBINAÇÕES[[#This Row],[COMUNICAÇÃO]],\"+\",TAB_COMBINAÇÕES[[#This Row],[CABO]],\"+\",TAB_COMBINAÇÕES[[#This Row],[FIXAÇÃO]])","v":"PAINEL IHM + TRANSMISSOR+Sem comunicação+100 m+COM PEDESTAL"},"Z2"]
[null,"PAINEL IHM + TRANSMISSOR","Sem comunicação","200 m","COM PEDESTAL",{"$f":"_xlfn.CONCAT(TAB_COMBINAÇÕES[[#This Row],[AUTOMAÇÃO]],\"+\",TAB_COMBINAÇÕES[[#This Row],[COMUNICAÇÃO]],\"+\",TAB_COMBINAÇÕES[[#This Row],[CABO]],\"+\",TAB_COMBINAÇÕES[[#This Row],[FIXAÇÃO]])","v":"PAINEL IHM + TRANSMISSOR+Sem comunicação+200 m+COM PEDESTAL"},"Z3"]
[null,"PAINEL IHM + TRANSMISSOR","Sem comunicação","300 m","COM PEDESTAL",{"$f":"_xlfn.CONCAT(TAB_COMBINAÇÕES[[#This Row],[AUTOMAÇÃO]],\"+\",TAB_COMBINAÇÕES[[#This Row],[COMUNICAÇÃO]],\"+\",TAB_COMBINAÇÕES[[#This Row],[CABO]],\"+\",TAB_COMBINAÇÕES[[#This Row],[FIXAÇÃO]])","v":"PAINEL IHM + TRANSMISSOR+Sem comunicação+300 m+COM PEDESTAL"},"Z4"]
[null,"PAINEL IHM + TRANSMISSOR","Somente 4-20mA","SEM CABO","COM PEDESTAL",{"$f":"_xlfn.CONCAT(TAB_COMBINAÇÕES[[#This Row],[AUTOMAÇÃO]],\"+\",TAB_COMBINAÇÕES[[#This Row],[COMUNICAÇÃO]],\"+\",TAB_COMBINAÇÕES[[#This Row],[CABO]],\"+\",TAB_COMBINAÇÕES[[#This Row],[FIXAÇÃO]])","v":"PAINEL IHM + TRANSMISSOR+Somente 4-20mA+SEM CABO+COM PEDESTAL"},"Z5"]
[null,"PAINEL IHM + TRANSMISSOR","Somente 4-20mA","10 m","COM PEDESTAL",{"$f":"_xlfn.CONCAT(TAB_COMBINAÇÕES[[#This Row],[AUTOMAÇÃO]],\"+\",TAB_COMBINAÇÕES[[#This Row],[COMUNICAÇÃO]],\"+\",TAB_COMBINAÇÕES[[#This Row],[CABO]],\"+\",TAB_COMBINAÇÕES[[#This Row],[FIXAÇÃO]])","v":"PAINEL IHM + TRANSMISSOR+Somente 4-20mA+10 m+COM PEDESTAL"},"Z6"]
[null,"PAINEL IHM + TRANSMISSOR","Somente 4-20mA","20 m","COM PEDESTAL",{"$f":"_xlfn.CONCAT(TAB_COMBINAÇÕES[[#This Row],[AUTOMAÇÃO]],\"+\",TAB_COMBINAÇÕES[[#This Row],[COMUNICAÇÃO]],\"+\",TAB_COMBINAÇÕES[[#This Row],[CABO]],\"+\",TAB_COMBINAÇÕES[[#This Row],[FIXAÇÃO]])","v":"PAINEL IHM + TRANSMISSOR+Somente 4-20mA+20 m+COM PEDESTAL"},"Z7"]
[null,"PAINEL IHM + TRANSMISSOR","Somente 4-20mA","50 m","COM PEDESTAL",{"$f":"_xlfn.CONCAT(TAB_COMBINAÇÕES[[#This Row],[AUTOMAÇÃO]],\"+\",TAB_COMBINAÇÕES[[#This Row],[COMUNICAÇÃO]],\"+\",TAB_COMBINAÇÕES[[#This Row],[CABO]],\"+\",TAB_COMBINAÇÕES[[#This Row],[FIXAÇÃO]])","v":"PAINEL IHM + TRANSMISSOR+Somente 4-20mA+50 m+COM PEDESTAL"},"Z8"]
[null,"PAINEL IHM + TRANSMISSOR","Somente 4-20mA","100 m","COM PEDESTAL",{"$f":"_xlfn.CONCAT(TAB_COMBINAÇÕES[[#This Row],[AUTOMAÇÃO]],\"+\",TAB_COMBINAÇÕES[[#This Row],[COMUNICAÇÃO]],\"+\",TAB_COMBINAÇÕES[[#This Row],[CABO]],\"+\",TAB_COMBINAÇÕES[[#This Row],[FIXAÇÃO]])","v":"PAINEL IHM + TRANSMISSOR+Somente 4-20mA+100 m+COM PEDESTAL"},"Z9"]
[null,"PAINEL IHM + TRANSMISSOR","Somente 4-20mA","200 m","COM PEDESTAL",{"$f":"_xlfn.CONCAT(TAB_COMBINAÇÕES[[#This Row],[AUTOMAÇÃO]],\"+\",TAB_COMBINAÇÕES[[#This Row],[COMUNICAÇÃO]],\"+\",TAB_COMBINAÇÕES[[#This Row],[CABO]],\"+\",TAB_COMBINAÇÕES[[#This Row],[FIXAÇÃO]])","v":"PAINEL IHM + TRANSMISSOR+Somente 4-20mA+200 m+COM PEDESTAL"},"AA"]
[null,"PAINEL IHM + TRANSMISSOR","Somente 4-20mA","300 m","COM PEDESTAL",{"$f":"_xlfn.CONCAT(TAB_COMBINAÇÕES[[#This Row],[AUTOMAÇÃO]],\"+\",TAB_COMBINAÇÕES[[#This Row],[COMUNICAÇÃO]],\"+\",TAB_COMBINAÇÕES[[#This Row],[CABO]],\"+\",TAB_COMBINAÇÕES[[#This Row],[FIXAÇÃO]])","v":"PAINEL IHM + TRANSMISSOR+Somente 4-20mA+300 m+COM PEDESTAL"},"AB"]
[null,"PAINEL IHM + TRANSMISSOR","DeviceNet","SEM CABO","SEM PEDESTAL",{"$f":"_xlfn.CONCAT(TAB_COMBINAÇÕES[[#This Row],[AUTOMAÇÃO]],\"+\",TAB_COMBINAÇÕES[[#This Row],[COMUNICAÇÃO]],\"+\",TAB_COMBINAÇÕES[[#This Row],[CABO]],\"+\",TAB_COMBINAÇÕES[[#This Row],[FIXAÇÃO]])","v":"PAINEL IHM + TRANSMISSOR+DeviceNet+SEM CABO+SEM PEDESTAL"},"AC"]
[null,"PAINEL IHM + TRANSMISSOR","DeviceNet","10 m","SEM PEDESTAL",{"$f":"_xlfn.CONCAT(TAB_COMBINAÇÕES[[#This Row],[AUTOMAÇÃO]],\"+\",TAB_COMBINAÇÕES[[#This Row],[COMUNICAÇÃO]],\"+\",TAB_COMBINAÇÕES[[#This Row],[CABO]],\"+\",TAB_COMBINAÇÕES[[#This Row],[FIXAÇÃO]])","v":"PAINEL IHM + TRANSMISSOR+DeviceNet+10 m+SEM PEDESTAL"},"AD"]
[null,"PAINEL IHM + TRANSMISSOR","DeviceNet","20 m","SEM PEDESTAL",{"$f":"_xlfn.CONCAT(TAB_COMBINAÇÕES[[#This Row],[AUTOMAÇÃO]],\"+\",TAB_COMBINAÇÕES[[#This Row],[COMUNICAÇÃO]],\"+\",TAB_COMBINAÇÕES[[#This Row],[CABO]],\"+\",TAB_COMBINAÇÕES[[#This Row],[FIXAÇÃO]])","v":"PAINEL IHM + TRANSMISSOR+DeviceNet+20 m+SEM PEDESTAL"},"AE"]
[null,"PAINEL IHM + TRANSMISSOR","DeviceNet","50 m","SEM PEDESTAL",{"$f":"_xlfn.CONCAT(TAB_COMBINAÇÕES[[#This Row],[AUTOMAÇÃO]],\"+\",TAB_COMBINAÇÕES[[#This Row],[COMUNICAÇÃO]],\"+\",TAB_COMBINAÇÕES[[#This Row],[CABO]],\"+\",TAB_COMBINAÇÕES[[#This Row],[FIXAÇÃO]])","v":"PAINEL IHM + TRANSMISSOR+DeviceNet+50 m+SEM PEDESTAL"},"AF"]
[null,"PAINEL IHM + TRANSMISSOR","DeviceNet","100 m","SEM PEDESTAL",{"$f":"_xlfn.CONCAT(TAB_COMBINAÇÕES[[#This Row],[AUTOMAÇÃO]],\"+\",TAB_COMBINAÇÕES[[#This Row],[COMUNICAÇÃO]],\"+\",TAB_COMBINAÇÕES[[#This Row],[CABO]],\"+\",TAB_COMBINAÇÕES[[#This Row],[FIXAÇÃO]])","v":"PAINEL IHM + TRANSMISSOR+DeviceNet+100 m+SEM PEDESTAL"},"AG"]
[null,"PAINEL IHM + TRANSMISSOR","DeviceNet","200 m","SEM PEDESTAL",{"$f":"_xlfn.CONCAT(TAB_COMBINAÇÕES[[#This Row],[AUTOMAÇÃO]],\"+\",TAB_COMBINAÇÕES[[#This Row],[COMUNICAÇÃO]],\"+\",TAB_COMBINAÇÕES[[#This Row],[CABO]],\"+\",TAB_COMBINAÇÕES[[#This Row],[FIXAÇÃO]])","v":"PAINEL IHM + TRANSMISSOR+DeviceNet+200 m+SEM PEDESTAL"},"AH"]
[null,"PAINEL IHM + TRANSMISSOR","DeviceNet","300 m","SEM PEDESTAL",{"$f":"_xlfn.CONCAT(TAB_COMBINAÇÕES[[#This Row],[AUTOMAÇÃO]],\"+\",TAB_COMBINAÇÕES[[#This Row],[COMUNICAÇÃO]],\"+\",TAB_COMBINAÇÕES[[#This Row],[CABO]],\"+\",TAB_COMBINAÇÕES[[#This Row],[FIXAÇÃO]])","v":"PAINEL IHM + TRANSMISSOR+DeviceNet+300 m+SEM PEDESTAL"},"AI"]
[null,"PAINEL IHM + TRANSMISSOR","DeviceNet + 4-20mA","SEM CABO","SEM PEDESTAL",{"$f":"_xlfn.CONCAT(TAB_COMBINAÇÕES[[#This Row],[AUTOMAÇÃO]],\"+\",TAB_COMBINAÇÕES[[#This Row],[COMUNICAÇÃO]],\"+\",TAB_COMBINAÇÕES[[#This Row],[CABO]],\"+\",TAB_COMBINAÇÕES[[#This Row],[FIXAÇÃO]])","v":"PAINEL IHM + TRANSMISSOR+DeviceNet + 4-20mA+SEM CABO+SEM PEDESTAL"},"AJ"]
[null,"PAINEL IHM + TRANSMISSOR","DeviceNet + 4-20mA","10 m","SEM PEDESTAL",{"$f":"_xlfn.CONCAT(TAB_COMBINAÇÕES[[#This Row],[AUTOMAÇÃO]],\"+\",TAB_COMBINAÇÕES[[#This Row],[COMUNICAÇÃO]],\"+\",TAB_COMBINAÇÕES[[#This Row],[CABO]],\"+\",TAB_COMBINAÇÕES[[#This Row],[FIXAÇÃO]])","v":"PAINEL IHM + TRANSMISSOR+DeviceNet + 4-20mA+10 m+SEM PEDESTAL"},"AK"]
[null,"PAINEL IHM + TRANSMISSOR","DeviceNet + 4-20mA","20 m","SEM PEDESTAL",{"$f":"_xlfn.CONCAT(TAB_COMBINAÇÕES[[#This Row],[AUTOMAÇÃO]],\"+\",TAB_COMBINAÇÕES[[#This Row],[COMUNICAÇÃO]],\"+\",TAB_COMBINAÇÕES[[#This Row],[CABO]],\"+\",TAB_COMBINAÇÕES[[#This Row],[FIXAÇÃO]])","v":"PAINEL IHM + TRANSMISSOR+DeviceNet + 4-20mA+20 m+SEM PEDESTAL"},"AL"]
[null,"PAINEL IHM + TRANSMISSOR","DeviceNet + 4-20mA","50 m","SEM PEDESTAL",{"$f":"_xlfn.CONCAT(TAB_COMBINAÇÕES[[#This Row],[AUTOMAÇÃO]],\"+\",TAB_COMBINAÇÕES[[#This Row],[COMUNICAÇÃO]],\"+\",TAB_COMBINAÇÕES[[#This Row],[CABO]],\"+\",TAB_COMBINAÇÕES[[#This Row],[FIXAÇÃO]])","v":"PAINEL IHM + TRANSMISSOR+DeviceNet + 4-20mA+50 m+SEM PEDESTAL"},"AM"]
[null,"PAINEL IHM + TRANSMISSOR","DeviceNet + 4-20mA","100 m","SEM PEDESTAL",{"$f":"_xlfn.CONCAT(TAB_COMBINAÇÕES[[#This Row],[AUTOMAÇÃO]],\"+\",TAB_COMBINAÇÕES[[#This Row],[COMUNICAÇÃO]],\"+\",TAB_COMBINAÇÕES[[#This Row],[CABO]],\"+\",TAB_COMBINAÇÕES[[#This Row],[FIXAÇÃO]])","v":"PAINEL IHM + TRANSMISSOR+DeviceNet + 4-20mA+100 m+SEM PEDESTAL"},"AN"]
[null,"PAINEL IHM + TRANSMISSOR","DeviceNet + 4-20mA","200 m","SEM PEDESTAL",{"$f":"_xlfn.CONCAT(TAB_COMBINAÇÕES[[#This Row],[AUTOMAÇÃO]],\"+\",TAB_COMBINAÇÕES[[#This Row],[COMUNICAÇÃO]],\"+\",TAB_COMBINAÇÕES[[#This Row],[CABO]],\"+\",TAB_COMBINAÇÕES[[#This Row],[FIXAÇÃO]])","v":"PAINEL IHM + TRANSMISSOR+DeviceNet + 4-20mA+200 m+SEM PEDESTAL"},"AO"]
[null,"PAINEL IHM + TRANSMISSOR","DeviceNet + 4-20mA","300 m","SEM PEDESTAL",{"$f":"_xlfn.CONCAT(TAB_COMBINAÇÕES[[#This Row],[AUTOMAÇÃO]],\"+\",TAB_COMBINAÇÕES[[#This Row],[COMUNICAÇÃO]],\"+\",TAB_COMBINAÇÕES[[#This Row],[CABO]],\"+\",TAB_COMBINAÇÕES[[#This Row],[FIXAÇÃO]])","v":"PAINEL IHM + TRANSMISSOR+DeviceNet + 4-20mA+300 m+SEM PEDESTAL"},"AP"]
[null,"PAINEL IHM + TRANSMISSOR","Ethernet TCP/IP","SEM CABO","SEM PEDESTAL",{"$f":"_xlfn.CONCAT(TAB_COMBINAÇÕES[[#This Row],[AUTOMAÇÃO]],\"+\",TAB_COMBINAÇÕES[[#This Row],[COMUNICAÇÃO]],\"+\",TAB_COMBINAÇÕES[[#This Row],[CABO]],\"+\",TAB_COMBINAÇÕES[[#This Row],[FIXAÇÃO]])","v":"PAINEL IHM + TRANSMISSOR+Ethernet TCP/IP+SEM CABO+SEM PEDESTAL"},"AQ"]
[null,"PAINEL IHM + TRANSMISSOR","Ethernet TCP/IP","10 m","SEM PEDESTAL",{"$f":"_xlfn.CONCAT(TAB_COMBINAÇÕES[[#This Row],[AUTOMAÇÃO]],\"+\",TAB_COMBINAÇÕES[[#This Row],[COMUNICAÇÃO]],\"+\",TAB_COMBINAÇÕES[[#This Row],[CABO]],\"+\",TAB_COMBINAÇÕES[[#This Row],[FIXAÇÃO]])","v":"PAINEL IHM + TRANSMISSOR+Ethernet TCP/IP+10 m+SEM PEDESTAL"},"AR"]
[null,"PAINEL IHM + TRANSMISSOR","Ethernet TCP/IP","20 m","SEM PEDESTAL",{"$f":"_xlfn.CONCAT(TAB_COMBINAÇÕES[[#This Row],[AUTOMAÇÃO]],\"+\",TAB_COMBINAÇÕES[[#This Row],[COMUNICAÇÃO]],\"+\",TAB_COMBINAÇÕES[[#This Row],[CABO]],\"+\",TAB_COMBINAÇÕES[[#This Row],[FIXAÇÃO]])","v":"PAINEL IHM + TRANSMISSOR+Ethernet TCP/IP+20 m+SEM PEDESTAL"},"AS"]
[null,"PAINEL IHM + TRANSMISSOR","Ethernet TCP/IP","50 m","SEM PEDESTAL",{"$f":"_xlfn.CONCAT(TAB_COMBINAÇÕES[[#This Row],[AUTOMAÇÃO]],\"+\",TAB_COMBINAÇÕES[[#This Row],[COMUNICAÇÃO]],\"+\",TAB_COMBINAÇÕES[[#This Row],[CABO]],\"+\",TAB_COMBINAÇÕES[[#This Row],[FIXAÇÃO]])","v":"PAINEL IHM + TRANSMISSOR+Ethernet TCP/IP+50 m+SEM PEDESTAL"},"AT"]
[null,"PAINEL IHM + TRANSMISSOR","Ethernet TCP/IP","100 m","SEM PEDESTAL",{"$f":"_xlfn.CONCAT(TAB_COMBINAÇÕES[[#This Row],[AUTOMAÇÃO]],\"+\",TAB_COMBINAÇÕES[[#This Row],[COMUNICAÇÃO]],\"+\",TAB_COMBINAÇÕES[[#This Row],[CABO]],\"+\",TAB_COMBINAÇÕES[[#This Row],[FIXAÇÃO]])","v":"PAINEL IHM + TRANSMISSOR+Ethernet TCP/IP+100 m+SEM PEDESTAL"},"AU"]
[null,"PAINEL IHM + TRANSMISSOR","Ethernet TCP/IP","200 m","SEM PEDESTAL",{"$f":"_xlfn.CONCAT(TAB_COMBINAÇÕES[[#This Row],[AUTOMAÇÃO]],\"+\",TAB_COMBINAÇÕES[[#This Row],[COMUNICAÇÃO]],\"+\",TAB_COMBINAÇÕES[[#This Row],[CABO]],\"+\",TAB_COMBINAÇÕES[[#This Row],[FIXAÇÃO]])","v":"PAINEL IHM + TRANSMISSOR+Ethernet TCP/IP+200 m+SEM PEDESTAL"},"AV"]
[null,"PAINEL IHM + TRANSMISSOR","Ethernet TCP/IP","300 m","SEM PEDESTAL",{"$f":"_xlfn.CONCAT(TAB_COMBINAÇÕES[[#This Row],[AUTOMAÇÃO]],\"+\",TAB_COMBINAÇÕES[[#This Row],[COMUNICAÇÃO]],\"+\",TAB_COMBINAÇÕES[[#This Row],[CABO]],\"+\",TAB_COMBINAÇÕES[[#This Row],[FIXAÇÃO]])","v":"PAINEL IHM + TRANSMISSOR+Ethernet TCP/IP+300 m+SEM PEDESTAL"},"AX"]
[null,"PAINEL IHM + TRANSMISSOR","Ethernet TCP/IP + 4-20mA","SEM CABO","SEM PEDESTAL",{"$f":"_xlfn.CONCAT(TAB_COMBINAÇÕES[[#This Row],[AUTOMAÇÃO]],\"+\",TAB_COMBINAÇÕES[[#This Row],[COMUNICAÇÃO]],\"+\",TAB_COMBINAÇÕES[[#This Row],[CABO]],\"+\",TAB_COMBINAÇÕES[[#This Row],[FIXAÇÃO]])","v":"PAINEL IHM + TRANSMISSOR+Ethernet TCP/IP + 4-20mA+SEM CABO+SEM PEDESTAL"},"AY"]
[null,"PAINEL IHM + TRANSMISSOR","Ethernet TCP/IP + 4-20mA","10 m","SEM PEDESTAL",{"$f":"_xlfn.CONCAT(TAB_COMBINAÇÕES[[#This Row],[AUTOMAÇÃO]],\"+\",TAB_COMBINAÇÕES[[#This Row],[COMUNICAÇÃO]],\"+\",TAB_COMBINAÇÕES[[#This Row],[CABO]],\"+\",TAB_COMBINAÇÕES[[#This Row],[FIXAÇÃO]])","v":"PAINEL IHM + TRANSMISSOR+Ethernet TCP/IP + 4-20mA+10 m+SEM PEDESTAL"},"AW"]
[null,"PAINEL IHM + TRANSMISSOR","Ethernet TCP/IP + 4-20mA","20 m","SEM PEDESTAL",{"$f":"_xlfn.CONCAT(TAB_COMBINAÇÕES[[#This Row],[AUTOMAÇÃO]],\"+\",TAB_COMBINAÇÕES[[#This Row],[COMUNICAÇÃO]],\"+\",TAB_COMBINAÇÕES[[#This Row],[CABO]],\"+\",TAB_COMBINAÇÕES[[#This Row],[FIXAÇÃO]])","v":"PAINEL IHM + TRANSMISSOR+Ethernet TCP/IP + 4-20mA+20 m+SEM PEDESTAL"},"AZ"]
[null,"PAINEL IHM + TRANSMISSOR","Ethernet TCP/IP + 4-20mA","50 m","SEM PEDESTAL",{"$f":"_xlfn.CONCAT(TAB_COMBINAÇÕES[[#This Row],[AUTOMAÇÃO]],\"+\",TAB_COMBINAÇÕES[[#This Row],[COMUNICAÇÃO]],\"+\",TAB_COMBINAÇÕES[[#This Row],[CABO]],\"+\",TAB_COMBINAÇÕES[[#This Row],[FIXAÇÃO]])","v":"PAINEL IHM + TRANSMISSOR+Ethernet TCP/IP + 4-20mA+50 m+SEM PEDESTAL"},"BA"]
[null,"PAINEL IHM + TRANSMISSOR","Ethernet TCP/IP + 4-20mA","100 m","SEM PEDESTAL",{"$f":"_xlfn.CONCAT(TAB_COMBINAÇÕES[[#This Row],[AUTOMAÇÃO]],\"+\",TAB_COMBINAÇÕES[[#This Row],[COMUNICAÇÃO]],\"+\",TAB_COMBINAÇÕES[[#This Row],[CABO]],\"+\",TAB_COMBINAÇÕES[[#This Row],[FIXAÇÃO]])","v":"PAINEL IHM + TRANSMISSOR+Ethernet TCP/IP + 4-20mA+100 m+SEM PEDESTAL"},"BB"]
[null,"PAINEL IHM + TRANSMISSOR","Ethernet TCP/IP + 4-20mA","200 m","SEM PEDESTAL",{"$f":"_xlfn.CONCAT(TAB_COMBINAÇÕES[[#This Row],[AUTOMAÇÃO]],\"+\",TAB_COMBINAÇÕES[[#This Row],[COMUNICAÇÃO]],\"+\",TAB_COMBINAÇÕES[[#This Row],[CABO]],\"+\",TAB_COMBINAÇÕES[[#This Row],[FIXAÇÃO]])","v":"PAINEL IHM + TRANSMISSOR+Ethernet TCP/IP + 4-20mA+200 m+SEM PEDESTAL"},"BC"]
[null,"PAINEL IHM + TRANSMISSOR","Ethernet TCP/IP + 4-20mA","300 m","SEM PEDESTAL",{"$f":"_xlfn.CONCAT(TAB_COMBINAÇÕES[[#This Row],[AUTOMAÇÃO]],\"+\",TAB_COMBINAÇÕES[[#This Row],[COMUNICAÇÃO]],\"+\",TAB_COMBINAÇÕES[[#This Row],[CABO]],\"+\",TAB_COMBINAÇÕES[[#This Row],[FIXAÇÃO]])","v":"PAINEL IHM + TRANSMISSOR+Ethernet TCP/IP + 4-20mA+300 m+SEM PEDESTAL"},"BD"]
[null,"PAINEL IHM + TRANSMISSOR","EtherNet/IP","SEM CABO","SEM PEDESTAL",{"$f":"_xlfn.CONCAT(TAB_COMBINAÇÕES[[#This Row],[AUTOMAÇÃO]],\"+\",TAB_COMBINAÇÕES[[#This Row],[COMUNICAÇÃO]],\"+\",TAB_COMBINAÇÕES[[#This Row],[CABO]],\"+\",TAB_COMBINAÇÕES[[#This Row],[FIXAÇÃO]])","v":"PAINEL IHM + TRANSMISSOR+EtherNet/IP+SEM CABO+SEM PEDESTAL"},"BE"]
[null,"PAINEL IHM + TRANSMISSOR","EtherNet/IP","10 m","SEM PEDESTAL",{"$f":"_xlfn.CONCAT(TAB_COMBINAÇÕES[[#This Row],[AUTOMAÇÃO]],\"+\",TAB_COMBINAÇÕES[[#This Row],[COMUNICAÇÃO]],\"+\",TAB_COMBINAÇÕES[[#This Row],[CABO]],\"+\",TAB_COMBINAÇÕES[[#This Row],[FIXAÇÃO]])","v":"PAINEL IHM + TRANSMISSOR+EtherNet/IP+10 m+SEM PEDESTAL"},"BF"]
[null,"PAINEL IHM + TRANSMISSOR","EtherNet/IP","20 m","SEM PEDESTAL",{"$f":"_xlfn.CONCAT(TAB_COMBINAÇÕES[[#This Row],[AUTOMAÇÃO]],\"+\",TAB_COMBINAÇÕES[[#This Row],[COMUNICAÇÃO]],\"+\",TAB_COMBINAÇÕES[[#This Row],[CABO]],\"+\",TAB_COMBINAÇÕES[[#This Row],[FIXAÇÃO]])","v":"PAINEL IHM + TRANSMISSOR+EtherNet/IP+20 m+SEM PEDESTAL"},"BG"]
[null,"PAINEL IHM + TRANSMISSOR","EtherNet/IP","50 m","SEM PEDESTAL",{"$f":"_xlfn.CONCAT(TAB_COMBINAÇÕES[[#This Row],[AUTOMAÇÃO]],\"+\",TAB_COMBINAÇÕES[[#This Row],[COMUNICAÇÃO]],\"+\",TAB_COMBINAÇÕES[[#This Row],[CABO]],\"+\",TAB_COMBINAÇÕES[[#This Row],[FIXAÇÃO]])","v":"PAINEL IHM + TRANSMISSOR+EtherNet/IP+50 m+SEM PEDESTAL"},"BH"]
[null,"PAINEL IHM + TRANSMISSOR","EtherNet/IP","100 m","SEM PEDESTAL",{"$f":"_xlfn.CONCAT(TAB_COMBINAÇÕES[[#This Row],[AUTOMAÇÃO]],\"+\",TAB_COMBINAÇÕES[[#This Row],[COMUNICAÇÃO]],\"+\",TAB_COMBINAÇÕES[[#This Row],[CABO]],\"+\",TAB_COMBINAÇÕES[[#This Row],[FIXAÇÃO]])","v":"PAINEL IHM + TRANSMISSOR+EtherNet/IP+100 m+SEM PEDESTAL"},"BI"]
[null,"PAINEL IHM + TRANSMISSOR","EtherNet/IP","200 m","SEM PEDESTAL",{"$f":"_xlfn.CONCAT(TAB_COMBINAÇÕES[[#This Row],[AUTOMAÇÃO]],\"+\",TAB_COMBINAÇÕES[[#This Row],[COMUNICAÇÃO]],\"+\",TAB_COMBINAÇÕES[[#This Row],[CABO]],\"+\",TAB_COMBINAÇÕES[[#This Row],[FIXAÇÃO]])","v":"PAINEL IHM + TRANSMISSOR+EtherNet/IP+200 m+SEM PEDESTAL"},"BJ"]
[null,"PAINEL IHM + TRANSMISSOR","EtherNet/IP","300 m","SEM PEDESTAL",{"$f":"_xlfn.CONCAT(TAB_COMBINAÇÕES[[#This Row],[AUTOMAÇÃO]],\"+\",TAB_COMBINAÇÕES[[#This Row],[COMUNICAÇÃO]],\"+\",TAB_COMBINAÇÕES[[#This Row],[CABO]],\"+\",TAB_COMBINAÇÕES[[#This Row],[FIXAÇÃO]])","v":"PAINEL IHM + TRANSMISSOR+EtherNet/IP+300 m+SEM PEDESTAL"},"BK"]
[null,"PAINEL IHM + TRANSMISSOR","EtherNet/IP + 4-20mA","SEM CABO","SEM PEDESTAL",{"$f":"_xlfn.CONCAT(TAB_COMBINAÇÕES[[#This Row],[AUTOMAÇÃO]],\"+\",TAB_COMBINAÇÕES[[#This Row],[COMUNICAÇÃO]],\"+\",TAB_COMBINAÇÕES[[#This Row],[CABO]],\"+\",TAB_COMBINAÇÕES[[#This Row],[FIXAÇÃO]])","v":"PAINEL IHM + TRANSMISSOR+EtherNet/IP + 4-20mA+SEM CABO+SEM PEDESTAL"},"BL"]
[null,"PAINEL IHM + TRANSMISSOR","EtherNet/IP + 4-20mA","10 m","SEM PEDESTAL",{"$f":"_xlfn.CONCAT(TAB_COMBINAÇÕES[[#This Row],[AUTOMAÇÃO]],\"+\",TAB_COMBINAÇÕES[[#This Row],[COMUNICAÇÃO]],\"+\",TAB_COMBINAÇÕES[[#This Row],[CABO]],\"+\",TAB_COMBINAÇÕES[[#This Row],[FIXAÇÃO]])","v":"PAINEL IHM + TRANSMISSOR+EtherNet/IP + 4-20mA+10 m+SEM PEDESTAL"},"BM"]
[null,"PAINEL IHM + TRANSMISSOR","EtherNet/IP + 4-20mA","20 m","SEM PEDESTAL",{"$f":"_xlfn.CONCAT(TAB_COMBINAÇÕES[[#This Row],[AUTOMAÇÃO]],\"+\",TAB_COMBINAÇÕES[[#This Row],[COMUNICAÇÃO]],\"+\",TAB_COMBINAÇÕES[[#This Row],[CABO]],\"+\",TAB_COMBINAÇÕES[[#This Row],[FIXAÇÃO]])","v":"PAINEL IHM + TRANSMISSOR+EtherNet/IP + 4-20mA+20 m+SEM PEDESTAL"},"BN"]
[null,"PAINEL IHM + TRANSMISSOR","EtherNet/IP + 4-20mA","50 m","SEM PEDESTAL",{"$f":"_xlfn.CONCAT(TAB_COMBINAÇÕES[[#This Row],[AUTOMAÇÃO]],\"+\",TAB_COMBINAÇÕES[[#This Row],[COMUNICAÇÃO]],\"+\",TAB_COMBINAÇÕES[[#This Row],[CABO]],\"+\",TAB_COMBINAÇÕES[[#This Row],[FIXAÇÃO]])","v":"PAINEL IHM + TRANSMISSOR+EtherNet/IP + 4-20mA+50 m+SEM PEDESTAL"},"BO"]
[null,"PAINEL IHM + TRANSMISSOR","EtherNet/IP + 4-20mA","100 m","SEM PEDESTAL",{"$f":"_xlfn.CONCAT(TAB_COMBINAÇÕES[[#This Row],[AUTOMAÇÃO]],\"+\",TAB_COMBINAÇÕES[[#This Row],[COMUNICAÇÃO]],\"+\",TAB_COMBINAÇÕES[[#This Row],[CABO]],\"+\",TAB_COMBINAÇÕES[[#This Row],[FIXAÇÃO]])","v":"PAINEL IHM + TRANSMISSOR+EtherNet/IP + 4-20mA+100 m+SEM PEDESTAL"},"BP"]
[null,"PAINEL IHM + TRANSMISSOR","EtherNet/IP + 4-20mA","200 m","SEM PEDESTAL",{"$f":"_xlfn.CONCAT(TAB_COMBINAÇÕES[[#This Row],[AUTOMAÇÃO]],\"+\",TAB_COMBINAÇÕES[[#This Row],[COMUNICAÇÃO]],\"+\",TAB_COMBINAÇÕES[[#This Row],[CABO]],\"+\",TAB_COMBINAÇÕES[[#This Row],[FIXAÇÃO]])","v":"PAINEL IHM + TRANSMISSOR+EtherNet/IP + 4-20mA+200 m+SEM PEDESTAL"},"BQ"]
[null,"PAINEL IHM + TRANSMISSOR","EtherNet/IP + 4-20mA","300 m","SEM PEDESTAL",{"$f":"_xlfn.CONCAT(TAB_COMBINAÇÕES[[#This Row],[AUTOMAÇÃO]],\"+\",TAB_COMBINAÇÕES[[#This Row],[COMUNICAÇÃO]],\"+\",TAB_COMBINAÇÕES[[#This Row],[CABO]],\"+\",TAB_COMBINAÇÕES[[#This Row],[FIXAÇÃO]])","v":"PAINEL IHM + TRANSMISSOR+EtherNet/IP + 4-20mA+300 m+SEM PEDESTAL"},"BR"]
[null,"PAINEL IHM + TRANSMISSOR","ModBus RTU","SEM CABO","SEM PEDESTAL",{"$f":"_xlfn.CONCAT(TAB_COMBINAÇÕES[[#This Row],[AUTOMAÇÃO]],\"+\",TAB_COMBINAÇÕES[[#This Row],[COMUNICAÇÃO]],\"+\",TAB_COMBINAÇÕES[[#This Row],[CABO]],\"+\",TAB_COMBINAÇÕES[[#This Row],[FIXAÇÃO]])","v":"PAINEL IHM + TRANSMISSOR+ModBus RTU+SEM CABO+SEM PEDESTAL"},"BS"]
[null,"PAINEL IHM + TRANSMISSOR","ModBus RTU","10 m","SEM PEDESTAL",{"$f":"_xlfn.CONCAT(TAB_COMBINAÇÕES[[#This Row],[AUTOMAÇÃO]],\"+\",TAB_COMBINAÇÕES[[#This Row],[COMUNICAÇÃO]],\"+\",TAB_COMBINAÇÕES[[#This Row],[CABO]],\"+\",TAB_COMBINAÇÕES[[#This Row],[FIXAÇÃO]])","v":"PAINEL IHM + TRANSMISSOR+ModBus RTU+10 m+SEM PEDESTAL"},"BT"]
[null,"PAINEL IHM + TRANSMISSOR","ModBus RTU","20 m","SEM PEDESTAL",{"$f":"_xlfn.CONCAT(TAB_COMBINAÇÕES[[#This Row],[AUTOMAÇÃO]],\"+\",TAB_COMBINAÇÕES[[#This Row],[COMUNICAÇÃO]],\"+\",TAB_COMBINAÇÕES[[#This Row],[CABO]],\"+\",TAB_COMBINAÇÕES[[#This Row],[FIXAÇÃO]])","v":"PAINEL IHM + TRANSMISSOR+ModBus RTU+20 m+SEM PEDESTAL"},"BU"]
[null,"PAINEL IHM + TRANSMISSOR","ModBus RTU","50 m","SEM PEDESTAL",{"$f":"_xlfn.CONCAT(TAB_COMBINAÇÕES[[#This Row],[AUTOMAÇÃO]],\"+\",TAB_COMBINAÇÕES[[#This Row],[COMUNICAÇÃO]],\"+\",TAB_COMBINAÇÕES[[#This Row],[CABO]],\"+\",TAB_COMBINAÇÕES[[#This Row],[FIXAÇÃO]])","v":"PAINEL IHM + TRANSMISSOR+ModBus RTU+50 m+SEM PEDESTAL"},"BV"]
[null,"PAINEL IHM + TRANSMISSOR","ModBus RTU","100 m","SEM PEDESTAL",{"$f":"_xlfn.CONCAT(TAB_COMBINAÇÕES[[#This Row],[AUTOMAÇÃO]],\"+\",TAB_COMBINAÇÕES[[#This Row],[COMUNICAÇÃO]],\"+\",TAB_COMBINAÇÕES[[#This Row],[CABO]],\"+\",TAB_COMBINAÇÕES[[#This Row],[FIXAÇÃO]])","v":"PAINEL IHM + TRANSMISSOR+ModBus RTU+100 m+SEM PEDESTAL"},"BX"]
[null,"PAINEL IHM + TRANSMISSOR","ModBus RTU","200 m","SEM PEDESTAL",{"$f":"_xlfn.CONCAT(TAB_COMBINAÇÕES[[#This Row],[AUTOMAÇÃO]],\"+\",TAB_COMBINAÇÕES[[#This Row],[COMUNICAÇÃO]],\"+\",TAB_COMBINAÇÕES[[#This Row],[CABO]],\"+\",TAB_COMBINAÇÕES[[#This Row],[FIXAÇÃO]])","v":"PAINEL IHM + TRANSMISSOR+ModBus RTU+200 m+SEM PEDESTAL"},"BY"]
[null,"PAINEL IHM + TRANSMISSOR","ModBus RTU","300 m","SEM PEDESTAL",{"$f":"_xlfn.CONCAT(TAB_COMBINAÇÕES[[#This Row],[AUTOMAÇÃO]],\"+\",TAB_COMBINAÇÕES[[#This Row],[COMUNICAÇÃO]],\"+\",TAB_COMBINAÇÕES[[#This Row],[CABO]],\"+\",TAB_COMBINAÇÕES[[#This Row],[FIXAÇÃO]])","v":"PAINEL IHM + TRANSMISSOR+ModBus RTU+300 m+SEM PEDESTAL"},"BW"]
[null,"PAINEL IHM + TRANSMISSOR","ModBus RTU + 4-20mA","SEM CABO","SEM PEDESTAL",{"$f":"_xlfn.CONCAT(TAB_COMBINAÇÕES[[#This Row],[AUTOMAÇÃO]],\"+\",TAB_COMBINAÇÕES[[#This Row],[COMUNICAÇÃO]],\"+\",TAB_COMBINAÇÕES[[#This Row],[CABO]],\"+\",TAB_COMBINAÇÕES[[#This Row],[FIXAÇÃO]])","v":"PAINEL IHM + TRANSMISSOR+ModBus RTU + 4-20mA+SEM CABO+SEM PEDESTAL"},"BZ"]
[null,"PAINEL IHM + TRANSMISSOR","ModBus RTU + 4-20mA","10 m","SEM PEDESTAL",{"$f":"_xlfn.CONCAT(TAB_COMBINAÇÕES[[#This Row],[AUTOMAÇÃO]],\"+\",TAB_COMBINAÇÕES[[#This Row],[COMUNICAÇÃO]],\"+\",TAB_COMBINAÇÕES[[#This Row],[CABO]],\"+\",TAB_COMBINAÇÕES[[#This Row],[FIXAÇÃO]])","v":"PAINEL IHM + TRANSMISSOR+ModBus RTU + 4-20mA+10 m+SEM PEDESTAL"},"CA"]
[null,"PAINEL IHM + TRANSMISSOR","ModBus RTU + 4-20mA","20 m","SEM PEDESTAL",{"$f":"_xlfn.CONCAT(TAB_COMBINAÇÕES[[#This Row],[AUTOMAÇÃO]],\"+\",TAB_COMBINAÇÕES[[#This Row],[COMUNICAÇÃO]],\"+\",TAB_COMBINAÇÕES[[#This Row],[CABO]],\"+\",TAB_COMBINAÇÕES[[#This Row],[FIXAÇÃO]])","v":"PAINEL IHM + TRANSMISSOR+ModBus RTU + 4-20mA+20 m+SEM PEDESTAL"},"CB"]
[null,"PAINEL IHM + TRANSMISSOR","ModBus RTU + 4-20mA","50 m","SEM PEDESTAL",{"$f":"_xlfn.CONCAT(TAB_COMBINAÇÕES[[#This Row],[AUTOMAÇÃO]],\"+\",TAB_COMBINAÇÕES[[#This Row],[COMUNICAÇÃO]],\"+\",TAB_COMBINAÇÕES[[#This Row],[CABO]],\"+\",TAB_COMBINAÇÕES[[#This Row],[FIXAÇÃO]])","v":"PAINEL IHM + TRANSMISSOR+ModBus RTU + 4-20mA+50 m+SEM PEDESTAL"},"CC"]
[null,"PAINEL IHM + TRANSMISSOR","ModBus RTU + 4-20mA","100 m","SEM PEDESTAL",{"$f":"_xlfn.CONCAT(TAB_COMBINAÇÕES[[#This Row],[AUTOMAÇÃO]],\"+\",TAB_COMBINAÇÕES[[#This Row],[COMUNICAÇÃO]],\"+\",TAB_COMBINAÇÕES[[#This Row],[CABO]],\"+\",TAB_COMBINAÇÕES[[#This Row],[FIXAÇÃO]])","v":"PAINEL IHM + TRANSMISSOR+ModBus RTU + 4-20mA+100 m+SEM PEDESTAL"},"CD"]
[null,"PAINEL IHM + TRANSMISSOR","ModBus RTU + 4-20mA","200 m","SEM PEDESTAL",{"$f":"_xlfn.CONCAT(TAB_COMBINAÇÕES[[#This Row],[AUTOMAÇÃO]],\"+\",TAB_COMBINAÇÕES[[#This Row],[COMUNICAÇÃO]],\"+\",TAB_COMBINAÇÕES[[#This Row],[CABO]],\"+\",TAB_COMBINAÇÕES[[#This Row],[FIXAÇÃO]])","v":"PAINEL IHM + TRANSMISSOR+ModBus RTU + 4-20mA+200 m+SEM PEDESTAL"},"CE"]
[null,"PAINEL IHM + TRANSMISSOR","ModBus RTU + 4-20mA","300 m","SEM PEDESTAL",{"$f":"_xlfn.CONCAT(TAB_COMBINAÇÕES[[#This Row],[AUTOMAÇÃO]],\"+\",TAB_COMBINAÇÕES[[#This Row],[COMUNICAÇÃO]],\"+\",TAB_COMBINAÇÕES[[#This Row],[CABO]],\"+\",TAB_COMBINAÇÕES[[#This Row],[FIXAÇÃO]])","v":"PAINEL IHM + TRANSMISSOR+ModBus RTU + 4-20mA+300 m+SEM PEDESTAL"},"CF"]
[null,"PAINEL IHM + TRANSMISSOR","ModBus TCP/IP","SEM CABO","SEM PEDESTAL",{"$f":"_xlfn.CONCAT(TAB_COMBINAÇÕES[[#This Row],[AUTOMAÇÃO]],\"+\",TAB_COMBINAÇÕES[[#This Row],[COMUNICAÇÃO]],\"+\",TAB_COMBINAÇÕES[[#This Row],[CABO]],\"+\",TAB_COMBINAÇÕES[[#This Row],[FIXAÇÃO]])","v":"PAINEL IHM + TRANSMISSOR+ModBus TCP/IP+SEM CABO+SEM PEDESTAL"},"CG"]
[null,"PAINEL IHM + TRANSMISSOR","ModBus TCP/IP","10 m","SEM PEDESTAL",{"$f":"_xlfn.CONCAT(TAB_COMBINAÇÕES[[#This Row],[AUTOMAÇÃO]],\"+\",TAB_COMBINAÇÕES[[#This Row],[COMUNICAÇÃO]],\"+\",TAB_COMBINAÇÕES[[#This Row],[CABO]],\"+\",TAB_COMBINAÇÕES[[#This Row],[FIXAÇÃO]])","v":"PAINEL IHM + TRANSMISSOR+ModBus TCP/IP+10 m+SEM PEDESTAL"},"CH"]
[null,"PAINEL IHM + TRANSMISSOR","ModBus TCP/IP","20 m","SEM PEDESTAL",{"$f":"_xlfn.CONCAT(TAB_COMBINAÇÕES[[#This Row],[AUTOMAÇÃO]],\"+\",TAB_COMBINAÇÕES[[#This Row],[COMUNICAÇÃO]],\"+\",TAB_COMBINAÇÕES[[#This Row],[CABO]],\"+\",TAB_COMBINAÇÕES[[#This Row],[FIXAÇÃO]])","v":"PAINEL IHM + TRANSMISSOR+ModBus TCP/IP+20 m+SEM PEDESTAL"},"CI"]
[null,"PAINEL IHM + TRANSMISSOR","ModBus TCP/IP","50 m","SEM PEDESTAL",{"$f":"_xlfn.CONCAT(TAB_COMBINAÇÕES[[#This Row],[AUTOMAÇÃO]],\"+\",TAB_COMBINAÇÕES[[#This Row],[COMUNICAÇÃO]],\"+\",TAB_COMBINAÇÕES[[#This Row],[CABO]],\"+\",TAB_COMBINAÇÕES[[#This Row],[FIXAÇÃO]])","v":"PAINEL IHM + TRANSMISSOR+ModBus TCP/IP+50 m+SEM PEDESTAL"},"CJ"]
[null,"PAINEL IHM + TRANSMISSOR","ModBus TCP/IP","100 m","SEM PEDESTAL",{"$f":"_xlfn.CONCAT(TAB_COMBINAÇÕES[[#This Row],[AUTOMAÇÃO]],\"+\",TAB_COMBINAÇÕES[[#This Row],[COMUNICAÇÃO]],\"+\",TAB_COMBINAÇÕES[[#This Row],[CABO]],\"+\",TAB_COMBINAÇÕES[[#This Row],[FIXAÇÃO]])","v":"PAINEL IHM + TRANSMISSOR+ModBus TCP/IP+100 m+SEM PEDESTAL"},"CK"]
[null,"PAINEL IHM + TRANSMISSOR","ModBus TCP/IP","200 m","SEM PEDESTAL",{"$f":"_xlfn.CONCAT(TAB_COMBINAÇÕES[[#This Row],[AUTOMAÇÃO]],\"+\",TAB_COMBINAÇÕES[[#This Row],[COMUNICAÇÃO]],\"+\",TAB_COMBINAÇÕES[[#This Row],[CABO]],\"+\",TAB_COMBINAÇÕES[[#This Row],[FIXAÇÃO]])","v":"PAINEL IHM + TRANSMISSOR+ModBus TCP/IP+200 m+SEM PEDESTAL"},"CL"]
[null,"PAINEL IHM + TRANSMISSOR","ModBus TCP/IP","300 m","SEM PEDESTAL",{"$f":"_xlfn.CONCAT(TAB_COMBINAÇÕES[[#This Row],[AUTOMAÇÃO]],\"+\",TAB_COMBINAÇÕES[[#This Row],[COMUNICAÇÃO]],\"+\",TAB_COMBINAÇÕES[[#This Row],[CABO]],\"+\",TAB_COMBINAÇÕES[[#This Row],[FIXAÇÃO]])","v":"PAINEL IHM + TRANSMISSOR+ModBus TCP/IP+300 m+SEM PEDESTAL"},"CM"]
[null,"PAINEL IHM + TRANSMISSOR","ModBus TCP/IP + 4-20mA","SEM CABO","SEM PEDESTAL",{"$f":"_xlfn.CONCAT(TAB_COMBINAÇÕES[[#This Row],[AUTOMAÇÃO]],\"+\",TAB_COMBINAÇÕES[[#This Row],[COMUNICAÇÃO]],\"+\",TAB_COMBINAÇÕES[[#This Row],[CABO]],\"+\",TAB_COMBINAÇÕES[[#This Row],[FIXAÇÃO]])","v":"PAINEL IHM + TRANSMISSOR+ModBus TCP/IP + 4-20mA+SEM CABO+SEM PEDESTAL"},"CN"]
[null,"PAINEL IHM + TRANSMISSOR","ModBus TCP/IP + 4-20mA","10 m","SEM PEDESTAL",{"$f":"_xlfn.CONCAT(TAB_COMBINAÇÕES[[#This Row],[AUTOMAÇÃO]],\"+\",TAB_COMBINAÇÕES[[#This Row],[COMUNICAÇÃO]],\"+\",TAB_COMBINAÇÕES[[#This Row],[CABO]],\"+\",TAB_COMBINAÇÕES[[#This Row],[FIXAÇÃO]])","v":"PAINEL IHM + TRANSMISSOR+ModBus TCP/IP + 4-20mA+10 m+SEM PEDESTAL"},"CO"]
[null,"PAINEL IHM + TRANSMISSOR","ModBus TCP/IP + 4-20mA","20 m","SEM PEDESTAL",{"$f":"_xlfn.CONCAT(TAB_COMBINAÇÕES[[#This Row],[AUTOMAÇÃO]],\"+\",TAB_COMBINAÇÕES[[#This Row],[COMUNICAÇÃO]],\"+\",TAB_COMBINAÇÕES[[#This Row],[CABO]],\"+\",TAB_COMBINAÇÕES[[#This Row],[FIXAÇÃO]])","v":"PAINEL IHM + TRANSMISSOR+ModBus TCP/IP + 4-20mA+20 m+SEM PEDESTAL"},"CP"]
[null,"PAINEL IHM + TRANSMISSOR","ModBus TCP/IP + 4-20mA","50 m","SEM PEDESTAL",{"$f":"_xlfn.CONCAT(TAB_COMBINAÇÕES[[#This Row],[AUTOMAÇÃO]],\"+\",TAB_COMBINAÇÕES[[#This Row],[COMUNICAÇÃO]],\"+\",TAB_COMBINAÇÕES[[#This Row],[CABO]],\"+\",TAB_COMBINAÇÕES[[#This Row],[FIXAÇÃO]])","v":"PAINEL IHM + TRANSMISSOR+ModBus TCP/IP + 4-20mA+50 m+SEM PEDESTAL"},"CQ"]
[null,"PAINEL IHM + TRANSMISSOR","ModBus TCP/IP + 4-20mA","100 m","SEM PEDESTAL",{"$f":"_xlfn.CONCAT(TAB_COMBINAÇÕES[[#This Row],[AUTOMAÇÃO]],\"+\",TAB_COMBINAÇÕES[[#This Row],[COMUNICAÇÃO]],\"+\",TAB_COMBINAÇÕES[[#This Row],[CABO]],\"+\",TAB_COMBINAÇÕES[[#This Row],[FIXAÇÃO]])","v":"PAINEL IHM + TRANSMISSOR+ModBus TCP/IP + 4-20mA+100 m+SEM PEDESTAL"},"CR"]
[null,"PAINEL IHM + TRANSMISSOR","ModBus TCP/IP + 4-20mA","200 m","SEM PEDESTAL",{"$f":"_xlfn.CONCAT(TAB_COMBINAÇÕES[[#This Row],[AUTOMAÇÃO]],\"+\",TAB_COMBINAÇÕES[[#This Row],[COMUNICAÇÃO]],\"+\",TAB_COMBINAÇÕES[[#This Row],[CABO]],\"+\",TAB_COMBINAÇÕES[[#This Row],[FIXAÇÃO]])","v":"PAINEL IHM + TRANSMISSOR+ModBus TCP/IP + 4-20mA+200 m+SEM PEDESTAL"},"CS"]
[null,"PAINEL IHM + TRANSMISSOR","ModBus TCP/IP + 4-20mA","300 m","SEM PEDESTAL",{"$f":"_xlfn.CONCAT(TAB_COMBINAÇÕES[[#This Row],[AUTOMAÇÃO]],\"+\",TAB_COMBINAÇÕES[[#This Row],[COMUNICAÇÃO]],\"+\",TAB_COMBINAÇÕES[[#This Row],[CABO]],\"+\",TAB_COMBINAÇÕES[[#This Row],[FIXAÇÃO]])","v":"PAINEL IHM + TRANSMISSOR+ModBus TCP/IP + 4-20mA+300 m+SEM PEDESTAL"},"CT"]
[null,"PAINEL IHM + TRANSMISSOR","Profibus","SEM CABO","SEM PEDESTAL",{"$f":"_xlfn.CONCAT(TAB_COMBINAÇÕES[[#This Row],[AUTOMAÇÃO]],\"+\",TAB_COMBINAÇÕES[[#This Row],[COMUNICAÇÃO]],\"+\",TAB_COMBINAÇÕES[[#This Row],[CABO]],\"+\",TAB_COMBINAÇÕES[[#This Row],[FIXAÇÃO]])","v":"PAINEL IHM + TRANSMISSOR+Profibus+SEM CABO+SEM PEDESTAL"},"CU"]
[null,"PAINEL IHM + TRANSMISSOR","Profibus","10 m","SEM PEDESTAL",{"$f":"_xlfn.CONCAT(TAB_COMBINAÇÕES[[#This Row],[AUTOMAÇÃO]],\"+\",TAB_COMBINAÇÕES[[#This Row],[COMUNICAÇÃO]],\"+\",TAB_COMBINAÇÕES[[#This Row],[CABO]],\"+\",TAB_COMBINAÇÕES[[#This Row],[FIXAÇÃO]])","v":"PAINEL IHM + TRANSMISSOR+Profibus+10 m+SEM PEDESTAL"},"CV"]
[null,"PAINEL IHM + TRANSMISSOR","Profibus","20 m","SEM PEDESTAL",{"$f":"_xlfn.CONCAT(TAB_COMBINAÇÕES[[#This Row],[AUTOMAÇÃO]],\"+\",TAB_COMBINAÇÕES[[#This Row],[COMUNICAÇÃO]],\"+\",TAB_COMBINAÇÕES[[#This Row],[CABO]],\"+\",TAB_COMBINAÇÕES[[#This Row],[FIXAÇÃO]])","v":"PAINEL IHM + TRANSMISSOR+Profibus+20 m+SEM PEDESTAL"},"CX"]
[null,"PAINEL IHM + TRANSMISSOR","Profibus","50 m","SEM PEDESTAL",{"$f":"_xlfn.CONCAT(TAB_COMBINAÇÕES[[#This Row],[AUTOMAÇÃO]],\"+\",TAB_COMBINAÇÕES[[#This Row],[COMUNICAÇÃO]],\"+\",TAB_COMBINAÇÕES[[#This Row],[CABO]],\"+\",TAB_COMBINAÇÕES[[#This Row],[FIXAÇÃO]])","v":"PAINEL IHM + TRANSMISSOR+Profibus+50 m+SEM PEDESTAL"},"CY"]
[null,"PAINEL IHM + TRANSMISSOR","Profibus","100 m","SEM PEDESTAL",{"$f":"_xlfn.CONCAT(TAB_COMBINAÇÕES[[#This Row],[AUTOMAÇÃO]],\"+\",TAB_COMBINAÇÕES[[#This Row],[COMUNICAÇÃO]],\"+\",TAB_COMBINAÇÕES[[#This Row],[CABO]],\"+\",TAB_COMBINAÇÕES[[#This Row],[FIXAÇÃO]])","v":"PAINEL IHM + TRANSMISSOR+Profibus+100 m+SEM PEDESTAL"},"CZ"]
[null,"PAINEL IHM + TRANSMISSOR","Profibus","200 m","SEM PEDESTAL",{"$f":"_xlfn.CONCAT(TAB_COMBINAÇÕES[[#This Row],[AUTOMAÇÃO]],\"+\",TAB_COMBINAÇÕES[[#This Row],[COMUNICAÇÃO]],\"+\",TAB_COMBINAÇÕES[[#This Row],[CABO]],\"+\",TAB_COMBINAÇÕES[[#This Row],[FIXAÇÃO]])","v":"PAINEL IHM + TRANSMISSOR+Profibus+200 m+SEM PEDESTAL"},"DA"]
[null,"PAINEL IHM + TRANSMISSOR","Profibus","300 m","SEM PEDESTAL",{"$f":"_xlfn.CONCAT(TAB_COMBINAÇÕES[[#This Row],[AUTOMAÇÃO]],\"+\",TAB_COMBINAÇÕES[[#This Row],[COMUNICAÇÃO]],\"+\",TAB_COMBINAÇÕES[[#This Row],[CABO]],\"+\",TAB_COMBINAÇÕES[[#This Row],[FIXAÇÃO]])","v":"PAINEL IHM + TRANSMISSOR+Profibus+300 m+SEM PEDESTAL"},"DB"]
[null,"PAINEL IHM + TRANSMISSOR","Profibus + 4-20mA","SEM CABO","SEM PEDESTAL",{"$f":"_xlfn.CONCAT(TAB_COMBINAÇÕES[[#This Row],[AUTOMAÇÃO]],\"+\",TAB_COMBINAÇÕES[[#This Row],[COMUNICAÇÃO]],\"+\",TAB_COMBINAÇÕES[[#This Row],[CABO]],\"+\",TAB_COMBINAÇÕES[[#This Row],[FIXAÇÃO]])","v":"PAINEL IHM + TRANSMISSOR+Profibus + 4-20mA+SEM CABO+SEM PEDESTAL"},"DC"]
[null,"PAINEL IHM + TRANSMISSOR","Profibus + 4-20mA","10 m","SEM PEDESTAL",{"$f":"_xlfn.CONCAT(TAB_COMBINAÇÕES[[#This Row],[AUTOMAÇÃO]],\"+\",TAB_COMBINAÇÕES[[#This Row],[COMUNICAÇÃO]],\"+\",TAB_COMBINAÇÕES[[#This Row],[CABO]],\"+\",TAB_COMBINAÇÕES[[#This Row],[FIXAÇÃO]])","v":"PAINEL IHM + TRANSMISSOR+Profibus + 4-20mA+10 m+SEM PEDESTAL"},"DD"]
[null,"PAINEL IHM + TRANSMISSOR","Profibus + 4-20mA","20 m","SEM PEDESTAL",{"$f":"_xlfn.CONCAT(TAB_COMBINAÇÕES[[#This Row],[AUTOMAÇÃO]],\"+\",TAB_COMBINAÇÕES[[#This Row],[COMUNICAÇÃO]],\"+\",TAB_COMBINAÇÕES[[#This Row],[CABO]],\"+\",TAB_COMBINAÇÕES[[#This Row],[FIXAÇÃO]])","v":"PAINEL IHM + TRANSMISSOR+Profibus + 4-20mA+20 m+SEM PEDESTAL"},"DE"]
[null,"PAINEL IHM + TRANSMISSOR","Profibus + 4-20mA","50 m","SEM PEDESTAL",{"$f":"_xlfn.CONCAT(TAB_COMBINAÇÕES[[#This Row],[AUTOMAÇÃO]],\"+\",TAB_COMBINAÇÕES[[#This Row],[COMUNICAÇÃO]],\"+\",TAB_COMBINAÇÕES[[#This Row],[CABO]],\"+\",TAB_COMBINAÇÕES[[#This Row],[FIXAÇÃO]])","v":"PAINEL IHM + TRANSMISSOR+Profibus + 4-20mA+50 m+SEM PEDESTAL"},"DF"]
[null,"PAINEL IHM + TRANSMISSOR","Profibus + 4-20mA","100 m","SEM PEDESTAL",{"$f":"_xlfn.CONCAT(TAB_COMBINAÇÕES[[#This Row],[AUTOMAÇÃO]],\"+\",TAB_COMBINAÇÕES[[#This Row],[COMUNICAÇÃO]],\"+\",TAB_COMBINAÇÕES[[#This Row],[CABO]],\"+\",TAB_COMBINAÇÕES[[#This Row],[FIXAÇÃO]])","v":"PAINEL IHM + TRANSMISSOR+Profibus + 4-20mA+100 m+SEM PEDESTAL"},"DG"]
[null,"PAINEL IHM + TRANSMISSOR","Profibus + 4-20mA","200 m","SEM PEDESTAL",{"$f":"_xlfn.CONCAT(TAB_COMBINAÇÕES[[#This Row],[AUTOMAÇÃO]],\"+\",TAB_COMBINAÇÕES[[#This Row],[COMUNICAÇÃO]],\"+\",TAB_COMBINAÇÕES[[#This Row],[CABO]],\"+\",TAB_COMBINAÇÕES[[#This Row],[FIXAÇÃO]])","v":"PAINEL IHM + TRANSMISSOR+Profibus + 4-20mA+200 m+SEM PEDESTAL"},"DH"]
[null,"PAINEL IHM + TRANSMISSOR","Profibus + 4-20mA","300 m","SEM PEDESTAL",{"$f":"_xlfn.CONCAT(TAB_COMBINAÇÕES[[#This Row],[AUTOMAÇÃO]],\"+\",TAB_COMBINAÇÕES[[#This Row],[COMUNICAÇÃO]],\"+\",TAB_COMBINAÇÕES[[#This Row],[CABO]],\"+\",TAB_COMBINAÇÕES[[#This Row],[FIXAÇÃO]])","v":"PAINEL IHM + TRANSMISSOR+Profibus + 4-20mA+300 m+SEM PEDESTAL"},"DI"]
[null,"PAINEL IHM + TRANSMISSOR","Profinet","SEM CABO","SEM PEDESTAL",{"$f":"_xlfn.CONCAT(TAB_COMBINAÇÕES[[#This Row],[AUTOMAÇÃO]],\"+\",TAB_COMBINAÇÕES[[#This Row],[COMUNICAÇÃO]],\"+\",TAB_COMBINAÇÕES[[#This Row],[CABO]],\"+\",TAB_COMBINAÇÕES[[#This Row],[FIXAÇÃO]])","v":"PAINEL IHM + TRANSMISSOR+Profinet+SEM CABO+SEM PEDESTAL"},"DJ"]
[null,"PAINEL IHM + TRANSMISSOR","Profinet","10 m","SEM PEDESTAL",{"$f":"_xlfn.CONCAT(TAB_COMBINAÇÕES[[#This Row],[AUTOMAÇÃO]],\"+\",TAB_COMBINAÇÕES[[#This Row],[COMUNICAÇÃO]],\"+\",TAB_COMBINAÇÕES[[#This Row],[CABO]],\"+\",TAB_COMBINAÇÕES[[#This Row],[FIXAÇÃO]])","v":"PAINEL IHM + TRANSMISSOR+Profinet+10 m+SEM PEDESTAL"},"DK"]
[null,"PAINEL IHM + TRANSMISSOR","Profinet","20 m","SEM PEDESTAL",{"$f":"_xlfn.CONCAT(TAB_COMBINAÇÕES[[#This Row],[AUTOMAÇÃO]],\"+\",TAB_COMBINAÇÕES[[#This Row],[COMUNICAÇÃO]],\"+\",TAB_COMBINAÇÕES[[#This Row],[CABO]],\"+\",TAB_COMBINAÇÕES[[#This Row],[FIXAÇÃO]])","v":"PAINEL IHM + TRANSMISSOR+Profinet+20 m+SEM PEDESTAL"},"DL"]
[null,"PAINEL IHM + TRANSMISSOR","Profinet","50 m","SEM PEDESTAL",{"$f":"_xlfn.CONCAT(TAB_COMBINAÇÕES[[#This Row],[AUTOMAÇÃO]],\"+\",TAB_COMBINAÇÕES[[#This Row],[COMUNICAÇÃO]],\"+\",TAB_COMBINAÇÕES[[#This Row],[CABO]],\"+\",TAB_COMBINAÇÕES[[#This Row],[FIXAÇÃO]])","v":"PAINEL IHM + TRANSMISSOR+Profinet+50 m+SEM PEDESTAL"},"DM"]
[null,"PAINEL IHM + TRANSMISSOR","Profinet","100 m","SEM PEDESTAL",{"$f":"_xlfn.CONCAT(TAB_COMBINAÇÕES[[#This Row],[AUTOMAÇÃO]],\"+\",TAB_COMBINAÇÕES[[#This Row],[COMUNICAÇÃO]],\"+\",TAB_COMBINAÇÕES[[#This Row],[CABO]],\"+\",TAB_COMBINAÇÕES[[#This Row],[FIXAÇÃO]])","v":"PAINEL IHM + TRANSMISSOR+Profinet+100 m+SEM PEDESTAL"},"DN"]
[null,"PAINEL IHM + TRANSMISSOR","Profinet","200 m","SEM PEDESTAL",{"$f":"_xlfn.CONCAT(TAB_COMBINAÇÕES[[#This Row],[AUTOMAÇÃO]],\"+\",TAB_COMBINAÇÕES[[#This Row],[COMUNICAÇÃO]],\"+\",TAB_COMBINAÇÕES[[#This Row],[CABO]],\"+\",TAB_COMBINAÇÕES[[#This Row],[FIXAÇÃO]])","v":"PAINEL IHM + TRANSMISSOR+Profinet+200 m+SEM PEDESTAL"},"DO"]
[null,"PAINEL IHM + TRANSMISSOR","Profinet","300 m","SEM PEDESTAL",{"$f":"_xlfn.CONCAT(TAB_COMBINAÇÕES[[#This Row],[AUTOMAÇÃO]],\"+\",TAB_COMBINAÇÕES[[#This Row],[COMUNICAÇÃO]],\"+\",TAB_COMBINAÇÕES[[#This Row],[CABO]],\"+\",TAB_COMBINAÇÕES[[#This Row],[FIXAÇÃO]])","v":"PAINEL IHM + TRANSMISSOR+Profinet+300 m+SEM PEDESTAL"},"DP"]
[null,"PAINEL IHM + TRANSMISSOR","Profinet + 4-20mA","SEM CABO","SEM PEDESTAL",{"$f":"_xlfn.CONCAT(TAB_COMBINAÇÕES[[#This Row],[AUTOMAÇÃO]],\"+\",TAB_COMBINAÇÕES[[#This Row],[COMUNICAÇÃO]],\"+\",TAB_COMBINAÇÕES[[#This Row],[CABO]],\"+\",TAB_COMBINAÇÕES[[#This Row],[FIXAÇÃO]])","v":"PAINEL IHM + TRANSMISSOR+Profinet + 4-20mA+SEM CABO+SEM PEDESTAL"},"DQ"]
[null,"PAINEL IHM + TRANSMISSOR","Profinet + 4-20mA","10 m","SEM PEDESTAL",{"$f":"_xlfn.CONCAT(TAB_COMBINAÇÕES[[#This Row],[AUTOMAÇÃO]],\"+\",TAB_COMBINAÇÕES[[#This Row],[COMUNICAÇÃO]],\"+\",TAB_COMBINAÇÕES[[#This Row],[CABO]],\"+\",TAB_COMBINAÇÕES[[#This Row],[FIXAÇÃO]])","v":"PAINEL IHM + TRANSMISSOR+Profinet + 4-20mA+10 m+SEM PEDESTAL"},"DR"]
[null,"PAINEL IHM + TRANSMISSOR","Profinet + 4-20mA","20 m","SEM PEDESTAL",{"$f":"_xlfn.CONCAT(TAB_COMBINAÇÕES[[#This Row],[AUTOMAÇÃO]],\"+\",TAB_COMBINAÇÕES[[#This Row],[COMUNICAÇÃO]],\"+\",TAB_COMBINAÇÕES[[#This Row],[CABO]],\"+\",TAB_COMBINAÇÕES[[#This Row],[FIXAÇÃO]])","v":"PAINEL IHM + TRANSMISSOR+Profinet + 4-20mA+20 m+SEM PEDESTAL"},"DS"]
[null,"PAINEL IHM + TRANSMISSOR","Profinet + 4-20mA","50 m","SEM PEDESTAL",{"$f":"_xlfn.CONCAT(TAB_COMBINAÇÕES[[#This Row],[AUTOMAÇÃO]],\"+\",TAB_COMBINAÇÕES[[#This Row],[COMUNICAÇÃO]],\"+\",TAB_COMBINAÇÕES[[#This Row],[CABO]],\"+\",TAB_COMBINAÇÕES[[#This Row],[FIXAÇÃO]])","v":"PAINEL IHM + TRANSMISSOR+Profinet + 4-20mA+50 m+SEM PEDESTAL"},"DT"]
[null,"PAINEL IHM + TRANSMISSOR","Profinet + 4-20mA","100 m","SEM PEDESTAL",{"$f":"_xlfn.CONCAT(TAB_COMBINAÇÕES[[#This Row],[AUTOMAÇÃO]],\"+\",TAB_COMBINAÇÕES[[#This Row],[COMUNICAÇÃO]],\"+\",TAB_COMBINAÇÕES[[#This Row],[CABO]],\"+\",TAB_COMBINAÇÕES[[#This Row],[FIXAÇÃO]])","v":"PAINEL IHM + TRANSMISSOR+Profinet + 4-20mA+100 m+SEM PEDESTAL"},"DU"]
[null,"PAINEL IHM + TRANSMISSOR","Profinet + 4-20mA","200 m","SEM PEDESTAL",{"$f":"_xlfn.CONCAT(TAB_COMBINAÇÕES[[#This Row],[AUTOMAÇÃO]],\"+\",TAB_COMBINAÇÕES[[#This Row],[COMUNICAÇÃO]],\"+\",TAB_COMBINAÇÕES[[#This Row],[CABO]],\"+\",TAB_COMBINAÇÕES[[#This Row],[FIXAÇÃO]])","v":"PAINEL IHM + TRANSMISSOR+Profinet + 4-20mA+200 m+SEM PEDESTAL"},"DV"]
[null,"PAINEL IHM + TRANSMISSOR","Profinet + 4-20mA","300 m","SEM PEDESTAL",{"$f":"_xlfn.CONCAT(TAB_COMBINAÇÕES[[#This Row],[AUTOMAÇÃO]],\"+\",TAB_COMBINAÇÕES[[#This Row],[COMUNICAÇÃO]],\"+\",TAB_COMBINAÇÕES[[#This Row],[CABO]],\"+\",TAB_COMBINAÇÕES[[#This Row],[FIXAÇÃO]])","v":"PAINEL IHM + TRANSMISSOR+Profinet + 4-20mA+300 m+SEM PEDESTAL"},"DX"]
[null,"PAINEL IHM + TRANSMISSOR","Sem comunicação","SEM CABO","SEM PEDESTAL",{"$f":"_xlfn.CONCAT(TAB_COMBINAÇÕES[[#This Row],[AUTOMAÇÃO]],\"+\",TAB_COMBINAÇÕES[[#This Row],[COMUNICAÇÃO]],\"+\",TAB_COMBINAÇÕES[[#This Row],[CABO]],\"+\",TAB_COMBINAÇÕES[[#This Row],[FIXAÇÃO]])","v":"PAINEL IHM + TRANSMISSOR+Sem comunicação+SEM CABO+SEM PEDESTAL"},"DY"]
[null,"PAINEL IHM + TRANSMISSOR","Sem comunicação","10 m","SEM PEDESTAL",{"$f":"_xlfn.CONCAT(TAB_COMBINAÇÕES[[#This Row],[AUTOMAÇÃO]],\"+\",TAB_COMBINAÇÕES[[#This Row],[COMUNICAÇÃO]],\"+\",TAB_COMBINAÇÕES[[#This Row],[CABO]],\"+\",TAB_COMBINAÇÕES[[#This Row],[FIXAÇÃO]])","v":"PAINEL IHM + TRANSMISSOR+Sem comunicação+10 m+SEM PEDESTAL"},"DW"]
[null,"PAINEL IHM + TRANSMISSOR","Sem comunicação","20 m","SEM PEDESTAL",{"$f":"_xlfn.CONCAT(TAB_COMBINAÇÕES[[#This Row],[AUTOMAÇÃO]],\"+\",TAB_COMBINAÇÕES[[#This Row],[COMUNICAÇÃO]],\"+\",TAB_COMBINAÇÕES[[#This Row],[CABO]],\"+\",TAB_COMBINAÇÕES[[#This Row],[FIXAÇÃO]])","v":"PAINEL IHM + TRANSMISSOR+Sem comunicação+20 m+SEM PEDESTAL"},"DZ"]
[null,"PAINEL IHM + TRANSMISSOR","Sem comunicação","50 m","SEM PEDESTAL",{"$f":"_xlfn.CONCAT(TAB_COMBINAÇÕES[[#This Row],[AUTOMAÇÃO]],\"+\",TAB_COMBINAÇÕES[[#This Row],[COMUNICAÇÃO]],\"+\",TAB_COMBINAÇÕES[[#This Row],[CABO]],\"+\",TAB_COMBINAÇÕES[[#This Row],[FIXAÇÃO]])","v":"PAINEL IHM + TRANSMISSOR+Sem comunicação+50 m+SEM PEDESTAL"},"EA"]
[null,"PAINEL IHM + TRANSMISSOR","Sem comunicação","100 m","SEM PEDESTAL",{"$f":"_xlfn.CONCAT(TAB_COMBINAÇÕES[[#This Row],[AUTOMAÇÃO]],\"+\",TAB_COMBINAÇÕES[[#This Row],[COMUNICAÇÃO]],\"+\",TAB_COMBINAÇÕES[[#This Row],[CABO]],\"+\",TAB_COMBINAÇÕES[[#This Row],[FIXAÇÃO]])","v":"PAINEL IHM + TRANSMISSOR+Sem comunicação+100 m+SEM PEDESTAL"},"EB"]
[null,"PAINEL IHM + TRANSMISSOR","Sem comunicação","200 m","SEM PEDESTAL",{"$f":"_xlfn.CONCAT(TAB_COMBINAÇÕES[[#This Row],[AUTOMAÇÃO]],\"+\",TAB_COMBINAÇÕES[[#This Row],[COMUNICAÇÃO]],\"+\",TAB_COMBINAÇÕES[[#This Row],[CABO]],\"+\",TAB_COMBINAÇÕES[[#This Row],[FIXAÇÃO]])","v":"PAINEL IHM + TRANSMISSOR+Sem comunicação+200 m+SEM PEDESTAL"},"EC"]
[null,"PAINEL IHM + TRANSMISSOR","Sem comunicação","300 m","SEM PEDESTAL",{"$f":"_xlfn.CONCAT(TAB_COMBINAÇÕES[[#This Row],[AUTOMAÇÃO]],\"+\",TAB_COMBINAÇÕES[[#This Row],[COMUNICAÇÃO]],\"+\",TAB_COMBINAÇÕES[[#This Row],[CABO]],\"+\",TAB_COMBINAÇÕES[[#This Row],[FIXAÇÃO]])","v":"PAINEL IHM + TRANSMISSOR+Sem comunicação+300 m+SEM PEDESTAL"},"ED"]
[null,"PAINEL IHM + TRANSMISSOR","Somente 4-20mA","SEM CABO","SEM PEDESTAL",{"$f":"_xlfn.CONCAT(TAB_COMBINAÇÕES[[#This Row],[AUTOMAÇÃO]],\"+\",TAB_COMBINAÇÕES[[#This Row],[COMUNICAÇÃO]],\"+\",TAB_COMBINAÇÕES[[#This Row],[CABO]],\"+\",TAB_COMBINAÇÕES[[#This Row],[FIXAÇÃO]])","v":"PAINEL IHM + TRANSMISSOR+Somente 4-20mA+SEM CABO+SEM PEDESTAL"},"EE"]
[null,"PAINEL IHM + TRANSMISSOR","Somente 4-20mA","10 m","SEM PEDESTAL",{"$f":"_xlfn.CONCAT(TAB_COMBINAÇÕES[[#This Row],[AUTOMAÇÃO]],\"+\",TAB_COMBINAÇÕES[[#This Row],[COMUNICAÇÃO]],\"+\",TAB_COMBINAÇÕES[[#This Row],[CABO]],\"+\",TAB_COMBINAÇÕES[[#This Row],[FIXAÇÃO]])","v":"PAINEL IHM + TRANSMISSOR+Somente 4-20mA+10 m+SEM PEDESTAL"},"EF"]
[null,"PAINEL IHM + TRANSMISSOR","Somente 4-20mA","20 m","SEM PEDESTAL",{"$f":"_xlfn.CONCAT(TAB_COMBINAÇÕES[[#This Row],[AUTOMAÇÃO]],\"+\",TAB_COMBINAÇÕES[[#This Row],[COMUNICAÇÃO]],\"+\",TAB_COMBINAÇÕES[[#This Row],[CABO]],\"+\",TAB_COMBINAÇÕES[[#This Row],[FIXAÇÃO]])","v":"PAINEL IHM + TRANSMISSOR+Somente 4-20mA+20 m+SEM PEDESTAL"},"EG"]
[null,"PAINEL IHM + TRANSMISSOR","Somente 4-20mA","50 m","SEM PEDESTAL",{"$f":"_xlfn.CONCAT(TAB_COMBINAÇÕES[[#This Row],[AUTOMAÇÃO]],\"+\",TAB_COMBINAÇÕES[[#This Row],[COMUNICAÇÃO]],\"+\",TAB_COMBINAÇÕES[[#This Row],[CABO]],\"+\",TAB_COMBINAÇÕES[[#This Row],[FIXAÇÃO]])","v":"PAINEL IHM + TRANSMISSOR+Somente 4-20mA+50 m+SEM PEDESTAL"},"EH"]
[null,"PAINEL IHM + TRANSMISSOR","Somente 4-20mA","100 m","SEM PEDESTAL",{"$f":"_xlfn.CONCAT(TAB_COMBINAÇÕES[[#This Row],[AUTOMAÇÃO]],\"+\",TAB_COMBINAÇÕES[[#This Row],[COMUNICAÇÃO]],\"+\",TAB_COMBINAÇÕES[[#This Row],[CABO]],\"+\",TAB_COMBINAÇÕES[[#This Row],[FIXAÇÃO]])","v":"PAINEL IHM + TRANSMISSOR+Somente 4-20mA+100 m+SEM PEDESTAL"},"EI"]
[null,"PAINEL IHM + TRANSMISSOR","Somente 4-20mA","200 m","SEM PEDESTAL",{"$f":"_xlfn.CONCAT(TAB_COMBINAÇÕES[[#This Row],[AUTOMAÇÃO]],\"+\",TAB_COMBINAÇÕES[[#This Row],[COMUNICAÇÃO]],\"+\",TAB_COMBINAÇÕES[[#This Row],[CABO]],\"+\",TAB_COMBINAÇÕES[[#This Row],[FIXAÇÃO]])","v":"PAINEL IHM + TRANSMISSOR+Somente 4-20mA+200 m+SEM PEDESTAL"},"EJ"]
[null,"PAINEL IHM + TRANSMISSOR","Somente 4-20mA","300 m","SEM PEDESTAL",{"$f":"_xlfn.CONCAT(TAB_COMBINAÇÕES[[#This Row],[AUTOMAÇÃO]],\"+\",TAB_COMBINAÇÕES[[#This Row],[COMUNICAÇÃO]],\"+\",TAB_COMBINAÇÕES[[#This Row],[CABO]],\"+\",TAB_COMBINAÇÕES[[#This Row],[FIXAÇÃO]])","v":"PAINEL IHM + TRANSMISSOR+Somente 4-20mA+300 m+SEM PEDESTAL"},"EK"]
[null,"CAIXA Exd COM DISPLAY","ModBus RTU","SEM CABO","COM PEDESTAL",{"$f":"_xlfn.CONCAT(TAB_COMBINAÇÕES[[#This Row],[AUTOMAÇÃO]],\"+\",TAB_COMBINAÇÕES[[#This Row],[COMUNICAÇÃO]],\"+\",TAB_COMBINAÇÕES[[#This Row],[CABO]],\"+\",TAB_COMBINAÇÕES[[#This Row],[FIXAÇÃO]])","v":"CAIXA Exd COM DISPLAY+ModBus RTU+SEM CABO+COM PEDESTAL"},"EL"]
[null,"CAIXA Exd COM DISPLAY","ModBus RTU","10 m","COM PEDESTAL",{"$f":"_xlfn.CONCAT(TAB_COMBINAÇÕES[[#This Row],[AUTOMAÇÃO]],\"+\",TAB_COMBINAÇÕES[[#This Row],[COMUNICAÇÃO]],\"+\",TAB_COMBINAÇÕES[[#This Row],[CABO]],\"+\",TAB_COMBINAÇÕES[[#This Row],[FIXAÇÃO]])","v":"CAIXA Exd COM DISPLAY+ModBus RTU+10 m+COM PEDESTAL"},"EM"]
[null,"CAIXA Exd COM DISPLAY","ModBus RTU","20 m","COM PEDESTAL",{"$f":"_xlfn.CONCAT(TAB_COMBINAÇÕES[[#This Row],[AUTOMAÇÃO]],\"+\",TAB_COMBINAÇÕES[[#This Row],[COMUNICAÇÃO]],\"+\",TAB_COMBINAÇÕES[[#This Row],[CABO]],\"+\",TAB_COMBINAÇÕES[[#This Row],[FIXAÇÃO]])","v":"CAIXA Exd COM DISPLAY+ModBus RTU+20 m+COM PEDESTAL"},"EN"]
[null,"CAIXA Exd COM DISPLAY","ModBus RTU","50 m","COM PEDESTAL",{"$f":"_xlfn.CONCAT(TAB_COMBINAÇÕES[[#This Row],[AUTOMAÇÃO]],\"+\",TAB_COMBINAÇÕES[[#This Row],[COMUNICAÇÃO]],\"+\",TAB_COMBINAÇÕES[[#This Row],[CABO]],\"+\",TAB_COMBINAÇÕES[[#This Row],[FIXAÇÃO]])","v":"CAIXA Exd COM DISPLAY+ModBus RTU+50 m+COM PEDESTAL"},"EO"]
[null,"CAIXA Exd COM DISPLAY","ModBus RTU","100 m","COM PEDESTAL",{"$f":"_xlfn.CONCAT(TAB_COMBINAÇÕES[[#This Row],[AUTOMAÇÃO]],\"+\",TAB_COMBINAÇÕES[[#This Row],[COMUNICAÇÃO]],\"+\",TAB_COMBINAÇÕES[[#This Row],[CABO]],\"+\",TAB_COMBINAÇÕES[[#This Row],[FIXAÇÃO]])","v":"CAIXA Exd COM DISPLAY+ModBus RTU+100 m+COM PEDESTAL"},"EP"]
[null,"CAIXA Exd COM DISPLAY","ModBus RTU","200 m","COM PEDESTAL",{"$f":"_xlfn.CONCAT(TAB_COMBINAÇÕES[[#This Row],[AUTOMAÇÃO]],\"+\",TAB_COMBINAÇÕES[[#This Row],[COMUNICAÇÃO]],\"+\",TAB_COMBINAÇÕES[[#This Row],[CABO]],\"+\",TAB_COMBINAÇÕES[[#This Row],[FIXAÇÃO]])","v":"CAIXA Exd COM DISPLAY+ModBus RTU+200 m+COM PEDESTAL"},"EQ"]
[null,"CAIXA Exd COM DISPLAY","ModBus RTU","300 m","COM PEDESTAL",{"$f":"_xlfn.CONCAT(TAB_COMBINAÇÕES[[#This Row],[AUTOMAÇÃO]],\"+\",TAB_COMBINAÇÕES[[#This Row],[COMUNICAÇÃO]],\"+\",TAB_COMBINAÇÕES[[#This Row],[CABO]],\"+\",TAB_COMBINAÇÕES[[#This Row],[FIXAÇÃO]])","v":"CAIXA Exd COM DISPLAY+ModBus RTU+300 m+COM PEDESTAL"},"ER"]
[null,"CAIXA Exd COM DISPLAY","ModBus TCP/IP","SEM CABO","COM PEDESTAL",{"$f":"_xlfn.CONCAT(TAB_COMBINAÇÕES[[#This Row],[AUTOMAÇÃO]],\"+\",TAB_COMBINAÇÕES[[#This Row],[COMUNICAÇÃO]],\"+\",TAB_COMBINAÇÕES[[#This Row],[CABO]],\"+\",TAB_COMBINAÇÕES[[#This Row],[FIXAÇÃO]])","v":"CAIXA Exd COM DISPLAY+ModBus TCP/IP+SEM CABO+COM PEDESTAL"},"ES"]
[null,"CAIXA Exd COM DISPLAY","ModBus TCP/IP","10 m","COM PEDESTAL",{"$f":"_xlfn.CONCAT(TAB_COMBINAÇÕES[[#This Row],[AUTOMAÇÃO]],\"+\",TAB_COMBINAÇÕES[[#This Row],[COMUNICAÇÃO]],\"+\",TAB_COMBINAÇÕES[[#This Row],[CABO]],\"+\",TAB_COMBINAÇÕES[[#This Row],[FIXAÇÃO]])","v":"CAIXA Exd COM DISPLAY+ModBus TCP/IP+10 m+COM PEDESTAL"},"ET"]
[null,"CAIXA Exd COM DISPLAY","ModBus TCP/IP","20 m","COM PEDESTAL",{"$f":"_xlfn.CONCAT(TAB_COMBINAÇÕES[[#This Row],[AUTOMAÇÃO]],\"+\",TAB_COMBINAÇÕES[[#This Row],[COMUNICAÇÃO]],\"+\",TAB_COMBINAÇÕES[[#This Row],[CABO]],\"+\",TAB_COMBINAÇÕES[[#This Row],[FIXAÇÃO]])","v":"CAIXA Exd COM DISPLAY+ModBus TCP/IP+20 m+COM PEDESTAL"},"EU"]
[null,"CAIXA Exd COM DISPLAY","ModBus TCP/IP","50 m","COM PEDESTAL",{"$f":"_xlfn.CONCAT(TAB_COMBINAÇÕES[[#This Row],[AUTOMAÇÃO]],\"+\",TAB_COMBINAÇÕES[[#This Row],[COMUNICAÇÃO]],\"+\",TAB_COMBINAÇÕES[[#This Row],[CABO]],\"+\",TAB_COMBINAÇÕES[[#This Row],[FIXAÇÃO]])","v":"CAIXA Exd COM DISPLAY+ModBus TCP/IP+50 m+COM PEDESTAL"},"EV"]
[null,"CAIXA Exd COM DISPLAY","ModBus TCP/IP","100 m","COM PEDESTAL",{"$f":"_xlfn.CONCAT(TAB_COMBINAÇÕES[[#This Row],[AUTOMAÇÃO]],\"+\",TAB_COMBINAÇÕES[[#This Row],[COMUNICAÇÃO]],\"+\",TAB_COMBINAÇÕES[[#This Row],[CABO]],\"+\",TAB_COMBINAÇÕES[[#This Row],[FIXAÇÃO]])","v":"CAIXA Exd COM DISPLAY+ModBus TCP/IP+100 m+COM PEDESTAL"},"EX"]
[null,"CAIXA Exd COM DISPLAY","ModBus TCP/IP","200 m","COM PEDESTAL",{"$f":"_xlfn.CONCAT(TAB_COMBINAÇÕES[[#This Row],[AUTOMAÇÃO]],\"+\",TAB_COMBINAÇÕES[[#This Row],[COMUNICAÇÃO]],\"+\",TAB_COMBINAÇÕES[[#This Row],[CABO]],\"+\",TAB_COMBINAÇÕES[[#This Row],[FIXAÇÃO]])","v":"CAIXA Exd COM DISPLAY+ModBus TCP/IP+200 m+COM PEDESTAL"},"EY"]
[null,"CAIXA Exd COM DISPLAY","ModBus TCP/IP","300 m","COM PEDESTAL",{"$f":"_xlfn.CONCAT(TAB_COMBINAÇÕES[[#This Row],[AUTOMAÇÃO]],\"+\",TAB_COMBINAÇÕES[[#This Row],[COMUNICAÇÃO]],\"+\",TAB_COMBINAÇÕES[[#This Row],[CABO]],\"+\",TAB_COMBINAÇÕES[[#This Row],[FIXAÇÃO]])","v":"CAIXA Exd COM DISPLAY+ModBus TCP/IP+300 m+COM PEDESTAL"},"EW"]
[null,"CAIXA Exd COM DISPLAY","Profibus","SEM CABO","COM PEDESTAL",{"$f":"_xlfn.CONCAT(TAB_COMBINAÇÕES[[#This Row],[AUTOMAÇÃO]],\"+\",TAB_COMBINAÇÕES[[#This Row],[COMUNICAÇÃO]],\"+\",TAB_COMBINAÇÕES[[#This Row],[CABO]],\"+\",TAB_COMBINAÇÕES[[#This Row],[FIXAÇÃO]])","v":"CAIXA Exd COM DISPLAY+Profibus+SEM CABO+COM PEDESTAL"},"EZ"]
[null,"CAIXA Exd COM DISPLAY","Profibus","10 m","COM PEDESTAL",{"$f":"_xlfn.CONCAT(TAB_COMBINAÇÕES[[#This Row],[AUTOMAÇÃO]],\"+\",TAB_COMBINAÇÕES[[#This Row],[COMUNICAÇÃO]],\"+\",TAB_COMBINAÇÕES[[#This Row],[CABO]],\"+\",TAB_COMBINAÇÕES[[#This Row],[FIXAÇÃO]])","v":"CAIXA Exd COM DISPLAY+Profibus+10 m+COM PEDESTAL"},"FA"]
[null,"CAIXA Exd COM DISPLAY","Profibus","20 m","COM PEDESTAL",{"$f":"_xlfn.CONCAT(TAB_COMBINAÇÕES[[#This Row],[AUTOMAÇÃO]],\"+\",TAB_COMBINAÇÕES[[#This Row],[COMUNICAÇÃO]],\"+\",TAB_COMBINAÇÕES[[#This Row],[CABO]],\"+\",TAB_COMBINAÇÕES[[#This Row],[FIXAÇÃO]])","v":"CAIXA Exd COM DISPLAY+Profibus+20 m+COM PEDESTAL"},"FB"]
[null,"CAIXA Exd COM DISPLAY","Profibus","50 m","COM PEDESTAL",{"$f":"_xlfn.CONCAT(TAB_COMBINAÇÕES[[#This Row],[AUTOMAÇÃO]],\"+\",TAB_COMBINAÇÕES[[#This Row],[COMUNICAÇÃO]],\"+\",TAB_COMBINAÇÕES[[#This Row],[CABO]],\"+\",TAB_COMBINAÇÕES[[#This Row],[FIXAÇÃO]])","v":"CAIXA Exd COM DISPLAY+Profibus+50 m+COM PEDESTAL"},"FC"]
[null,"CAIXA Exd COM DISPLAY","Profibus","100 m","COM PEDESTAL",{"$f":"_xlfn.CONCAT(TAB_COMBINAÇÕES[[#This Row],[AUTOMAÇÃO]],\"+\",TAB_COMBINAÇÕES[[#This Row],[COMUNICAÇÃO]],\"+\",TAB_COMBINAÇÕES[[#This Row],[CABO]],\"+\",TAB_COMBINAÇÕES[[#This Row],[FIXAÇÃO]])","v":"CAIXA Exd COM DISPLAY+Profibus+100 m+COM PEDESTAL"},"FD"]
[null,"CAIXA Exd COM DISPLAY","Profibus","200 m","COM PEDESTAL",{"$f":"_xlfn.CONCAT(TAB_COMBINAÇÕES[[#This Row],[AUTOMAÇÃO]],\"+\",TAB_COMBINAÇÕES[[#This Row],[COMUNICAÇÃO]],\"+\",TAB_COMBINAÇÕES[[#This Row],[CABO]],\"+\",TAB_COMBINAÇÕES[[#This Row],[FIXAÇÃO]])","v":"CAIXA Exd COM DISPLAY+Profibus+200 m+COM PEDESTAL"},"FE"]
[null,"CAIXA Exd COM DISPLAY","Profibus","300 m","COM PEDESTAL",{"$f":"_xlfn.CONCAT(TAB_COMBINAÇÕES[[#This Row],[AUTOMAÇÃO]],\"+\",TAB_COMBINAÇÕES[[#This Row],[COMUNICAÇÃO]],\"+\",TAB_COMBINAÇÕES[[#This Row],[CABO]],\"+\",TAB_COMBINAÇÕES[[#This Row],[FIXAÇÃO]])","v":"CAIXA Exd COM DISPLAY+Profibus+300 m+COM PEDESTAL"},"FF"]
[null,"CAIXA Exd COM DISPLAY","DeviceNet","SEM CABO","COM PEDESTAL",{"$f":"_xlfn.CONCAT(TAB_COMBINAÇÕES[[#This Row],[AUTOMAÇÃO]],\"+\",TAB_COMBINAÇÕES[[#This Row],[COMUNICAÇÃO]],\"+\",TAB_COMBINAÇÕES[[#This Row],[CABO]],\"+\",TAB_COMBINAÇÕES[[#This Row],[FIXAÇÃO]])","v":"CAIXA Exd COM DISPLAY+DeviceNet+SEM CABO+COM PEDESTAL"},"FG"]
[null,"CAIXA Exd COM DISPLAY","DeviceNet","10 m","COM PEDESTAL",{"$f":"_xlfn.CONCAT(TAB_COMBINAÇÕES[[#This Row],[AUTOMAÇÃO]],\"+\",TAB_COMBINAÇÕES[[#This Row],[COMUNICAÇÃO]],\"+\",TAB_COMBINAÇÕES[[#This Row],[CABO]],\"+\",TAB_COMBINAÇÕES[[#This Row],[FIXAÇÃO]])","v":"CAIXA Exd COM DISPLAY+DeviceNet+10 m+COM PEDESTAL"},"FH"]
[null,"CAIXA Exd COM DISPLAY","DeviceNet","20 m","COM PEDESTAL",{"$f":"_xlfn.CONCAT(TAB_COMBINAÇÕES[[#This Row],[AUTOMAÇÃO]],\"+\",TAB_COMBINAÇÕES[[#This Row],[COMUNICAÇÃO]],\"+\",TAB_COMBINAÇÕES[[#This Row],[CABO]],\"+\",TAB_COMBINAÇÕES[[#This Row],[FIXAÇÃO]])","v":"CAIXA Exd COM DISPLAY+DeviceNet+20 m+COM PEDESTAL"},"FI"]
[null,"CAIXA Exd COM DISPLAY","DeviceNet","50 m","COM PEDESTAL",{"$f":"_xlfn.CONCAT(TAB_COMBINAÇÕES[[#This Row],[AUTOMAÇÃO]],\"+\",TAB_COMBINAÇÕES[[#This Row],[COMUNICAÇÃO]],\"+\",TAB_COMBINAÇÕES[[#This Row],[CABO]],\"+\",TAB_COMBINAÇÕES[[#This Row],[FIXAÇÃO]])","v":"CAIXA Exd COM DISPLAY+DeviceNet+50 m+COM PEDESTAL"},"FJ"]
[null,"CAIXA Exd COM DISPLAY","DeviceNet","100 m","COM PEDESTAL",{"$f":"_xlfn.CONCAT(TAB_COMBINAÇÕES[[#This Row],[AUTOMAÇÃO]],\"+\",TAB_COMBINAÇÕES[[#This Row],[COMUNICAÇÃO]],\"+\",TAB_COMBINAÇÕES[[#This Row],[CABO]],\"+\",TAB_COMBINAÇÕES[[#This Row],[FIXAÇÃO]])","v":"CAIXA Exd COM DISPLAY+DeviceNet+100 m+COM PEDESTAL"},"FK"]
[null,"CAIXA Exd COM DISPLAY","DeviceNet","200 m","COM PEDESTAL",{"$f":"_xlfn.CONCAT(TAB_COMBINAÇÕES[[#This Row],[AUTOMAÇÃO]],\"+\",TAB_COMBINAÇÕES[[#This Row],[COMUNICAÇÃO]],\"+\",TAB_COMBINAÇÕES[[#This Row],[CABO]],\"+\",TAB_COMBINAÇÕES[[#This Row],[FIXAÇÃO]])","v":"CAIXA Exd COM DISPLAY+DeviceNet+200 m+COM PEDESTAL"},"FL"]
[null,"CAIXA Exd COM DISPLAY","DeviceNet","300 m","COM PEDESTAL",{"$f":"_xlfn.CONCAT(TAB_COMBINAÇÕES[[#This Row],[AUTOMAÇÃO]],\"+\",TAB_COMBINAÇÕES[[#This Row],[COMUNICAÇÃO]],\"+\",TAB_COMBINAÇÕES[[#This Row],[CABO]],\"+\",TAB_COMBINAÇÕES[[#This Row],[FIXAÇÃO]])","v":"CAIXA Exd COM DISPLAY+DeviceNet+300 m+COM PEDESTAL"},"FM"]
[null,"CAIXA Exd COM DISPLAY","EtherNet IP","SEM CABO","COM PEDESTAL",{"$f":"_xlfn.CONCAT(TAB_COMBINAÇÕES[[#This Row],[AUTOMAÇÃO]],\"+\",TAB_COMBINAÇÕES[[#This Row],[COMUNICAÇÃO]],\"+\",TAB_COMBINAÇÕES[[#This Row],[CABO]],\"+\",TAB_COMBINAÇÕES[[#This Row],[FIXAÇÃO]])","v":"CAIXA Exd COM DISPLAY+EtherNet IP+SEM CABO+COM PEDESTAL"},"FN"]
[null,"CAIXA Exd COM DISPLAY","EtherNet IP","10 m","COM PEDESTAL",{"$f":"_xlfn.CONCAT(TAB_COMBINAÇÕES[[#This Row],[AUTOMAÇÃO]],\"+\",TAB_COMBINAÇÕES[[#This Row],[COMUNICAÇÃO]],\"+\",TAB_COMBINAÇÕES[[#This Row],[CABO]],\"+\",TAB_COMBINAÇÕES[[#This Row],[FIXAÇÃO]])","v":"CAIXA Exd COM DISPLAY+EtherNet IP+10 m+COM PEDESTAL"},"FO"]
[null,"CAIXA Exd COM DISPLAY","EtherNet IP","20 m","COM PEDESTAL",{"$f":"_xlfn.CONCAT(TAB_COMBINAÇÕES[[#This Row],[AUTOMAÇÃO]],\"+\",TAB_COMBINAÇÕES[[#This Row],[COMUNICAÇÃO]],\"+\",TAB_COMBINAÇÕES[[#This Row],[CABO]],\"+\",TAB_COMBINAÇÕES[[#This Row],[FIXAÇÃO]])","v":"CAIXA Exd COM DISPLAY+EtherNet IP+20 m+COM PEDESTAL"},"FP"]
[null,"CAIXA Exd COM DISPLAY","EtherNet IP","50 m","COM PEDESTAL",{"$f":"_xlfn.CONCAT(TAB_COMBINAÇÕES[[#This Row],[AUTOMAÇÃO]],\"+\",TAB_COMBINAÇÕES[[#This Row],[COMUNICAÇÃO]],\"+\",TAB_COMBINAÇÕES[[#This Row],[CABO]],\"+\",TAB_COMBINAÇÕES[[#This Row],[FIXAÇÃO]])","v":"CAIXA Exd COM DISPLAY+EtherNet IP+50 m+COM PEDESTAL"},"FQ"]
[null,"CAIXA Exd COM DISPLAY","EtherNet IP","100 m","COM PEDESTAL",{"$f":"_xlfn.CONCAT(TAB_COMBINAÇÕES[[#This Row],[AUTOMAÇÃO]],\"+\",TAB_COMBINAÇÕES[[#This Row],[COMUNICAÇÃO]],\"+\",TAB_COMBINAÇÕES[[#This Row],[CABO]],\"+\",TAB_COMBINAÇÕES[[#This Row],[FIXAÇÃO]])","v":"CAIXA Exd COM DISPLAY+EtherNet IP+100 m+COM PEDESTAL"},"FR"]
[null,"CAIXA Exd COM DISPLAY","EtherNet IP","200 m","COM PEDESTAL",{"$f":"_xlfn.CONCAT(TAB_COMBINAÇÕES[[#This Row],[AUTOMAÇÃO]],\"+\",TAB_COMBINAÇÕES[[#This Row],[COMUNICAÇÃO]],\"+\",TAB_COMBINAÇÕES[[#This Row],[CABO]],\"+\",TAB_COMBINAÇÕES[[#This Row],[FIXAÇÃO]])","v":"CAIXA Exd COM DISPLAY+EtherNet IP+200 m+COM PEDESTAL"},"FS"]
[null,"CAIXA Exd COM DISPLAY","EtherNet IP","300 m","COM PEDESTAL",{"$f":"_xlfn.CONCAT(TAB_COMBINAÇÕES[[#This Row],[AUTOMAÇÃO]],\"+\",TAB_COMBINAÇÕES[[#This Row],[COMUNICAÇÃO]],\"+\",TAB_COMBINAÇÕES[[#This Row],[CABO]],\"+\",TAB_COMBINAÇÕES[[#This Row],[FIXAÇÃO]])","v":"CAIXA Exd COM DISPLAY+EtherNet IP+300 m+COM PEDESTAL"},"FT"]
[null,"CAIXA Exd COM DISPLAY","EtherNet TCP/IP","SEM CABO","COM PEDESTAL",{"$f":"_xlfn.CONCAT(TAB_COMBINAÇÕES[[#This Row],[AUTOMAÇÃO]],\"+\",TAB_COMBINAÇÕES[[#This Row],[COMUNICAÇÃO]],\"+\",TAB_COMBINAÇÕES[[#This Row],[CABO]],\"+\",TAB_COMBINAÇÕES[[#This Row],[FIXAÇÃO]])","v":"CAIXA Exd COM DISPLAY+EtherNet TCP/IP+SEM CABO+COM PEDESTAL"},"FU"]
[null,"CAIXA Exd COM DISPLAY","EtherNet TCP/IP","10 m","COM PEDESTAL",{"$f":"_xlfn.CONCAT(TAB_COMBINAÇÕES[[#This Row],[AUTOMAÇÃO]],\"+\",TAB_COMBINAÇÕES[[#This Row],[COMUNICAÇÃO]],\"+\",TAB_COMBINAÇÕES[[#This Row],[CABO]],\"+\",TAB_COMBINAÇÕES[[#This Row],[FIXAÇÃO]])","v":"CAIXA Exd COM DISPLAY+EtherNet TCP/IP+10 m+COM PEDESTAL"},"FV"]
[null,"CAIXA Exd COM DISPLAY","EtherNet TCP/IP","20 m","COM PEDESTAL",{"$f":"_xlfn.CONCAT(TAB_COMBINAÇÕES[[#This Row],[AUTOMAÇÃO]],\"+\",TAB_COMBINAÇÕES[[#This Row],[COMUNICAÇÃO]],\"+\",TAB_COMBINAÇÕES[[#This Row],[CABO]],\"+\",TAB_COMBINAÇÕES[[#This Row],[FIXAÇÃO]])","v":"CAIXA Exd COM DISPLAY+EtherNet TCP/IP+20 m+COM PEDESTAL"},"FX"]
[null,"CAIXA Exd COM DISPLAY","EtherNet TCP/IP","50 m","COM PEDESTAL",{"$f":"_xlfn.CONCAT(TAB_COMBINAÇÕES[[#This Row],[AUTOMAÇÃO]],\"+\",TAB_COMBINAÇÕES[[#This Row],[COMUNICAÇÃO]],\"+\",TAB_COMBINAÇÕES[[#This Row],[CABO]],\"+\",TAB_COMBINAÇÕES[[#This Row],[FIXAÇÃO]])","v":"CAIXA Exd COM DISPLAY+EtherNet TCP/IP+50 m+COM PEDESTAL"},"FY"]
[null,"CAIXA Exd COM DISPLAY","EtherNet TCP/IP","100 m","COM PEDESTAL",{"$f":"_xlfn.CONCAT(TAB_COMBINAÇÕES[[#This Row],[AUTOMAÇÃO]],\"+\",TAB_COMBINAÇÕES[[#This Row],[COMUNICAÇÃO]],\"+\",TAB_COMBINAÇÕES[[#This Row],[CABO]],\"+\",TAB_COMBINAÇÕES[[#This Row],[FIXAÇÃO]])","v":"CAIXA Exd COM DISPLAY+EtherNet TCP/IP+100 m+COM PEDESTAL"},"FW"]
[null,"CAIXA Exd COM DISPLAY","EtherNet TCP/IP","200 m","COM PEDESTAL",{"$f":"_xlfn.CONCAT(TAB_COMBINAÇÕES[[#This Row],[AUTOMAÇÃO]],\"+\",TAB_COMBINAÇÕES[[#This Row],[COMUNICAÇÃO]],\"+\",TAB_COMBINAÇÕES[[#This Row],[CABO]],\"+\",TAB_COMBINAÇÕES[[#This Row],[FIXAÇÃO]])","v":"CAIXA Exd COM DISPLAY+EtherNet TCP/IP+200 m+COM PEDESTAL"},"FZ"]
[null,"CAIXA Exd COM DISPLAY","EtherNet TCP/IP","300 m","COM PEDESTAL",{"$f":"_xlfn.CONCAT(TAB_COMBINAÇÕES[[#This Row],[AUTOMAÇÃO]],\"+\",TAB_COMBINAÇÕES[[#This Row],[COMUNICAÇÃO]],\"+\",TAB_COMBINAÇÕES[[#This Row],[CABO]],\"+\",TAB_COMBINAÇÕES[[#This Row],[FIXAÇÃO]])","v":"CAIXA Exd COM DISPLAY+EtherNet TCP/IP+300 m+COM PEDESTAL"},"GA"]
[null,"CAIXA Exd COM DISPLAY","Profinet","SEM CABO","COM PEDESTAL",{"$f":"_xlfn.CONCAT(TAB_COMBINAÇÕES[[#This Row],[AUTOMAÇÃO]],\"+\",TAB_COMBINAÇÕES[[#This Row],[COMUNICAÇÃO]],\"+\",TAB_COMBINAÇÕES[[#This Row],[CABO]],\"+\",TAB_COMBINAÇÕES[[#This Row],[FIXAÇÃO]])","v":"CAIXA Exd COM DISPLAY+Profinet+SEM CABO+COM PEDESTAL"},"GB"]
[null,"CAIXA Exd COM DISPLAY","Profinet","10 m","COM PEDESTAL",{"$f":"_xlfn.CONCAT(TAB_COMBINAÇÕES[[#This Row],[AUTOMAÇÃO]],\"+\",TAB_COMBINAÇÕES[[#This Row],[COMUNICAÇÃO]],\"+\",TAB_COMBINAÇÕES[[#This Row],[CABO]],\"+\",TAB_COMBINAÇÕES[[#This Row],[FIXAÇÃO]])","v":"CAIXA Exd COM DISPLAY+Profinet+10 m+COM PEDESTAL"},"GC"]
[null,"CAIXA Exd COM DISPLAY","Profinet","20 m","COM PEDESTAL",{"$f":"_xlfn.CONCAT(TAB_COMBINAÇÕES[[#This Row],[AUTOMAÇÃO]],\"+\",TAB_COMBINAÇÕES[[#This Row],[COMUNICAÇÃO]],\"+\",TAB_COMBINAÇÕES[[#This Row],[CABO]],\"+\",TAB_COMBINAÇÕES[[#This Row],[FIXAÇÃO]])","v":"CAIXA Exd COM DISPLAY+Profinet+20 m+COM PEDESTAL"},"GD"]
[null,"CAIXA Exd COM DISPLAY","Profinet","50 m","COM PEDESTAL",{"$f":"_xlfn.CONCAT(TAB_COMBINAÇÕES[[#This Row],[AUTOMAÇÃO]],\"+\",TAB_COMBINAÇÕES[[#This Row],[COMUNICAÇÃO]],\"+\",TAB_COMBINAÇÕES[[#This Row],[CABO]],\"+\",TAB_COMBINAÇÕES[[#This Row],[FIXAÇÃO]])","v":"CAIXA Exd COM DISPLAY+Profinet+50 m+COM PEDESTAL"},"GE"]
[null,"CAIXA Exd COM DISPLAY","Profinet","100 m","COM PEDESTAL",{"$f":"_xlfn.CONCAT(TAB_COMBINAÇÕES[[#This Row],[AUTOMAÇÃO]],\"+\",TAB_COMBINAÇÕES[[#This Row],[COMUNICAÇÃO]],\"+\",TAB_COMBINAÇÕES[[#This Row],[CABO]],\"+\",TAB_COMBINAÇÕES[[#This Row],[FIXAÇÃO]])","v":"CAIXA Exd COM DISPLAY+Profinet+100 m+COM PEDESTAL"},"GF"]
[null,"CAIXA Exd COM DISPLAY","Profinet","200 m","COM PEDESTAL",{"$f":"_xlfn.CONCAT(TAB_COMBINAÇÕES[[#This Row],[AUTOMAÇÃO]],\"+\",TAB_COMBINAÇÕES[[#This Row],[COMUNICAÇÃO]],\"+\",TAB_COMBINAÇÕES[[#This Row],[CABO]],\"+\",TAB_COMBINAÇÕES[[#This Row],[FIXAÇÃO]])","v":"CAIXA Exd COM DISPLAY+Profinet+200 m+COM PEDESTAL"},"GG"]
[null,"CAIXA Exd COM DISPLAY","Profinet","300 m","COM PEDESTAL",{"$f":"_xlfn.CONCAT(TAB_COMBINAÇÕES[[#This Row],[AUTOMAÇÃO]],\"+\",TAB_COMBINAÇÕES[[#This Row],[COMUNICAÇÃO]],\"+\",TAB_COMBINAÇÕES[[#This Row],[CABO]],\"+\",TAB_COMBINAÇÕES[[#This Row],[FIXAÇÃO]])","v":"CAIXA Exd COM DISPLAY+Profinet+300 m+COM PEDESTAL"},"GH"]
[null,"CAIXA Exd COM DISPLAY","ModBus RTU","SEM CABO","SEM PEDESTAL",{"$f":"_xlfn.CONCAT(TAB_COMBINAÇÕES[[#This Row],[AUTOMAÇÃO]],\"+\",TAB_COMBINAÇÕES[[#This Row],[COMUNICAÇÃO]],\"+\",TAB_COMBINAÇÕES[[#This Row],[CABO]],\"+\",TAB_COMBINAÇÕES[[#This Row],[FIXAÇÃO]])","v":"CAIXA Exd COM DISPLAY+ModBus RTU+SEM CABO+SEM PEDESTAL"},"GI"]
[null,"CAIXA Exd COM DISPLAY","ModBus RTU","10 m","SEM PEDESTAL",{"$f":"_xlfn.CONCAT(TAB_COMBINAÇÕES[[#This Row],[AUTOMAÇÃO]],\"+\",TAB_COMBINAÇÕES[[#This Row],[COMUNICAÇÃO]],\"+\",TAB_COMBINAÇÕES[[#This Row],[CABO]],\"+\",TAB_COMBINAÇÕES[[#This Row],[FIXAÇÃO]])","v":"CAIXA Exd COM DISPLAY+ModBus RTU+10 m+SEM PEDESTAL"},"GJ"]
[null,"CAIXA Exd COM DISPLAY","ModBus RTU","20 m","SEM PEDESTAL",{"$f":"_xlfn.CONCAT(TAB_COMBINAÇÕES[[#This Row],[AUTOMAÇÃO]],\"+\",TAB_COMBINAÇÕES[[#This Row],[COMUNICAÇÃO]],\"+\",TAB_COMBINAÇÕES[[#This Row],[CABO]],\"+\",TAB_COMBINAÇÕES[[#This Row],[FIXAÇÃO]])","v":"CAIXA Exd COM DISPLAY+ModBus RTU+20 m+SEM PEDESTAL"},"GK"]
[null,"CAIXA Exd COM DISPLAY","ModBus RTU","50 m","SEM PEDESTAL",{"$f":"_xlfn.CONCAT(TAB_COMBINAÇÕES[[#This Row],[AUTOMAÇÃO]],\"+\",TAB_COMBINAÇÕES[[#This Row],[COMUNICAÇÃO]],\"+\",TAB_COMBINAÇÕES[[#This Row],[CABO]],\"+\",TAB_COMBINAÇÕES[[#This Row],[FIXAÇÃO]])","v":"CAIXA Exd COM DISPLAY+ModBus RTU+50 m+SEM PEDESTAL"},"GL"]
[null,"CAIXA Exd COM DISPLAY","ModBus RTU","100 m","SEM PEDESTAL",{"$f":"_xlfn.CONCAT(TAB_COMBINAÇÕES[[#This Row],[AUTOMAÇÃO]],\"+\",TAB_COMBINAÇÕES[[#This Row],[COMUNICAÇÃO]],\"+\",TAB_COMBINAÇÕES[[#This Row],[CABO]],\"+\",TAB_COMBINAÇÕES[[#This Row],[FIXAÇÃO]])","v":"CAIXA Exd COM DISPLAY+ModBus RTU+100 m+SEM PEDESTAL"},"GM"]
[null,"CAIXA Exd COM DISPLAY","ModBus RTU","200 m","SEM PEDESTAL",{"$f":"_xlfn.CONCAT(TAB_COMBINAÇÕES[[#This Row],[AUTOMAÇÃO]],\"+\",TAB_COMBINAÇÕES[[#This Row],[COMUNICAÇÃO]],\"+\",TAB_COMBINAÇÕES[[#This Row],[CABO]],\"+\",TAB_COMBINAÇÕES[[#This Row],[FIXAÇÃO]])","v":"CAIXA Exd COM DISPLAY+ModBus RTU+200 m+SEM PEDESTAL"},"GN"]
[null,"CAIXA Exd COM DISPLAY","ModBus RTU","300 m","SEM PEDESTAL",{"$f":"_xlfn.CONCAT(TAB_COMBINAÇÕES[[#This Row],[AUTOMAÇÃO]],\"+\",TAB_COMBINAÇÕES[[#This Row],[COMUNICAÇÃO]],\"+\",TAB_COMBINAÇÕES[[#This Row],[CABO]],\"+\",TAB_COMBINAÇÕES[[#This Row],[FIXAÇÃO]])","v":"CAIXA Exd COM DISPLAY+ModBus RTU+300 m+SEM PEDESTAL"},"GO"]
[null,"CAIXA Exd COM DISPLAY","ModBus TCP/IP","SEM CABO","SEM PEDESTAL",{"$f":"_xlfn.CONCAT(TAB_COMBINAÇÕES[[#This Row],[AUTOMAÇÃO]],\"+\",TAB_COMBINAÇÕES[[#This Row],[COMUNICAÇÃO]],\"+\",TAB_COMBINAÇÕES[[#This Row],[CABO]],\"+\",TAB_COMBINAÇÕES[[#This Row],[FIXAÇÃO]])","v":"CAIXA Exd COM DISPLAY+ModBus TCP/IP+SEM CABO+SEM PEDESTAL"},"GP"]
[null,"CAIXA Exd COM DISPLAY","ModBus TCP/IP","10 m","SEM PEDESTAL",{"$f":"_xlfn.CONCAT(TAB_COMBINAÇÕES[[#This Row],[AUTOMAÇÃO]],\"+\",TAB_COMBINAÇÕES[[#This Row],[COMUNICAÇÃO]],\"+\",TAB_COMBINAÇÕES[[#This Row],[CABO]],\"+\",TAB_COMBINAÇÕES[[#This Row],[FIXAÇÃO]])","v":"CAIXA Exd COM DISPLAY+ModBus TCP/IP+10 m+SEM PEDESTAL"},"GQ"]
[null,"CAIXA Exd COM DISPLAY","ModBus TCP/IP","20 m","SEM PEDESTAL",{"$f":"_xlfn.CONCAT(TAB_COMBINAÇÕES[[#This Row],[AUTOMAÇÃO]],\"+\",TAB_COMBINAÇÕES[[#This Row],[COMUNICAÇÃO]],\"+\",TAB_COMBINAÇÕES[[#This Row],[CABO]],\"+\",TAB_COMBINAÇÕES[[#This Row],[FIXAÇÃO]])","v":"CAIXA Exd COM DISPLAY+ModBus TCP/IP+20 m+SEM PEDESTAL"},"GR"]
[null,"CAIXA Exd COM DISPLAY","ModBus TCP/IP","50 m","SEM PEDESTAL",{"$f":"_xlfn.CONCAT(TAB_COMBINAÇÕES[[#This Row],[AUTOMAÇÃO]],\"+\",TAB_COMBINAÇÕES[[#This Row],[COMUNICAÇÃO]],\"+\",TAB_COMBINAÇÕES[[#This Row],[CABO]],\"+\",TAB_COMBINAÇÕES[[#This Row],[FIXAÇÃO]])","v":"CAIXA Exd COM DISPLAY+ModBus TCP/IP+50 m+SEM PEDESTAL"},"GS"]
[null,"CAIXA Exd COM DISPLAY","ModBus TCP/IP","100 m","SEM PEDESTAL",{"$f":"_xlfn.CONCAT(TAB_COMBINAÇÕES[[#This Row],[AUTOMAÇÃO]],\"+\",TAB_COMBINAÇÕES[[#This Row],[COMUNICAÇÃO]],\"+\",TAB_COMBINAÇÕES[[#This Row],[CABO]],\"+\",TAB_COMBINAÇÕES[[#This Row],[FIXAÇÃO]])","v":"CAIXA Exd COM DISPLAY+ModBus TCP/IP+100 m+SEM PEDESTAL"},"GT"]
[null,"CAIXA Exd COM DISPLAY","ModBus TCP/IP","200 m","SEM PEDESTAL",{"$f":"_xlfn.CONCAT(TAB_COMBINAÇÕES[[#This Row],[AUTOMAÇÃO]],\"+\",TAB_COMBINAÇÕES[[#This Row],[COMUNICAÇÃO]],\"+\",TAB_COMBINAÇÕES[[#This Row],[CABO]],\"+\",TAB_COMBINAÇÕES[[#This Row],[FIXAÇÃO]])","v":"CAIXA Exd COM DISPLAY+ModBus TCP/IP+200 m+SEM PEDESTAL"},"GU"]
[null,"CAIXA Exd COM DISPLAY","ModBus TCP/IP","300 m","SEM PEDESTAL",{"$f":"_xlfn.CONCAT(TAB_COMBINAÇÕES[[#This Row],[AUTOMAÇÃO]],\"+\",TAB_COMBINAÇÕES[[#This Row],[COMUNICAÇÃO]],\"+\",TAB_COMBINAÇÕES[[#This Row],[CABO]],\"+\",TAB_COMBINAÇÕES[[#This Row],[FIXAÇÃO]])","v":"CAIXA Exd COM DISPLAY+ModBus TCP/IP+300 m+SEM PEDESTAL"},"GV"]
[null,"CAIXA Exd COM DISPLAY","Profibus","SEM CABO","SEM PEDESTAL",{"$f":"_xlfn.CONCAT(TAB_COMBINAÇÕES[[#This Row],[AUTOMAÇÃO]],\"+\",TAB_COMBINAÇÕES[[#This Row],[COMUNICAÇÃO]],\"+\",TAB_COMBINAÇÕES[[#This Row],[CABO]],\"+\",TAB_COMBINAÇÕES[[#This Row],[FIXAÇÃO]])","v":"CAIXA Exd COM DISPLAY+Profibus+SEM CABO+SEM PEDESTAL"},"FX"]
[null,"CAIXA Exd COM DISPLAY","Profibus","10 m","SEM PEDESTAL",{"$f":"_xlfn.CONCAT(TAB_COMBINAÇÕES[[#This Row],[AUTOMAÇÃO]],\"+\",TAB_COMBINAÇÕES[[#This Row],[COMUNICAÇÃO]],\"+\",TAB_COMBINAÇÕES[[#This Row],[CABO]],\"+\",TAB_COMBINAÇÕES[[#This Row],[FIXAÇÃO]])","v":"CAIXA Exd COM DISPLAY+Profibus+10 m+SEM PEDESTAL"},"GY"]
[null,"CAIXA Exd COM DISPLAY","Profibus","20 m","SEM PEDESTAL",{"$f":"_xlfn.CONCAT(TAB_COMBINAÇÕES[[#This Row],[AUTOMAÇÃO]],\"+\",TAB_COMBINAÇÕES[[#This Row],[COMUNICAÇÃO]],\"+\",TAB_COMBINAÇÕES[[#This Row],[CABO]],\"+\",TAB_COMBINAÇÕES[[#This Row],[FIXAÇÃO]])","v":"CAIXA Exd COM DISPLAY+Profibus+20 m+SEM PEDESTAL"},"GW"]
[null,"CAIXA Exd COM DISPLAY","Profibus","50 m","SEM PEDESTAL",{"$f":"_xlfn.CONCAT(TAB_COMBINAÇÕES[[#This Row],[AUTOMAÇÃO]],\"+\",TAB_COMBINAÇÕES[[#This Row],[COMUNICAÇÃO]],\"+\",TAB_COMBINAÇÕES[[#This Row],[CABO]],\"+\",TAB_COMBINAÇÕES[[#This Row],[FIXAÇÃO]])","v":"CAIXA Exd COM DISPLAY+Profibus+50 m+SEM PEDESTAL"},"GZ"]
[null,"CAIXA Exd COM DISPLAY","Profibus","100 m","SEM PEDESTAL",{"$f":"_xlfn.CONCAT(TAB_COMBINAÇÕES[[#This Row],[AUTOMAÇÃO]],\"+\",TAB_COMBINAÇÕES[[#This Row],[COMUNICAÇÃO]],\"+\",TAB_COMBINAÇÕES[[#This Row],[CABO]],\"+\",TAB_COMBINAÇÕES[[#This Row],[FIXAÇÃO]])","v":"CAIXA Exd COM DISPLAY+Profibus+100 m+SEM PEDESTAL"},"HA"]
[null,"CAIXA Exd COM DISPLAY","Profibus","200 m","SEM PEDESTAL",{"$f":"_xlfn.CONCAT(TAB_COMBINAÇÕES[[#This Row],[AUTOMAÇÃO]],\"+\",TAB_COMBINAÇÕES[[#This Row],[COMUNICAÇÃO]],\"+\",TAB_COMBINAÇÕES[[#This Row],[CABO]],\"+\",TAB_COMBINAÇÕES[[#This Row],[FIXAÇÃO]])","v":"CAIXA Exd COM DISPLAY+Profibus+200 m+SEM PEDESTAL"},"HB"]
[null,"CAIXA Exd COM DISPLAY","Profibus","300 m","SEM PEDESTAL",{"$f":"_xlfn.CONCAT(TAB_COMBINAÇÕES[[#This Row],[AUTOMAÇÃO]],\"+\",TAB_COMBINAÇÕES[[#This Row],[COMUNICAÇÃO]],\"+\",TAB_COMBINAÇÕES[[#This Row],[CABO]],\"+\",TAB_COMBINAÇÕES[[#This Row],[FIXAÇÃO]])","v":"CAIXA Exd COM DISPLAY+Profibus+300 m+SEM PEDESTAL"},"HC"]
[null,"CAIXA Exd COM DISPLAY","DeviceNet","SEM CABO","SEM PEDESTAL",{"$f":"_xlfn.CONCAT(TAB_COMBINAÇÕES[[#This Row],[AUTOMAÇÃO]],\"+\",TAB_COMBINAÇÕES[[#This Row],[COMUNICAÇÃO]],\"+\",TAB_COMBINAÇÕES[[#This Row],[CABO]],\"+\",TAB_COMBINAÇÕES[[#This Row],[FIXAÇÃO]])","v":"CAIXA Exd COM DISPLAY+DeviceNet+SEM CABO+SEM PEDESTAL"},"HD"]
[null,"CAIXA Exd COM DISPLAY","DeviceNet","10 m","SEM PEDESTAL",{"$f":"_xlfn.CONCAT(TAB_COMBINAÇÕES[[#This Row],[AUTOMAÇÃO]],\"+\",TAB_COMBINAÇÕES[[#This Row],[COMUNICAÇÃO]],\"+\",TAB_COMBINAÇÕES[[#This Row],[CABO]],\"+\",TAB_COMBINAÇÕES[[#This Row],[FIXAÇÃO]])","v":"CAIXA Exd COM DISPLAY+DeviceNet+10 m+SEM PEDESTAL"},"HE"]
[null,"CAIXA Exd COM DISPLAY","DeviceNet","20 m","SEM PEDESTAL",{"$f":"_xlfn.CONCAT(TAB_COMBINAÇÕES[[#This Row],[AUTOMAÇÃO]],\"+\",TAB_COMBINAÇÕES[[#This Row],[COMUNICAÇÃO]],\"+\",TAB_COMBINAÇÕES[[#This Row],[CABO]],\"+\",TAB_COMBINAÇÕES[[#This Row],[FIXAÇÃO]])","v":"CAIXA Exd COM DISPLAY+DeviceNet+20 m+SEM PEDESTAL"},"HF"]
[null,"CAIXA Exd COM DISPLAY","DeviceNet","50 m","SEM PEDESTAL",{"$f":"_xlfn.CONCAT(TAB_COMBINAÇÕES[[#This Row],[AUTOMAÇÃO]],\"+\",TAB_COMBINAÇÕES[[#This Row],[COMUNICAÇÃO]],\"+\",TAB_COMBINAÇÕES[[#This Row],[CABO]],\"+\",TAB_COMBINAÇÕES[[#This Row],[FIXAÇÃO]])","v":"CAIXA Exd COM DISPLAY+DeviceNet+50 m+SEM PEDESTAL"},"HG"]
[null,"CAIXA Exd COM DISPLAY","DeviceNet","100 m","SEM PEDESTAL",{"$f":"_xlfn.CONCAT(TAB_COMBINAÇÕES[[#This Row],[AUTOMAÇÃO]],\"+\",TAB_COMBINAÇÕES[[#This Row],[COMUNICAÇÃO]],\"+\",TAB_COMBINAÇÕES[[#This Row],[CABO]],\"+\",TAB_COMBINAÇÕES[[#This Row],[FIXAÇÃO]])","v":"CAIXA Exd COM DISPLAY+DeviceNet+100 m+SEM PEDESTAL"},"HH"]
[null,"CAIXA Exd COM DISPLAY","DeviceNet","200 m","SEM PEDESTAL",{"$f":"_xlfn.CONCAT(TAB_COMBINAÇÕES[[#This Row],[AUTOMAÇÃO]],\"+\",TAB_COMBINAÇÕES[[#This Row],[COMUNICAÇÃO]],\"+\",TAB_COMBINAÇÕES[[#This Row],[CABO]],\"+\",TAB_COMBINAÇÕES[[#This Row],[FIXAÇÃO]])","v":"CAIXA Exd COM DISPLAY+DeviceNet+200 m+SEM PEDESTAL"},"HI"]
[null,"CAIXA Exd COM DISPLAY","DeviceNet","300 m","SEM PEDESTAL",{"$f":"_xlfn.CONCAT(TAB_COMBINAÇÕES[[#This Row],[AUTOMAÇÃO]],\"+\",TAB_COMBINAÇÕES[[#This Row],[COMUNICAÇÃO]],\"+\",TAB_COMBINAÇÕES[[#This Row],[CABO]],\"+\",TAB_COMBINAÇÕES[[#This Row],[FIXAÇÃO]])","v":"CAIXA Exd COM DISPLAY+DeviceNet+300 m+SEM PEDESTAL"},"HJ"]
[null,"CAIXA Exd COM DISPLAY","EtherNet IP","SEM CABO","SEM PEDESTAL",{"$f":"_xlfn.CONCAT(TAB_COMBINAÇÕES[[#This Row],[AUTOMAÇÃO]],\"+\",TAB_COMBINAÇÕES[[#This Row],[COMUNICAÇÃO]],\"+\",TAB_COMBINAÇÕES[[#This Row],[CABO]],\"+\",TAB_COMBINAÇÕES[[#This Row],[FIXAÇÃO]])","v":"CAIXA Exd COM DISPLAY+EtherNet IP+SEM CABO+SEM PEDESTAL"},"HK"]
[null,"CAIXA Exd COM DISPLAY","EtherNet IP","10 m","SEM PEDESTAL",{"$f":"_xlfn.CONCAT(TAB_COMBINAÇÕES[[#This Row],[AUTOMAÇÃO]],\"+\",TAB_COMBINAÇÕES[[#This Row],[COMUNICAÇÃO]],\"+\",TAB_COMBINAÇÕES[[#This Row],[CABO]],\"+\",TAB_COMBINAÇÕES[[#This Row],[FIXAÇÃO]])","v":"CAIXA Exd COM DISPLAY+EtherNet IP+10 m+SEM PEDESTAL"},"HL"]
[null,"CAIXA Exd COM DISPLAY","EtherNet IP","20 m","SEM PEDESTAL",{"$f":"_xlfn.CONCAT(TAB_COMBINAÇÕES[[#This Row],[AUTOMAÇÃO]],\"+\",TAB_COMBINAÇÕES[[#This Row],[COMUNICAÇÃO]],\"+\",TAB_COMBINAÇÕES[[#This Row],[CABO]],\"+\",TAB_COMBINAÇÕES[[#This Row],[FIXAÇÃO]])","v":"CAIXA Exd COM DISPLAY+EtherNet IP+20 m+SEM PEDESTAL"},"HM"]
[null,"CAIXA Exd COM DISPLAY","EtherNet IP","50 m","SEM PEDESTAL",{"$f":"_xlfn.CONCAT(TAB_COMBINAÇÕES[[#This Row],[AUTOMAÇÃO]],\"+\",TAB_COMBINAÇÕES[[#This Row],[COMUNICAÇÃO]],\"+\",TAB_COMBINAÇÕES[[#This Row],[CABO]],\"+\",TAB_COMBINAÇÕES[[#This Row],[FIXAÇÃO]])","v":"CAIXA Exd COM DISPLAY+EtherNet IP+50 m+SEM PEDESTAL"},"HN"]
[null,"CAIXA Exd COM DISPLAY","EtherNet IP","100 m","SEM PEDESTAL",{"$f":"_xlfn.CONCAT(TAB_COMBINAÇÕES[[#This Row],[AUTOMAÇÃO]],\"+\",TAB_COMBINAÇÕES[[#This Row],[COMUNICAÇÃO]],\"+\",TAB_COMBINAÇÕES[[#This Row],[CABO]],\"+\",TAB_COMBINAÇÕES[[#This Row],[FIXAÇÃO]])","v":"CAIXA Exd COM DISPLAY+EtherNet IP+100 m+SEM PEDESTAL"},"HO"]
[null,"CAIXA Exd COM DISPLAY","EtherNet IP","200 m","SEM PEDESTAL",{"$f":"_xlfn.CONCAT(TAB_COMBINAÇÕES[[#This Row],[AUTOMAÇÃO]],\"+\",TAB_COMBINAÇÕES[[#This Row],[COMUNICAÇÃO]],\"+\",TAB_COMBINAÇÕES[[#This Row],[CABO]],\"+\",TAB_COMBINAÇÕES[[#This Row],[FIXAÇÃO]])","v":"CAIXA Exd COM DISPLAY+EtherNet IP+200 m+SEM PEDESTAL"},"HP"]
[null,"CAIXA Exd COM DISPLAY","EtherNet IP","300 m","SEM PEDESTAL",{"$f":"_xlfn.CONCAT(TAB_COMBINAÇÕES[[#This Row],[AUTOMAÇÃO]],\"+\",TAB_COMBINAÇÕES[[#This Row],[COMUNICAÇÃO]],\"+\",TAB_COMBINAÇÕES[[#This Row],[CABO]],\"+\",TAB_COMBINAÇÕES[[#This Row],[FIXAÇÃO]])","v":"CAIXA Exd COM DISPLAY+EtherNet IP+300 m+SEM PEDESTAL"},"HQ"]
[null,"CAIXA Exd COM DISPLAY","EtherNet TCP/IP","SEM CABO","SEM PEDESTAL",{"$f":"_xlfn.CONCAT(TAB_COMBINAÇÕES[[#This Row],[AUTOMAÇÃO]],\"+\",TAB_COMBINAÇÕES[[#This Row],[COMUNICAÇÃO]],\"+\",TAB_COMBINAÇÕES[[#This Row],[CABO]],\"+\",TAB_COMBINAÇÕES[[#This Row],[FIXAÇÃO]])","v":"CAIXA Exd COM DISPLAY+EtherNet TCP/IP+SEM CABO+SEM PEDESTAL"},"HR"]
[null,"CAIXA Exd COM DISPLAY","EtherNet TCP/IP","10 m","SEM PEDESTAL",{"$f":"_xlfn.CONCAT(TAB_COMBINAÇÕES[[#This Row],[AUTOMAÇÃO]],\"+\",TAB_COMBINAÇÕES[[#This Row],[COMUNICAÇÃO]],\"+\",TAB_COMBINAÇÕES[[#This Row],[CABO]],\"+\",TAB_COMBINAÇÕES[[#This Row],[FIXAÇÃO]])","v":"CAIXA Exd COM DISPLAY+EtherNet TCP/IP+10 m+SEM PEDESTAL"},"HS"]
[null,"CAIXA Exd COM DISPLAY","EtherNet TCP/IP","20 m","SEM PEDESTAL",{"$f":"_xlfn.CONCAT(TAB_COMBINAÇÕES[[#This Row],[AUTOMAÇÃO]],\"+\",TAB_COMBINAÇÕES[[#This Row],[COMUNICAÇÃO]],\"+\",TAB_COMBINAÇÕES[[#This Row],[CABO]],\"+\",TAB_COMBINAÇÕES[[#This Row],[FIXAÇÃO]])","v":"CAIXA Exd COM DISPLAY+EtherNet TCP/IP+20 m+SEM PEDESTAL"},"HT"]
[null,"CAIXA Exd COM DISPLAY","EtherNet TCP/IP","50 m","SEM PEDESTAL",{"$f":"_xlfn.CONCAT(TAB_COMBINAÇÕES[[#This Row],[AUTOMAÇÃO]],\"+\",TAB_COMBINAÇÕES[[#This Row],[COMUNICAÇÃO]],\"+\",TAB_COMBINAÇÕES[[#This Row],[CABO]],\"+\",TAB_COMBINAÇÕES[[#This Row],[FIXAÇÃO]])","v":"CAIXA Exd COM DISPLAY+EtherNet TCP/IP+50 m+SEM PEDESTAL"},"HU"]
[null,"CAIXA Exd COM DISPLAY","EtherNet TCP/IP","100 m","SEM PEDESTAL",{"$f":"_xlfn.CONCAT(TAB_COMBINAÇÕES[[#This Row],[AUTOMAÇÃO]],\"+\",TAB_COMBINAÇÕES[[#This Row],[COMUNICAÇÃO]],\"+\",TAB_COMBINAÇÕES[[#This Row],[CABO]],\"+\",TAB_COMBINAÇÕES[[#This Row],[FIXAÇÃO]])","v":"CAIXA Exd COM DISPLAY+EtherNet TCP/IP+100 m+SEM PEDESTAL"},"HV"]
[null,"CAIXA Exd COM DISPLAY","EtherNet TCP/IP","200 m","SEM PEDESTAL",{"$f":"_xlfn.CONCAT(TAB_COMBINAÇÕES[[#This Row],[AUTOMAÇÃO]],\"+\",TAB_COMBINAÇÕES[[#This Row],[COMUNICAÇÃO]],\"+\",TAB_COMBINAÇÕES[[#This Row],[CABO]],\"+\",TAB_COMBINAÇÕES[[#This Row],[FIXAÇÃO]])","v":"CAIXA Exd COM DISPLAY+EtherNet TCP/IP+200 m+SEM PEDESTAL"},"HX"]
[null,"CAIXA Exd COM DISPLAY","EtherNet TCP/IP","300 m","SEM PEDESTAL",{"$f":"_xlfn.CONCAT(TAB_COMBINAÇÕES[[#This Row],[AUTOMAÇÃO]],\"+\",TAB_COMBINAÇÕES[[#This Row],[COMUNICAÇÃO]],\"+\",TAB_COMBINAÇÕES[[#This Row],[CABO]],\"+\",TAB_COMBINAÇÕES[[#This Row],[FIXAÇÃO]])","v":"CAIXA Exd COM DISPLAY+EtherNet TCP/IP+300 m+SEM PEDESTAL"},"HY"]
[null,"CAIXA Exd COM DISPLAY","Profinet","SEM CABO","SEM PEDESTAL",{"$f":"_xlfn.CONCAT(TAB_COMBINAÇÕES[[#This Row],[AUTOMAÇÃO]],\"+\",TAB_COMBINAÇÕES[[#This Row],[COMUNICAÇÃO]],\"+\",TAB_COMBINAÇÕES[[#This Row],[CABO]],\"+\",TAB_COMBINAÇÕES[[#This Row],[FIXAÇÃO]])","v":"CAIXA Exd COM DISPLAY+Profinet+SEM CABO+SEM PEDESTAL"},"HZ"]
[null,"CAIXA Exd COM DISPLAY","Profinet","10 m","SEM PEDESTAL",{"$f":"_xlfn.CONCAT(TAB_COMBINAÇÕES[[#This Row],[AUTOMAÇÃO]],\"+\",TAB_COMBINAÇÕES[[#This Row],[COMUNICAÇÃO]],\"+\",TAB_COMBINAÇÕES[[#This Row],[CABO]],\"+\",TAB_COMBINAÇÕES[[#This Row],[FIXAÇÃO]])","v":"CAIXA Exd COM DISPLAY+Profinet+10 m+SEM PEDESTAL"},"IA"]
[null,"CAIXA Exd COM DISPLAY","Profinet","20 m","SEM PEDESTAL",{"$f":"_xlfn.CONCAT(TAB_COMBINAÇÕES[[#This Row],[AUTOMAÇÃO]],\"+\",TAB_COMBINAÇÕES[[#This Row],[COMUNICAÇÃO]],\"+\",TAB_COMBINAÇÕES[[#This Row],[CABO]],\"+\",TAB_COMBINAÇÕES[[#This Row],[FIXAÇÃO]])","v":"CAIXA Exd COM DISPLAY+Profinet+20 m+SEM PEDESTAL"},"IB"]
[null,"CAIXA Exd COM DISPLAY","Profinet","50 m","SEM PEDESTAL",{"$f":"_xlfn.CONCAT(TAB_COMBINAÇÕES[[#This Row],[AUTOMAÇÃO]],\"+\",TAB_COMBINAÇÕES[[#This Row],[COMUNICAÇÃO]],\"+\",TAB_COMBINAÇÕES[[#This Row],[CABO]],\"+\",TAB_COMBINAÇÕES[[#This Row],[FIXAÇÃO]])","v":"CAIXA Exd COM DISPLAY+Profinet+50 m+SEM PEDESTAL"},"IC"]
[null,"CAIXA Exd COM DISPLAY","Profinet","100 m","SEM PEDESTAL",{"$f":"_xlfn.CONCAT(TAB_COMBINAÇÕES[[#This Row],[AUTOMAÇÃO]],\"+\",TAB_COMBINAÇÕES[[#This Row],[COMUNICAÇÃO]],\"+\",TAB_COMBINAÇÕES[[#This Row],[CABO]],\"+\",TAB_COMBINAÇÕES[[#This Row],[FIXAÇÃO]])","v":"CAIXA Exd COM DISPLAY+Profinet+100 m+SEM PEDESTAL"},"ID"]
[null,"CAIXA Exd COM DISPLAY","Profinet","200 m","SEM PEDESTAL",{"$f":"_xlfn.CONCAT(TAB_COMBINAÇÕES[[#This Row],[AUTOMAÇÃO]],\"+\",TAB_COMBINAÇÕES[[#This Row],[COMUNICAÇÃO]],\"+\",TAB_COMBINAÇÕES[[#This Row],[CABO]],\"+\",TAB_COMBINAÇÕES[[#This Row],[FIXAÇÃO]])","v":"CAIXA Exd COM DISPLAY+Profinet+200 m+SEM PEDESTAL"},"IE"]
[null,"CAIXA Exd COM DISPLAY","Profinet","300 m","SEM PEDESTAL",{"$f":"_xlfn.CONCAT(TAB_COMBINAÇÕES[[#This Row],[AUTOMAÇÃO]],\"+\",TAB_COMBINAÇÕES[[#This Row],[COMUNICAÇÃO]],\"+\",TAB_COMBINAÇÕES[[#This Row],[CABO]],\"+\",TAB_COMBINAÇÕES[[#This Row],[FIXAÇÃO]])","v":"CAIXA Exd COM DISPLAY+Profinet+300 m+SEM PEDESTAL"},"IF"]
[null,"INDICADOR LINHA 3000","INDICADOR 3102C","SEM CABO","SEM PEDESTAL",{"$f":"_xlfn.CONCAT(TAB_COMBINAÇÕES[[#This Row],[AUTOMAÇÃO]],\"+\",TAB_COMBINAÇÕES[[#This Row],[COMUNICAÇÃO]],\"+\",TAB_COMBINAÇÕES[[#This Row],[CABO]],\"+\",TAB_COMBINAÇÕES[[#This Row],[FIXAÇÃO]])","v":"INDICADOR LINHA 3000+INDICADOR 3102C+SEM CABO+SEM PEDESTAL"},"IG",null,"INDICADOR LINHA 3000+INDICADOR 3102C+10 m+SEM PEDESTAL"]
[null,"INDICADOR LINHA 3000","INDICADOR 3102C","10 m","SEM PEDESTAL",{"$f":"_xlfn.CONCAT(TAB_COMBINAÇÕES[[#This Row],[AUTOMAÇÃO]],\"+\",TAB_COMBINAÇÕES[[#This Row],[COMUNICAÇÃO]],\"+\",TAB_COMBINAÇÕES[[#This Row],[CABO]],\"+\",TAB_COMBINAÇÕES[[#This Row],[FIXAÇÃO]])","v":"INDICADOR LINHA 3000+INDICADOR 3102C+10 m+SEM PEDESTAL"},"IH",null,"INDICADOR LINHA 3000+INDICADOR 3102C+10 m+COM PEDESTAL"]
[null,"INDICADOR LINHA 3000","INDICADOR 3102C","20 m","SEM PEDESTAL",{"$f":"_xlfn.CONCAT(TAB_COMBINAÇÕES[[#This Row],[AUTOMAÇÃO]],\"+\",TAB_COMBINAÇÕES[[#This Row],[COMUNICAÇÃO]],\"+\",TAB_COMBINAÇÕES[[#This Row],[CABO]],\"+\",TAB_COMBINAÇÕES[[#This Row],[FIXAÇÃO]])","v":"INDICADOR LINHA 3000+INDICADOR 3102C+20 m+SEM PEDESTAL"},"II",null,{"$f":"_xlfn.XLOOKUP(I551,F:F,C:C)","v":"INDICADOR 3102C"}]
[null,"INDICADOR LINHA 3000","INDICADOR 3102C","50 m","SEM PEDESTAL",{"$f":"_xlfn.CONCAT(TAB_COMBINAÇÕES[[#This Row],[AUTOMAÇÃO]],\"+\",TAB_COMBINAÇÕES[[#This Row],[COMUNICAÇÃO]],\"+\",TAB_COMBINAÇÕES[[#This Row],[CABO]],\"+\",TAB_COMBINAÇÕES[[#This Row],[FIXAÇÃO]])","v":"INDICADOR LINHA 3000+INDICADOR 3102C+50 m+SEM PEDESTAL"},"IJ"]
[null,"INDICADOR LINHA 3000","INDICADOR 3102C","100 m","SEM PEDESTAL",{"$f":"_xlfn.CONCAT(TAB_COMBINAÇÕES[[#This Row],[AUTOMAÇÃO]],\"+\",TAB_COMBINAÇÕES[[#This Row],[COMUNICAÇÃO]],\"+\",TAB_COMBINAÇÕES[[#This Row],[CABO]],\"+\",TAB_COMBINAÇÕES[[#This Row],[FIXAÇÃO]])","v":"INDICADOR LINHA 3000+INDICADOR 3102C+100 m+SEM PEDESTAL"},"IK"]
[null,"INDICADOR LINHA 3000","INDICADOR 3102C","200 m","SEM PEDESTAL",{"$f":"_xlfn.CONCAT(TAB_COMBINAÇÕES[[#This Row],[AUTOMAÇÃO]],\"+\",TAB_COMBINAÇÕES[[#This Row],[COMUNICAÇÃO]],\"+\",TAB_COMBINAÇÕES[[#This Row],[CABO]],\"+\",TAB_COMBINAÇÕES[[#This Row],[FIXAÇÃO]])","v":"INDICADOR LINHA 3000+INDICADOR 3102C+200 m+SEM PEDESTAL"},"IL"]
[null,"INDICADOR LINHA 3000","INDICADOR 3102C","300 m","SEM PEDESTAL",{"$f":"_xlfn.CONCAT(TAB_COMBINAÇÕES[[#This Row],[AUTOMAÇÃO]],\"+\",TAB_COMBINAÇÕES[[#This Row],[COMUNICAÇÃO]],\"+\",TAB_COMBINAÇÕES[[#This Row],[CABO]],\"+\",TAB_COMBINAÇÕES[[#This Row],[FIXAÇÃO]])","v":"INDICADOR LINHA 3000+INDICADOR 3102C+300 m+SEM PEDESTAL"},"IM"]
[null,"INDICADOR LINHA 3000","INDICADOR 3104C","SEM CABO","SEM PEDESTAL",{"$f":"_xlfn.CONCAT(TAB_COMBINAÇÕES[[#This Row],[AUTOMAÇÃO]],\"+\",TAB_COMBINAÇÕES[[#This Row],[COMUNICAÇÃO]],\"+\",TAB_COMBINAÇÕES[[#This Row],[CABO]],\"+\",TAB_COMBINAÇÕES[[#This Row],[FIXAÇÃO]])","v":"INDICADOR LINHA 3000+INDICADOR 3104C+SEM CABO+SEM PEDESTAL"},"IN"]
[null,"INDICADOR LINHA 3000","INDICADOR 3104C","10 m","SEM PEDESTAL",{"$f":"_xlfn.CONCAT(TAB_COMBINAÇÕES[[#This Row],[AUTOMAÇÃO]],\"+\",TAB_COMBINAÇÕES[[#This Row],[COMUNICAÇÃO]],\"+\",TAB_COMBINAÇÕES[[#This Row],[CABO]],\"+\",TAB_COMBINAÇÕES[[#This Row],[FIXAÇÃO]])","v":"INDICADOR LINHA 3000+INDICADOR 3104C+10 m+SEM PEDESTAL"},"IO"]
[null,"INDICADOR LINHA 3000","INDICADOR 3104C","20 m","SEM PEDESTAL",{"$f":"_xlfn.CONCAT(TAB_COMBINAÇÕES[[#This Row],[AUTOMAÇÃO]],\"+\",TAB_COMBINAÇÕES[[#This Row],[COMUNICAÇÃO]],\"+\",TAB_COMBINAÇÕES[[#This Row],[CABO]],\"+\",TAB_COMBINAÇÕES[[#This Row],[FIXAÇÃO]])","v":"INDICADOR LINHA 3000+INDICADOR 3104C+20 m+SEM PEDESTAL"},"IP"]
[null,"INDICADOR LINHA 3000","INDICADOR 3104C","50 m","SEM PEDESTAL",{"$f":"_xlfn.CONCAT(TAB_COMBINAÇÕES[[#This Row],[AUTOMAÇÃO]],\"+\",TAB_COMBINAÇÕES[[#This Row],[COMUNICAÇÃO]],\"+\",TAB_COMBINAÇÕES[[#This Row],[CABO]],\"+\",TAB_COMBINAÇÕES[[#This Row],[FIXAÇÃO]])","v":"INDICADOR LINHA 3000+INDICADOR 3104C+50 m+SEM PEDESTAL"},"IQ"]
[null,"INDICADOR LINHA 3000","INDICADOR 3104C","100 m","SEM PEDESTAL",{"$f":"_xlfn.CONCAT(TAB_COMBINAÇÕES[[#This Row],[AUTOMAÇÃO]],\"+\",TAB_COMBINAÇÕES[[#This Row],[COMUNICAÇÃO]],\"+\",TAB_COMBINAÇÕES[[#This Row],[CABO]],\"+\",TAB_COMBINAÇÕES[[#This Row],[FIXAÇÃO]])","v":"INDICADOR LINHA 3000+INDICADOR 3104C+100 m+SEM PEDESTAL"},"IR"]
[null,"INDICADOR LINHA 3000","INDICADOR 3104C","200 m","SEM PEDESTAL",{"$f":"_xlfn.CONCAT(TAB_COMBINAÇÕES[[#This Row],[AUTOMAÇÃO]],\"+\",TAB_COMBINAÇÕES[[#This Row],[COMUNICAÇÃO]],\"+\",TAB_COMBINAÇÕES[[#This Row],[CABO]],\"+\",TAB_COMBINAÇÕES[[#This Row],[FIXAÇÃO]])","v":"INDICADOR LINHA 3000+INDICADOR 3104C+200 m+SEM PEDESTAL"},"IS"]
[null,"INDICADOR LINHA 3000","INDICADOR 3104C","300 m","SEM PEDESTAL",{"$f":"_xlfn.CONCAT(TAB_COMBINAÇÕES[[#This Row],[AUTOMAÇÃO]],\"+\",TAB_COMBINAÇÕES[[#This Row],[COMUNICAÇÃO]],\"+\",TAB_COMBINAÇÕES[[#This Row],[CABO]],\"+\",TAB_COMBINAÇÕES[[#This Row],[FIXAÇÃO]])","v":"INDICADOR LINHA 3000+INDICADOR 3104C+300 m+SEM PEDESTAL"},"IT"]
[null,"INDICADOR LINHA 3000","INDICADOR 3107C","SEM CABO","SEM PEDESTAL",{"$f":"_xlfn.CONCAT(TAB_COMBINAÇÕES[[#This Row],[AUTOMAÇÃO]],\"+\",TAB_COMBINAÇÕES[[#This Row],[COMUNICAÇÃO]],\"+\",TAB_COMBINAÇÕES[[#This Row],[CABO]],\"+\",TAB_COMBINAÇÕES[[#This Row],[FIXAÇÃO]])","v":"INDICADOR LINHA 3000+INDICADOR 3107C+SEM CABO+SEM PEDESTAL"},"IU"]
[null,"INDICADOR LINHA 3000","INDICADOR 3107C","10 m","SEM PEDESTAL",{"$f":"_xlfn.CONCAT(TAB_COMBINAÇÕES[[#This Row],[AUTOMAÇÃO]],\"+\",TAB_COMBINAÇÕES[[#This Row],[COMUNICAÇÃO]],\"+\",TAB_COMBINAÇÕES[[#This Row],[CABO]],\"+\",TAB_COMBINAÇÕES[[#This Row],[FIXAÇÃO]])","v":"INDICADOR LINHA 3000+INDICADOR 3107C+10 m+SEM PEDESTAL"},"IV"]
[null,"INDICADOR LINHA 3000","INDICADOR 3107C","20 m","SEM PEDESTAL",{"$f":"_xlfn.CONCAT(TAB_COMBINAÇÕES[[#This Row],[AUTOMAÇÃO]],\"+\",TAB_COMBINAÇÕES[[#This Row],[COMUNICAÇÃO]],\"+\",TAB_COMBINAÇÕES[[#This Row],[CABO]],\"+\",TAB_COMBINAÇÕES[[#This Row],[FIXAÇÃO]])","v":"INDICADOR LINHA 3000+INDICADOR 3107C+20 m+SEM PEDESTAL"},"IX"]
[null,"INDICADOR LINHA 3000","INDICADOR 3107C","50 m","SEM PEDESTAL",{"$f":"_xlfn.CONCAT(TAB_COMBINAÇÕES[[#This Row],[AUTOMAÇÃO]],\"+\",TAB_COMBINAÇÕES[[#This Row],[COMUNICAÇÃO]],\"+\",TAB_COMBINAÇÕES[[#This Row],[CABO]],\"+\",TAB_COMBINAÇÕES[[#This Row],[FIXAÇÃO]])","v":"INDICADOR LINHA 3000+INDICADOR 3107C+50 m+SEM PEDESTAL"},"IY"]
[null,"INDICADOR LINHA 3000","INDICADOR 3107C","100 m","SEM PEDESTAL",{"$f":"_xlfn.CONCAT(TAB_COMBINAÇÕES[[#This Row],[AUTOMAÇÃO]],\"+\",TAB_COMBINAÇÕES[[#This Row],[COMUNICAÇÃO]],\"+\",TAB_COMBINAÇÕES[[#This Row],[CABO]],\"+\",TAB_COMBINAÇÕES[[#This Row],[FIXAÇÃO]])","v":"INDICADOR LINHA 3000+INDICADOR 3107C+100 m+SEM PEDESTAL"},"IW"]
[null,"INDICADOR LINHA 3000","INDICADOR 3107C","200 m","SEM PEDESTAL",{"$f":"_xlfn.CONCAT(TAB_COMBINAÇÕES[[#This Row],[AUTOMAÇÃO]],\"+\",TAB_COMBINAÇÕES[[#This Row],[COMUNICAÇÃO]],\"+\",TAB_COMBINAÇÕES[[#This Row],[CABO]],\"+\",TAB_COMBINAÇÕES[[#This Row],[FIXAÇÃO]])","v":"INDICADOR LINHA 3000+INDICADOR 3107C+200 m+SEM PEDESTAL"},"IZ"]
[null,"INDICADOR LINHA 3000","INDICADOR 3107C","300 m","SEM PEDESTAL",{"$f":"_xlfn.CONCAT(TAB_COMBINAÇÕES[[#This Row],[AUTOMAÇÃO]],\"+\",TAB_COMBINAÇÕES[[#This Row],[COMUNICAÇÃO]],\"+\",TAB_COMBINAÇÕES[[#This Row],[CABO]],\"+\",TAB_COMBINAÇÕES[[#This Row],[FIXAÇÃO]])","v":"INDICADOR LINHA 3000+INDICADOR 3107C+300 m+SEM PEDESTAL"},"JA"]
[null,"INDICADOR LINHA 3000","INDICADOR 3102CS","SEM CABO","SEM PEDESTAL",{"$f":"_xlfn.CONCAT(TAB_COMBINAÇÕES[[#This Row],[AUTOMAÇÃO]],\"+\",TAB_COMBINAÇÕES[[#This Row],[COMUNICAÇÃO]],\"+\",TAB_COMBINAÇÕES[[#This Row],[CABO]],\"+\",TAB_COMBINAÇÕES[[#This Row],[FIXAÇÃO]])","v":"INDICADOR LINHA 3000+INDICADOR 3102CS+SEM CABO+SEM PEDESTAL"},"JB"]
[null,"INDICADOR LINHA 3000","INDICADOR 3102CS","10 m","SEM PEDESTAL",{"$f":"_xlfn.CONCAT(TAB_COMBINAÇÕES[[#This Row],[AUTOMAÇÃO]],\"+\",TAB_COMBINAÇÕES[[#This Row],[COMUNICAÇÃO]],\"+\",TAB_COMBINAÇÕES[[#This Row],[CABO]],\"+\",TAB_COMBINAÇÕES[[#This Row],[FIXAÇÃO]])","v":"INDICADOR LINHA 3000+INDICADOR 3102CS+10 m+SEM PEDESTAL"},"JC"]
[null,"INDICADOR LINHA 3000","INDICADOR 3102CS","20 m","SEM PEDESTAL",{"$f":"_xlfn.CONCAT(TAB_COMBINAÇÕES[[#This Row],[AUTOMAÇÃO]],\"+\",TAB_COMBINAÇÕES[[#This Row],[COMUNICAÇÃO]],\"+\",TAB_COMBINAÇÕES[[#This Row],[CABO]],\"+\",TAB_COMBINAÇÕES[[#This Row],[FIXAÇÃO]])","v":"INDICADOR LINHA 3000+INDICADOR 3102CS+20 m+SEM PEDESTAL"},"JD"]
[null,"INDICADOR LINHA 3000","INDICADOR 3102CS","50 m","SEM PEDESTAL",{"$f":"_xlfn.CONCAT(TAB_COMBINAÇÕES[[#This Row],[AUTOMAÇÃO]],\"+\",TAB_COMBINAÇÕES[[#This Row],[COMUNICAÇÃO]],\"+\",TAB_COMBINAÇÕES[[#This Row],[CABO]],\"+\",TAB_COMBINAÇÕES[[#This Row],[FIXAÇÃO]])","v":"INDICADOR LINHA 3000+INDICADOR 3102CS+50 m+SEM PEDESTAL"},"JE"]
[null,"INDICADOR LINHA 3000","INDICADOR 3102CS","100 m","SEM PEDESTAL",{"$f":"_xlfn.CONCAT(TAB_COMBINAÇÕES[[#This Row],[AUTOMAÇÃO]],\"+\",TAB_COMBINAÇÕES[[#This Row],[COMUNICAÇÃO]],\"+\",TAB_COMBINAÇÕES[[#This Row],[CABO]],\"+\",TAB_COMBINAÇÕES[[#This Row],[FIXAÇÃO]])","v":"INDICADOR LINHA 3000+INDICADOR 3102CS+100 m+SEM PEDESTAL"},"JF"]
[null,"INDICADOR LINHA 3000","INDICADOR 3102CS","200 m","SEM PEDESTAL",{"$f":"_xlfn.CONCAT(TAB_COMBINAÇÕES[[#This Row],[AUTOMAÇÃO]],\"+\",TAB_COMBINAÇÕES[[#This Row],[COMUNICAÇÃO]],\"+\",TAB_COMBINAÇÕES[[#This Row],[CABO]],\"+\",TAB_COMBINAÇÕES[[#This Row],[FIXAÇÃO]])","v":"INDICADOR LINHA 3000+INDICADOR 3102CS+200 m+SEM PEDESTAL"},"JG"]
[null,"INDICADOR LINHA 3000","INDICADOR 3102CS","300 m","SEM PEDESTAL",{"$f":"_xlfn.CONCAT(TAB_COMBINAÇÕES[[#This Row],[AUTOMAÇÃO]],\"+\",TAB_COMBINAÇÕES[[#This Row],[COMUNICAÇÃO]],\"+\",TAB_COMBINAÇÕES[[#This Row],[CABO]],\"+\",TAB_COMBINAÇÕES[[#This Row],[FIXAÇÃO]])","v":"INDICADOR LINHA 3000+INDICADOR 3102CS+300 m+SEM PEDESTAL"},"JH"]
[null,"INDICADOR LINHA 3000","INDICADOR 3104CS","SEM CABO","SEM PEDESTAL",{"$f":"_xlfn.CONCAT(TAB_COMBINAÇÕES[[#This Row],[AUTOMAÇÃO]],\"+\",TAB_COMBINAÇÕES[[#This Row],[COMUNICAÇÃO]],\"+\",TAB_COMBINAÇÕES[[#This Row],[CABO]],\"+\",TAB_COMBINAÇÕES[[#This Row],[FIXAÇÃO]])","v":"INDICADOR LINHA 3000+INDICADOR 3104CS+SEM CABO+SEM PEDESTAL"},"JI"]
[null,"INDICADOR LINHA 3000","INDICADOR 3104CS","10 m","SEM PEDESTAL",{"$f":"_xlfn.CONCAT(TAB_COMBINAÇÕES[[#This Row],[AUTOMAÇÃO]],\"+\",TAB_COMBINAÇÕES[[#This Row],[COMUNICAÇÃO]],\"+\",TAB_COMBINAÇÕES[[#This Row],[CABO]],\"+\",TAB_COMBINAÇÕES[[#This Row],[FIXAÇÃO]])","v":"INDICADOR LINHA 3000+INDICADOR 3104CS+10 m+SEM PEDESTAL"},"JJ"]
[null,"INDICADOR LINHA 3000","INDICADOR 3104CS","20 m","SEM PEDESTAL",{"$f":"_xlfn.CONCAT(TAB_COMBINAÇÕES[[#This Row],[AUTOMAÇÃO]],\"+\",TAB_COMBINAÇÕES[[#This Row],[COMUNICAÇÃO]],\"+\",TAB_COMBINAÇÕES[[#This Row],[CABO]],\"+\",TAB_COMBINAÇÕES[[#This Row],[FIXAÇÃO]])","v":"INDICADOR LINHA 3000+INDICADOR 3104CS+20 m+SEM PEDESTAL"},"JK"]
[null,"INDICADOR LINHA 3000","INDICADOR 3104CS","50 m","SEM PEDESTAL",{"$f":"_xlfn.CONCAT(TAB_COMBINAÇÕES[[#This Row],[AUTOMAÇÃO]],\"+\",TAB_COMBINAÇÕES[[#This Row],[COMUNICAÇÃO]],\"+\",TAB_COMBINAÇÕES[[#This Row],[CABO]],\"+\",TAB_COMBINAÇÕES[[#This Row],[FIXAÇÃO]])","v":"INDICADOR LINHA 3000+INDICADOR 3104CS+50 m+SEM PEDESTAL"},"JL"]
[null,"INDICADOR LINHA 3000","INDICADOR 3104CS","100 m","SEM PEDESTAL",{"$f":"_xlfn.CONCAT(TAB_COMBINAÇÕES[[#This Row],[AUTOMAÇÃO]],\"+\",TAB_COMBINAÇÕES[[#This Row],[COMUNICAÇÃO]],\"+\",TAB_COMBINAÇÕES[[#This Row],[CABO]],\"+\",TAB_COMBINAÇÕES[[#This Row],[FIXAÇÃO]])","v":"INDICADOR LINHA 3000+INDICADOR 3104CS+100 m+SEM PEDESTAL"},"JN"]
[null,"INDICADOR LINHA 3000","INDICADOR 3104CS","200 m","SEM PEDESTAL",{"$f":"_xlfn.CONCAT(TAB_COMBINAÇÕES[[#This Row],[AUTOMAÇÃO]],\"+\",TAB_COMBINAÇÕES[[#This Row],[COMUNICAÇÃO]],\"+\",TAB_COMBINAÇÕES[[#This Row],[CABO]],\"+\",TAB_COMBINAÇÕES[[#This Row],[FIXAÇÃO]])","v":"INDICADOR LINHA 3000+INDICADOR 3104CS+200 m+SEM PEDESTAL"},"JN"]
[null,"INDICADOR LINHA 3000","INDICADOR 3104CS","300 m","SEM PEDESTAL",{"$f":"_xlfn.CONCAT(TAB_COMBINAÇÕES[[#This Row],[AUTOMAÇÃO]],\"+\",TAB_COMBINAÇÕES[[#This Row],[COMUNICAÇÃO]],\"+\",TAB_COMBINAÇÕES[[#This Row],[CABO]],\"+\",TAB_COMBINAÇÕES[[#This Row],[FIXAÇÃO]])","v":"INDICADOR LINHA 3000+INDICADOR 3104CS+300 m+SEM PEDESTAL"},"JO"]
[null,"INDICADOR LINHA 3000","INDICADOR 3107CS","SEM CABO","SEM PEDESTAL",{"$f":"_xlfn.CONCAT(TAB_COMBINAÇÕES[[#This Row],[AUTOMAÇÃO]],\"+\",TAB_COMBINAÇÕES[[#This Row],[COMUNICAÇÃO]],\"+\",TAB_COMBINAÇÕES[[#This Row],[CABO]],\"+\",TAB_COMBINAÇÕES[[#This Row],[FIXAÇÃO]])","v":"INDICADOR LINHA 3000+INDICADOR 3107CS+SEM CABO+SEM PEDESTAL"},"JP"]
[null,"INDICADOR LINHA 3000","INDICADOR 3107CS","10 m","SEM PEDESTAL",{"$f":"_xlfn.CONCAT(TAB_COMBINAÇÕES[[#This Row],[AUTOMAÇÃO]],\"+\",TAB_COMBINAÇÕES[[#This Row],[COMUNICAÇÃO]],\"+\",TAB_COMBINAÇÕES[[#This Row],[CABO]],\"+\",TAB_COMBINAÇÕES[[#This Row],[FIXAÇÃO]])","v":"INDICADOR LINHA 3000+INDICADOR 3107CS+10 m+SEM PEDESTAL"},"JQ"]
[null,"INDICADOR LINHA 3000","INDICADOR 3107CS","20 m","SEM PEDESTAL",{"$f":"_xlfn.CONCAT(TAB_COMBINAÇÕES[[#This Row],[AUTOMAÇÃO]],\"+\",TAB_COMBINAÇÕES[[#This Row],[COMUNICAÇÃO]],\"+\",TAB_COMBINAÇÕES[[#This Row],[CABO]],\"+\",TAB_COMBINAÇÕES[[#This Row],[FIXAÇÃO]])","v":"INDICADOR LINHA 3000+INDICADOR 3107CS+20 m+SEM PEDESTAL"},"JR"]
[null,"INDICADOR LINHA 3000","INDICADOR 3107CS","50 m","SEM PEDESTAL",{"$f":"_xlfn.CONCAT(TAB_COMBINAÇÕES[[#This Row],[AUTOMAÇÃO]],\"+\",TAB_COMBINAÇÕES[[#This Row],[COMUNICAÇÃO]],\"+\",TAB_COMBINAÇÕES[[#This Row],[CABO]],\"+\",TAB_COMBINAÇÕES[[#This Row],[FIXAÇÃO]])","v":"INDICADOR LINHA 3000+INDICADOR 3107CS+50 m+SEM PEDESTAL"},"JS"]
[null,"INDICADOR LINHA 3000","INDICADOR 3107CS","100 m","SEM PEDESTAL",{"$f":"_xlfn.CONCAT(TAB_COMBINAÇÕES[[#This Row],[AUTOMAÇÃO]],\"+\",TAB_COMBINAÇÕES[[#This Row],[COMUNICAÇÃO]],\"+\",TAB_COMBINAÇÕES[[#This Row],[CABO]],\"+\",TAB_COMBINAÇÕES[[#This Row],[FIXAÇÃO]])","v":"INDICADOR LINHA 3000+INDICADOR 3107CS+100 m+SEM PEDESTAL"},"JT"]
[null,"INDICADOR LINHA 3000","INDICADOR 3107CS","200 m","SEM PEDESTAL",{"$f":"_xlfn.CONCAT(TAB_COMBINAÇÕES[[#This Row],[AUTOMAÇÃO]],\"+\",TAB_COMBINAÇÕES[[#This Row],[COMUNICAÇÃO]],\"+\",TAB_COMBINAÇÕES[[#This Row],[CABO]],\"+\",TAB_COMBINAÇÕES[[#This Row],[FIXAÇÃO]])","v":"INDICADOR LINHA 3000+INDICADOR 3107CS+200 m+SEM PEDESTAL"},"JU"]
[null,"INDICADOR LINHA 3000","INDICADOR 3107CS","300 m","SEM PEDESTAL",{"$f":"_xlfn.CONCAT(TAB_COMBINAÇÕES[[#This Row],[AUTOMAÇÃO]],\"+\",TAB_COMBINAÇÕES[[#This Row],[COMUNICAÇÃO]],\"+\",TAB_COMBINAÇÕES[[#This Row],[CABO]],\"+\",TAB_COMBINAÇÕES[[#This Row],[FIXAÇÃO]])","v":"INDICADOR LINHA 3000+INDICADOR 3107CS+300 m+SEM PEDESTAL"},"JV"]
[null,"INDICADOR LINHA 3000","INDICADOR 3102C","SEM CABO","COM PEDESTAL",{"$f":"_xlfn.CONCAT(TAB_COMBINAÇÕES[[#This Row],[AUTOMAÇÃO]],\"+\",TAB_COMBINAÇÕES[[#This Row],[COMUNICAÇÃO]],\"+\",TAB_COMBINAÇÕES[[#This Row],[CABO]],\"+\",TAB_COMBINAÇÕES[[#This Row],[FIXAÇÃO]])","v":"INDICADOR LINHA 3000+INDICADOR 3102C+SEM CABO+COM PEDESTAL"},"JX"]
[null,"INDICADOR LINHA 3000","INDICADOR 3102C","10 m","COM PEDESTAL",{"$f":"_xlfn.CONCAT(TAB_COMBINAÇÕES[[#This Row],[AUTOMAÇÃO]],\"+\",TAB_COMBINAÇÕES[[#This Row],[COMUNICAÇÃO]],\"+\",TAB_COMBINAÇÕES[[#This Row],[CABO]],\"+\",TAB_COMBINAÇÕES[[#This Row],[FIXAÇÃO]])","v":"INDICADOR LINHA 3000+INDICADOR 3102C+10 m+COM PEDESTAL"},"JY"]
[null,"INDICADOR LINHA 3000","INDICADOR 3102C","20 m","COM PEDESTAL",{"$f":"_xlfn.CONCAT(TAB_COMBINAÇÕES[[#This Row],[AUTOMAÇÃO]],\"+\",TAB_COMBINAÇÕES[[#This Row],[COMUNICAÇÃO]],\"+\",TAB_COMBINAÇÕES[[#This Row],[CABO]],\"+\",TAB_COMBINAÇÕES[[#This Row],[FIXAÇÃO]])","v":"INDICADOR LINHA 3000+INDICADOR 3102C+20 m+COM PEDESTAL"},"JW"]
[null,"INDICADOR LINHA 3000","INDICADOR 3102C","50 m","COM PEDESTAL",{"$f":"_xlfn.CONCAT(TAB_COMBINAÇÕES[[#This Row],[AUTOMAÇÃO]],\"+\",TAB_COMBINAÇÕES[[#This Row],[COMUNICAÇÃO]],\"+\",TAB_COMBINAÇÕES[[#This Row],[CABO]],\"+\",TAB_COMBINAÇÕES[[#This Row],[FIXAÇÃO]])","v":"INDICADOR LINHA 3000+INDICADOR 3102C+50 m+COM PEDESTAL"},"JZ"]
[null,"INDICADOR LINHA 3000","INDICADOR 3102C","100 m","COM PEDESTAL",{"$f":"_xlfn.CONCAT(TAB_COMBINAÇÕES[[#This Row],[AUTOMAÇÃO]],\"+\",TAB_COMBINAÇÕES[[#This Row],[COMUNICAÇÃO]],\"+\",TAB_COMBINAÇÕES[[#This Row],[CABO]],\"+\",TAB_COMBINAÇÕES[[#This Row],[FIXAÇÃO]])","v":"INDICADOR LINHA 3000+INDICADOR 3102C+100 m+COM PEDESTAL"},"KA"]
[null,"INDICADOR LINHA 3000","INDICADOR 3102C","200 m","COM PEDESTAL",{"$f":"_xlfn.CONCAT(TAB_COMBINAÇÕES[[#This Row],[AUTOMAÇÃO]],\"+\",TAB_COMBINAÇÕES[[#This Row],[COMUNICAÇÃO]],\"+\",TAB_COMBINAÇÕES[[#This Row],[CABO]],\"+\",TAB_COMBINAÇÕES[[#This Row],[FIXAÇÃO]])","v":"INDICADOR LINHA 3000+INDICADOR 3102C+200 m+COM PEDESTAL"},"KB"]
[null,"INDICADOR LINHA 3000","INDICADOR 3102C","300 m","COM PEDESTAL",{"$f":"_xlfn.CONCAT(TAB_COMBINAÇÕES[[#This Row],[AUTOMAÇÃO]],\"+\",TAB_COMBINAÇÕES[[#This Row],[COMUNICAÇÃO]],\"+\",TAB_COMBINAÇÕES[[#This Row],[CABO]],\"+\",TAB_COMBINAÇÕES[[#This Row],[FIXAÇÃO]])","v":"INDICADOR LINHA 3000+INDICADOR 3102C+300 m+COM PEDESTAL"},"KC"]
[null,"INDICADOR LINHA 3000","INDICADOR 3104C","SEM CABO","COM PEDESTAL",{"$f":"_xlfn.CONCAT(TAB_COMBINAÇÕES[[#This Row],[AUTOMAÇÃO]],\"+\",TAB_COMBINAÇÕES[[#This Row],[COMUNICAÇÃO]],\"+\",TAB_COMBINAÇÕES[[#This Row],[CABO]],\"+\",TAB_COMBINAÇÕES[[#This Row],[FIXAÇÃO]])","v":"INDICADOR LINHA 3000+INDICADOR 3104C+SEM CABO+COM PEDESTAL"},"KD"]
[null,"INDICADOR LINHA 3000","INDICADOR 3104C","10 m","COM PEDESTAL",{"$f":"_xlfn.CONCAT(TAB_COMBINAÇÕES[[#This Row],[AUTOMAÇÃO]],\"+\",TAB_COMBINAÇÕES[[#This Row],[COMUNICAÇÃO]],\"+\",TAB_COMBINAÇÕES[[#This Row],[CABO]],\"+\",TAB_COMBINAÇÕES[[#This Row],[FIXAÇÃO]])","v":"INDICADOR LINHA 3000+INDICADOR 3104C+10 m+COM PEDESTAL"},"KE"]
[null,"INDICADOR LINHA 3000","INDICADOR 3104C","20 m","COM PEDESTAL",{"$f":"_xlfn.CONCAT(TAB_COMBINAÇÕES[[#This Row],[AUTOMAÇÃO]],\"+\",TAB_COMBINAÇÕES[[#This Row],[COMUNICAÇÃO]],\"+\",TAB_COMBINAÇÕES[[#This Row],[CABO]],\"+\",TAB_COMBINAÇÕES[[#This Row],[FIXAÇÃO]])","v":"INDICADOR LINHA 3000+INDICADOR 3104C+20 m+COM PEDESTAL"},"KF"]
[null,"INDICADOR LINHA 3000","INDICADOR 3104C","50 m","COM PEDESTAL",{"$f":"_xlfn.CONCAT(TAB_COMBINAÇÕES[[#This Row],[AUTOMAÇÃO]],\"+\",TAB_COMBINAÇÕES[[#This Row],[COMUNICAÇÃO]],\"+\",TAB_COMBINAÇÕES[[#This Row],[CABO]],\"+\",TAB_COMBINAÇÕES[[#This Row],[FIXAÇÃO]])","v":"INDICADOR LINHA 3000+INDICADOR 3104C+50 m+COM PEDESTAL"},"KG"]
[null,"INDICADOR LINHA 3000","INDICADOR 3104C","100 m","COM PEDESTAL",{"$f":"_xlfn.CONCAT(TAB_COMBINAÇÕES[[#This Row],[AUTOMAÇÃO]],\"+\",TAB_COMBINAÇÕES[[#This Row],[COMUNICAÇÃO]],\"+\",TAB_COMBINAÇÕES[[#This Row],[CABO]],\"+\",TAB_COMBINAÇÕES[[#This Row],[FIXAÇÃO]])","v":"INDICADOR LINHA 3000+INDICADOR 3104C+100 m+COM PEDESTAL"},"KH"]
[null,"INDICADOR LINHA 3000","INDICADOR 3104C","200 m","COM PEDESTAL",{"$f":"_xlfn.CONCAT(TAB_COMBINAÇÕES[[#This Row],[AUTOMAÇÃO]],\"+\",TAB_COMBINAÇÕES[[#This Row],[COMUNICAÇÃO]],\"+\",TAB_COMBINAÇÕES[[#This Row],[CABO]],\"+\",TAB_COMBINAÇÕES[[#This Row],[FIXAÇÃO]])","v":"INDICADOR LINHA 3000+INDICADOR 3104C+200 m+COM PEDESTAL"},"KI"]
[null,"INDICADOR LINHA 3000","INDICADOR 3104C","300 m","COM PEDESTAL",{"$f":"_xlfn.CONCAT(TAB_COMBINAÇÕES[[#This Row],[AUTOMAÇÃO]],\"+\",TAB_COMBINAÇÕES[[#This Row],[COMUNICAÇÃO]],\"+\",TAB_COMBINAÇÕES[[#This Row],[CABO]],\"+\",TAB_COMBINAÇÕES[[#This Row],[FIXAÇÃO]])","v":"INDICADOR LINHA 3000+INDICADOR 3104C+300 m+COM PEDESTAL"},"KJ"]
[null,"INDICADOR LINHA 3000","INDICADOR 3107C","SEM CABO","COM PEDESTAL",{"$f":"_xlfn.CONCAT(TAB_COMBINAÇÕES[[#This Row],[AUTOMAÇÃO]],\"+\",TAB_COMBINAÇÕES[[#This Row],[COMUNICAÇÃO]],\"+\",TAB_COMBINAÇÕES[[#This Row],[CABO]],\"+\",TAB_COMBINAÇÕES[[#This Row],[FIXAÇÃO]])","v":"INDICADOR LINHA 3000+INDICADOR 3107C+SEM CABO+COM PEDESTAL"},"KK"]
[null,"INDICADOR LINHA 3000","INDICADOR 3107C","10 m","COM PEDESTAL",{"$f":"_xlfn.CONCAT(TAB_COMBINAÇÕES[[#This Row],[AUTOMAÇÃO]],\"+\",TAB_COMBINAÇÕES[[#This Row],[COMUNICAÇÃO]],\"+\",TAB_COMBINAÇÕES[[#This Row],[CABO]],\"+\",TAB_COMBINAÇÕES[[#This Row],[FIXAÇÃO]])","v":"INDICADOR LINHA 3000+INDICADOR 3107C+10 m+COM PEDESTAL"},"KL"]
[null,"INDICADOR LINHA 3000","INDICADOR 3107C","20 m","COM PEDESTAL",{"$f":"_xlfn.CONCAT(TAB_COMBINAÇÕES[[#This Row],[AUTOMAÇÃO]],\"+\",TAB_COMBINAÇÕES[[#This Row],[COMUNICAÇÃO]],\"+\",TAB_COMBINAÇÕES[[#This Row],[CABO]],\"+\",TAB_COMBINAÇÕES[[#This Row],[FIXAÇÃO]])","v":"INDICADOR LINHA 3000+INDICADOR 3107C+20 m+COM PEDESTAL"},"KN"]
[null,"INDICADOR LINHA 3000","INDICADOR 3107C","50 m","COM PEDESTAL",{"$f":"_xlfn.CONCAT(TAB_COMBINAÇÕES[[#This Row],[AUTOMAÇÃO]],\"+\",TAB_COMBINAÇÕES[[#This Row],[COMUNICAÇÃO]],\"+\",TAB_COMBINAÇÕES[[#This Row],[CABO]],\"+\",TAB_COMBINAÇÕES[[#This Row],[FIXAÇÃO]])","v":"INDICADOR LINHA 3000+INDICADOR 3107C+50 m+COM PEDESTAL"},"KN"]
[null,"INDICADOR LINHA 3000","INDICADOR 3107C","100 m","COM PEDESTAL",{"$f":"_xlfn.CONCAT(TAB_COMBINAÇÕES[[#This Row],[AUTOMAÇÃO]],\"+\",TAB_COMBINAÇÕES[[#This Row],[COMUNICAÇÃO]],\"+\",TAB_COMBINAÇÕES[[#This Row],[CABO]],\"+\",TAB_COMBINAÇÕES[[#This Row],[FIXAÇÃO]])","v":"INDICADOR LINHA 3000+INDICADOR 3107C+100 m+COM PEDESTAL"},"KO"]
[null,"INDICADOR LINHA 3000","INDICADOR 3107C","200 m","COM PEDESTAL",{"$f":"_xlfn.CONCAT(TAB_COMBINAÇÕES[[#This Row],[AUTOMAÇÃO]],\"+\",TAB_COMBINAÇÕES[[#This Row],[COMUNICAÇÃO]],\"+\",TAB_COMBINAÇÕES[[#This Row],[CABO]],\"+\",TAB_COMBINAÇÕES[[#This Row],[FIXAÇÃO]])","v":"INDICADOR LINHA 3000+INDICADOR 3107C+200 m+COM PEDESTAL"},"KP"]
[null,"INDICADOR LINHA 3000","INDICADOR 3107C","300 m","COM PEDESTAL",{"$f":"_xlfn.CONCAT(TAB_COMBINAÇÕES[[#This Row],[AUTOMAÇÃO]],\"+\",TAB_COMBINAÇÕES[[#This Row],[COMUNICAÇÃO]],\"+\",TAB_COMBINAÇÕES[[#This Row],[CABO]],\"+\",TAB_COMBINAÇÕES[[#This Row],[FIXAÇÃO]])","v":"INDICADOR LINHA 3000+INDICADOR 3107C+300 m+COM PEDESTAL"},"KQ"]
[null,"INDICADOR LINHA 3000","INDICADOR 3102CS","SEM CABO","COM PEDESTAL",{"$f":"_xlfn.CONCAT(TAB_COMBINAÇÕES[[#This Row],[AUTOMAÇÃO]],\"+\",TAB_COMBINAÇÕES[[#This Row],[COMUNICAÇÃO]],\"+\",TAB_COMBINAÇÕES[[#This Row],[CABO]],\"+\",TAB_COMBINAÇÕES[[#This Row],[FIXAÇÃO]])","v":"INDICADOR LINHA 3000+INDICADOR 3102CS+SEM CABO+COM PEDESTAL"},"KR"]
[null,"INDICADOR LINHA 3000","INDICADOR 3102CS","10 m","COM PEDESTAL",{"$f":"_xlfn.CONCAT(TAB_COMBINAÇÕES[[#This Row],[AUTOMAÇÃO]],\"+\",TAB_COMBINAÇÕES[[#This Row],[COMUNICAÇÃO]],\"+\",TAB_COMBINAÇÕES[[#This Row],[CABO]],\"+\",TAB_COMBINAÇÕES[[#This Row],[FIXAÇÃO]])","v":"INDICADOR LINHA 3000+INDICADOR 3102CS+10 m+COM PEDESTAL"},"KS"]
[null,"INDICADOR LINHA 3000","INDICADOR 3102CS","20 m","COM PEDESTAL",{"$f":"_xlfn.CONCAT(TAB_COMBINAÇÕES[[#This Row],[AUTOMAÇÃO]],\"+\",TAB_COMBINAÇÕES[[#This Row],[COMUNICAÇÃO]],\"+\",TAB_COMBINAÇÕES[[#This Row],[CABO]],\"+\",TAB_COMBINAÇÕES[[#This Row],[FIXAÇÃO]])","v":"INDICADOR LINHA 3000+INDICADOR 3102CS+20 m+COM PEDESTAL"},"KT"]
[null,"INDICADOR LINHA 3000","INDICADOR 3102CS","50 m","COM PEDESTAL",{"$f":"_xlfn.CONCAT(TAB_COMBINAÇÕES[[#This Row],[AUTOMAÇÃO]],\"+\",TAB_COMBINAÇÕES[[#This Row],[COMUNICAÇÃO]],\"+\",TAB_COMBINAÇÕES[[#This Row],[CABO]],\"+\",TAB_COMBINAÇÕES[[#This Row],[FIXAÇÃO]])","v":"INDICADOR LINHA 3000+INDICADOR 3102CS+50 m+COM PEDESTAL"},"KU"]
[null,"INDICADOR LINHA 3000","INDICADOR 3102CS","100 m","COM PEDESTAL",{"$f":"_xlfn.CONCAT(TAB_COMBINAÇÕES[[#This Row],[AUTOMAÇÃO]],\"+\",TAB_COMBINAÇÕES[[#This Row],[COMUNICAÇÃO]],\"+\",TAB_COMBINAÇÕES[[#This Row],[CABO]],\"+\",TAB_COMBINAÇÕES[[#This Row],[FIXAÇÃO]])","v":"INDICADOR LINHA 3000+INDICADOR 3102CS+100 m+COM PEDESTAL"},"KV"]
[null,"INDICADOR LINHA 3000","INDICADOR 3102CS","200 m","COM PEDESTAL",{"$f":"_xlfn.CONCAT(TAB_COMBINAÇÕES[[#This Row],[AUTOMAÇÃO]],\"+\",TAB_COMBINAÇÕES[[#This Row],[COMUNICAÇÃO]],\"+\",TAB_COMBINAÇÕES[[#This Row],[CABO]],\"+\",TAB_COMBINAÇÕES[[#This Row],[FIXAÇÃO]])","v":"INDICADOR LINHA 3000+INDICADOR 3102CS+200 m+COM PEDESTAL"},"KX"]
[null,"INDICADOR LINHA 3000","INDICADOR 3102CS","300 m","COM PEDESTAL",{"$f":"_xlfn.CONCAT(TAB_COMBINAÇÕES[[#This Row],[AUTOMAÇÃO]],\"+\",TAB_COMBINAÇÕES[[#This Row],[COMUNICAÇÃO]],\"+\",TAB_COMBINAÇÕES[[#This Row],[CABO]],\"+\",TAB_COMBINAÇÕES[[#This Row],[FIXAÇÃO]])","v":"INDICADOR LINHA 3000+INDICADOR 3102CS+300 m+COM PEDESTAL"},"KY"]
[null,"INDICADOR LINHA 3000","INDICADOR 3104CS","SEM CABO","COM PEDESTAL",{"$f":"_xlfn.CONCAT(TAB_COMBINAÇÕES[[#This Row],[AUTOMAÇÃO]],\"+\",TAB_COMBINAÇÕES[[#This Row],[COMUNICAÇÃO]],\"+\",TAB_COMBINAÇÕES[[#This Row],[CABO]],\"+\",TAB_COMBINAÇÕES[[#This Row],[FIXAÇÃO]])","v":"INDICADOR LINHA 3000+INDICADOR 3104CS+SEM CABO+COM PEDESTAL"},"KW"]
[null,"INDICADOR LINHA 3000","INDICADOR 3104CS","10 m","COM PEDESTAL",{"$f":"_xlfn.CONCAT(TAB_COMBINAÇÕES[[#This Row],[AUTOMAÇÃO]],\"+\",TAB_COMBINAÇÕES[[#This Row],[COMUNICAÇÃO]],\"+\",TAB_COMBINAÇÕES[[#This Row],[CABO]],\"+\",TAB_COMBINAÇÕES[[#This Row],[FIXAÇÃO]])","v":"INDICADOR LINHA 3000+INDICADOR 3104CS+10 m+COM PEDESTAL"},"KZ"]
[null,"INDICADOR LINHA 3000","INDICADOR 3104CS","20 m","COM PEDESTAL",{"$f":"_xlfn.CONCAT(TAB_COMBINAÇÕES[[#This Row],[AUTOMAÇÃO]],\"+\",TAB_COMBINAÇÕES[[#This Row],[COMUNICAÇÃO]],\"+\",TAB_COMBINAÇÕES[[#This Row],[CABO]],\"+\",TAB_COMBINAÇÕES[[#This Row],[FIXAÇÃO]])","v":"INDICADOR LINHA 3000+INDICADOR 3104CS+20 m+COM PEDESTAL"},"LA"]
[null,"INDICADOR LINHA 3000","INDICADOR 3104CS","50 m","COM PEDESTAL",{"$f":"_xlfn.CONCAT(TAB_COMBINAÇÕES[[#This Row],[AUTOMAÇÃO]],\"+\",TAB_COMBINAÇÕES[[#This Row],[COMUNICAÇÃO]],\"+\",TAB_COMBINAÇÕES[[#This Row],[CABO]],\"+\",TAB_COMBINAÇÕES[[#This Row],[FIXAÇÃO]])","v":"INDICADOR LINHA 3000+INDICADOR 3104CS+50 m+COM PEDESTAL"},"LB"]
[null,"INDICADOR LINHA 3000","INDICADOR 3104CS","100 m","COM PEDESTAL",{"$f":"_xlfn.CONCAT(TAB_COMBINAÇÕES[[#This Row],[AUTOMAÇÃO]],\"+\",TAB_COMBINAÇÕES[[#This Row],[COMUNICAÇÃO]],\"+\",TAB_COMBINAÇÕES[[#This Row],[CABO]],\"+\",TAB_COMBINAÇÕES[[#This Row],[FIXAÇÃO]])","v":"INDICADOR LINHA 3000+INDICADOR 3104CS+100 m+COM PEDESTAL"},"LC"]
[null,"INDICADOR LINHA 3000","INDICADOR 3104CS","200 m","COM PEDESTAL",{"$f":"_xlfn.CONCAT(TAB_COMBINAÇÕES[[#This Row],[AUTOMAÇÃO]],\"+\",TAB_COMBINAÇÕES[[#This Row],[COMUNICAÇÃO]],\"+\",TAB_COMBINAÇÕES[[#This Row],[CABO]],\"+\",TAB_COMBINAÇÕES[[#This Row],[FIXAÇÃO]])","v":"INDICADOR LINHA 3000+INDICADOR 3104CS+200 m+COM PEDESTAL"},"LD"]
[null,"INDICADOR LINHA 3000","INDICADOR 3104CS","300 m","COM PEDESTAL",{"$f":"_xlfn.CONCAT(TAB_COMBINAÇÕES[[#This Row],[AUTOMAÇÃO]],\"+\",TAB_COMBINAÇÕES[[#This Row],[COMUNICAÇÃO]],\"+\",TAB_COMBINAÇÕES[[#This Row],[CABO]],\"+\",TAB_COMBINAÇÕES[[#This Row],[FIXAÇÃO]])","v":"INDICADOR LINHA 3000+INDICADOR 3104CS+300 m+COM PEDESTAL"},"LE"]
[null,"INDICADOR LINHA 3000","INDICADOR 3107CS","SEM CABO","COM PEDESTAL",{"$f":"_xlfn.CONCAT(TAB_COMBINAÇÕES[[#This Row],[AUTOMAÇÃO]],\"+\",TAB_COMBINAÇÕES[[#This Row],[COMUNICAÇÃO]],\"+\",TAB_COMBINAÇÕES[[#This Row],[CABO]],\"+\",TAB_COMBINAÇÕES[[#This Row],[FIXAÇÃO]])","v":"INDICADOR LINHA 3000+INDICADOR 3107CS+SEM CABO+COM PEDESTAL"},"LF"]
[null,"INDICADOR LINHA 3000","INDICADOR 3107CS","10 m","COM PEDESTAL",{"$f":"_xlfn.CONCAT(TAB_COMBINAÇÕES[[#This Row],[AUTOMAÇÃO]],\"+\",TAB_COMBINAÇÕES[[#This Row],[COMUNICAÇÃO]],\"+\",TAB_COMBINAÇÕES[[#This Row],[CABO]],\"+\",TAB_COMBINAÇÕES[[#This Row],[FIXAÇÃO]])","v":"INDICADOR LINHA 3000+INDICADOR 3107CS+10 m+COM PEDESTAL"},"LG"]
[null,"INDICADOR LINHA 3000","INDICADOR 3107CS","20 m","COM PEDESTAL",{"$f":"_xlfn.CONCAT(TAB_COMBINAÇÕES[[#This Row],[AUTOMAÇÃO]],\"+\",TAB_COMBINAÇÕES[[#This Row],[COMUNICAÇÃO]],\"+\",TAB_COMBINAÇÕES[[#This Row],[CABO]],\"+\",TAB_COMBINAÇÕES[[#This Row],[FIXAÇÃO]])","v":"INDICADOR LINHA 3000+INDICADOR 3107CS+20 m+COM PEDESTAL"},"LH"]
[null,"INDICADOR LINHA 3000","INDICADOR 3107CS","50 m","COM PEDESTAL",{"$f":"_xlfn.CONCAT(TAB_COMBINAÇÕES[[#This Row],[AUTOMAÇÃO]],\"+\",TAB_COMBINAÇÕES[[#This Row],[COMUNICAÇÃO]],\"+\",TAB_COMBINAÇÕES[[#This Row],[CABO]],\"+\",TAB_COMBINAÇÕES[[#This Row],[FIXAÇÃO]])","v":"INDICADOR LINHA 3000+INDICADOR 3107CS+50 m+COM PEDESTAL"},"LI"]
[null,"INDICADOR LINHA 3000","INDICADOR 3107CS","100 m","COM PEDESTAL",{"$f":"_xlfn.CONCAT(TAB_COMBINAÇÕES[[#This Row],[AUTOMAÇÃO]],\"+\",TAB_COMBINAÇÕES[[#This Row],[COMUNICAÇÃO]],\"+\",TAB_COMBINAÇÕES[[#This Row],[CABO]],\"+\",TAB_COMBINAÇÕES[[#This Row],[FIXAÇÃO]])","v":"INDICADOR LINHA 3000+INDICADOR 3107CS+100 m+COM PEDESTAL"},"LJ"]
[null,"INDICADOR LINHA 3000","INDICADOR 3107CS","200 m","COM PEDESTAL",{"$f":"_xlfn.CONCAT(TAB_COMBINAÇÕES[[#This Row],[AUTOMAÇÃO]],\"+\",TAB_COMBINAÇÕES[[#This Row],[COMUNICAÇÃO]],\"+\",TAB_COMBINAÇÕES[[#This Row],[CABO]],\"+\",TAB_COMBINAÇÕES[[#This Row],[FIXAÇÃO]])","v":"INDICADOR LINHA 3000+INDICADOR 3107CS+200 m+COM PEDESTAL"},"LK"]
[null,"INDICADOR LINHA 3000","INDICADOR 3107CS","300 m","COM PEDESTAL",{"$f":"_xlfn.CONCAT(TAB_COMBINAÇÕES[[#This Row],[AUTOMAÇÃO]],\"+\",TAB_COMBINAÇÕES[[#This Row],[COMUNICAÇÃO]],\"+\",TAB_COMBINAÇÕES[[#This Row],[CABO]],\"+\",TAB_COMBINAÇÕES[[#This Row],[FIXAÇÃO]])","v":"INDICADOR LINHA 3000+INDICADOR 3107CS+300 m+COM PEDESTAL"},"LL"]